Workbook

Sheet 1-MetaPro_2022
A1: Código Dpto | B1: Departamento | C1: Municipio | D1: Divipola | E1: Poblaciòn Menor de 1 año (Meta Programática 2022) | F1: Poblaciòn de 1 año (Meta Programática 2022) | G1: Pob. 5 años (Meta Programática 2022) | H1: Q | I1: DEPARTAMENTO | J1: CODEP | K1: Poblaciòn Menor de 1 año (Meta Programática 2022) | L1: Poblaciòn de 1 año (Meta Programática 2022) | M1: Pob. 5 años (Meta Programática 2022) | N1: R | O1: Poblacion de 9 años DANE | R1: Total fase 1 | S1: Total fase 2 | T1: Gran total Pob Covid-19
A2: 05 | B2: ANTIOQUIA | C2: Medellin | D2: 05001 | E2: 25,902 | F2: 26,817 | G2: 28,016 | H2: 0 | I2: ANTIOQUIA | J2: 05 | K2: =SUMIF($A$2:$A$1122,J2,$E$2:$E$1122) -> 72,099 | L2: =SUMIF($A$2:$A$1122,J2,$F$2:$F$1122) -> 74,701 | M2: =SUMIF($A$2:$A$1122,J2,$G$2:$G$1122) -> 79,329 | N2: 0 | O2: 14957 | Q2: 05001 | R2: 852,035 | S2: 1,179,004 | T2: =R2+S2 -> 2,031,039 | V2: Rangos de edad | X2: 05001 | Y2: 14957
A3: 05 | B3: ANTIOQUIA | C3: Abejorral | D3: 05002 | E3: 161 | F3: 167 | G3: 242 | I3: ATLANTICO | J3: 08 | K3: =SUMIF($A$3:$A$1122,J3,$E$3:$E$1122) -> 21,197 | L3: =SUMIF($A$3:$A$1122,J3,$F$3:$F$1122) -> 21,565 | M3: =SUMIF($A$3:$A$1122,J3,$G$3:$G$1122) -> 22,982 | O3: 144 | Q3: 05002 | R3: 4,537 | S3: 8,657 | T3: =R3+S3 -> 13,194 | V3: 16 17 | X3: 05002 | Y3: 144
A4: 05 | B4: ANTIOQUIA | C4: Abriaqui | D4: 05004 | E4: 22 | F4: 22 | G4: 27 | I4: BARRANQUILLA | J4: 08001 | K4: =SUMIF($D$3:$D$1122,J4,$E$3:$E$1122) -> 19,802 | L4: =SUMIF($D$3:$D$1122,J4,$F$3:$F$1122) -> 20,849 | M4: =SUMIF($D$3:$D$1122,J4,$G$3:$G$1122) -> 22,374 | O4: 20 | Q4: 05004 | R4: 453 | S4: 1,171 | T4: 1,624 | V4: 18 - 22 | X4: 05004 | Y4: 20
A5: 05 | B5: ANTIOQUIA | C5: Alejandria | D5: 05021 | E5: 45 | F5: 46 | G5: 58 | I5: BOGOTA | J5: 11 | K5: =SUMIF($A$3:$A$1122,J5,$E$3:$E$1122) -> 90,967 | L5: =SUMIF($A$3:$A$1122,J5,$F$3:$F$1122) -> 93,996 | M5: =SUMIF($A$3:$A$1122,J5,$G$3:$G$1122) -> 96,930 | O5: 36 | Q5: 05021 | R5: 886 | S5: 1,959 | T5: 2,846 | V5: 23 - 27 | X5: 05021 | Y5: 36
A6: 05 | B6: ANTIOQUIA | C6: Amaga | D6: 05030 | E6: 269 | F6: 276 | G6: 299 | I6: BOLIVAR | J6: 13 | K6: =SUMIF($A$3:$A$1122,J6,$E$3:$E$1122) -> 18,473 | L6: =SUMIF($A$3:$A$1122,J6,$F$3:$F$1122) -> 19,368 | M6: =SUMIF($A$3:$A$1122,J6,$G$3:$G$1122) -> 20,614 | O6: 210 | Q6: 05030 | R6: 6,171 | S6: 14,239 | T6: 20,410 | V6: 28 - 32 | X6: 05030 | Y6: 210
A7: 05 | B7: ANTIOQUIA | C7: Amalfi | D7: 05031 | E7: 279 | F7: 296 | G7: 347 | I7: CARTAGENA | J7: 13001 | K7: =SUMIF($D$3:$D$1122,J7,$E$3:$E$1122) -> 16,175 | L7: =SUMIF($D$3:$D$1122,J7,$F$3:$F$1122) -> 17,942 | M7: =SUMIF($D$3:$D$1122,J7,$G$3:$G$1122) -> 18,393 | O7: 241 | Q7: 05031 | R7: 4,147 | S7: 11,750 | T7: 15,897 | V7: 33 - 37 | X7: 05031 | Y7: 241
A8: 05 | B8: ANTIOQUIA | C8: Andes | D8: 05034 | E8: 444 | F8: 457 | G8: 463 | I8: BOYACA | J8: 15 | K8: =SUMIF($A$3:$A$1122,J8,$E$3:$E$1122) -> 13,730 | L8: =SUMIF($A$3:$A$1122,J8,$F$3:$F$1122) -> 14,484 | M8: =SUMIF($A$3:$A$1122,J8,$G$3:$G$1122) -> 16,894 | O8: 309 | Q8: 05034 | R8: 9,366 | S8: 19,530 | T8: 28,896 | V8: 38 - 42 | X8: 05034 | Y8: 309
A9: 05 | B9: ANTIOQUIA | C9: Angelopolis | D9: 05036 | E9: 58 | F9: 63 | G9: 69 | I9: CALDAS | J9: 17 | K9: 8,721 | L9: 9,217 | M9: 10,478 | O9: 42 | Q9: 05036 | R9: 1,067 | S9: 2,548 | T9: 3,615 | V9: 43 - 47 | X9: 05036 | Y9: 42
A10: 05 | B10: ANTIOQUIA | C10: Angostura | D10: 05038 | E10: 120 | F10: 126 | G10: 128 | I10: CAQUETA | J10: 18 | K10: 6,564 | L10: 6,969 | M10: 7,426 | O10: 99 | Q10: 05038 | R10: 2,198 | S10: 4,921 | T10: 7,119 | V10: 48 - 52 | X10: 05038 | Y10: 99
A11: 05 | B11: ANTIOQUIA | C11: Anori | D11: 05040 | E11: 228 | F11: 249 | G11: 256 | I11: CAUCA | J11: 19 | K11: 19,592 | L11: 20,262 | M11: 21,724 | O11: 186 | Q11: 05040 | R11: 2,671 | S11: 8,142 | T11: 10,813 | V11: 53 - 57 | X11: 05040 | Y11: 186
A12: 05 | B12: ANTIOQUIA | C12: Santafe de Antioquia | D12: 05042 | E12: 322 | F12: 322 | G12: 345 | I12: CESAR | J12: 20 | K12: 22,660 | L12: 23,305 | M12: 24,304 | O12: 205 | Q12: 05042 | R12: 6,000 | S12: 11,957 | T12: 17,957 | V12: 58 - 59 | X12: 05042 | Y12: 205
A13: 05 | B13: ANTIOQUIA | C13: Anza | D13: 05044 | E13: 98 | F13: 98 | G13: 98 | I13: CORDOBA | J13: 23 | K13: 27,076 | L13: 27,651 | M13: 29,670 | O13: 62 | Q13: 05044 | R13: 1,358 | S13: 3,057 | T13: 4,415 | X13: 05044 | Y13: 62
A14: 05 | B14: ANTIOQUIA | C14: Apartado | D14: 05045 | E14: 2,103 | F14: 2,167 | G14: 2,211 | I14: CUNDINAMARCA | J14: 25 | K14: 33,569 | L14: 35,320 | M14: 38,650 | O14: 1170 | Q14: 05045 | R14: 27,992 | S14: 57,526 | T14: 85,518 | X14: 05045 | Y14: 1170
A15: 05 | B15: ANTIOQUIA | C15: Arboletes | D15: 05051 | E15: 485 | F15: 487 | G15: 570 | I15: CHOCO | J15: 27 | K15: 9,300 | L15: 10,101 | M15: 10,621 | O15: 311 | Q15: 05051 | R15: 5,868 | S15: 12,324 | T15: 18,192 | X15: 05051 | Y15: 311
A16: 05 | B16: ANTIOQUIA | C16: Argelia | D16: 05055 | E16: 104 | F16: 107 | G16: 110 | I16: HUILA | J16: 41 | K16: 17,459 | L16: 18,058 | M16: 19,914 | O16: 64 | Q16: 05055 | R16: 1,479 | S16: 3,096 | T16: 4,575 | X16: 05055 | Y16: 64
A17: 05 | B17: ANTIOQUIA | C17: Armenia | D17: 05059 | E17: 30 | F17: 33 | G17: 37 | I17: LA GUAJIRA | J17: 44 | K17: 21,111 | L17: 22,144 | M17: 23,063 | O17: 35 | Q17: 05059 | R17: 1,349 | S17: 2,092 | T17: 3,442 | X17: 05059 | Y17: 35
A18: 05 | B18: ANTIOQUIA | C18: Barbosa | D18: 05079 | E18: 429 | F18: 443 | G18: 465 | I18: MAGDALENA | J18: 47 | K18: 16,034 | L18: 16,613 | M18: 17,418 | O18: 352 | Q18: 05079 | R18: 11,340 | S18: 24,777 | T18: 36,117 | X18: 05079 | Y18: 352
A19: 05 | B19: ANTIOQUIA | C19: Belmira | D19: 05086 | E19: 54 | F19: 56 | G19: 67 | I19: SANTA MARTA | J19: 47001 | K19: =SUMIF($D$3:$D$1122,J19,$E$3:$E$1122) -> 8,239 | L19: =SUMIF($D$3:$D$1122,J19,$F$3:$F$1122) -> 8,392 | M19: =SUMIF($D$3:$D$1122,J19,$G$3:$G$1122) -> 8,689 | O19: 57 | Q19: 05086 | R19: 839 | S19: 2,658 | T19: 3,497 | X19: 05086 | Y19: 57
A20: 05 | B20: ANTIOQUIA | C20: Bello | D20: 05088 | E20: 4,661 | F20: 4,770 | G20: 5,037 | I20: META | J20: 50 | K20: =SUMIF($A$3:$A$1122,J20,$E$3:$E$1122) -> 14,484 | L20: =SUMIF($A$3:$A$1122,J20,$F$3:$F$1122) -> 15,149 | M20: =SUMIF($A$3:$A$1122,J20,$G$3:$G$1122) -> 16,175 | O20: 3486 | Q20: 05088 | R20: 122,485 | S20: 261,228 | T20: 383,713 | X20: 05088 | Y20: 3486
A21: 05 | B21: ANTIOQUIA | C21: Betania | D21: 05091 | E21: 92 | F21: 95 | G21: 107 | I21: NARIÑO | J21: 52 | K21: 18,378 | L21: 19,033 | M21: 20,963 | O21: 90 | Q21: 05091 | R21: 1,789 | S21: 4,380 | T21: 6,169 | X21: 05091 | Y21: 90
A22: 05 | B22: ANTIOQUIA | C22: Betulia | D22: 05093 | E22: 208 | F22: 219 | G22: 240 | I22: NORTE DE SANTANDER | J22: 54 | K22: 23,159 | L22: 24,048 | M22: 24,180 | O22: 143 | Q22: 05093 | R22: 3,170 | S22: 6,812 | T22: 9,983 | X22: 05093 | Y22: 143
A23: 05 | B23: ANTIOQUIA | C23: Ciudad Bolivar | D23: 05101 | E23: 286 | F23: 288 | G23: 334 | I23: QUINDIO | J23: 63 | K23: 5,298 | L23: 5,665 | M23: 6,156 | O23: 196 | Q23: 05101 | R23: 6,918 | S23: 11,321 | T23: 18,239 | X23: 05101 | Y23: 196
A24: 05 | B24: ANTIOQUIA | C24: Briceño | D24: 05107 | E24: 94 | F24: 104 | G24: 115 | I24: RISARALDA | J24: 66 | K24: 9,914 | L24: 10,411 | M24: 11,696 | O24: 78 | Q24: 05107 | R24: 1,169 | S24: 3,399 | T24: 4,568 | X24: 05107 | Y24: 78
A25: 05 | B25: ANTIOQUIA | C25: Buritica | D25: 05113 | E25: 104 | F25: 109 | G25: 116 | I25: SANTANDER | J25: 68 | K25: 28,187 | L25: 28,679 | M25: 31,095 | O25: 94 | Q25: 05113 | R25: 1,459 | S25: 4,043 | T25: 5,502 | X25: 05113 | Y25: 94
A26: 05 | B26: ANTIOQUIA | C26: Caceres | D26: 05120 | E26: 432 | F26: 447 | G26: 471 | I26: SUCRE | J26: 70 | K26: 13,943 | L26: 14,842 | M26: 15,586 | O26: 336 | Q26: 05120 | R26: 3,992 | S26: 12,035 | T26: 16,027 | X26: 05120 | Y26: 336
A27: 05 | B27: ANTIOQUIA | C27: Caicedo | D27: 05125 | E27: 113 | F27: 113 | G27: 134 | I27: TOLIMA | J27: 73 | K27: 15,759 | L27: 16,478 | M27: 18,368 | O27: 79 | Q27: 05125 | R27: 1,492 | S27: 3,638 | T27: 5,130 | X27: 05125 | Y27: 79
A28: 05 | B28: ANTIOQUIA | C28: Caldas | D28: 05129 | E28: 776 | F28: 816 | G28: 849 | I28: VALLE DEL CAUCA | J28: 76 | K28: 49,048 | L28: 51,056 | M28: 54,407 | O28: 466 | Q28: 05129 | R28: 26,740 | S28: 39,205 | T28: 65,945 | X28: 05129 | Y28: 466
A29: 05 | B29: ANTIOQUIA | C29: Campamento | D29: 05134 | E29: 87 | F29: 88 | G29: 109 | I29: BUENAVENTURA | J29: 76109 | K29: =SUMIF($D$3:$D$1122,J29,$E$3:$E$1122) -> 4,570 | L29: =SUMIF($D$3:$D$1122,J29,$F$3:$F$1122) -> 4,637 | M29: =SUMIF($D$3:$D$1122,J29,$G$3:$G$1122) -> 5,304 | O29: 88 | Q29: 05134 | R29: 1,397 | S29: 3,824 | T29: 5,221 | X29: 05134 | Y29: 88
A30: 05 | B30: ANTIOQUIA | C30: Cañasgordas | D30: 05138 | E30: 169 | F30: 174 | G30: 187 | I30: ARAUCA | J30: 81 | K30: =SUMIF($A$3:$A$1122,J30,$E$3:$E$1122) -> 5,184 | L30: =SUMIF($A$3:$A$1122,J30,$F$3:$F$1122) -> 5,350 | M30: =SUMIF($A$3:$A$1122,J30,$G$3:$G$1122) -> 5,180 | O30: 135 | Q30: 05138 | R30: 3,430 | S30: 6,465 | T30: 9,895 | X30: 05138 | Y30: 135
A31: 05 | B31: ANTIOQUIA | C31: Caracoli | D31: 05142 | E31: 53 | F31: 54 | G31: 55 | I31: CASANARE | J31: 85 | K31: 6,518 | L31: 6,820 | M31: 7,061 | O31: 31 | Q31: 05142 | R31: 1,151 | S31: 1,892 | T31: 3,043 | X31: 05142 | Y31: 31
A32: 05 | B32: ANTIOQUIA | C32: Caramanta | D32: 05145 | E32: 42 | F32: 43 | G32: 45 | I32: PUTUMAYO | J32: 86 | K32: 4,725 | L32: 4,933 | M32: 5,239 | O32: 31 | Q32: 05145 | R32: 1,227 | S32: 1,998 | T32: 3,225 | X32: 05145 | Y32: 31
A33: 05 | B33: ANTIOQUIA | C33: Carepa | D33: 05147 | E33: 953 | F33: 963 | G33: 957 | I33: SAN ANDRES ISLAS | J33: 88 | K33: 727 | L33: 764 | M33: 883 | O33: 514 | Q33: 05147 | R33: 9,392 | S33: 22,491 | T33: 31,883 | X33: 05147 | Y33: 514
A34: 05 | B34: ANTIOQUIA | C34: El Carmen de Viboral | D34: 05148 | E34: 619 | F34: 625 | G34: 651 | I34: AMAZONAS | J34: 91 | K34: 1,477 | L34: 1,573 | M34: 1,847 | O34: 473 | Q34: 05148 | R34: 10,882 | S34: 28,287 | T34: 39,169 | X34: 05148 | Y34: 473
A35: 05 | B35: ANTIOQUIA | C35: Carolina | D35: 05150 | E35: 23 | F35: 29 | G35: 33 | I35: GUAINIA | J35: 94 | K35: 922 | L35: 998 | M35: 1,024 | O35: 22 | Q35: 05150 | R35: 997 | S35: 1,774 | T35: 2,771 | X35: 05150 | Y35: 22
A36: 05 | B36: ANTIOQUIA | C36: Caucasia | D36: 05154 | E36: 1,552 | F36: 1,633 | G36: 1,671 | I36: GUAVIARE | J36: 95 | K36: 1,347 | L36: 1,401 | M36: 1,470 | O36: 933 | Q36: 05154 | R36: 19,196 | S36: 40,808 | T36: 60,004 | X36: 05154 | Y36: 933
A37: 05 | B37: ANTIOQUIA | C37: Chigorodo | D37: 05172 | E37: 1,150 | F37: 1,197 | G37: 1,236 | I37: VAUPES | J37: 97 | K37: 700 | L37: 723 | M37: 779 | O37: 602 | Q37: 05172 | R37: 11,833 | S37: 25,868 | T37: 37,701 | X37: 05172 | Y37: 602
A38: 05 | B38: ANTIOQUIA | C38: Cisneros | D38: 05190 | E38: 126 | F38: 141 | G38: 138 | I38: VICHADA | J38: 99 | K38: 1,663 | L38: 1,715 | M38: 1,850 | O38: 71 | Q38: 05190 | R38: 2,762 | S38: 4,285 | T38: 7,047 | X38: 05190 | Y38: 71
A39: 05 | B39: ANTIOQUIA | C39: Cocorna | D39: 05197 | E39: 179 | F39: 184 | G39: 213 | O39: 124 | Q39: 05197 | R39: 3,406 | S39: 6,102 | T39: 9,507 | X39: 05197 | Y39: 124
A40: 05 | B40: ANTIOQUIA | C40: Concepcion | D40: 05206 | E40: 38 | F40: 38 | G40: 50 | I40: TOTAL NACIONAL | K40: =SUM(K2:K38) -> 648,771 | L40: =SUM(L2:L38) -> 675,212 | M40: =SUM(M2:M38) -> 718,736 | O40: 30 | Q40: 05206 | R40: 1,075 | S40: 1,999 | T40: 3,074 | X40: 05206 | Y40: 30
A41: 05 | B41: ANTIOQUIA | C41: Concordia | D41: 05209 | E41: 191 | F41: 198 | G41: 208 | O41: 170 | Q41: 05209 | R41: 4,273 | S41: 9,348 | T41: 13,621 | X41: 05209 | Y41: 170
A42: 05 | B42: ANTIOQUIA | C42: Copacabana | D42: 05212 | E42: 536 | F42: 551 | G42: 660 | O42: 458 | Q42: 05212 | R42: 20,820 | S42: 38,560 | T42: 59,380 | X42: 05212 | Y42: 458
A43: 05 | B43: ANTIOQUIA | C43: Dabeiba | D43: 05234 | E43: 339 | F43: 390 | G43: 431 | O43: 264 | Q43: 05234 | R43: 3,755 | S43: 9,133 | T43: 12,888 | X43: 05234 | Y43: 264
A44: 05 | B44: ANTIOQUIA | C44: Don Matias | D44: 05237 | E44: 203 | F44: 230 | G44: 240 | O44: 156 | Q44: 05237 | R44: 4,706 | S44: 8,783 | T44: 13,489 | X44: 05237 | Y44: 156
A45: 05 | B45: ANTIOQUIA | C45: Ebejico | D45: 05240 | E45: 94 | F45: 99 | G45: 111 | O45: 82 | Q45: 05240 | R45: 3,017 | S45: 5,066 | T45: 8,083 | X45: 05240 | Y45: 82
A46: 05 | B46: ANTIOQUIA | C46: El Bagre | D46: 05250 | E46: 905 | F46: 944 | G46: 1,088 | O46: 609 | Q46: 05250 | R46: 8,836 | S46: 22,021 | T46: 30,856 | X46: 05250 | Y46: 609
A47: 05 | B47: ANTIOQUIA | C47: Entrerrios | D47: 05264 | E47: 132 | F47: 145 | G47: 147 | O47: 102 | Q47: 05264 | R47: 1,830 | S47: 5,266 | T47: 7,097 | X47: 05264 | Y47: 102
A48: 05 | B48: ANTIOQUIA | C48: Envigado | D48: 05266 | E48: 1,354 | F48: 1,399 | G48: 1,578 | O48: 1070 | Q48: 05266 | R48: 78,507 | S48: 113,186 | T48: 191,693 | X48: 05266 | Y48: 1070
A49: 05 | B49: ANTIOQUIA | C49: Fredonia | D49: 05282 | E49: 171 | F49: 172 | G49: 192 | O49: 165 | Q49: 05282 | R49: 5,036 | S49: 10,716 | T49: 15,752 | X49: 05282 | Y49: 165
A50: 05 | B50: ANTIOQUIA | C50: Frontino | D50: 05284 | E50: 324 | F50: 378 | G50: 417 | O50: 205 | Q50: 05284 | R50: 4,371 | S50: 8,286 | T50: 12,657 | X50: 05284 | Y50: 205
A51: 05 | B51: ANTIOQUIA | C51: Giraldo | D51: 05306 | E51: 84 | F51: 83 | G51: 104 | O51: 53 | Q51: 05306 | R51: 946 | S51: 2,400 | T51: 3,346 | X51: 05306 | Y51: 53
A52: 05 | B52: ANTIOQUIA | C52: Girardota | D52: 05308 | E52: 491 | F52: 520 | G52: 542 | O52: 333 | Q52: 05308 | R52: 14,245 | S52: 25,297 | T52: 39,542 | X52: 05308 | Y52: 333
A53: 05 | B53: ANTIOQUIA | C53: Gomez Plata | D53: 05310 | E53: 76 | F53: 79 | G53: 85 | O53: 71 | Q53: 05310 | R53: 2,081 | S53: 4,236 | T53: 6,317 | X53: 05310 | Y53: 71
A54: 05 | B54: ANTIOQUIA | C54: Granada | D54: 05313 | E54: 151 | F54: 147 | G54: 153 | O54: 83 | Q54: 05313 | R54: 2,197 | S54: 3,937 | T54: 6,134 | X54: 05313 | Y54: 83
A55: 05 | B55: ANTIOQUIA | C55: Guadalupe | D55: 05315 | E55: 74 | F55: 74 | G55: 75 | O55: 54 | Q55: 05315 | R55: 1,224 | S55: 2,902 | T55: 4,127 | X55: 05315 | Y55: 54
A56: 05 | B56: ANTIOQUIA | C56: Guarne | D56: 05318 | E56: 425 | F56: 451 | G56: 464 | O56: 350 | Q56: 05318 | R56: 11,195 | S56: 26,300 | T56: 37,495 | X56: 05318 | Y56: 350
A57: 05 | B57: ANTIOQUIA | C57: Guatape | D57: 05321 | E57: 89 | F57: 93 | G57: 106 | O57: 59 | Q57: 05321 | R57: 1,383 | S57: 3,861 | T57: 5,243 | X57: 05321 | Y57: 59
A58: 05 | B58: ANTIOQUIA | C58: Heliconia | D58: 05347 | E58: 48 | F58: 49 | G58: 55 | O58: 33 | Q58: 05347 | R58: 1,274 | S58: 2,338 | T58: 3,612 | X58: 05347 | Y58: 33
A59: 05 | B59: ANTIOQUIA | C59: Hispania | D59: 05353 | E59: 51 | F59: 51 | G59: 62 | O59: 42 | Q59: 05353 | R59: 1,153 | S59: 2,385 | T59: 3,538 | X59: 05353 | Y59: 42
A60: 05 | B60: ANTIOQUIA | C60: Itagui | D60: 05360 | E60: 2,684 | F60: 2,759 | G60: 2,992 | O60: 1572 | Q60: 05360 | R60: 90,187 | S60: 137,249 | T60: 227,436 | X60: 05360 | Y60: 1572
A61: 05 | B61: ANTIOQUIA | C61: Ituango | D61: 05361 | E61: 259 | F61: 265 | G61: 329 | O61: 214 | Q61: 05361 | R61: 4,105 | S61: 12,873 | T61: 16,978 | X61: 05361 | Y61: 214
A62: 05 | B62: ANTIOQUIA | C62: Jardin | D62: 05364 | E62: 142 | F62: 147 | G62: 173 | O62: 101 | Q62: 05364 | R62: 3,672 | S62: 6,365 | T62: 10,038 | X62: 05364 | Y62: 101
A63: 05 | B63: ANTIOQUIA | C63: Jerico | D63: 05368 | E63: 98 | F63: 98 | G63: 128 | O63: 87 | Q63: 05368 | R63: 3,335 | S63: 5,875 | T63: 9,210 | X63: 05368 | Y63: 87
A64: 05 | B64: ANTIOQUIA | C64: La Ceja | D64: 05376 | E64: 673 | F64: 679 | G64: 787 | O64: 439 | Q64: 05376 | R64: 20,119 | S64: 31,403 | T64: 51,522 | X64: 05376 | Y64: 439
A65: 05 | B65: ANTIOQUIA | C65: La Estrella | D65: 05380 | E65: 514 | F65: 563 | G65: 535 | O65: 420 | Q65: 05380 | R65: 14,845 | S65: 35,816 | T65: 50,660 | X65: 05380 | Y65: 420
A66: 05 | B66: ANTIOQUIA | C66: La Pintada | D66: 05390 | E66: 116 | F66: 115 | G66: 124 | O66: 61 | Q66: 05390 | R66: 1,507 | S66: 3,910 | T66: 5,417 | X66: 05390 | Y66: 61
A67: 05 | B67: ANTIOQUIA | C67: La Union | D67: 05400 | E67: 268 | F67: 270 | G67: 298 | O67: 165 | Q67: 05400 | R67: 4,480 | S67: 10,073 | T67: =R67+S67 -> 14,554 | X67: 05400 | Y67: 165
A68: 05 | B68: ANTIOQUIA | C68: Liborina | D68: 05411 | E68: 96 | F68: 96 | G68: 122 | O68: 78 | Q68: 05411 | R68: 2,241 | S68: 4,216 | T68: 6,457 | X68: 05411 | Y68: 78
A69: 05 | B69: ANTIOQUIA | C69: Maceo | D69: 05425 | E69: 101 | F69: 108 | G69: 116 | O69: 73 | Q69: 05425 | R69: 1,917 | S69: 3,409 | T69: 5,326 | X69: 05425 | Y69: 73
A70: 05 | B70: ANTIOQUIA | C70: Marinilla | D70: 05440 | E70: 764 | F70: 781 | G70: 774 | O70: 486 | Q70: 05440 | R70: 14,104 | S70: 30,774 | T70: 44,877 | X70: 05440 | Y70: 486
A71: 05 | B71: ANTIOQUIA | C71: Montebello | D71: 05467 | E71: 56 | F71: 63 | G71: 66 | O71: 48 | Q71: 05467 | R71: 1,599 | S71: 2,764 | T71: 4,363 | X71: 05467 | Y71: 48
A72: 05 | B72: ANTIOQUIA | C72: Murindo | D72: 05475 | E72: 123 | F72: 125 | G72: 146 | O72: 72 | Q72: 05475 | R72: 509 | S72: 1,866 | T72: 2,375 | X72: 05475 | Y72: 72
A73: 05 | B73: ANTIOQUIA | C73: Mutata | D73: 05480 | E73: 506 | F73: 509 | G73: 536 | O73: 164 | Q73: 05480 | R73: 2,557 | S73: 5,767 | T73: 8,324 | X73: 05480 | Y73: 164
A74: 05 | B74: ANTIOQUIA | C74: Nariño | D74: 05483 | E74: 125 | F74: 126 | G74: 142 | O74: 84 | Q74: 05483 | R74: 2,325 | S74: 4,039 | T74: 6,364 | X74: 05483 | Y74: 84
A75: 05 | B75: ANTIOQUIA | C75: Necocli | D75: 05490 | E75: 914 | F75: 987 | G75: 1,098 | O75: 504 | Q75: 05490 | R75: 7,817 | S75: 17,647 | T75: 25,463 | X75: 05490 | Y75: 504
A76: 05 | B76: ANTIOQUIA | C76: Nechi | D76: 05495 | E76: 447 | F76: 460 | G76: 511 | O76: 315 | Q76: 05495 | R76: 3,843 | S76: 10,902 | T76: 14,744 | X76: 05495 | Y76: 315
A77: 05 | B77: ANTIOQUIA | C77: Olaya | D77: 05501 | E77: 26 | F77: 27 | G77: 33 | O77: 26 | Q77: 05501 | R77: 579 | S77: 1,306 | T77: 1,886 | X77: 05501 | Y77: 26
A78: 05 | B78: ANTIOQUIA | C78: Peñol | D78: 05541 | E78: 245 | F78: 246 | G78: 258 | O78: 160 | Q78: 05541 | R78: 4,065 | S78: 9,433 | T78: 13,498 | X78: 05541 | Y78: 160
A79: 05 | B79: ANTIOQUIA | C79: Peque | D79: 05543 | E79: 105 | F79: 105 | G79: 123 | O79: 75 | Q79: 05543 | R79: 1,423 | S79: 3,384 | T79: 4,807 | X79: 05543 | Y79: 75
A80: 05 | B80: ANTIOQUIA | C80: Pueblorrico | D80: 05576 | E80: 90 | F80: 93 | G80: 105 | O80: 70 | Q80: 05576 | R80: 1,914 | S80: 3,651 | T80: 5,564 | X80: 05576 | Y80: 70
A81: 05 | B81: ANTIOQUIA | C81: Puerto Berrio | D81: 05579 | E81: 547 | F81: 551 | G81: 593 | O81: 318 | Q81: 05579 | R81: 9,295 | S81: 18,220 | T81: 27,515 | X81: 05579 | Y81: 318
A82: 05 | B82: ANTIOQUIA | C82: Puerto Nare | D82: 05585 | E82: 134 | F82: 136 | G82: 137 | O82: 120 | Q82: 05585 | R82: 2,387 | S82: 6,196 | T82: 8,583 | X82: 05585 | Y82: 120
A83: 05 | B83: ANTIOQUIA | C83: Puerto Triunfo | D83: 05591 | E83: 218 | F83: 228 | G83: 229 | O83: 152 | Q83: 05591 | R83: 2,248 | S83: 8,661 | T83: 10,909 | X83: 05591 | Y83: 152
A84: 05 | B84: ANTIOQUIA | C84: Remedios | D84: 05604 | E84: 472 | F84: 479 | G84: 481 | O84: 290 | Q84: 05604 | R84: 3,851 | S84: 12,687 | T84: 16,537 | X84: 05604 | Y84: 290
A85: 05 | B85: ANTIOQUIA | C85: Retiro | D85: 05607 | E85: 116 | F85: 132 | G85: 143 | O85: 147 | Q85: 05607 | R85: 4,165 | S85: 11,178 | T85: 15,343 | X85: 05607 | Y85: 147
A86: 05 | B86: ANTIOQUIA | C86: Rionegro | D86: 05615 | E86: 1,672 | F86: 1,776 | G86: 1,920 | O86: 843 | Q86: 05615 | R86: 47,762 | S86: 66,586 | T86: 114,348 | X86: 05615 | Y86: 843
A87: 05 | B87: ANTIOQUIA | C87: Sabanalarga | D87: 05628 | E87: 120 | F87: 121 | G87: 136 | O87: 88 | Q87: 05628 | R87: 1,440 | S87: 3,835 | T87: 5,275 | X87: 05628 | Y87: 88
A88: 05 | B88: ANTIOQUIA | C88: Sabaneta | D88: 05631 | E88: 572 | F88: 616 | G88: 663 | O88: 414 | Q88: 05631 | R88: 23,139 | S88: 42,443 | T88: 65,582 | X88: 05631 | Y88: 414
A89: 05 | B89: ANTIOQUIA | C89: Salgar | D89: 05642 | E89: 170 | F89: 170 | G89: 189 | O89: 150 | Q89: 05642 | R89: 3,601 | S89: 7,909 | T89: 11,510 | X89: 05642 | Y89: 150
A90: 05 | B90: ANTIOQUIA | C90: San Andres de Cuerquia | D90: 05647 | E90: 90 | F90: 93 | G90: 99 | O90: 69 | Q90: 05647 | R90: 1,187 | S90: 3,027 | T90: 4,214 | X90: 05647 | Y90: 69
A91: 05 | B91: ANTIOQUIA | C91: San Carlos | D91: 05649 | E91: 168 | F91: 181 | G91: 202 | O91: 130 | Q91: 05649 | R91: 2,938 | S91: 6,627 | T91: 9,565 | X91: 05649 | Y91: 130
A92: 05 | B92: ANTIOQUIA | C92: San Francisco | D92: 05652 | E92: 80 | F92: 80 | G92: 112 | O92: 58 | Q92: 05652 | R92: 1,299 | S92: 2,309 | T92: 3,608 | X92: 05652 | Y92: 58
A93: 05 | B93: ANTIOQUIA | C93: San Jeronimo | D93: 05656 | E93: 152 | F93: 158 | G93: 168 | O93: 122 | Q93: 05656 | R93: 2,991 | S93: 7,115 | T93: 10,106 | X93: 05656 | Y93: 122
A94: 05 | B94: ANTIOQUIA | C94: San Jose de La Montaña | D94: 05658 | E94: 49 | F94: 50 | G94: 52 | O94: 42 | Q94: 05658 | R94: 614 | S94: 1,644 | T94: 2,258 | X94: 05658 | Y94: 42
A95: 05 | B95: ANTIOQUIA | C95: San Juan de Uraba | D95: 05659 | E95: 409 | F95: 416 | G95: 444 | O95: 243 | Q95: 05659 | R95: 3,229 | S95: 8,306 | T95: 11,535 | X95: 05659 | Y95: 243
A96: 05 | B96: ANTIOQUIA | C96: San Luis | D96: 05660 | E96: 210 | F96: 223 | G96: 239 | O96: 124 | Q96: 05660 | R96: 2,630 | S96: 5,434 | T96: 8,064 | X96: 05660 | Y96: 124
A97: 05 | B97: ANTIOQUIA | C97: San Pedro | D97: 05664 | E97: 307 | F97: 332 | G97: 361 | O97: 178 | Q97: 05664 | R97: 4,746 | S97: 10,382 | T97: 15,128 | X97: 05664 | Y97: 178
A98: 05 | B98: ANTIOQUIA | C98: San Pedro de Uraba | D98: 05665 | E98: 555 | F98: 554 | G98: 554 | O98: 329 | Q98: 05665 | R98: 5,651 | S98: 13,308 | T98: 18,960 | X98: 05665 | Y98: 329
A99: 05 | B99: ANTIOQUIA | C99: San Rafael | D99: 05667 | E99: 168 | F99: 171 | G99: 193 | O99: 112 | Q99: 05667 | R99: 3,240 | S99: 6,670 | T99: 9,910 | X99: 05667 | Y99: 112
A100: 05 | B100: ANTIOQUIA | C100: San Roque | D100: 05670 | E100: 214 | F100: 226 | G100: 237 | O100: 180 | Q100: 05670 | R100: 4,210 | S100: 9,182 | T100: 13,392 | X100: 05670 | Y100: 180
A101: 05 | B101: ANTIOQUIA | C101: San Vicente | D101: 05674 | E101: 174 | F101: 176 | G101: 192 | O101: 160 | Q101: 05674 | R101: 3,449 | S101: 9,844 | T101: 13,293 | X101: 05674 | Y101: 160
A102: 05 | B102: ANTIOQUIA | C102: Santa Barbara | D102: 05679 | E102: 186 | F102: 189 | G102: 200 | O102: 173 | Q102: 05679 | R102: 5,970 | S102: 11,620 | T102: 17,589 | X102: 05679 | Y102: 173
A103: 05 | B103: ANTIOQUIA | C103: Santa Rosa de Osos | D103: 05686 | E103: 454 | F103: 479 | G103: 518 | O103: 318 | Q103: 05686 | R103: 7,278 | S103: 16,924 | T103: 24,203 | X103: 05686 | Y103: 318
A104: 05 | B104: ANTIOQUIA | C104: Santo Domingo | D104: 05690 | E104: 64 | F104: 75 | G104: 100 | O104: 90 | Q104: 05690 | R104: 2,181 | S104: 5,267 | T104: 7,448 | X104: 05690 | Y104: 90
A105: 05 | B105: ANTIOQUIA | C105: El Santuario | D105: 05697 | E105: 510 | F105: 520 | G105: 518 | O105: 315 | Q105: 05697 | R105: 5,678 | S105: 15,481 | T105: 21,159 | X105: 05697 | Y105: 315
A106: 05 | B106: ANTIOQUIA | C106: Segovia | D106: 05736 | E106: 619 | F106: 635 | G106: 668 | O106: 358 | Q106: 05736 | R106: 5,876 | S106: 17,463 | T106: 23,340 | X106: 05736 | Y106: 358
A107: 05 | B107: ANTIOQUIA | C107: Sonson | D107: 05756 | E107: 404 | F107: 416 | G107: 421 | O107: 289 | Q107: 05756 | R107: 7,405 | S107: 15,881 | T107: 23,286 | X107: 05756 | Y107: 289
A108: 05 | B108: ANTIOQUIA | C108: Sopetran | D108: 05761 | E108: 146 | F108: 148 | G108: 148 | O108: 114 | Q108: 05761 | R108: 2,978 | S108: 6,760 | T108: 9,738 | X108: 05761 | Y108: 114
A109: 05 | B109: ANTIOQUIA | C109: Tamesis | D109: 05789 | E109: 134 | F109: 134 | G109: 156 | O109: 108 | Q109: 05789 | R109: 4,078 | S109: 6,930 | T109: 11,009 | X109: 05789 | Y109: 108
A110: 05 | B110: ANTIOQUIA | C110: Taraza | D110: 05790 | E110: 461 | F110: 495 | G110: 519 | O110: 316 | Q110: 05790 | R110: 4,404 | S110: 11,523 | T110: 15,927 | X110: 05790 | Y110: 316
A111: 05 | B111: ANTIOQUIA | C111: Tarso | D111: 05792 | E111: 63 | F111: 67 | G111: 77 | O111: 45 | Q111: 05792 | R111: 1,298 | S111: 2,738 | T111: 4,037 | X111: 05792 | Y111: 45
A112: 05 | B112: ANTIOQUIA | C112: Titiribi | D112: 05809 | E112: 64 | F112: 72 | G112: 83 | O112: 70 | Q112: 05809 | R112: 2,313 | S112: 4,609 | T112: 6,922 | X112: 05809 | Y112: 70
A113: 05 | B113: ANTIOQUIA | C113: Toledo | D113: 05819 | E113: 58 | F113: 58 | G113: 78 | O113: 47 | Q113: 05819 | R113: 893 | S113: 2,100 | T113: 2,994 | X113: 05819 | Y113: 47
A114: 05 | B114: ANTIOQUIA | C114: Turbo | D114: 05837 | E114: 2,627 | F114: 2,649 | G114: 2,720 | O114: 1426 | Q114: 05837 | R114: 21,519 | S114: 53,907 | T114: 75,425 | X114: 05837 | Y114: 1426
A115: 05 | B115: ANTIOQUIA | C115: Uramita | D115: 05842 | E115: 79 | F115: 87 | G115: 106 | O115: 63 | Q115: 05842 | R115: 1,349 | S115: 2,796 | T115: 4,145 | X115: 05842 | Y115: 63
A116: 05 | B116: ANTIOQUIA | C116: Urrao | D116: 05847 | E116: 400 | F116: 439 | G116: 489 | O116: 293 | Q116: 05847 | R116: 5,560 | S116: 12,830 | T116: 18,391 | X116: 05847 | Y116: 293
A117: 05 | B117: ANTIOQUIA | C117: Valdivia | D117: 05854 | E117: 226 | F117: 237 | G117: 270 | O117: 144 | Q117: 05854 | R117: 2,307 | S117: 5,902 | T117: 8,209 | X117: 05854 | Y117: 144
A118: 05 | B118: ANTIOQUIA | C118: Valparaiso | D118: 05856 | E118: 50 | F118: 53 | G118: 55 | O118: 40 | Q118: 05856 | R118: 1,411 | S118: 2,799 | T118: 4,210 | X118: 05856 | Y118: 40
A119: 05 | B119: ANTIOQUIA | C119: Vegachi | D119: 05858 | E119: 188 | F119: 193 | G119: 197 | O119: 101 | Q119: 05858 | R119: 2,711 | S119: 5,219 | T119: 7,930 | X119: 05858 | Y119: 101
A120: 05 | B120: ANTIOQUIA | C120: Venecia | D120: 05861 | E120: 112 | F120: 112 | G120: 116 | O120: 73 | Q120: 05861 | R120: 2,726 | S120: 5,211 | T120: 7,937 | X120: 05861 | Y120: 73
A121: 05 | B121: ANTIOQUIA | C121: Vigia del Fuerte | D121: 05873 | E121: 136 | F121: 163 | G121: 186 | O121: 120 | Q121: 05873 | R121: 1,009 | S121: 3,526 | T121: 4,535 | X121: 05873 | Y121: 120
A122: 05 | B122: ANTIOQUIA | C122: Yali | D122: 05885 | E122: 69 | F122: 69 | G122: 97 | O122: 65 | Q122: 05885 | R122: 1,369 | S122: 3,274 | T122: 4,643 | X122: 05885 | Y122: 65
A123: 05 | B123: ANTIOQUIA | C123: Yarumal | D123: 05887 | E123: 534 | F123: 557 | G123: 582 | O123: 376 | Q123: 05887 | R123: 9,807 | S123: 18,676 | T123: 28,483 | X123: 05887 | Y123: 376
A124: 05 | B124: ANTIOQUIA | C124: Yolombo | D124: 05890 | E124: 201 | F124: 209 | G124: 230 | O124: 194 | Q124: 05890 | R124: 4,815 | S124: 9,850 | T124: 14,665 | X124: 05890 | Y124: 194
A125: 05 | B125: ANTIOQUIA | C125: Yondo | D125: 05893 | E125: 278 | F125: 285 | G125: 318 | O125: 210 | Q125: 05893 | R125: 1,865 | S125: 8,280 | T125: 10,145 | X125: 05893 | Y125: 210
A126: 05 | B126: ANTIOQUIA | C126: Zaragoza | D126: 05895 | E126: 439 | F126: 454 | G126: 463 | O126: 287 | Q126: 05895 | R126: 3,807 | S126: 10,413 | T126: 14,220 | X126: 05895 | Y126: 287
B127: ATLANTICO | C127: Barranquilla | D127: 08001 | E127: 19,802 | F127: 20,849 | G127: 22,374 | O127: 9732 | Q127: 08001 | R127: 416,579 | S127: 567,749 | T127: 984,328 | X127: 08001 | Y127: 9732
A128: 08 | B128: ATLANTICO | C128: Baranoa | D128: 08078 | E128: 890 | F128: 901 | G128: 957 | O128: 560 | Q128: 08078 | R128: 13,718 | S128: 29,383 | T128: 43,102 | X128: 08078 | Y128: 560
A129: 08 | B129: ATLANTICO | C129: Campo de La Cruz | D129: 08137 | E129: 408 | F129: 423 | G129: 467 | O129: 223 | Q129: 08137 | R129: 5,156 | S129: 9,896 | T129: 15,052 | X129: 08137 | Y129: 223
A130: 08 | B130: ATLANTICO | C130: Candelaria | D130: 08141 | E130: 308 | F130: 305 | G130: 301 | O130: 162 | Q130: 08141 | R130: 2,810 | S130: 7,280 | T130: 10,091 | X130: 08141 | Y130: 162
A131: 08 | B131: ATLANTICO | C131: Galapa | D131: 08296 | E131: 915 | F131: 978 | G131: 1,006 | O131: 609 | Q131: 08296 | R131: 8,307 | S131: 29,393 | T131: =R131+S131 -> 37,700 | X131: 08296 | Y131: 609
A132: 08 | B132: ATLANTICO | C132: Juan de Acosta | D132: 08372 | E132: 298 | F132: 302 | G132: 309 | O132: 182 | Q132: 08372 | R132: 3,454 | S132: 10,013 | T132: 13,467 | X132: 08372 | Y132: 182
A133: 08 | B133: ATLANTICO | C133: Luruaco | D133: 08421 | E133: 554 | F133: 540 | G133: 548 | O133: 294 | Q133: 08421 | R133: 5,554 | S133: 12,729 | T133: 18,283 | X133: 08421 | Y133: 294
A134: 08 | B134: ATLANTICO | C134: Malambo | D134: 08433 | E134: 2,154 | F134: 2,268 | G134: 2,304 | O134: 1289 | Q134: 08433 | R134: 21,923 | S134: 61,301 | T134: 83,224 | X134: 08433 | Y134: 1289
A135: 08 | B135: ATLANTICO | C135: Manati | D135: 08436 | E135: 347 | F135: 376 | G135: 413 | O135: 213 | Q135: 08436 | R135: 3,518 | S135: 8,943 | T135: 12,461 | X135: 08436 | Y135: 213
A136: 08 | B136: ATLANTICO | C136: Palmar de Varela | D136: 08520 | E136: 487 | F136: 496 | G136: 510 | O136: 264 | Q136: 08520 | R136: 4,215 | S136: 13,606 | T136: 17,822 | X136: 08520 | Y136: 264
A137: 08 | B137: ATLANTICO | C137: Piojo | D137: 08549 | E137: 66 | F137: 73 | G137: 79 | O137: 57 | Q137: 08549 | R137: 908 | S137: 3,104 | T137: 4,012 | X137: 08549 | Y137: 57
A138: 08 | B138: ATLANTICO | C138: Polonuevo | D138: 08558 | E138: 272 | F138: 262 | G138: 280 | O138: 176 | Q138: 08558 | R138: 3,243 | S138: 8,416 | T138: 11,658 | X138: 08558 | Y138: 176
A139: 08 | B139: ATLANTICO | C139: Ponedera | D139: 08560 | E139: 422 | F139: 426 | G139: 438 | O139: 246 | Q139: 08560 | R139: 3,824 | S139: 10,963 | T139: 14,787 | X139: 08560 | Y139: 246
A140: 08 | B140: ATLANTICO | C140: Puerto Colombia | D140: 08573 | E140: 474 | F140: 481 | G140: 481 | O140: 415 | Q140: 08573 | R140: 7,524 | S140: 24,128 | T140: 31,651 | X140: 08573 | Y140: 415
A141: 08 | B141: ATLANTICO | C141: Repelon | D141: 08606 | E141: 512 | F141: 512 | G141: 531 | O141: 265 | Q141: 08606 | R141: 5,134 | S141: 11,797 | T141: 16,930 | X141: 08606 | Y141: 265
A142: 08 | B142: ATLANTICO | C142: Sabanagrande | D142: 08634 | E142: 470 | F142: 497 | G142: 512 | O142: 312 | Q142: 08634 | R142: 5,711 | S142: 15,444 | T142: 21,155 | X142: 08634 | Y142: 312
A143: 08 | B143: ATLANTICO | C143: Sabanalarga | D143: 08638 | E143: 1,456 | F143: 1,494 | G143: 1,645 | O143: 892 | Q143: 08638 | R143: 25,710 | S143: 42,968 | T143: 68,678 | X143: 08638 | Y143: 892
A144: 08 | B144: ATLANTICO | C144: Santa Lucia | D144: 08675 | E144: 251 | F144: 251 | G144: 276 | O144: 168 | Q144: 08675 | R144: 2,364 | S144: 7,246 | T144: 9,610 | X144: 08675 | Y144: 168
A145: 08 | B145: ATLANTICO | C145: Santo Tomas | D145: 08685 | E145: 435 | F145: 444 | G145: 455 | O145: 257 | Q145: 08685 | R145: 6,719 | S145: 14,129 | T145: 20,849 | X145: 08685 | Y145: 257
A146: 08 | B146: ATLANTICO | C146: Soledad | D146: 08758 | E146: 9,998 | F146: 10,042 | G146: 10,950 | O146: 5571 | Q146: 08758 | R146: 124,036 | S146: 300,070 | T146: 424,106 | X146: 08758 | Y146: 5571
A147: 08 | B147: ATLANTICO | C147: Suan | D147: 08770 | E147: 206 | F147: 212 | G147: 214 | O147: 123 | Q147: 08770 | R147: 2,014 | S147: 5,389 | T147: 7,403 | X147: 08770 | Y147: 123
A148: 08 | B148: ATLANTICO | C148: Tubara | D148: 08832 | E148: 143 | F148: 148 | G148: 159 | O148: 156 | Q148: 08832 | R148: 2,300 | S148: 8,269 | T148: 10,568 | X148: 08832 | Y148: 156
A149: 08 | B149: ATLANTICO | C149: Usiacuri | D149: 08849 | E149: 131 | F149: 134 | G149: 147 | O149: 106 | Q149: 08849 | R149: 1,728 | S149: 5,758 | T149: 7,486 | X149: 08849 | Y149: 106
A150: 11 | B150: BOGOTA | C150: Bogota, D.C. | D150: 11001 | E150: 90,967 | F150: 93,996 | G150: 96,930 | O150: 47156 | Q150: 11001 | R150: 2,143,019 | S150: 3,649,791 | T150: 5,792,809 | X150: 11001 | Y150: 47156
B151: BOLIVAR | C151: Cartagena | D151: 13001 | E151: 16,175 | F151: 17,942 | G151: 18,393 | O151: 8174 | Q151: 13001 | R151: 279,776 | S151: 459,114 | T151: 738,890 | X151: 13001 | Y151: 8174
A152: 13 | B152: BOLIVAR | C152: Achi | D152: 13006 | E152: 352 | F152: 388 | G152: 412 | O152: 239 | Q152: 13006 | R152: 4,662 | S152: 10,203 | T152: 14,865 | X152: 13006 | Y152: 239
A153: 13 | B153: BOLIVAR | C153: Altos del Rosario | D153: 13030 | E153: 203 | F153: 229 | G153: 235 | O153: 132 | Q153: 13030 | R153: 1,665 | S153: 4,616 | T153: 6,281 | X153: 13030 | Y153: 132
A154: 13 | B154: BOLIVAR | C154: Arenal | D154: 13042 | E154: 153 | F154: 161 | G154: 187 | O154: 79 | Q154: 13042 | R154: 1,180 | S154: 3,172 | T154: 4,352 | X154: 13042 | Y154: 79
A155: 13 | B155: BOLIVAR | C155: Arjona | D155: 13052 | E155: 1,108 | F155: 1,202 | G155: 1,215 | O155: 665 | Q155: 13052 | R155: 13,401 | S155: 31,835 | T155: 45,235 | X155: 13052 | Y155: 665
A156: 13 | B156: BOLIVAR | C156: Arroyohondo | D156: 13062 | E156: 151 | F156: 144 | G156: 161 | O156: 77 | Q156: 13062 | R156: 2,028 | S156: 3,668 | T156: 5,696 | X156: 13062 | Y156: 77
A157: 13 | B157: BOLIVAR | C157: Barranco de Loba | D157: 13074 | E157: 349 | F157: 365 | G157: 390 | O157: 169 | Q157: 13074 | R157: 2,640 | S157: 6,094 | T157: 8,734 | X157: 13074 | Y157: 169
A158: 13 | B158: BOLIVAR | C158: Calamar | D158: 13140 | E158: 366 | F158: 400 | G158: 430 | O158: 215 | Q158: 13140 | R158: 4,922 | S158: 9,656 | T158: 14,578 | X158: 13140 | Y158: 215
A159: 13 | B159: BOLIVAR | C159: Cantagallo | D159: 13160 | E159: 130 | F159: 130 | G159: 149 | O159: 84 | Q159: 13160 | R159: 953 | S159: 3,732 | T159: 4,684 | X159: 13160 | Y159: 84
A160: 13 | B160: BOLIVAR | C160: Cicuco | D160: 13188 | E160: 315 | F160: 317 | G160: 327 | O160: 150 | Q160: 13188 | R160: 2,669 | S160: 5,818 | T160: 8,487 | X160: 13188 | Y160: 150
A161: 13 | B161: BOLIVAR | C161: Cordoba | D161: 13212 | E161: 225 | F161: 255 | G161: 251 | O161: 145 | Q161: 13212 | R161: 2,929 | S161: 6,880 | T161: 9,809 | X161: 13212 | Y161: 145
A162: 13 | B162: BOLIVAR | C162: Clemencia | D162: 13222 | E162: 259 | F162: 266 | G162: 283 | O162: 152 | Q162: 13222 | R162: 2,320 | S162: 6,525 | T162: 8,845 | X162: 13222 | Y162: 152
A163: 13 | B163: BOLIVAR | C163: El Carmen de Bolivar | D163: 13244 | E163: 1,145 | F163: 1,250 | G163: 1,372 | O163: 660 | Q163: 13244 | R163: 15,759 | S163: 30,471 | T163: 46,231 | X163: 13244 | Y163: 660
A164: 13 | B164: BOLIVAR | C164: El Guamo | D164: 13248 | E164: 132 | F164: 132 | G164: 137 | O164: 71 | Q164: 13248 | R164: 2,018 | S164: 3,750 | T164: 5,768 | X164: 13248 | Y164: 71
A165: 13 | B165: BOLIVAR | C165: El Peñon | D165: 13268 | E165: 132 | F165: 132 | G165: 150 | O165: 84 | Q165: 13268 | R165: 1,397 | S165: 3,171 | T165: 4,568 | X165: 13268 | Y165: 84
A166: 13 | B166: BOLIVAR | C166: Hatillo de Loba | D166: 13300 | E166: 313 | F166: 317 | G166: 332 | O166: 146 | Q166: 13300 | R166: 2,349 | S166: 5,140 | T166: 7,489 | X166: 13300 | Y166: 146
A167: 13 | B167: BOLIVAR | C167: Magangue | D167: 13430 | E167: 2,054 | F167: 2,199 | G167: 2,481 | O167: 1293 | Q167: 13430 | R167: 34,432 | S167: 59,035 | T167: 93,467 | X167: 13430 | Y167: 1293
A168: 13 | B168: BOLIVAR | C168: Mahates | D168: 13433 | E168: 416 | F168: 431 | G168: 456 | O168: 262 | Q168: 13433 | R168: 5,399 | S168: 12,478 | T168: 17,877 | X168: 13433 | Y168: 262
A169: 13 | B169: BOLIVAR | C169: Margarita | D169: 13440 | E169: 134 | F169: 140 | G169: 155 | O169: 101 | Q169: 13440 | R169: 2,296 | S169: 4,373 | T169: 6,669 | X169: 13440 | Y169: 101
A170: 13 | B170: BOLIVAR | C170: Maria La Baja | D170: 13442 | E170: 906 | F170: 956 | G170: 989 | O170: 481 | Q170: 13442 | R170: 9,252 | S170: 19,976 | T170: 29,228 | X170: 13442 | Y170: 481
A171: 13 | B171: BOLIVAR | C171: Montecristo | D171: 13458 | E171: 212 | F171: 224 | G171: 247 | O171: 179 | Q171: 13458 | R171: 1,736 | S171: 7,350 | T171: 9,086 | X171: 13458 | Y171: 179
A172: 13 | B172: BOLIVAR | C172: Mompos | D172: 13468 | E172: 915 | F172: 918 | G172: 947 | O172: 453 | Q172: 13468 | R172: 12,276 | S172: 19,101 | T172: 31,377 | X172: 13468 | Y172: 453
A173: 13 | B173: BOLIVAR | C173: Morales | D173: 13473 | E173: 260 | F173: 262 | G173: 313 | O173: 229 | Q173: 13473 | R173: 2,517 | S173: 9,774 | T173: 12,290 | X173: 13473 | Y173: 229
A174: 13 | B174: BOLIVAR | C174: Norosi | D174: 13490 | E174: 121 | F174: 147 | G174: 154 | O174: 105 | Q174: 13490 | R174: 813 | S174: 4,165 | T174: 4,978 | X174: 13490 | Y174: 105
A175: 13 | B175: BOLIVAR | C175: Pinillos | D175: 13549 | E175: 413 | F175: 451 | G175: 475 | O175: 258 | Q175: 13549 | R175: 4,182 | S175: 10,077 | T175: 14,259 | X175: 13549 | Y175: 258
A176: 13 | B176: BOLIVAR | C176: Regidor | D176: 13580 | E176: 168 | F176: 170 | G176: 175 | O176: 81 | Q176: 13580 | R176: 971 | S176: 2,960 | T176: 3,931 | X176: 13580 | Y176: 81
A177: 13 | B177: BOLIVAR | C177: Rio Viejo | D177: 13600 | E177: 166 | F177: 166 | G177: 174 | O177: 95 | Q177: 13600 | R177: 1,583 | S177: 4,500 | T177: 6,083 | X177: 13600 | Y177: 95
A178: 13 | B178: BOLIVAR | C178: San Cristobal | D178: 13620 | E178: 125 | F178: 126 | G178: 139 | O178: 75 | Q178: 13620 | R178: 1,858 | S178: 3,613 | T178: 5,472 | X178: 13620 | Y178: 75
A179: 13 | B179: BOLIVAR | C179: San Estanislao | D179: 13647 | E179: 242 | F179: 254 | G179: 301 | O179: 170 | Q179: 13647 | R179: 3,485 | S179: 8,119 | T179: 11,604 | X179: 13647 | Y179: 170
A180: 13 | B180: BOLIVAR | C180: San Fernando | D180: 13650 | E180: 180 | F180: 194 | G180: 204 | O180: 129 | Q180: 13650 | R180: 2,289 | S180: 5,140 | T180: 7,429 | X180: 13650 | Y180: 129
A181: 13 | B181: BOLIVAR | C181: San Jacinto | D181: 13654 | E181: 361 | F181: 378 | G181: 404 | O181: 216 | Q181: 13654 | R181: 5,770 | S181: 10,241 | T181: 16,010 | X181: 13654 | Y181: 216
A182: 13 | B182: BOLIVAR | C182: San Jacinto del Cauca | D182: 13655 | E182: 142 | F182: 150 | G182: 192 | O182: 108 | Q182: 13655 | R182: 1,788 | S182: 4,350 | T182: 6,138 | X182: 13655 | Y182: 108
A183: 13 | B183: BOLIVAR | C183: San Juan Nepomuceno | D183: 13657 | E183: 575 | F183: 576 | G183: 592 | O183: 315 | Q183: 13657 | R183: 8,995 | S183: 16,402 | T183: 25,398 | X183: 13657 | Y183: 315
A184: 13 | B184: BOLIVAR | C184: San Martin de Loba | D184: 13667 | E184: 463 | F184: 471 | G184: 487 | O184: 150 | Q184: 13667 | R184: 2,699 | S184: 5,978 | T184: 8,676 | X184: 13667 | Y184: 150
A185: 13 | B185: BOLIVAR | C185: San Pablo | D185: 13670 | E185: 628 | F185: 628 | G185: 634 | O185: 312 | Q185: 13670 | R185: 3,269 | S185: 12,077 | T185: 15,346 | X185: 13670 | Y185: 312
A186: 13 | B186: BOLIVAR | C186: Santa Catalina | D186: 13673 | E186: 217 | F186: 241 | G186: 250 | O186: 137 | Q186: 13673 | R186: 2,361 | S186: 6,361 | T186: 8,722 | X186: 13673 | Y186: 137
A187: 13 | B187: BOLIVAR | C187: Santa Rosa | D187: 13683 | E187: 351 | F187: 351 | G187: 382 | O187: 212 | Q187: 13683 | R187: 3,548 | S187: 9,742 | T187: 13,290 | X187: 13683 | Y187: 212
A188: 13 | B188: BOLIVAR | C188: Santa Rosa del Sur | D188: 13688 | E188: 914 | F188: 966 | G188: 867 | O188: 356 | Q188: 13688 | R188: 3,778 | S188: 14,946 | T188: 18,724 | X188: 13688 | Y188: 356
A189: 13 | B189: BOLIVAR | C189: Simiti | D189: 13744 | E189: 344 | F189: 344 | G189: 367 | O189: 183 | Q189: 13744 | R189: 2,623 | S189: 8,156 | T189: 10,778 | X189: 13744 | Y189: 183
A190: 13 | B190: BOLIVAR | C190: Soplaviento | D190: 13760 | E190: 142 | F190: 143 | G190: 153 | O190: 91 | Q190: 13760 | R190: 2,111 | S190: 4,639 | T190: 6,750 | X190: 13760 | Y190: 91
A191: 13 | B191: BOLIVAR | C191: Talaigua Nuevo | D191: 13780 | E191: 244 | F191: 244 | G191: 284 | O191: 139 | Q191: 13780 | R191: 2,481 | S191: 5,365 | T191: 7,847 | X191: 13780 | Y191: 139
A192: 13 | B192: BOLIVAR | C192: Tiquisio | D192: 13810 | E192: 490 | F192: 540 | G192: 599 | O192: 222 | Q192: 13810 | R192: 2,771 | S192: 7,497 | T192: 10,268 | X192: 13810 | Y192: 222
A193: 13 | B193: BOLIVAR | C193: Turbaco | D193: 13836 | E193: 1,163 | F193: 1,179 | G193: 1,282 | O193: 942 | Q193: 13836 | R193: 17,740 | S193: 50,579 | T193: 68,319 | X193: 13836 | Y193: 942
A194: 13 | B194: BOLIVAR | C194: Turbana | D194: 13838 | E194: 247 | F194: 259 | G194: 282 | O194: 146 | Q194: 13838 | R194: 2,806 | S194: 7,599 | T194: 10,406 | X194: 13838 | Y194: 146
A195: 13 | B195: BOLIVAR | C195: Villanueva | D195: 13873 | E195: 354 | F195: 366 | G195: 378 | O195: 246 | Q195: 13873 | R195: 3,874 | S195: 10,723 | T195: =R195+S195 -> 14,596 | X195: 13873 | Y195: 246
A196: 13 | B196: BOLIVAR | C196: Zambrano | D196: 13894 | E196: 193 | F196: 206 | G196: 220 | O196: 108 | Q196: 13894 | R196: 2,354 | S196: 5,147 | T196: 7,500 | X196: 13894 | Y196: 108
A197: 15 | B197: BOYACA | C197: Tunja | D197: 15001 | E197: 2,081 | F197: 2,272 | G197: 2,648 | O197: 1255 | Q197: 15001 | R197: 49,409 | S197: 83,161 | T197: 132,569 | X197: 15001 | Y197: 1255
A198: 15 | B198: BOYACA | C198: Almeida | D198: 15022 | E198: 15 | F198: 17 | G198: 17 | O198: 10 | Q198: 15022 | R198: 490 | S198: 703 | T198: 1,193 | X198: 15022 | Y198: 10
A199: 15 | B199: BOYACA | C199: Aquitania | D199: 15047 | E199: 185 | F199: 204 | G199: 211 | O199: 138 | Q199: 15047 | R199: 2,905 | S199: 6,522 | T199: 9,426 | X199: 15047 | Y199: 138
A200: 15 | B200: BOYACA | C200: Arcabuco | D200: 15051 | E200: 71 | F200: 72 | G200: 78 | O200: 49 | Q200: 15051 | R200: 994 | S200: 2,561 | T200: 3,555 | X200: 15051 | Y200: 49
... 924 more rows

Sheet 1_PLANTILLA_MENSUAL
E1: =D1+1 -> 1 | F1: 2 | G1: 3 | H1: =G1+1 -> 4 | I1: =H1+1 -> 5 | J1: =I1+1 -> 6 | K1: =J1+1 -> 7 | L1: =K1+1 -> 8 | M1: =L1+1 -> 9 | N1: =M1+1 -> 10 | O1: =N1+1 -> 11 | P1: =O1+1 -> 12 | Q1: =P1+1 -> 13 | R1: =Q1+1 -> 14 | S1: =R1+1 -> 15 | T1: =S1+1 -> 16 | U1: =T1+1 -> 17 | V1: =U1+1 -> 18 | W1: =V1+1 -> 19 | X1: =W1+1 -> 20 | Y1: =X1+1 -> 21 | Z1: =Y1+1 -> 22 | AA1: =Z1+1 -> 23 | AB1: =AA1+1 -> 24 | AC1: =#REF!+1 ->  | AD1: =AC1+1 ->  | AE1: =AD1+1 ->  | AF1: =AE1+1 ->  | AG1: =AF1+1 ->  | AH1: =AG1+1 ->  | AJ1: =AH1+1 ->  | AK1: =AJ1+1 ->  | AL1: =AK1+1 ->  | AN1: =AL1+1 ->  | AO1: =AN1+1 ->  | AP1: =AO1+1 ->  | AR1: =AP1+1 ->  | AS1: =AR1+1 ->  | AT1: =AS1+1 ->  | AV1: =AT1+1 ->  | AW1: =AV1+1 ->  | AX1: =AW1+1 ->  | AZ1: =AX1+1 ->  | BA1: =AZ1+1 ->  | BB1: =BA1+1 ->  | BC1: =BB1+1 ->  | BD1: =BC1+1 ->  | BE1: =BD1+1 ->  | BF1: =BE1+1 ->  | BG1: =BF1+1 ->  | BH1: =BG1+1 ->  | BI1: =BH1+1 ->  | BJ1: =BI1+1 ->  | BK1: =BJ1+1 ->  | BL1: =BK1+1 ->  | BM1: =BL1+1 ->  | BN1: =BM1+1 ->  | BP1: =#REF!+1 ->  | BQ1: =BP1+1 ->  | BR1: =BQ1+1 ->  | BS1: =BR1+1 ->  | BT1: =BS1+1 ->  | BU1: =BT1+1 ->  | BV1: =BU1+1 ->  | BW1: =BV1+1 ->  | BX1: =BW1+1 ->  | BY1: =BX1+1 ->  | BZ1: =BY1+1 ->  | CA1: =BZ1+1 ->  | CB1: =CA1+1 ->  | CC1: =CB1+1 ->  | CD1: =CC1+1 ->  | CE1: =CD1+1 ->  | CF1: =CE1+1 ->  | CG1: =CF1+1 ->  | CH1: =CG1+1 ->  | CI1: =CH1+1 ->  | CJ1: =CI1+1 ->  | CK1: =CJ1+1 ->  | CL1: =CK1+1 ->  | CM1: =CL1+1 ->  | CN1: =CM1+1 ->  | CO1: =CN1+1 ->  | CP1: =CO1+1 ->  | CQ1: =CP1+1 ->  | CR1: =CQ1+1 ->  | CS1: =CO1+1 ->  | CT1: =CS1+1 ->  | CU1: =CT1+1 ->  | CV1: =#REF!+1 ->  | CW1: =CV1+1 ->  | CX1: =#REF!+1 ->  | CY1: =CX1+1 ->  | CZ1: =CY1+1 ->  | DA1: =CZ1+1 ->  | DB1: =DA1+1 ->  | DC1: =DB1+1 ->  | DD1: =DC1+1 ->  | DE1: =DD1+1 ->  | DF1: =#REF!+1 ->  | DG1: =DF1+1 ->  | DH1: =DG1+1 ->  | DI1: =DH1+1 ->  | DJ1: =DI1+1 ->  | DK1: =DJ1+1 ->  | DL1: =DK1+1 ->  | DM1: =DL1+1 ->  | DN1: =DM1+1 ->  | DO1: =DN1+1 ->  | DP1: =DO1+1 ->  | DQ1: =DK1+1 ->  | DR1: =#REF!+1 ->  | DS1: =#REF!+1 ->  | DT1: =#REF!+1 ->  | DU1: =#REF!+1 ->  | DV1: =DU1+1 ->  | DW1: =DV1+1 ->  | DX1: =DW1+1 ->  | DY1: =DX1+1 ->  | DZ1: =DY1+1 ->  | EA1: =DZ1+1 ->  | EB1: =EA1+1 ->  | EC1: =EB1+1 ->  | ED1: =EC1+1 ->  | EE1: =ED1+1 ->  | EF1: =EE1+1 ->  | EG1: =EF1+1 ->  | EH1: =EG1+1 ->  | EI1: =EH1+1 ->  | EJ1: =EI1+1 ->  | EK1: =EJ1+1 ->  | EL1: =EK1+1 ->  | EM1: =EL1+1 ->  | EN1: =EM1+1 ->  | EO1: =EN1+1 ->  | EP1: =EO1+1 ->  | EQ1: =EP1+1 ->  | ER1: =EQ1+1 ->  | ES1: =ER1+1 ->  | ET1: =ES1+1 ->  | EU1: =ET1+1 ->  | EV1: =EU1+1 ->  | EW1: =EV1+1 ->  | EX1: =EW1+1 ->  | EY1: =EX1+1 ->  | EZ1: =EY1+1 ->  | FA1: =EZ1+1 ->  | FB1: =FA1+1 ->  | FC1: =FB1+1 ->  | FD1: =FC1+1 ->  | FE1: =FD1+1 ->  | FF1: =FE1+1 ->  | FG1: =FF1+1 ->  | FH1: =FG1+1 ->  | FI1: =FH1+1 ->  | FJ1: =FI1+1 ->  | FK1: =FJ1+1 ->  | FL1: =FK1+1 ->  | FM1: =FL1+1 ->  | FN1: =FM1+1 ->  | FO1: =FN1+1 ->  | FP1: =FO1+1 ->  | FQ1: =FP1+1 ->  | FR1: =FQ1+1 ->  | FS1: =FR1+1 ->  | FT1: =FS1+1 ->  | FU1: =FT1+1 ->  | FV1: =FU1+1 ->  | FW1: =FV1+1 ->  | FX1: =FW1+1 ->  | FY1: =FX1+1 ->  | FZ1: =FY1+1 ->  | GA1: =FZ1+1 ->  | GB1: =GA1+1 ->  | GC1: =GB1+1 ->  | GD1: =GC1+1 ->  | GE1: =GD1+1 ->  | GF1: =GE1+1 ->  | GG1: =GF1+1 ->  | GH1: =GG1+1 ->  | GI1: =GH1+1 ->  | GJ1: =GI1+1 ->  | GK1: =GJ1+1 ->  | GL1: =GK1+1 ->  | GM1: =GL1+1 ->  | GN1: =GM1+1 ->  | GO1: =GN1+1 ->  | GP1: =GO1+1 ->  | GQ1: =GP1+1 ->  | GR1: =GQ1+1 ->  | GS1: =GR1+1 ->  | GT1: =GS1+1 ->  | GU1: =GT1+1 ->  | GV1: =GU1+1 ->  | GW1: =GV1+1 ->  | GX1: =GW1+1 ->  | GY1: =GX1+1 ->  | GZ1: =GY1+1 ->  | HA1: =GZ1+1 ->  | HB1: =HA1+1 ->  | HC1: =HB1+1 ->  | HD1: =HC1+1 ->  | HE1: =HD1+1 ->  | HF1: =HE1+1 ->  | HG1: =HF1+1 ->  | HH1: =HG1+1 ->  | HI1: =HH1+1 ->  | HJ1: =HI1+1 ->  | HK1: =HJ1+1 ->  | HL1: =HK1+1 ->  | HM1: =HL1+1 ->  | HN1: =HM1+1 ->  | HO1: =HN1+1 ->  | HP1: =HO1+1 ->  | HQ1: =HP1+1 ->  | HR1: =HQ1+1 ->  | HS1: =HL1+1 ->  | HT1: =HS1+1 ->  | HU1: =HT1+1 ->  | HV1: =HU1+1 ->  | HW1: =HV1+1 ->  | HX1: =HW1+1 ->  | HY1: =HX1+1 ->  | HZ1: =HY1+1 ->  | IA1: =HZ1+1 ->  | IB1: =HZ1+1 ->  | ID1: =IC1+1 ->  | IE1: =ID1+1 ->  | IF1: =IE1+1 ->  | IG1: =IF1+1 ->  | IH1: =IG1+1 ->  | II1: =IG1+1 ->  | IK1: =IJ1+1 ->  | IL1: =IK1+1 ->  | IM1: =IL1+1 ->  | IN1: =IM1+1 ->  | IO1: =IN1+1 ->  | IP1: =IO1+1 ->  | IQ1: =IP1+1 ->  | IR1: =IQ1+1 ->  | IS1: =IR1+1 ->  | IT1: =IS1+1 ->  | IU1: =IT1+1 ->  | IV1: =IU1+1 ->  | IX1: =IV1+1 ->  | IY1: =IX1+1 ->  | IZ1: =IY1+1 ->  | JA1: =IZ1+1 ->  | JB1: =JA1+1 ->  | JC1: =JB1+1 ->  | JD1: =JC1+1 ->  | JE1: =JD1+1 ->  | JF1: =JE1+1 ->  | JG1: =JF1+1 ->  | JH1: =JG1+1 ->  | JI1: =JH1+1 ->  | JJ1: =JI1+1 ->  | JK1: =JJ1+1 ->  | JL1: =JK1+1 ->  | JM1: =JL1+1 ->  | JN1: =JM1+1 ->  | JO1: =JN1+1 ->  | JP1: =JO1+1 ->  | JQ1: =JP1+1 ->  | JR1: =JQ1+1 ->  | JS1: =JR1+1 ->  | JT1: =JS1+1 ->  | JU1: =JT1+1 ->  | JV1: =JU1+1 ->  | JW1: =JV1+1 ->  | JX1: =JW1+1 ->  | JY1: =JX1+1 ->  | JZ1: =JY1+1 ->  | KA1: =JZ1+1 ->  | KB1: =KA1+1 ->  | KC1: =KA1+1 ->  | KE1: =#REF!+1 ->  | KF1: =KE1+1 ->  | KG1: =KF1+1 ->  | KH1: =KG1+1 ->  | KI1: =KH1+1 ->  | KJ1: =KI1+1 ->  | KK1: =KI1+1 ->  | KM1: =KL1+1 ->  | KN1: =KM1+1 ->  | KO1: =KM1+1 ->  | KQ1: =#REF!+1 ->  | KR1: =KQ1+1 ->  | KS1: =KR1+1 ->  | KT1: =KS1+1 ->  | KU1: =KT1+1 ->  | KV1: =KU1+1 ->  | KW1: =KV1+1 ->  | KX1: =KW1+1 ->  | KY1: =KX1+1 ->  | KZ1: =KY1+1 ->  | LA1: =KZ1+1 ->  | LB1: =LA1+1 ->  | LC1: =LB1+1 ->  | LD1: =LC1+1 ->  | LE1: =LD1+1 ->  | LF1: =LE1+1 ->  | LG1: =LF1+1 ->  | LH1: =LG1+1 ->  | LI1: =LH1+1 ->  | LJ1: =LI1+1 ->  | LK1: =LJ1+1 ->  | LL1: =LK1+1 ->  | LM1: =LL1+1 ->  | LN1: =LM1+1 ->  | LO1: =LN1+1 ->  | LP1: =LO1+1 ->  | LQ1: =LP1+1 ->  | LR1: =LQ1+1 ->  | LS1: =LR1+1 ->  | LT1: =LS1+1 ->  | LU1: =LT1+1 ->  | LV1: =LU1+1 ->  | LW1: =LV1+1 ->  | LX1: =LW1+1 ->  | LY1: =LX1+1 ->  | LZ1: =LY1+1 ->  | MA1: =LZ1+1 ->  | MB1: =MA1+1 ->  | MC1: =MB1+1 ->  | MD1: =MC1+1 ->  | ME1: =MD1+1 ->  | MF1: =ME1+1 ->  | MG1: =MF1+1 ->  | MH1: =MG1+1 ->  | MI1: =MH1+1 ->  | MJ1: =MI1+1 ->  | MK1: =MJ1+1 ->  | ML1: =MK1+1 ->  | MM1: =ML1+1 ->  | MN1: =MM1+1 ->  | MO1: =MN1+1 ->  | MP1: =MO1+1 ->  | MQ1: =MP1+1 ->  | MR1: =MQ1+1 ->  | MS1: =MR1+1 ->  | MT1: =MS1+1 ->  | MU1: =MT1+1 ->  | MV1: =MU1+1 ->  | MW1: =MV1+1 ->  | MX1: =MW1+1 ->  | MY1: =MX1+1 ->  | MZ1: =MY1+1 ->  | NA1: =MZ1+1 ->  | NB1: =NA1+1 ->  | NC1: =NB1+1 ->  | ND1: =NC1+1 ->  | NE1: =ND1+1 ->  | NF1: =NE1+1 ->  | NG1: =NF1+1 ->  | NH1: =#REF!+1 ->  | NI1: =NH1+1 ->  | NJ1: =NI1+1 ->  | NK1: =NJ1+1 ->  | NL1: =NK1+1 ->  | NM1: =NL1+1 ->  | NN1: =NM1+1 ->  | NO1: =NN1+1 ->  | NP1: =#REF!+1 ->  | NQ1: =NP1+1 ->  | NR1: =#REF!+1 ->  | NS1: =NQ1+1 ->  | NU1: =#REF!+1 ->  | NV1: =#REF!+1 ->  | NW1: =#REF!+1 ->  | NX1: =NW1+1 ->  | NY1: =NX1+1 ->  | NZ1: =#REF!+1 ->  | OA1: =NZ1+1 ->  | OB1: =#REF!+1 ->  | OC1: =OB1+1 ->  | OD1: =OC1+1 ->  | OE1: =OD1+1 ->  | OF1: =OE1+1 ->  | OG1: =OF1+1 ->  | OH1: =OG1+1 ->  | OI1: =OH1+1 ->  | OJ1: =OI1+1 ->  | OK1: =OJ1+1 ->  | OL1: =OK1+1 ->  | OM1: =OL1+1 ->  | ON1: =OM1+1 ->  | OO1: =ON1+1 ->  | OP1: =OO1+1 ->  | OQ1: =OP1+1 ->  | OR1: =OQ1+1 ->  | OS1: =OR1+1 ->  | OT1: =OS1+1 ->  | OU1: =OT1+1 ->  | OV1: =OU1+1 ->  | OW1: =OV1+1 ->  | OX1: =OW1+1 ->  | OY1: =OX1+1 ->  | OZ1: =OY1+1 ->  | PA1: =OZ1+1 ->  | PB1: =PA1+1 ->  | PC1: =PB1+1 ->  | PD1: =#REF!+1 ->  | PE1: =PD1+1 ->  | PF1: =PE1+1 ->  | PG1: =PF1+1 ->  | PH1: =PG1+1 ->  | PI1: =PH1+1 ->  | PJ1: =PI1+1 ->  | PK1: =PJ1+1 ->  | PL1: =PK1+1 ->  | PM1: =PL1+1 ->  | PN1: =PM1+1 ->  | PO1: =PN1+1 ->  | PP1: =PO1+1 ->  | PQ1: =PP1+1 ->  | PR1: =PQ1+1 ->  | PS1: =PR1+1 ->  | PT1: =PS1+1 ->  | PU1: =PT1+1 ->  | PV1: =PU1+1 ->  | PW1: =PV1+1 ->  | PX1: =PW1+1 ->  | PY1: =PX1+1 ->  | PZ1: =PY1+1 ->  | QA1: =#REF!+1 ->  | QB1: =QA1+1 ->  | QE1: 0 | QX1: . | RU1: 0
A2: NOMBRE DEPARTAMENTO: | D2: BOGOTA | E2: CODIGO DEPARTAMENTO: | G2: =VLOOKUP(D2,Tabla2[[DEPARTAMENTO]:[CODEP]],2,0) -> 11
A3: AÑO: | D3: 2022 | QC3: . | RU3: .
A4: MES DE REPORTE | D4: Febrero | F4: VACUNAS PAI | S4: VACUNAS PAI | BV4: VACUNAS PAI | DF4: VACUNAS PAI | EM4: VACUNAS PAI | FI4: VACUNAS PAI | GN4: VACUNAS PAI | HE4: VACUNAS PAI | LU4: VACUNAS PAI | PB4: VACUNAS PAI | PY4: VACUNAS PAI
A5: MUNICIPIO | D5: REGIMEN / GRUPO ETNICO | E5: BCG | I5: HEPATITIS B | AF5: HEPATITIS B (RESOLUCION. 0459/2012 y Circular 031/2014) | BL5: POBLACION PRIORIZADA PARA HEPATITIS B (Entidades Territoriales priorizados ) | BP5: ANTIPOLIO INACTIVADA (VIP) | CX5: POLIO ORAL - VOP | DF5: PENTAVALENTE DPT - HB - Hib | DQ5: PENTAVALENTE DPT - HB - Hib (CUANDO EL MINISTERIO LA AUTORICE) | DU5: DPT | EU5: DTPa Acelular Pediatrica | FZ5: TOXOIDE TETANICO-DIFTERICO PEDIATRICO (TD) | HE5: ROTAVIRUS | HG5: NEUMOCOCO CONJUGADA DECAVALENTE | HM5: NEUMOCOCO CONJUGADA TRECEVALENTE | HS5: SRP (TRIPLE VIRAL) | IK5: SR (DOBLE VIRAL) | JB5: FIEBRE AMARILLA DOSIS UNICA | JU5: HEPATITIS A (Cohorte de nacidos a partir de 1 de enero de 2012) | KE5: VARICELA (Cohorte de nacidos a partir de 1 de julio de 2014) | KQ5: TOXOIDE TETANICO-DIFTERICO DE ADULTOS (Td) | MV5: Tdap ACELULAR | NH5: INFLUENZA | NW5: MENINGOCOCO (PARA USO EN BROTES) | OC5: V P H | PF5: ANTIRRABICA HUMANA PRE/POST-EXPOSICION | PT5: INMUNOGLOBULINA ANTI HEPATITIS B | PY5: INMUNOGLOBULINAS/ANTITOXINAS TETÁNICAS | QA5: ANTI TOXINA DIFTERICA (Suero heterólogo)
E6: NIÑO O NIÑA RECIEN NACIDO (DE 0 HASTA 29 DÍAS) | F6: NIÑO O NIÑA MENOR DE UN AÑO (A PARTIR DE 30 DIAS HASTA 11 MESES 29 DIAS) | G6: POBLACION INDIGENA Y RURAL DISPERSA (DE 1 AÑO A 5 AÑOS, 11 MESES, 29 DIAS) | H6: CONTACTOS DE HANSEN (LEPRA) OTRAS EDADES | I6: RECIEN NACIDO (HASTA 29 DÍAS) | K6: DE 2 A 11 MESES 29 DÍAS | N6: DE 1 AÑO | Q6: DE 2 AÑOS | T6: DE 3 AÑOS | W6: DE 4 AÑOS | Z6: DE 5 AÑOS | AC6: DE 6 a 18 AÑOS (ICBF) | AF6: DE 1 AÑO | AJ6: DE 2 AÑOS | AN6: DE 3 AÑOS | AR6: DE 4 AÑOS | AV6: DE 5 AÑOS | AZ6: 6 A 14 AÑOS | BD6: DE 15 AÑOS A 17 AÑOS | BH6: DE 18 AÑOS Y MAS | BP6: < DE 1 AÑO | BS6: DE 1 AÑO | BV6: DE 2 AÑOS | BY6: DE 3 AÑOS | CB6: DE 4 AÑOS | CE6: DE 5 AÑOS | CH6: AL AÑO DE LA 3ra DOSIS (De 18 a 23 meses) | CI6: DE 2 AÑOS | CJ6: DE 3 AÑOS | CK6: DE 4 AÑOS | CL6: DE 5 AÑOS | CM6: 3 AÑOS | CN6: 4 AÑOS | CO6: 5 AÑOS | CP6: DE 6 AÑOS | CS6: DE 7 A 17 AÑOS (AUTORIZADAS POR EL MINISTERIO) | CV6: DE 18 A 60 AÑOS (AUTORIZADAS POR EL MINISTERIO) | CX6: AL AÑO DE LA 3ra DOSIS (De 18 a 23 meses) | CY6: DE 2 AÑOS | CZ6: DE 3 AÑOS | DA6: DE 4 AÑOS | DB6: DE 5 AÑOS | DC6: 3 AÑOS | DD6: 4 AÑOS | DE6: 5 AÑOS | DF6: < DE 1 AÑO | DI6: DE 1 AÑO | DL6: AL AÑO DE LA 3ra DOSIS (De 18 a 23 meses) | DM6: DE 2 AÑOS | DN6: DE 3 AÑOS | DO6: DE 4 AÑOS | DP6: DE 5 AÑOS | DQ6: DE 2 AÑOS | DR6: DE 3 AÑOS | DS6: DE 4 AÑOS | DT6: DE 5 AÑOS | DU6: < DE 1 AÑO | DX6: DE 1 AÑO | EA6: DE 2 AÑOS | ED6: DE 3 AÑOS | EG6: DE 4 AÑOS | EJ6: DE 5 AÑOS | EM6: AL AÑO DE LA 3ra DOSIS (De 18 a 23 meses) | EN6: DE 2 AÑOS | EO6: DE 3 AÑOS | EP6: DE 4 AÑOS | EQ6: DE 5 AÑOS | ER6: 3 AÑOS | ES6: 4 AÑOS | ET6: 5 AÑOS | EU6: < DE 1 AÑO | EX6: DE 1 AÑO | FA6: DE 2 AÑOS | FD6: DE 3 AÑOS | FG6: DE 4 AÑOS | FJ6: DE 5 AÑOS | FM6: AL AÑO DE LA 3ra DOSIS (De 18 a 23 meses) | FN6: DE 2 AÑOS | FO6: DE 3 AÑOS | FP6: DE 4 AÑOS | FQ6: DE 5 AÑOS | FR6: 3 AÑOS | FS6: 4 AÑOS | FT6: 5 AÑOS | FU6: DE 6 AÑOS | FZ6: < DE 1 AÑO | GC6: DE 1 AÑO | GF6: DE 2 AÑOS | GI6: DE 3 AÑOS | GL6: DE 4 AÑOS | GO6: DE 5 AÑOS | GR6: AL AÑO DE LA 3ra DOSIS (De 18 a 23 meses) | GS6: DE 2 AÑOS | GT6: DE 3 AÑOS | GU6: DE 4 AÑOS | GV6: DE 5 AÑOS | GW6: 3 AÑOS | GX6: 4 AÑOS | GY6: 5 AÑOS | GZ6: DE 6 AÑOS | HE6: DE 2 MESES A 3 MESES y 21 DIAS | HF6: DE 4 MESES A 11 MESES y 29 DIAS | HG6: DE 2 A 11 MESES 29 DIAS | HI6: DE 12 MESES A 23 MESES | HJ6: DE 12 A 23 MESES | HL6: DE 24 MESES A 5 AÑOS | HM6: DE 2 A 11 MESES 29 DIAS | HO6: DE 12 MESES A 23 MESES | HP6: DE 12 A 23 MESES | HR6: DE 24 MESES A 5 AÑOS | HS6: PRIMERA DOSIS | ID6: DOSIS DE REFUERZO | IK6: DOSIS CERO | IL6: DOSIS UNICA | JB6: DE 1 AÑO | JC6: DE 2 AÑOS | JD6: DE 3 AÑOS | JE6: DE 4 AÑOS | JF6: DE 5 AÑOS | JG6: DE 6 AÑOS | JH6: DE 7 AÑOS | JI6: DE 8 AÑOS | JJ6: DE 9 AÑOS | JK6: DE 10 AÑOS | JL6: DE 11 AÑOS | JM6: DE 12 AÑOS | JN6: DE 13 a 14 AÑOS | JO6: DE 15 a 17 AÑOS | JP6: 18 A 30 AÑOS | JQ6: 31 A 40 AÑOS | JR6: 41 A 50 AÑOS | JS6: 51 A 59 AÑOS | JT6: SOLO EN SITUACIÓN DE BROTE | JU6: DOSIS ÚNICA | KE6: PRIMERA DOSIS | KM6: REFUERZO | KQ6: NIÑOS Y NIÑAS DE 7 A 9 AÑOS | KV6: GESTANTES DE 9 AÑOS A 17 AÑOS | LA6: GESTANTES DE 18 AÑOS Y MAS | LF6: REFUERZOS GESTANTES 15 A 49 AÑOS | LJ6: MUJERES EN EDAD FERTIL (MEF) DE 10 AÑOS A 17 AÑOS | LO6: MUJERES EN EDAD FERTIL (MEF) DE 18 A 49 AÑOS | LT6: REFUERZOS MEF DE 15 A 49 AÑOS | LX6: HOMBRES DE 10 A 17 AÑOS | MC6: HOMBRES DE 18 A 49 AÑOS | MH6: REFUERZOS HOMBRES DE 15 A 49 AÑOS | ML6: OTROS DE 50 A 59 AÑOS | MQ6: OTROS DE 60 AÑOS Y MAS | MV6: DE 9 A 17 AÑOS GESTANTES de acuerdo al lineamiento | NB6: DE 18 Y MAS AÑOS GESTANTES de acuerdo al lineamiento | NH6: DE 6 MESES A 11 MESES | NJ6: DE 12 MESES A 23 MESES | NM6: 24 A 35 MESES | NP6: DE 60 Y MAS AÑOS | NQ6: GESTANTES A PARTIR DE LA SEMANA 14 | NR6: DE 3 A 8 AÑOS (Poblaciones autorizadas de acuerdo con los lineamientos emitidos por el MSPS ) | NU6: DE 9 A 17 AÑOS (Poblaciones autorizadas de acuerdo con los lineamientos emitidos por el MSPS ) | NV6: DE 18 A 59 AÑOS (Poblaciones autorizadas de acuerdo con los lineamientos emitidos por el MSPS ) | NW6: DE 6 A 11 MESES | NZ6: 12 A 23 MESES | OB6: MAYORES DE 2 AÑOS | OC6: 9 AÑOS | OF6: 10 AÑOS | OI6: 11 AÑOS | OL6: 12 AÑOS | OO6: 13 AÑOS | OR6: 14 AÑOS | OU6: 15 AÑOS | OX6: 16 AÑOS | PA6: 17 AÑOS | PD6: 18 AÑOS a 26 AÑOS | PF6: ESQUEMA PRE EXPOSICIÓN OPCION 1 (I.D.) (Se aplica previa autorización del Ministerio) | PH6: ESQUEMA PRE EXPOSICIÓN OPCION 2 (I.M.) (Se aplica previa autorización del Ministerio) | PJ6: ESQUEMA POST EXPOSICION Número de dosis aplicadas | PN6: ESQUEMA POST EXPOSICION ACORTADO (ZAGREB) Número de dosis aplicadas | PQ6: TOTAL DE ESQUEMAS POST EXPOSICION (USUARIOS CON ESQUEMA DE VACUNACION COMPLETO) | PR6: INMUNOGLOBULINA ANTIRRÁBICA (Número de frascos utilizados) | PS6: No. De personas que recibieron inmunoglobulina antirrabica. | PT6: RECIEN NACIDO (Hijo de Madre Antigenos + para HB) | PW6: (RESOLUCION 0459/2012- circular 031/14) | PY6: INMUNOGLOBULINA ANTI TETANICA (Suero homólogo) | QD6: codepcomure | QE6: DOSIS APLICADAS POR BIOLOGICOS | QW6: FLU | RG6: ANTI RABICA HUMANA PRE/POST-EXPOSICION | RN6: INMUNO GLOBULINA ANTI HEPATITIS B | RQ6: (RESOLUCION 0459/2012- circular 031/14) | RS6: ANTI TOXINA TETANICA
A7: Nº | B7: COD DANE MPIO | C7: NOMBRE MUNICIPIO/ IPS | I7: RECIEN NACIDO (Primeras 12 Horas) | J7: RECIEN NACIDO Entre 12 horas y 29 dias | K7: 1a | L7: 2a | M7: 3a | N7: 1a | O7: 2a | P7: 3a | Q7: 1a | R7: 2a | S7: 3a | T7: 1a | U7: 2a | V7: 3a | W7: 1a | X7: 2a | Y7: 3a | Z7: 1a | AA7: 2a | AB7: 3a | AC7: 1a | AD7: 2a | AE7: 3a | AF7: 1a | AG7: 2a | AH7: 3a | AI7: Adicional | AJ7: 1a | AK7: 2a | AL7: 3a | AM7: Adicional | AN7: 1a | AO7: 2a | AP7: 3a | AQ7: Adicional | AR7: 1a | AS7: 2a | AT7: 3a | AU7: Adicional | AV7: 1a | AW7: 2a | AX7: 3a | AY7: Adicional | AZ7: 1a | BA7: 2a | BB7: 3a | BC7: Adicional | BD7: 1a | BE7: 2a | BF7: 3a | BG7: Adicional | BH7: 1a | BI7: 2a | BJ7: 3a | BK7: Adicional | BL7: 1a | BM7: 2a | BN7: 3a | BO7: adicional | BP7: 1a | BQ7: 2a | BR7: 3a | BS7: 1a | BT7: 2a | BU7: 3a | BV7: 1a | BW7: 2a | BX7: 3a | BY7: 1a | BZ7: 2a | CA7: 3a | CB7: 1a | CC7: 2a | CD7: 3a | CE7: 1a | CF7: 2a | CG7: 3a | CH7: Primer Refuerzo | CM7: Segundo Refuerzo | CO7: Segundo Refuerzo | CP7: 1a | CQ7: 2a | CR7: 3a | CS7: 1a | CT7: 2a | CU7: 3a | CV7: 1a | CW7: 2a | CX7: 1er REF. | DC7: 2° REF. | DF7: 1a | DG7: 2a | DH7: 3a | DI7: 1a | DJ7: 2a | DK7: 3a | DL7: 1er REF de acuerdo a lineamiento | DQ7: 1a | DR7: 1a | DS7: 1a | DT7: 1a | DU7: 1a | DV7: 2a | DW7: 3a | DX7: 1a | DY7: 2a | DZ7: 3a | EA7: 1a | EB7: 2a | EC7: 3a | ED7: 1a | EE7: 2a | EF7: 3a | EG7: 1a | EH7: 2a | EI7: 3a | EJ7: 1a | EK7: 2a | EL7: 3a | EM7: 1er REF. | ER7: 2° REF. | EU7: 1a | EV7: 2a | EW7: 3a | EX7: 1a | EY7: 2a | EZ7: 3a | FA7: 1a | FB7: 2a | FC7: 3a | FD7: 1a | FE7: 2a | FF7: 3a | FG7: 1a | FH7: 2a | FI7: 3a | FJ7: 1a | FK7: 2a | FL7: 3a | FM7: 1er REF. | FR7: 2° REF. | FU7: 1a | FV7: 2a | FW7: 3a | FX7: 1er REF. | FY7: 2° REF. | FZ7: 1a | GA7: 2a | GB7: 3a | GC7: 1a | GD7: 2a | GE7: 3a | GF7: 1a | GG7: 2a | GH7: 3a | GI7: 1a | GJ7: 2a | GK7: 3a | GL7: 1a | GM7: 2a | GN7: 3a | GO7: 1a | GP7: 2a | GQ7: 3a | GR7: 1er REF. | GW7: 2° REF. | GZ7: 1a | HA7: 2a | HB7: 3a | HC7: 1er REF. | HD7: 2° REF. | HE7: 1a | HF7: 2a | HG7: 1a | HH7: 2a | HI7: REF. | HJ7: 1a | HK7: 2a | HL7: ÚNICA | HM7: 1a | HN7: 2a | HO7: REF. | HP7: 1a | HQ7: 2a | HR7: ÚNICA | HS7: DE 1 AÑO | HT7: DE 2 AÑOS | HU7: DE 3 AÑOS | HV7: DE 4 AÑOS | HW7: DE 5 AÑOS | HX7: DE 6 AÑOS | HY7: DE 7 AÑOS | HZ7: DE 8 AÑOS | IA7: DE 9 AÑOS | IB7: DE 10 AÑOS | IC7: DE 11 AÑOS | ID7: DE 5 AÑOS | IE7: DE 6 AÑOS | IF7: DE 7 AÑOS | IG7: DE 8 AÑOS | IH7: DE 9 AÑOS | II7: DE 10 AÑOS | IJ7: DE 11 AÑOS | IK7: SR * 6 a 11 MESES 29 DIAS | IL7: DE 1 AÑO | IM7: DE 2 AÑOS | IN7: DE 3 AÑOS | IO7: DE 4 AÑOS | IP7: DE 5 AÑOS | IQ7: DE 6 AÑOS | IR7: DE 7 AÑOS | IS7: DE 8 AÑOS | IT7: DE 9 AÑOS | IU7: DE 10 AÑOS | IV7: DE 11 AÑOS | IW7: DE 12 a 14 AÑOS | IX7: DE 15 a 17 AÑOS | IY7: 18 A 30 AÑOS | IZ7: 31 A 40 AÑOS | JA7: 41 Y MAS AÑOS | JT7: 6 meses a 11 meses (Con Autorizacion del MSPS de acuerdo a Lineamientos) | JU7: DE 1 AÑO | JV7: DE 2 AÑOS | JW7: DE 3 AÑOS | JX7: DE 4 AÑOS | JY7: DE 5 AÑOS | JZ7: DE 6 AÑOS | KA7: DE 7 AÑOS | KB7: DE 8 AÑOS | KC7: DE 9 AÑOS | KD7: DE 10 AÑOS | KE7: DE 1 AÑO | KF7: DE 2 AÑOS | KG7: DE 3 AÑOS | KH7: DE 4 AÑOS | KI7: DE 5 AÑOS | KJ7: DE 6 AÑOS | KK7: DE 7 AÑOS | KL7: DE 8 AÑOS | KM7: DE 5 AÑOS (aplicadas a partir del 1 de julio de 2019) | KN7: DE 6 AÑOS (aplicadas a partir del 1 de julio de 2019) | KO7: DE 7 AÑOS (aplicadas a partir del 1 de julio de 2019) | KP7: DE 8 AÑOS (aplicadas a partir del 1 de julio de 2019) | KQ7: Td1 | KR7: Td2 | KS7: Td3 | KT7: Ref 1 | KU7: Ref 2 | KV7: Td1 | KW7: Td2 | KX7: Td3 | KY7: Td4 | KZ7: Td5 | LA7: Td1 | LB7: Td2 | LC7: Td3 | LD7: Td4 | LE7: Td5 | LF7: REF. 1 | LG7: REF. 2 | LH7: REF. 3 | LI7: REF. 4 | LJ7: Td1 | LK7: Td2 | LL7: Td3 | LM7: Td4 | LN7: Td5 | LO7: Td1 | LP7: Td2 | LQ7: Td3 | LR7: Td4 | LS7: Td5 | LT7: REF. 1 | LU7: REF. 2 | LV7: REF. 3 | LW7: REF. 4 | LX7: Td1 | LY7: Td2 | LZ7: Td3 | MA7: Td4 | MB7: Td5 | MC7: Td1 | MD7: Td2 | ME7: Td3 | MF7: Td4 | MG7: Td5 | MH7: REF. 1 | MI7: REF. 2 | MJ7: REF. 3 | MK7: REF. 4 | ML7: Td1 | MM7: Td2 | MN7: Td3 | MO7: Td4 | MP7: Td5 | MQ7: Td1 | MR7: Td2 | MS7: Td3 | MT7: Td4 | MU7: Td5 | MV7: U DOSIS EN C/EMBARAZO | MW7: Corresponde a Td1 | MX7: Corresponde a Td2 | MY7: Corresponde a Td3 | MZ7: Corresponde a Td4 | NA7: Corresponde a Td5 | NB7: U DOSIS EN C/EMBARAZO | NC7: Corresponde a Td1 | ND7: Corresponde a Td2 | NE7: Corresponde a Td3 | NF7: Corresponde a Td4 | NG7: Corresponde a Td5 | NH7: 1a | NI7: 2a | NJ7: 1a | NK7: 2a | NL7: ÚNICA | NM7: 1a | NN7: 2a | NO7: ÚNICA | NP7: ÚNICA | NQ7: ÚNICA | NR7: 1a | NS7: 2a | NT7: ÚNICA | NU7: ÚNICA | NV7: ÚNICA | NW7: 1a | NX7: 2a | NY7: 3a | NZ7: 1a | OA7: 2a | OB7: ÚNICA | OC7: 1a | OD7: 2a | OE7: 3a | OF7: 1a | OG7: 2a | OH7: 3a | OI7: 1a | OJ7: 2a | OK7: 3a | OL7: 1a | OM7: 2a | ON7: 3a | OO7: 1a | OP7: 2a | OQ7: 3a | OR7: 1a | OS7: 2a | OT7: 3a | OU7: 1a | OV7: 2a | OW7: 3a | OX7: 1a | OY7: 2a | OZ7: 3a | PA7: 1a | PB7: 2a | PC7: 3a | PD7: 2a | PE7: 3a | PF7: 1a. y 2a día 0 | PG7: 3a y 4a. día 7 | PH7: 1a . día 0 | PI7: 2a. día 7 | PJ7: 1a. día 0 | PK7: 2a. dia 3 | PL7: 3a. día 7 | PM7: 4a . día 14 | PN7: 1era. y 2da dosis 0,0 | PO7: 3a. día 7 | PP7: 4a. día 21 | PQ7: Número de usuarios | PT7: Número de frascos utilizados | PU7: N° recién nacidos que recibieron dosis de Ig en las primeras 12 horas | PV7: N° recién nacidos que recibieron dosis de Ig despues de las primeras 12 horas | PW7: Número de frascos utilizados | PX7: N° Personas que recibieron dosis de Ig | PY7: Número de frascos utilizados | PZ7: N° Personas que recibieron dosis de Ig | QA7: Número de frascos utilizados | QB7: N° Personas que recibieron dosis de antitoxina | QC7: TOTAL DOSIS | QE7: BCG | QF7: HEPATITIS B | QG7: ANTIPOLIO INACTIVADA (VIP) PARENTERAL | QH7: ANTIPOLIO (VOP) ORAL | QI7: PENTAVALENTE DPT - HB - Hib | QJ7: DPT | QK7: DTPa Acelular Pediatrica | QL7: TOXOIDE TETANICO-DIFTERICO PEDIATRICO (TD) | QM7: ROTAVIRUS | QN7: NEUMOCOCO CONJUGADA DECAVALENTE | QO7: NEUMOCOCO CONJUGADA TRECEVALENTE | QP7: SRP (TRIPLE VIRAL) | QQ7: SR | QR7: FIEBRE AMARILLA | QS7: HEPATITIS A | QT7: VARICELA | QU7: TOXOIDE TETANICO-DIFTERICO DE ADULTOS (Td) | QV7: dTpa. ACELULAR | QW7: DE 6 MESES A 23 MESES | QX7: DE 12 MESES A 23 MESES | QY7: 24 A 35 MESES | QZ7: DE 60 AÑOS Y MAS | RA7: Gestantes a partir de la semana 14 | RB7: DE 3 A 8 AÑOS (Poblaciones autorizadas de acuerdo con los lineamientos emitidos por el MSPS ) | RC7: DE 9 A 17 AÑOS (Poblaciones autorizadas de acuerdo con los lineamientos emitidos por el MSPS ) | RD7: DE 18 A 59 AÑOS (Poblaciones autorizadas de acuerdo con los lineamientos emitidos por el MSPS ) | RE7: MENINGOCOCO (PARA USO EN BROTES) ÚNICA | RF7: V. P. H. | RG7: ESQUEMA PRE EXPOSICIÓN OPCION 1 (I.D.) (Se aplica previa autorización del Ministerio) | RH7: ESQUEMA PRE EXPOSICIÓN OPCION 2 (I.M.) | RI7: ESQUEMA POST EXPOSICION Número de dosis aplicadas | RJ7: ESQUEMA POST EXPOSICION ACORTADO (ZAGREB) Número de dosis aplicadas | RK7: TOTAL DE ESQUEMAS POST EXPOSICION (USUARIOS CON ESQUEMA DE VACUNACION COMPLETO) | RL7: INMUNOGLOBULINA ANTIRRÁBICA (Número de frascos utilizados) | RM7: TOTAL DE ESQUEMAS POST EXPOSICION (USUARIOS CON ESQUEMA DE VACUNACION COMPLETO) | RN7: RECIEN NACIDO (Hijo de Madre Antigenos + para HB) Número de frascos utilizados | RO7: N° recién nacidos que recibieron dosis de Ig en las primeras 12 horas | RP7: N° recién nacidos que recibieron dosis de Ig despues de las primeras 12 horas | RQ7: Número de frascos utilizados | RR7: N° Personas que recibieron dosis de Ig | RS7: Número de frascos utilizados | RT7: N° Personas que recibieron dosis de Ig | RU7: ANTI TOXINA DIFTERICA (Suero heterólogo) Número de frascos utilizados | RV7: N° Personas que recibieron dosis de antitoxina | RW7: TOTAL DOSIS
B8: 11 | C8: Bogotá | D8: FEMENINO | E8: 2,670 | F8: 68 | G8: 2 | H8: 2 | I8: 2,682 | J8: 66 | K8: 0 | L8: 0 | M8: 1 | N8: 0 | O8: 25 | P8: 67 | Q8: 7 | R8: 14 | S8: 22 | T8: 4 | U8: 6 | V8: 20 | W8: 4 | X8: 8 | Y8: 14 | Z8: 1 | AA8: 2 | AB8: 8 | AC8: 0 | AD8: 0 | AE8: 0 | AF8: 0 | AG8: 0 | AH8: 0 | AI8: 0 | AJ8: 0 | AK8: 0 | AL8: 0 | AM8: 0 | AN8: 0 | AO8: 0 | AP8: 0 | AQ8: 0 | AR8: 1 | AS8: 0 | AT8: 0 | AU8: 0 | AV8: 0 | AW8: 0 | AX8: 0 | AY8: 0 | AZ8: 8 | BA8: 0 | BB8: 2 | BC8: 0 | BD8: 2 | BE8: 0 | BF8: 0 | BG8: 0 | BH8: 21 | BI8: 1 | BJ8: 2 | BK8: 1 | BL8: 43 | BM8: 2 | BN8: 3 | BO8: 0 | BP8: 2,264 | BQ8: 2,276 | BR8: 2,487 | BS8: 10 | BT8: 26 | BU8: 67 | BV8: 5 | BW8: 14 | BX8: 24 | BY8: 3 | BZ8: 4 | CA8: 21 | CB8: 4 | CC8: 10 | CD8: 9 | CE8: 0 | CF8: 2 | CG8: 10 | CH8: 22 | CI8: 0 | CJ8: 1 | CK8: 1 | CL8: 5 | CM8: 0 | CN8: 0 | CO8: 45 | CP8: 0 | CQ8: 0 | CR8: 36 | CS8: 0 | CT8: 1 | CU8: 19 | CV8: 0 | CW8: 0 | CX8: 2,553 | CY8: 243 | CZ8: 112 | DA8: 49 | DB8: 37 | DC8: 0 | DD8: 1 | DE8: 2,722 | DF8: 2,263 | DG8: 2,273 | DH8: 2,490 | DI8: 12 | DJ8: 0 | DK8: 0 | DL8: 0 | DM8: 0 | DN8: 0 | DO8: 0 | DP8: 0 | DQ8: 0 | DR8: 0 | DS8: 0 | DT8: 0 | DU8: 0 | DV8: 0 | DW8: 0 | DX8: 2 | DY8: 25 | DZ8: 67 | EA8: 6 | EB8: 14 | EC8: 22 | ED8: 3 | EE8: 5 | EF8: 21 | EG8: 4 | EH8: 9 | EI8: 12 | EJ8: 0 | EK8: 2 | EL8: 10 | EM8: 2,577 | EN8: 244 | EO8: 114 | EP8: 50 | EQ8: 38 | ER8: 0 | ES8: 1 | ET8: 2,759 | EU8: 0 | EV8: 0 | EW8: 1 | EX8: 0 | EY8: 0 | EZ8: 0 | FA8: 0 | FB8: 0 | FC8: 0 | FD8: 0 | FE8: 0 | FF8: 0 | FG8: 0 | FH8: 0 | FI8: 0 | FJ8: 0 | FK8: 0 | FL8: 0 | FM8: 2 | FN8: 1 | FO8: 0 | FP8: 1 | FQ8: 0 | FR8: 0 | FS8: 0 | FT8: 6 | FU8: 0 | FV8: 0 | FW8: 0 | FX8: 0 | FY8: 8 | FZ8: 0 | GA8: 0 | GB8: 0 | GC8: 0 | GD8: 0 | GE8: 0 | GF8: 0 | GG8: 0 | GH8: 0 | GI8: 0 | GJ8: 0 | GK8: 0 | GL8: 0 | GM8: 0 | GN8: 0 | GO8: 0 | GP8: 0 | GQ8: 0 | GR8: 0 | GS8: 0 | GT8: 0 | GU8: 0 | GV8: 0 | GW8: 0 | GX8: 0 | GY8: 0 | GZ8: 0 | HA8: 0 | HB8: 0 | HC8: 0 | HD8: 0 | HE8: 2,450 | HF8: 2,508 | HG8: 2,519 | HH8: 2,530 | HI8: 2,564 | HJ8: 83 | HK8: 59 | HL8: 347 | HM8: 0 | HN8: 0 | HO8: 0 | HP8: 0 | HQ8: 0 | HR8: 0 | HS8: 2,616 | HT8: 53 | HU8: 34 | HV8: 20 | HW8: 17 | HX8: 5 | HY8: 3 | HZ8: 1 | IA8: 1 | IB8: 1 | IC8: 0 | ID8: 2,839 | IE8: 115 | IF8: 47 | IG8: 26 | IH8: 21 | II8: 8 | IJ8: 0 | IK8: 15 | IL8: 2,260 | IM8: 619 | IN8: 745 | IO8: 664 | IP8: 591 | IQ8: 621 | IR8: 555 | IS8: 564 | IT8: 574 | IU8: 538 | IV8: 210 | IW8: 554 | IX8: 255 | IY8: 544 | IZ8: 283 | JA8: 122 | JB8: 2,728 | JC8: 240 | JD8: 100 | JE8: 51 | JF8: 48 | JG8: 17 | JH8: 3 | JI8: 7 | JJ8: 4 | JK8: 6 | JL8: 6 | JM8: 2 | JN8: 15 | JO8: 57 | JP8: 1,380 | JQ8: 544 | JR8: 311 | JS8: 248 | JT8: 0 | JU8: 2,699 | JV8: 117 | JW8: 90 | JX8: 86 | JY8: 108 | JZ8: 67 | KA8: 42 | KB8: 29 | KC8: 11 | KD8: 0 | KE8: 2,647 | KF8: 113 | KG8: 86 | KH8: 87 | KI8: 120 | KJ8: 71 | KK8: 26 | KL8: 0 | KM8: 2,749 | KN8: 91 | KO8: 18 | KP8: 0 | KQ8: 7 | KR8: 0 | KS8: 2 | KT8: 3 | KU8: 50 | KV8: 115 | KW8: 39 | KX8: 3 | KY8: 0 | KZ8: 1 | LA8: 1,635 | LB8: 721 | LC8: 352 | LD8: 215 | LE8: 114 | LF8: 19 | LG8: 2 | LH8: 0 | LI8: 0 | LJ8: 569 | LK8: 253 | LL8: 110 | LM8: 25 | LN8: 24 | LO8: 2,004 | LP8: 1,329 | LQ8: 1,631 | LR8: 1,103 | LS8: 786 | LT8: 186 | LU8: 0 | LV8: 0 | LW8: 0 | LX8: 2 | LY8: 0 | LZ8: 1 | MA8: 0 | MB8: 4 | MC8: 4 | MD8: 2 | ME8: 0 | MF8: 1 | MG8: 0 | MH8: 0 | MI8: 0 | MJ8: 0 | MK8: 0 | ML8: 4 | MM8: 4 | MN8: 0 | MO8: 2 | MP8: 3 | MQ8: 2 | MR8: 0 | MS8: 0 | MT8: 0 | MU8: 2 | MV8: 28 | MW8: 84 | MX8: 65 | MY8: 4 | MZ8: 1 | NA8: 0 | NB8: 1,137 | NC8: 1,061 | ND8: 1,348 | NE8: 497 | NF8: 367 | NG8: 237 | NH8: 0 | NI8: 0 | NJ8: 0 | NK8: 0 | NL8: 0 | NM8: 0 | NN8: 0 | NO8: 0 | NP8: 0 | NQ8: 0 | NR8: 0 | NS8: 0 | NT8: 0 | NU8: 0 | NV8: 0 | NW8: 0 | NX8: 0 | NY8: 0 | NZ8: 0 | OA8: 0 | OB8: 4 | OC8: 914 | OD8: 250 | OE8: 1 | OF8: 503 | OG8: 502 | OH8: 2 | OI8: 520 | OJ8: 365 | OK8: 0 | OL8: 332 | OM8: 250 | ON8: 1 | OO8: 279 | OP8: 209 | OQ8: 1 | OR8: 246 | OS8: 185 | OT8: 0 | OU8: 230 | OV8: 172 | OW8: 0 | OX8: 177 | OY8: 142 | OZ8: 2 | PA8: 85 | PB8: 84 | PC8: 2 | PD8: 23 | PE8: 10 | PF8: 0 | PG8: 0 | PH8: 0 | PI8: 0 | PJ8: 0 | PK8: 0 | PL8: 0 | PM8: 0 | PN8: 416 | PO8: 171 | PP8: 120 | PQ8: 120 | PR8: 336 | PS8: 77 | PT8: 1 | PU8: 1 | PV8: 0 | PW8: 76 | PX8: 30 | PY8: 0 | PZ8: 0 | QA8: 0 | QB8: 0 | QC8: =SUM(E8:QB8)-SUM(PQ8:PT8)-SUM(PW8:PZ8) -> 97,866 | QE8: =SUM(E8:H8) -> 2,742 | QF8: =SUM(I8:BO8) -> 3,037 | QG8: =SUM(BP8:CW8) -> 7,366 | QH8: =SUM(CX8:DE8) -> 5,717 | QI8: =SUM(DF8:DT8) -> 7,038 | QJ8: =SUM(DU8:ET8) -> 5,985 | QK8: =SUM(EU8:FY8) -> 19 | QL8: =SUM(FZ8:HD8) -> 0 | QM8: =SUM(HE8:HF8) -> 4,958 | QN8: =SUM(HG8:HL8) -> 8,102 | QO8: =SUM(HM8:HR8) -> 0 | QP8: =SUM(HS8:IJ8) -> 5,807 | QQ8: =SUM(IK8:JA8) -> 9,714 | QR8: =SUM(JB8:JT8) -> 5,767 | QS8: =SUM(JU8:KD8) -> 3,249 | QT8: =SUM(KE8:KP8) -> 6,008 | QU8: =SUM(KQ8:MU8) -> 11,329 | QV8: =SUM(MV8:NG8) -> 4,829 | QW8: =SUM(NH8:NI8) -> 0 | QX8: =SUM(NJ8:NL8) -> 0 | QY8: =SUM(NM8:NO8) -> 0 | QZ8: =SUM(NP8) -> 0 | RA8: 0 | RB8: =SUM(NR8:NT8) -> 0 | RC8: =SUM(NU8) -> 0 | RD8: =SUM(NV8) -> 0 | RE8: =SUM(NW8:OB8) -> 4 | RF8: =SUM(OC8:PE8) -> 5,487 | RG8: =SUM(PF8:PG8) -> 0 | RH8: =SUM(PH8:PI8) -> 0 | RI8: =SUM(PJ8:PM8) -> 0 | RJ8: =SUM(PN8:PP8) -> 707 | RK8: =SUM(PQ8) -> 120 | RL8: =SUM(PR8) -> 336 | RM8: =SUM(PS8) -> 77 | RN8: =SUM(PT8:PV8) -> 2 | RO8: =SUM(PV8) -> 0 | RP8: =SUM(PV8) -> 0 | RQ8: 76 | RR8: 30 | RS8: 0 | RT8: 0 | RU8: 0 | RV8: 0 | RW8: =SUM(QE8:RU8)-SUM(RI8:RM8)-SUM(RQ8:RT8) -> 97,160
D9: MASCULINO | E9: 2,838 | F9: 69 | G9: 8 | H9: 0 | I9: 2,814 | J9: 81 | K9: 0 | L9: 0 | M9: 1 | N9: 2 | O9: 40 | P9: 66 | Q9: 4 | R9: 11 | S9: 28 | T9: 4 | U9: 11 | V9: 18 | W9: 4 | X9: 2 | Y9: 9 | Z9: 0 | AA9: 6 | AB9: 5 | AC9: 0 | AD9: 0 | AE9: 0 | AF9: 0 | AG9: 0 | AH9: 0 | AI9: 0 | AJ9: 0 | AK9: 0 | AL9: 0 | AM9: 0 | AN9: 0 | AO9: 0 | AP9: 0 | AQ9: 0 | AR9: 0 | AS9: 0 | AT9: 0 | AU9: 0 | AV9: 0 | AW9: 0 | AX9: 0 | AY9: 0 | AZ9: 1 | BA9: 0 | BB9: 0 | BC9: 0 | BD9: 0 | BE9: 0 | BF9: 0 | BG9: 0 | BH9: 2 | BI9: 0 | BJ9: 0 | BK9: 0 | BL9: 29 | BM9: 3 | BN9: 2 | BO9: 0 | BP9: 2,421 | BQ9: 2,302 | BR9: 2,474 | BS9: 9 | BT9: 40 | BU9: 66 | BV9: 4 | BW9: 12 | BX9: 29 | BY9: 4 | BZ9: 10 | CA9: 17 | CB9: 3 | CC9: 3 | CD9: 9 | CE9: 0 | CF9: 5 | CG9: 6 | CH9: 18 | CI9: 1 | CJ9: 0 | CK9: 2 | CL9: 7 | CM9: 0 | CN9: 0 | CO9: 46 | CP9: 0 | CQ9: 1 | CR9: 27 | CS9: 0 | CT9: 0 | CU9: 13 | CV9: 0 | CW9: 0 | CX9: 2,695 | CY9: 228 | CZ9: 96 | DA9: 47 | DB9: 48 | DC9: 0 | DD9: 0 | DE9: 2,922 | DF9: 2,420 | DG9: 2,299 | DH9: 2,476 | DI9: 8 | DJ9: 0 | DK9: 0 | DL9: 0 | DM9: 0 | DN9: 0 | DO9: 0 | DP9: 0 | DQ9: 0 | DR9: 0 | DS9: 0 | DT9: 0 | DU9: 0 | DV9: 0 | DW9: 0 | DX9: 2 | DY9: 41 | DZ9: 65 | EA9: 4 | EB9: 11 | EC9: 28 | ED9: 4 | EE9: 11 | EF9: 18 | EG9: 4 | EH9: 2 | EI9: 10 | EJ9: 0 | EK9: 6 | EL9: 6 | EM9: 2,708 | EN9: 227 | EO9: 92 | EP9: 49 | EQ9: 48 | ER9: 0 | ES9: 0 | ET9: 2,942 | EU9: 0 | EV9: 0 | EW9: 1 | EX9: 0 | EY9: 0 | EZ9: 0 | FA9: 0 | FB9: 0 | FC9: 0 | FD9: 0 | FE9: 0 | FF9: 0 | FG9: 0 | FH9: 0 | FI9: 0 | FJ9: 0 | FK9: 0 | FL9: 0 | FM9: 4 | FN9: 1 | FO9: 1 | FP9: 0 | FQ9: 1 | FR9: 0 | FS9: 0 | FT9: 4 | FU9: 0 | FV9: 0 | FW9: 0 | FX9: 0 | FY9: 11 | FZ9: 0 | GA9: 0 | GB9: 0 | GC9: 0 | GD9: 0 | GE9: 0 | GF9: 0 | GG9: 0 | GH9: 0 | GI9: 0 | GJ9: 0 | GK9: 0 | GL9: 0 | GM9: 0 | GN9: 0 | GO9: 0 | GP9: 0 | GQ9: 0 | GR9: 0 | GS9: 0 | GT9: 0 | GU9: 0 | GV9: 0 | GW9: 0 | GX9: 0 | GY9: 0 | GZ9: 0 | HA9: 0 | HB9: 0 | HC9: 0 | HD9: 0 | HE9: 2,610 | HF9: 2,518 | HG9: 2,691 | HH9: 2,541 | HI9: 2,686 | HJ9: 83 | HK9: 62 | HL9: 339 | HM9: 0 | HN9: 0 | HO9: 0 | HP9: 0 | HQ9: 0 | HR9: 0 | HS9: 2,760 | HT9: 56 | HU9: 40 | HV9: 18 | HW9: 24 | HX9: 5 | HY9: 11 | HZ9: 0 | IA9: 2 | IB9: 0 | IC9: 0 | ID9: 3,031 | IE9: 106 | IF9: 56 | IG9: 20 | IH9: 36 | II9: 20 | IJ9: 0 | IK9: 13 | IL9: 2,201 | IM9: 652 | IN9: 750 | IO9: 681 | IP9: 617 | IQ9: 642 | IR9: 611 | IS9: 550 | IT9: 550 | IU9: 527 | IV9: 159 | IW9: 400 | IX9: 148 | IY9: 268 | IZ9: 162 | JA9: 75 | JB9: 2,872 | JC9: 223 | JD9: 88 | JE9: 39 | JF9: 43 | JG9: 11 | JH9: 10 | JI9: 1 | JJ9: 1 | JK9: 3 | JL9: 2 | JM9: 4 | JN9: 17 | JO9: 39 | JP9: 1,354 | JQ9: 783 | JR9: 375 | JS9: 200 | JT9: 0 | JU9: 2,828 | JV9: 102 | JW9: 87 | JX9: 76 | JY9: 110 | JZ9: 54 | KA9: 48 | KB9: 11 | KC9: 26 | KD9: 0 | KE9: 2,794 | KF9: 101 | KG9: 90 | KH9: 74 | KI9: 125 | KJ9: 52 | KK9: 33 | KL9: 0 | KM9: 2,955 | KN9: 88 | KO9: 27 | KP9: 0 | KQ9: 4 | KR9: 2 | KS9: 0 | KT9: 10 | KU9: 69 | KV9: 0 | KW9: 0 | KX9: 0 | KY9: 0 | KZ9: 0 | LA9: 0 | LB9: 0 | LC9: 0 | LD9: 0 | LE9: 0 | LF9: 0 | LG9: 0 | LH9: 0 | LI9: 0 | LJ9: 0 | LK9: 0 | LL9: 0 | LM9: 0 | LN9: 0 | LO9: 0 | LP9: 0 | LQ9: 0 | LR9: 0 | LS9: 0 | LT9: 0 | LU9: 0 | LV9: 0 | LW9: 0 | LX9: 27 | LY9: 1 | LZ9: 0 | MA9: 1 | MB9: 7 | MC9: 228 | MD9: 55 | ME9: 22 | MF9: 3 | MG9: 3 | MH9: 2 | MI9: 0 | MJ9: 0 | MK9: 0 | ML9: 6 | MM9: 1 | MN9: 0 | MO9: 0 | MP9: 0 | MQ9: 8 | MR9: 2 | MS9: 0 | MT9: 0 | MU9: 0 | MV9: 0 | MW9: 0 | MX9: 0 | MY9: 0 | MZ9: 0 | NA9: 0 | NB9: 1 | NC9: 4 | ND9: 2 | NE9: 2 | NF9: 1 | NG9: 0 | NH9: 0 | NI9: 0 | NJ9: 0 | NK9: 0 | NL9: 0 | NM9: 0 | NN9: 0 | NO9: 0 | NP9: 0 | NQ9: 0 | NR9: 0 | NS9: 0 | NT9: 0 | NU9: 0 | NV9: 0 | NW9: 0 | NX9: 0 | NY9: 0 | NZ9: 0 | OA9: 0 | OB9: 3 | OC9: 3 | OD9: 0 | OE9: 0 | OF9: 2 | OG9: 0 | OH9: 0 | OI9: 0 | OJ9: 1 | OK9: 0 | OL9: 0 | OM9: 1 | ON9: 0 | OO9: 0 | OP9: 1 | OQ9: 0 | OR9: 2 | OS9: 0 | OT9: 0 | OU9: 0 | OV9: 0 | OW9: 0 | OX9: 0 | OY9: 1 | OZ9: 0 | PA9: 0 | PB9: 1 | PC9: 0 | PD9: 0 | PE9: 0 | PF9: 0 | PG9: 0 | PH9: 0 | PI9: 0 | PJ9: 0 | PK9: 0 | PL9: 0 | PM9: 0 | PN9: 458 | PO9: 176 | PP9: 132 | PQ9: 132 | PR9: 257 | PS9: 65 | PT9: 0 | PU9: 0 | PV9: 0 | PW9: 0 | PX9: 0 | PY9: 0 | PZ9: 0 | QA9: 0 | QB9: 0 | QC9: =SUM(E9:QB9)-SUM(PQ9:PT9)-SUM(PW9:PZ9) -> 78,836 | QE9: =SUM(E9:H9) -> 2,915 | QF9: =SUM(I9:BO9) -> 3,143 | QG9: =SUM(BP9:CW9) -> 7,529 | QH9: =SUM(CX9:DE9) -> 6,036 | QI9: =SUM(DF9:DT9) -> 7,203 | QJ9: =SUM(DU9:ET9) -> 6,278 | QK9: =SUM(EU9:FY9) -> 23 | QL9: =SUM(FZ9:HD9) -> 0 | QM9: =SUM(HE9:HF9) -> 5,128 | QN9: =SUM(HG9:HL9) -> 8,402 | QO9: =SUM(HM9:HR9) -> 0 | QP9: =SUM(HS9:IJ9) -> 6,185 | QQ9: =SUM(IK9:JA9) -> 9,006 | QR9: =SUM(JB9:JT9) -> 6,065 | QS9: =SUM(JU9:KD9) -> 3,342 | QT9: =SUM(KE9:KP9) -> 6,339 | QU9: =SUM(KQ9:MU9) -> 451 | QV9: =SUM(MV9:NG9) -> 10 | QW9: =SUM(NH9:NI9) -> 0 | QX9: =SUM(NJ9:NL9) -> 0 | QY9: =SUM(NM9:NO9) -> 0 | QZ9: =SUM(NP9) -> 0 | RA9: =SUM(NQ9) -> 0 | RB9: =SUM(NR9:NT9) -> 0 | RC9: =SUM(NU9) -> 0 | RD9: =SUM(NV9) -> 0 | RE9: =SUM(NW9:OB9) -> 3 | RF9: =SUM(OC9:PE9) -> 12 | RG9: =SUM(PF9:PG9) -> 0 | RH9: =SUM(PH9:PI9) -> 0 | RI9: =SUM(PJ9:PM9) -> 0 | RJ9: =SUM(PN9:PP9) -> 766 | RK9: =SUM(PQ9) -> 132 | RL9: =SUM(PR9) -> 257 | RM9: =SUM(PS9) -> 65 | RN9: =SUM(PT9:PV9) -> 0 | RO9: =SUM(PV9) -> 0 | RP9: =SUM(PV9) -> 0 | RQ9: =SUM(PW9) -> 0 | RR9: =SUM(PX9) -> 0 | RS9: =SUM(PY9) -> 0 | RT9: =SUM(PZ9) -> 0 | RU9: =SUM(QA9) -> 0 | RV9: =SUM(QB9) -> 0 | RW9: =SUM(QE9:RU9)-SUM(RI9:RM9)-SUM(RQ9:RT9) -> 78,070
D10: OTRO | E10: 1 | F10: 0 | G10: 0 | H10: 0 | I10: 1 | J10: 0 | K10: 0 | L10: 0 | M10: 0 | N10: 0 | O10: 0 | P10: 0 | Q10: 0 | R10: 0 | S10: 0 | T10: 0 | U10: 0 | V10: 0 | W10: 0 | X10: 0 | Y10: 0 | Z10: 0 | AA10: 0 | AB10: 0 | AC10: 0 | AD10: 0 | AE10: 0 | AF10: 0 | AG10: 0 | AH10: 0 | AI10: 0 | AJ10: 0 | AK10: 0 | AL10: 0 | AM10: 0 | AN10: 0 | AO10: 0 | AP10: 0 | AQ10: 0 | AR10: 0 | AS10: 0 | AT10: 0 | AU10: 0 | AV10: 0 | AW10: 0 | AX10: 0 | AY10: 0 | AZ10: 0 | BA10: 0 | BB10: 0 | BC10: 0 | BD10: 0 | BE10: 0 | BF10: 0 | BG10: 0 | BH10: 0 | BI10: 0 | BJ10: 0 | BK10: 0 | BL10: 0 | BM10: 0 | BN10: 0 | BO10: 0 | BP10: 1 | BQ10: 0 | BR10: 0 | BS10: 0 | BT10: 0 | BU10: 0 | BV10: 0 | BW10: 0 | BX10: 0 | BY10: 0 | BZ10: 0 | CA10: 0 | CB10: 0 | CC10: 0 | CD10: 0 | CE10: 0 | CF10: 0 | CG10: 0 | CH10: 0 | CI10: 0 | CJ10: 0 | CK10: 0 | CL10: 0 | CM10: 0 | CN10: 0 | CO10: 0 | CP10: 0 | CQ10: 0 | CR10: 0 | CS10: 0 | CT10: 0 | CU10: 0 | CV10: 0 | CW10: 0 | CX10: 1 | CY10: 0 | CZ10: 0 | DA10: 0 | DB10: 0 | DC10: 0 | DD10: 0 | DE10: 0 | DF10: 1 | DG10: 0 | DH10: 0 | DI10: 0 | DJ10: 0 | DK10: 0 | DL10: 0 | DM10: 0 | DN10: 0 | DO10: 0 | DP10: 0 | DQ10: 0 | DR10: 0 | DS10: 0 | DT10: 0 | DU10: 0 | DV10: 0 | DW10: 0 | DX10: 0 | DY10: 0 | DZ10: 0 | EA10: 0 | EB10: 0 | EC10: 0 | ED10: 0 | EE10: 0 | EF10: 0 | EG10: 0 | EH10: 0 | EI10: 0 | EJ10: 0 | EK10: 0 | EL10: 0 | EM10: 1 | EN10: 0 | EO10: 0 | EP10: 0 | EQ10: 0 | ER10: 0 | ES10: 0 | ET10: 0 | EU10: 0 | EV10: 0 | EW10: 0 | EX10: 0 | EY10: 0 | EZ10: 0 | FA10: 0 | FB10: 0 | FC10: 0 | FD10: 0 | FE10: 0 | FF10: 0 | FG10: 0 | FH10: 0 | FI10: 0 | FJ10: 0 | FK10: 0 | FL10: 0 | FM10: 0 | FN10: 0 | FO10: 0 | FP10: 0 | FQ10: 0 | FR10: 0 | FS10: 0 | FT10: 0 | FU10: 0 | FV10: 0 | FW10: 0 | FX10: 0 | FY10: 0 | FZ10: 0 | GA10: 0 | GB10: 0 | GC10: 0 | GD10: 0 | GE10: 0 | GF10: 0 | GG10: 0 | GH10: 0 | GI10: 0 | GJ10: 0 | GK10: 0 | GL10: 0 | GM10: 0 | GN10: 0 | GO10: 0 | GP10: 0 | GQ10: 0 | GR10: 0 | GS10: 0 | GT10: 0 | GU10: 0 | GV10: 0 | GW10: 0 | GX10: 0 | GY10: 0 | GZ10: 0 | HA10: 0 | HB10: 0 | HC10: 0 | HD10: 0 | HE10: 0 | HF10: 0 | HG10: 1 | HH10: 0 | HI10: 0 | HJ10: 1 | HK10: 0 | HL10: 0 | HM10: 0 | HN10: 0 | HO10: 0 | HP10: 0 | HQ10: 0 | HR10: 0 | HS10: 0 | HT10: 0 | HU10: 0 | HV10: 0 | HW10: 0 | HX10: 0 | HY10: 0 | HZ10: 0 | IA10: 0 | IB10: 0 | IC10: 0 | ID10: 0 | IE10: 0 | IF10: 0 | IG10: 0 | IH10: 0 | II10: 0 | IJ10: 0 | IK10: 0 | IL10: 1 | IM10: 0 | IN10: 0 | IO10: 0 | IP10: 0 | IQ10: 0 | IR10: 0 | IS10: 0 | IT10: 0 | IU10: 0 | IV10: 0 | IW10: 0 | IX10: 0 | IY10: 0 | IZ10: 0 | JA10: 0 | JB10: 0 | JC10: 0 | JD10: 0 | JE10: 0 | JF10: 0 | JG10: 0 | JH10: 0 | JI10: 0 | JJ10: 0 | JK10: 0 | JL10: 0 | JM10: 0 | JN10: 0 | JO10: 0 | JP10: 0 | JQ10: 0 | JR10: 0 | JS10: 0 | JT10: 0 | JU10: 1 | JV10: 0 | JW10: 0 | JX10: 0 | JY10: 0 | JZ10: 0 | KA10: 0 | KB10: 0 | KC10: 0 | KD10: 0 | KE10: 1 | KF10: 0 | KG10: 0 | KH10: 0 | KI10: 0 | KJ10: 0 | KK10: 0 | KL10: 0 | KM10: 0 | KN10: 0 | KO10: 0 | KP10: 0 | KQ10: 0 | KR10: 0 | KS10: 0 | KT10: 0 | KU10: 0 | KV10: 0 | KW10: 0 | KX10: 0 | KY10: 0 | KZ10: 0 | LA10: 0 | LB10: 0 | LC10: 0 | LD10: 0 | LE10: 0 | LF10: 0 | LG10: 0 | LH10: 0 | LI10: 0 | LJ10: 0 | LK10: 0 | LL10: 0 | LM10: 0 | LN10: 0 | LO10: 0 | LP10: 0 | LQ10: 0 | LR10: 0 | LS10: 0 | LT10: 0 | LU10: 0 | LV10: 0 | LW10: 0 | LX10: 0 | LY10: 0 | LZ10: 0 | MA10: 0 | MB10: 0 | MC10: 0 | MD10: 0 | ME10: 0 | MF10: 0 | MG10: 0 | MH10: 0 | MI10: 0 | MJ10: 0 | MK10: 0 | ML10: 0 | MM10: 0 | MN10: 0 | MO10: 0 | MP10: 0 | MQ10: 0 | MR10: 0 | MS10: 0 | MT10: 0 | MU10: 0 | MV10: 0 | MW10: 0 | MX10: 0 | MY10: 0 | MZ10: 0 | NA10: 0 | NB10: 0 | NC10: 0 | ND10: 0 | NE10: 0 | NF10: 0 | NG10: 0 | NH10: 0 | NI10: 0 | NJ10: 0 | NK10: 0 | NL10: 0 | NM10: 0 | NN10: 0 | NO10: 0 | NP10: 0 | NQ10: 0 | NR10: 0 | NS10: 0 | NT10: 0 | NU10: 0 | NV10: 0 | NW10: 0 | NX10: 0 | NY10: 0 | NZ10: 0 | OA10: 0 | OB10: 0 | OC10: 0 | OD10: 0 | OE10: 0 | OF10: 0 | OG10: 0 | OH10: 0 | OI10: 0 | OJ10: 0 | OK10: 0 | OL10: 0 | OM10: 0 | ON10: 0 | OO10: 0 | OP10: 0 | OQ10: 0 | OR10: 0 | OS10: 0 | OT10: 0 | OU10: 0 | OV10: 0 | OW10: 0 | OX10: 0 | OY10: 0 | OZ10: 0 | PA10: 0 | PB10: 0 | PC10: 0 | PD10: 0 | PE10: 0 | PF10: 0 | PG10: 0 | PH10: 0 | PI10: 0 | PJ10: 0 | PK10: 0 | PL10: 0 | PM10: 0 | PN10: 0 | PO10: 0 | PP10: 0 | PQ10: 0 | PR10: 0 | PS10: 0 | PT10: 0 | PU10: 0 | PV10: 0 | PW10: 0 | PX10: 0 | PY10: 0 | PZ10: 0 | QA10: 0 | QB10: 0 | QC10: =SUM(E10:QB10)-SUM(PQ10:PT10)-SUM(PW10:PZ10) -> 11 | QE10: 1 | QF10: 1 | QG10: 1 | QH10: 1 | QI10: 1 | QJ10: 1 | QK10: 0 | QL10: 0 | QM10: 0 | QN10: 2 | QO10: 0 | QP10: 0 | QQ10: 1 | QR10: 0 | QS10: 1 | QT10: 1 | QU10: 0 | QV10: 0 | QW10: 0 | QX10: 0 | QY10: 0 | QZ10: 0 | RA10: 0 | RB10: 0 | RC10: 0 | RD10: 0 | RE10: 0 | RF10: 0 | RG10: 0 | RH10: 0 | RI10: 0 | RJ10: 0 | RK10: 0 | RL10: 0 | RM10: 0 | RN10: 0 | RO10: 0 | RP10: 0 | RQ10: 0 | RR10: 0 | RS10: 0 | RT10: 0 | RU10: 0 | RV10: 0 | RW10: 11
D11: TOTAL GENERO | E11: 5,509 | F11: 137 | G11: 10 | H11: 2 | I11: 5,497 | J11: 147 | K11: 0 | L11: 0 | M11: 2 | N11: 2 | O11: 65 | P11: 133 | Q11: 11 | R11: 25 | S11: 50 | T11: 8 | U11: 17 | V11: 38 | W11: 8 | X11: 10 | Y11: 23 | Z11: 1 | AA11: 8 | AB11: 13 | AC11: 0 | AD11: 0 | AE11: 0 | AF11: 0 | AG11: 0 | AH11: 0 | AI11: 0 | AJ11: 0 | AK11: 0 | AL11: 0 | AM11: 0 | AN11: 0 | AO11: 0 | AP11: 0 | AQ11: 0 | AR11: 1 | AS11: 0 | AT11: 0 | AU11: 0 | AV11: 0 | AW11: 0 | AX11: 0 | AY11: 0 | AZ11: 9 | BA11: 0 | BB11: 2 | BC11: 0 | BD11: 2 | BE11: 0 | BF11: 0 | BG11: 0 | BH11: 23 | BI11: 1 | BJ11: 2 | BK11: 1 | BL11: 72 | BM11: 5 | BN11: 5 | BO11: 0 | BP11: 4,686 | BQ11: 4,578 | BR11: 4,961 | BS11: 19 | BT11: 66 | BU11: 133 | BV11: 9 | BW11: 26 | BX11: 53 | BY11: 7 | BZ11: 14 | CA11: 38 | CB11: 7 | CC11: 13 | CD11: 18 | CE11: 0 | CF11: 7 | CG11: 16 | CH11: 40 | CI11: 1 | CJ11: 1 | CK11: 3 | CL11: 12 | CM11: 0 | CN11: 0 | CO11: 91 | CP11: 0 | CQ11: 1 | CR11: 63 | CS11: 0 | CT11: 1 | CU11: 32 | CV11: 0 | CW11: 0 | CX11: 5,249 | CY11: 471 | CZ11: 208 | DA11: 96 | DB11: 85 | DC11: 0 | DD11: 1 | DE11: 5,644 | DF11: 4,684 | DG11: 4,572 | DH11: 4,966 | DI11: 20 | DJ11: 0 | DK11: 0 | DL11: 0 | DM11: 0 | DN11: 0 | DO11: 0 | DP11: 0 | DQ11: 0 | DR11: 0 | DS11: 0 | DT11: 0 | DU11: 0 | DV11: 0 | DW11: 0 | DX11: 4 | DY11: 66 | DZ11: 132 | EA11: 10 | EB11: 25 | EC11: 50 | ED11: 7 | EE11: 16 | EF11: 39 | EG11: 8 | EH11: 11 | EI11: 22 | EJ11: 0 | EK11: 8 | EL11: 16 | EM11: 5,286 | EN11: 471 | EO11: 206 | EP11: 99 | EQ11: 86 | ER11: 0 | ES11: 1 | ET11: 5,701 | EU11: 0 | EV11: 0 | EW11: 2 | EX11: 0 | EY11: 0 | EZ11: 0 | FA11: 0 | FB11: 0 | FC11: 0 | FD11: 0 | FE11: 0 | FF11: 0 | FG11: 0 | FH11: 0 | FI11: 0 | FJ11: 0 | FK11: 0 | FL11: 0 | FM11: 6 | FN11: 2 | FO11: 1 | FP11: 1 | FQ11: 1 | FR11: 0 | FS11: 0 | FT11: 10 | FU11: 0 | FV11: 0 | FW11: 0 | FX11: 0 | FY11: 19 | FZ11: 0 | GA11: 0 | GB11: 0 | GC11: 0 | GD11: 0 | GE11: 0 | GF11: 0 | GG11: 0 | GH11: 0 | GI11: 0 | GJ11: 0 | GK11: 0 | GL11: 0 | GM11: 0 | GN11: 0 | GO11: 0 | GP11: 0 | GQ11: 0 | GR11: 0 | GS11: 0 | GT11: 0 | GU11: 0 | GV11: 0 | GW11: 0 | GX11: 0 | GY11: 0 | GZ11: 0 | HA11: 0 | HB11: 0 | HC11: 0 | HD11: 0 | HE11: 5,060 | HF11: 5,026 | HG11: 5,211 | HH11: 5,071 | HI11: 5,250 | HJ11: 167 | HK11: 121 | HL11: 686 | HM11: 0 | HN11: 0 | HO11: 0 | HP11: 0 | HQ11: 0 | HR11: 0 | HS11: 5,376 | HT11: 109 | HU11: 74 | HV11: 38 | HW11: 41 | HX11: 10 | HY11: 14 | HZ11: 1 | IA11: 3 | IB11: 1 | IC11: 0 | ID11: 5,870 | IE11: 221 | IF11: 103 | IG11: 46 | IH11: 57 | II11: 28 | IJ11: 0 | IK11: 28 | IL11: 4,462 | IM11: 1,271 | IN11: 1,495 | IO11: 1,345 | IP11: 1,208 | IQ11: 1,263 | IR11: 1,166 | IS11: 1,114 | IT11: 1,124 | IU11: 1,065 | IV11: 369 | IW11: 954 | IX11: 403 | IY11: 812 | IZ11: 445 | JA11: 197 | JB11: 5,600 | JC11: 463 | JD11: 188 | JE11: 90 | JF11: 91 | JG11: 28 | JH11: 13 | JI11: 8 | JJ11: 5 | JK11: 9 | JL11: 8 | JM11: 6 | JN11: 32 | JO11: 96 | JP11: 2,734 | JQ11: 1,327 | JR11: 686 | JS11: 448 | JT11: 0 | JU11: 5,528 | JV11: 219 | JW11: 177 | JX11: 162 | JY11: 218 | JZ11: 121 | KA11: 90 | KB11: 40 | KC11: 37 | KD11: 0 | KE11: 5,442 | KF11: 214 | KG11: 176 | KH11: 161 | KI11: 245 | KJ11: 123 | KK11: 59 | KL11: 0 | KM11: 5,704 | KN11: 179 | KO11: 45 | KP11: 0 | KQ11: 11 | KR11: 2 | KS11: 2 | KT11: 13 | KU11: 119 | KV11: 115 | KW11: 39 | KX11: 3 | KY11: 0 | KZ11: 1 | LA11: 1,635 | LB11: 721 | LC11: 352 | LD11: 215 | LE11: 114 | LF11: 19 | LG11: 2 | LH11: 0 | LI11: 0 | LJ11: 569 | LK11: 253 | LL11: 110 | LM11: 25 | LN11: 24 | LO11: 2,004 | LP11: 1,329 | LQ11: 1,631 | LR11: 1,103 | LS11: 786 | LT11: 186 | LU11: 0 | LV11: 0 | LW11: 0 | LX11: 29 | LY11: 1 | LZ11: 1 | MA11: 1 | MB11: 11 | MC11: 232 | MD11: 57 | ME11: 22 | MF11: 4 | MG11: 3 | MH11: 2 | MI11: 0 | MJ11: 0 | MK11: 0 | ML11: 10 | MM11: 5 | MN11: 0 | MO11: 2 | MP11: 3 | MQ11: 10 | MR11: 2 | MS11: 0 | MT11: 0 | MU11: 2 | MV11: 28 | MW11: 84 | MX11: 65 | MY11: 4 | MZ11: 1 | NA11: 0 | NB11: 1,138 | NC11: 1,065 | ND11: 1,350 | NE11: 499 | NF11: 368 | NG11: 237 | NH11: 0 | NI11: 0 | NJ11: 0 | NK11: 0 | NL11: 0 | NM11: 0 | NN11: 0 | NO11: 0 | NP11: 0 | NQ11: 0 | NR11: 0 | NS11: 0 | NT11: 0 | NU11: 0 | NV11: 0 | NW11: 0 | NX11: 0 | NY11: 0 | NZ11: 0 | OA11: 0 | OB11: 7 | OC11: 917 | OD11: 250 | OE11: 1 | OF11: 505 | OG11: 502 | OH11: 2 | OI11: 520 | OJ11: 366 | OK11: 0 | OL11: 332 | OM11: 251 | ON11: 1 | OO11: 279 | OP11: 210 | OQ11: 1 | OR11: 248 | OS11: 185 | OT11: 0 | OU11: 230 | OV11: 172 | OW11: 0 | OX11: 177 | OY11: 143 | OZ11: 2 | PA11: 85 | PB11: 85 | PC11: 2 | PD11: 23 | PE11: 10 | PF11: 0 | PG11: 0 | PH11: 0 | PI11: 0 | PJ11: 0 | PK11: 0 | PL11: 0 | PM11: 0 | PN11: 874 | PO11: 347 | PP11: 252 | PQ11: 252 | PR11: 593 | PS11: 142 | PT11: 1 | PU11: 1 | PV11: 0 | PW11: 76 | PX11: 30 | PY11: 0 | PZ11: 0 | QA11: 0 | QB11: 0 | QC11: =SUM(QC8:QC10) -> 176,713 | QE11: =SUM(QE8:QE10) -> 5,658 | QF11: =SUM(QF8:QF10) -> 6,181 | QG11: 14,896 | QH11: 11,754 | QI11: 14,242 | QJ11: 12,264 | QK11: 42 | QL11: 0 | QM11: 10,086 | QN11: 16,506 | QO11: =SUM(QO8:QO10) -> 0 | QP11: 11,992 | QQ11: 18,721 | QR11: 11,832 | QS11: 6,592 | QT11: 12,348 | QU11: 11,780 | QV11: 4,839 | QW11: 0 | QX11: 0 | QY11: 0 | QZ11: 0 | RA11: 0 | RB11: =SUM(RB8:RB10) -> 0 | RC11: 0 | RD11: 0 | RE11: 7 | RF11: 5,499 | RG11: 0 | RH11: 0 | RI11: 0 | RJ11: 1,473 | RK11: =SUM(RK8:RK10) -> 252 | RL11: 593 | RM11: 142 | RN11: 2 | RO11: 0 | RP11: 0 | RQ11: 76 | RR11: 30 | RS11: 0 | RT11: 0 | RU11: 0 | RV11: 0 | RW11: =SUM(RW8:RW10) -> 175,241
D12: CONTRIBUTIVO | E12: 4,163 | F12: 101 | G12: 4 | H12: 1 | I12: 4,166 | J12: 80 | K12: 0 | L12: 0 | M12: 1 | N12: 1 | O12: 6 | P12: 35 | Q12: 1 | R12: 3 | S12: 2 | T12: 1 | U12: 1 | V12: 8 | W12: 1 | X12: 0 | Y12: 2 | Z12: 0 | AA12: 2 | AB12: 2 | AC12: 0 | AD12: 0 | AE12: 0 | AF12: 0 | AG12: 0 | AH12: 0 | AI12: 0 | AJ12: 0 | AK12: 0 | AL12: 0 | AM12: 0 | AN12: 0 | AO12: 0 | AP12: 0 | AQ12: 0 | AR12: 0 | AS12: 0 | AT12: 0 | AU12: 0 | AV12: 0 | AW12: 0 | AX12: 0 | AY12: 0 | AZ12: 6 | BA12: 0 | BB12: 1 | BC12: 0 | BD12: 1 | BE12: 0 | BF12: 0 | BG12: 0 | BH12: 19 | BI12: 1 | BJ12: 2 | BK12: 1 | BL12: 38 | BM12: 4 | BN12: 2 | BO12: 0 | BP12: 3,200 | BQ12: 3,053 | BR12: 3,498 | BS12: 4 | BT12: 6 | BU12: 37 | BV12: 1 | BW12: 3 | BX12: 2 | BY12: 1 | BZ12: 1 | CA12: 8 | CB12: 1 | CC12: 0 | CD12: 2 | CE12: 0 | CF12: 2 | CG12: 2 | CH12: 28 | CI12: 0 | CJ12: 1 | CK12: 1 | CL12: 5 | CM12: 0 | CN12: 0 | CO12: 57 | CP12: 0 | CQ12: 0 | CR12: 21 | CS12: 0 | CT12: 0 | CU12: 12 | CV12: 0 | CW12: 0 | CX12: 3,709 | CY12: 199 | CZ12: 66 | DA12: 16 | DB12: 22 | DC12: 0 | DD12: 1 | DE12: 4,035 | DF12: 3,199 | DG12: 3,050 | DH12: 3,502 | DI12: 3 | DJ12: 0 | DK12: 0 | DL12: 0 | DM12: 0 | DN12: 0 | DO12: 0 | DP12: 0 | DQ12: 0 | DR12: 0 | DS12: 0 | DT12: 0 | DU12: 0 | DV12: 0 | DW12: 0 | DX12: 2 | DY12: 6 | DZ12: 36 | EA12: 1 | EB12: 3 | EC12: 2 | ED12: 1 | EE12: 1 | EF12: 8 | EG12: 1 | EH12: 0 | EI12: 2 | EJ12: 0 | EK12: 2 | EL12: 2 | EM12: 3,739 | EN12: 199 | EO12: 65 | EP12: 16 | EQ12: 26 | ER12: 0 | ES12: 1 | ET12: 4,086 | EU12: 0 | EV12: 0 | EW12: 1 | EX12: 0 | EY12: 0 | EZ12: 0 | FA12: 0 | FB12: 0 | FC12: 0 | FD12: 0 | FE12: 0 | FF12: 0 | FG12: 0 | FH12: 0 | FI12: 0 | FJ12: 0 | FK12: 0 | FL12: 0 | FM12: 2 | FN12: 1 | FO12: 1 | FP12: 1 | FQ12: 0 | FR12: 0 | FS12: 0 | FT12: 7 | FU12: 0 | FV12: 0 | FW12: 0 | FX12: 0 | FY12: 10 | FZ12: 0 | GA12: 0 | GB12: 0 | GC12: 0 | GD12: 0 | GE12: 0 | GF12: 0 | GG12: 0 | GH12: 0 | GI12: 0 | GJ12: 0 | GK12: 0 | GL12: 0 | GM12: 0 | GN12: 0 | GO12: 0 | GP12: 0 | GQ12: 0 | GR12: 0 | GS12: 0 | GT12: 0 | GU12: 0 | GV12: 0 | GW12: 0 | GX12: 0 | GY12: 0 | GZ12: 0 | HA12: 0 | HB12: 0 | HC12: 0 | HD12: 0 | HE12: 3,662 | HF12: 3,573 | HG12: 3,637 | HH12: 3,537 | HI12: 3,670 | HJ12: 6 | HK12: 9 | HL12: 26 | HM12: 0 | HN12: 0 | HO12: 0 | HP12: 0 | HQ12: 0 | HR12: 0 | HS12: 3,657 | HT12: 9 | HU12: 13 | HV12: 2 | HW12: 8 | HX12: 0 | HY12: 1 | HZ12: 0 | IA12: 1 | IB12: 0 | IC12: 0 | ID12: 4,233 | IE12: 77 | IF12: 26 | IG12: 13 | IH12: 18 | II12: 12 | IJ12: 0 | IK12: 14 | IL12: 3,169 | IM12: 802 | IN12: 972 | IO12: 881 | IP12: 853 | IQ12: 875 | IR12: 812 | IS12: 801 | IT12: 817 | IU12: 772 | IV12: 295 | IW12: 691 | IX12: 317 | IY12: 599 | IZ12: 362 | JA12: 153 | JB12: 4,065 | JC12: 211 | JD12: 71 | JE12: 18 | JF12: 32 | JG12: 4 | JH12: 3 | JI12: 5 | JJ12: 2 | JK12: 5 | JL12: 1 | JM12: 4 | JN12: 22 | JO12: 80 | JP12: 2,150 | JQ12: 1,064 | JR12: 532 | JS12: 367 | JT12: 0 | JU12: 3,744 | JV12: 14 | JW12: 11 | JX12: 6 | JY12: 12 | JZ12: 4 | KA12: 5 | KB12: 0 | KC12: 1 | KD12: 0 | KE12: 3,671 | KF12: 13 | KG12: 14 | KH12: 7 | KI12: 27 | KJ12: 3 | KK12: 4 | KL12: 0 | KM12: 4,211 | KN12: 79 | KO12: 15 | KP12: 0 | KQ12: 5 | KR12: 0 | KS12: 1 | KT12: 1 | KU12: 27 | KV12: 49 | KW12: 21 | KX12: 2 | KY12: 0 | KZ12: 1 | LA12: 1,195 | LB12: 563 | LC12: 280 | LD12: 170 | LE12: 89 | LF12: 17 | LG12: 2 | LH12: 0 | LI12: 0 | LJ12: 424 | LK12: 201 | LL12: 84 | LM12: 19 | LN12: 18 | LO12: 1,536 | LP12: 1,063 | LQ12: 1,284 | LR12: 892 | LS12: 648 | LT12: 146 | LU12: 0 | LV12: 0 | LW12: 0 | LX12: 16 | LY12: 1 | LZ12: 1 | MA12: 0 | MB12: 4 | MC12: 150 | MD12: 33 | ME12: 9 | MF12: 3 | MG12: 2 | MH12: 1 | MI12: 0 | MJ12: 0 | MK12: 0 | ML12: 7 | MM12: 3 | MN12: 0 | MO12: 2 | MP12: 2 | MQ12: 6 | MR12: 1 | MS12: 0 | MT12: 0 | MU12: 1 | MV12: 16 | MW12: 33 | MX12: 47 | MY12: 2 | MZ12: 0 | NA12: 0 | NB12: 945 | NC12: 681 | ND12: 1,084 | NE12: 399 | NF12: 316 | NG12: 215 | NH12: 0 | NI12: 0 | NJ12: 0 | NK12: 0 | NL12: 0 | NM12: 0 | NN12: 0 | NO12: 0 | NP12: 0 | NQ12: 0 | NR12: 0 | NS12: 0 | NT12: 0 | NU12: 0 | NV12: 0 | NW12: 0 | NX12: 0 | NY12: 0 | NZ12: 0 | OA12: 0 | OB12: 1 | OC12: 644 | OD12: 189 | OE12: 1 | OF12: 350 | OG12: 420 | OH12: 2 | OI12: 409 | OJ12: 282 | OK12: 0 | OL12: 251 | OM12: 205 | ON12: 0 | OO12: 209 | OP12: 169 | OQ12: 1 | OR12: 186 | OS12: 152 | OT12: 0 | OU12: 164 | OV12: 145 | OW12: 0 | OX12: 132 | OY12: 109 | OZ12: 1 | PA12: 58 | PB12: 65 | PC12: 2 | PD12: 17 | PE12: 8 | PF12: 0 | PG12: 0 | PH12: 0 | PI12: 0 | PJ12: 0 | PK12: 0 | PL12: 0 | PM12: 0 | PN12: 684 | PO12: 286 | PP12: 210 | PQ12: 210 | PR12: 424 | PS12: 99 | PT12: 1 | PU12: 1 | PV12: 0 | PW12: 39 | PX12: 15 | PY12: 0 | PZ12: 0 | QA12: 0 | QB12: 0 | QC12: =SUM(E12:QB12)-SUM(PQ12:PT12)-SUM(PW12:PZ12) -> 122,549 | QE12: =SUM(E12:H12) -> 4,269 | QF12: =SUM(I12:BO12) -> 4,387 | QG12: =SUM(BP12:CW12) -> 9,946 | QH12: =SUM(CX12:DE12) -> 8,048 | QI12: =SUM(DF12:DT12) -> 9,754 | QJ12: =SUM(DU12:ET12) -> 8,199 | QK12: =SUM(EU12:FY12) -> 23 | QL12: =SUM(FZ12:HD12) -> 0 | QM12: =SUM(HE12:HF12) -> 7,235 | QN12: =SUM(HG12:HL12) -> 10,885 | QO12: =SUM(HM12:HR12) -> 0 | QP12: =SUM(HS12:IJ12) -> 8,070 | QQ12: =SUM(IK12:JA12) -> 13,185 | QR12: =SUM(JB12:JT12) -> 8,636 | QS12: =SUM(JU12:KD12) -> 3,797 | QT12: =SUM(KE12:KP12) -> 8,044 | QU12: =SUM(KQ12:MU12) -> 8,980 | QV12: =SUM(MV12:NG12) -> 3,738 | QW12: =SUM(NH12:NI12) -> 0 | QX12: =SUM(NJ12:NL12) -> 0 | QY12: =SUM(NM12:NO12) -> 0 | QZ12: =SUM(NP12) -> 0 | RA12: =SUM(NQ12) -> 0 | RB12: =SUM(NR12:NT12) -> 0 | RC12: =SUM(NU12) -> 0 | RD12: =SUM(NV12) -> 0 | RE12: =SUM(NW12:OB12) -> 1 | RF12: =SUM(OC12:PE12) -> 4,171 | RG12: =SUM(PF12:PG12) -> 0 | RH12: =SUM(PH12:PI12) -> 0 | RI12: =SUM(PJ12:PM12) -> 0 | RJ12: =SUM(PN12:PP12) -> 1,180 | RK12: =SUM(PQ12) -> 210 | RL12: =SUM(PR12) -> 424 | RM12: =SUM(PS12) -> 99 | RN12: =SUM(PT12:PV12) -> 2 | RO12: =SUM(PV12) -> 0 | RP12: =SUM(PV12) -> 0 | RQ12: =SUM(PW12) -> 39 | RR12: =SUM(PX12) -> 15 | RS12: =SUM(PY12) -> 0 | RT12: =SUM(PZ12) -> 0 | RU12: =SUM(QA12) -> 0 | RV12: =SUM(QB12) -> 0 | RW12: =SUM(QE12:RU12)-SUM(RI12:RM12)-SUM(RQ12:RT12) -> 121,370
D13: SUBSIDIADO | E13: 769 | F13: 23 | G13: 0 | H13: 1 | I13: 768 | J13: 40 | K13: 0 | L13: 0 | M13: 1 | N13: 0 | O13: 15 | P13: 28 | Q13: 0 | R13: 3 | S13: 8 | T13: 1 | U13: 0 | V13: 0 | W13: 1 | X13: 1 | Y13: 1 | Z13: 0 | AA13: 0 | AB13: 0 | AC13: 0 | AD13: 0 | AE13: 0 | AF13: 0 | AG13: 0 | AH13: 0 | AI13: 0 | AJ13: 0 | AK13: 0 | AL13: 0 | AM13: 0 | AN13: 0 | AO13: 0 | AP13: 0 | AQ13: 0 | AR13: 0 | AS13: 0 | AT13: 0 | AU13: 0 | AV13: 0 | AW13: 0 | AX13: 0 | AY13: 0 | AZ13: 3 | BA13: 0 | BB13: 1 | BC13: 0 | BD13: 0 | BE13: 0 | BF13: 0 | BG13: 0 | BH13: 3 | BI13: 0 | BJ13: 0 | BK13: 0 | BL13: 10 | BM13: 1 | BN13: 3 | BO13: 0 | BP13: 974 | BQ13: 1,056 | BR13: 1,069 | BS13: 1 | BT13: 14 | BU13: 28 | BV13: 0 | BW13: 3 | BX13: 9 | BY13: 0 | BZ13: 0 | CA13: 0 | CB13: 1 | CC13: 1 | CD13: 1 | CE13: 0 | CF13: 0 | CG13: 1 | CH13: 8 | CI13: 1 | CJ13: 0 | CK13: 0 | CL13: 2 | CM13: 0 | CN13: 0 | CO13: 16 | CP13: 0 | CQ13: 1 | CR13: 11 | CS13: 0 | CT13: 1 | CU13: 1 | CV13: 0 | CW13: 0 | CX13: 1,159 | CY13: 122 | CZ13: 30 | DA13: 8 | DB13: 5 | DC13: 0 | DD13: 0 | DE13: 827 | DF13: 973 | DG13: 1,055 | DH13: 1,070 | DI13: 1 | DJ13: 0 | DK13: 0 | DL13: 0 | DM13: 0 | DN13: 0 | DO13: 0 | DP13: 0 | DQ13: 0 | DR13: 0 | DS13: 0 | DT13: 0 | DU13: 0 | DV13: 0 | DW13: 0 | DX13: 0 | DY13: 16 | DZ13: 27 | EA13: 0 | EB13: 3 | EC13: 8 | ED13: 0 | EE13: 0 | EF13: 0 | EG13: 1 | EH13: 1 | EI13: 1 | EJ13: 0 | EK13: 0 | EL13: 1 | EM13: 1,166 | EN13: 124 | EO13: 30 | EP13: 8 | EQ13: 5 | ER13: 0 | ES13: 0 | ET13: 835 | EU13: 0 | EV13: 0 | EW13: 1 | EX13: 0 | EY13: 0 | EZ13: 0 | FA13: 0 | FB13: 0 | FC13: 0 | FD13: 0 | FE13: 0 | FF13: 0 | FG13: 0 | FH13: 0 | FI13: 0 | FJ13: 0 | FK13: 0 | FL13: 0 | FM13: 2 | FN13: 0 | FO13: 0 | FP13: 0 | FQ13: 0 | FR13: 0 | FS13: 0 | FT13: 2 | FU13: 0 | FV13: 0 | FW13: 0 | FX13: 0 | FY13: 5 | FZ13: 0 | GA13: 0 | GB13: 0 | GC13: 0 | GD13: 0 | GE13: 0 | GF13: 0 | GG13: 0 | GH13: 0 | GI13: 0 | GJ13: 0 | GK13: 0 | GL13: 0 | GM13: 0 | GN13: 0 | GO13: 0 | GP13: 0 | GQ13: 0 | GR13: 0 | GS13: 0 | GT13: 0 | GU13: 0 | GV13: 0 | GW13: 0 | GX13: 0 | GY13: 0 | GZ13: 0 | HA13: 0 | HB13: 0 | HC13: 0 | HD13: 0 | HE13: 918 | HF13: 1,033 | HG13: 980 | HH13: 1,058 | HI13: 1,168 | HJ13: 1 | HK13: 19 | HL13: 27 | HM13: 0 | HN13: 0 | HO13: 0 | HP13: 0 | HQ13: 0 | HR13: 0 | HS13: 1,175 | HT13: 26 | HU13: 3 | HV13: 1 | HW13: 2 | HX13: 1 | HY13: 0 | HZ13: 0 | IA13: 0 | IB13: 0 | IC13: 0 | ID13: 830 | IE13: 36 | IF13: 14 | IG13: 6 | IH13: 5 | II13: 4 | IJ13: 0 | IK13: 9 | IL13: 951 | IM13: 231 | IN13: 246 | IO13: 187 | IP13: 154 | IQ13: 185 | IR13: 161 | IS13: 145 | IT13: 158 | IU13: 125 | IV13: 21 | IW13: 127 | IX13: 38 | IY13: 94 | IZ13: 30 | JA13: 25 | JB13: 1,154 | JC13: 121 | JD13: 23 | JE13: 6 | JF13: 3 | JG13: 3 | JH13: 0 | JI13: 1 | JJ13: 0 | JK13: 0 | JL13: 2 | JM13: 0 | JN13: 2 | JO13: 6 | JP13: 137 | JQ13: 48 | JR13: 28 | JS13: 27 | JT13: 0 | JU13: 1,182 | JV13: 30 | JW13: 3 | JX13: 3 | JY13: 5 | JZ13: 5 | KA13: 2 | KB13: 1 | KC13: 1 | KD13: 0 | KE13: 1,175 | KF13: 30 | KG13: 5 | KH13: 4 | KI13: 16 | KJ13: 7 | KK13: 2 | KL13: 0 | KM13: 818 | KN13: 34 | KO13: 7 | KP13: 0 | KQ13: 0 | KR13: 0 | KS13: 0 | KT13: 2 | KU13: 15 | KV13: 40 | KW13: 12 | KX13: 1 | KY13: 0 | KZ13: 0 | LA13: 268 | LB13: 95 | LC13: 50 | LD13: 30 | LE13: 21 | LF13: 2 | LG13: 0 | LH13: 0 | LI13: 0 | LJ13: 69 | LK13: 31 | LL13: 16 | LM13: 6 | LN13: 3 | LO13: 192 | LP13: 132 | LQ13: 198 | LR13: 136 | LS13: 79 | LT13: 22 | LU13: 0 | LV13: 0 | LW13: 0 | LX13: 8 | LY13: 0 | LZ13: 0 | MA13: 0 | MB13: 5 | MC13: 32 | MD13: 5 | ME13: 4 | MF13: 0 | MG13: 1 | MH13: 0 | MI13: 0 | MJ13: 0 | MK13: 0 | ML13: 3 | MM13: 1 | MN13: 0 | MO13: 0 | MP13: 1 | MQ13: 3 | MR13: 0 | MS13: 0 | MT13: 0 | MU13: 1 | MV13: 8 | MW13: 24 | MX13: 12 | MY13: 2 | MZ13: 1 | NA13: 0 | NB13: 117 | NC13: 178 | ND13: 164 | NE13: 64 | NF13: 39 | NG13: 10 | NH13: 0 | NI13: 0 | NJ13: 0 | NK13: 0 | NL13: 0 | NM13: 0 | NN13: 0 | NO13: 0 | NP13: 0 | NQ13: 0 | NR13: 0 | NS13: 0 | NT13: 0 | NU13: 0 | NV13: 0 | NW13: 0 | NX13: 0 | NY13: 0 | NZ13: 0 | OA13: 0 | OB13: 3 | OC13: 162 | OD13: 34 | OE13: 0 | OF13: 72 | OG13: 40 | OH13: 0 | OI13: 46 | OJ13: 42 | OK13: 0 | OL13: 38 | OM13: 26 | ON13: 0 | OO13: 34 | OP13: 24 | OQ13: 0 | OR13: 30 | OS13: 18 | OT13: 0 | OU13: 37 | OV13: 16 | OW13: 0 | OX13: 16 | OY13: 15 | OZ13: 1 | PA13: 12 | PB13: 14 | PC13: 0 | PD13: 5 | PE13: 2 | PF13: 0 | PG13: 0 | PH13: 0 | PI13: 0 | PJ13: 0 | PK13: 0 | PL13: 0 | PM13: 0 | PN13: 114 | PO13: 42 | PP13: 26 | PQ13: 26 | PR13: 103 | PS13: 25 | PT13: 0 | PU13: 0 | PV13: 0 | PW13: 26 | PX13: 10 | PY13: 0 | PZ13: 0 | QA13: 0 | QB13: 0 | QC13: =SUM(E13:QB13)-SUM(PQ13:PT13)-SUM(PW13:PZ13) -> 30,423 | QE13: 793 | QF13: 888 | QG13: 3,199 | QH13: 2,151 | QI13: 3,099 | QJ13: 2,226 | QK13: 10 | QL13: 0 | QM13: 1,951 | QN13: 3,253 | QO13: 0 | QP13: 2,103 | QQ13: 2,887 | QR13: 1,561 | QS13: 1,232 | QT13: 2,098 | QU13: 1,484 | QV13: 619 | QW13: 0 | QX13: 0 | QY13: 0 | QZ13: 0 | RA13: 0 | RB13: 0 | RC13: 0 | RD13: 0 | RE13: 3 | RF13: 684 | RG13: 0 | RH13: 0 | RI13: 0 | RJ13: 182 | RK13: 26 | RL13: 103 | RM13: 25 | RN13: 0 | RO13: 0 | RP13: 0 | RQ13: 26 | RR13: 10 | RS13: 0 | RT13: 0 | RU13: 0 | RV13: 0 | RW13: 30,241
D14: POBRE NO ASEGURADO | E14: 469 | F14: 12 | G14: 6 | H14: 0 | I14: 450 | J14: 23 | K14: 0 | L14: 0 | M14: 0 | N14: 1 | O14: 44 | P14: 69 | Q14: 10 | R14: 19 | S14: 40 | T14: 6 | U14: 16 | V14: 30 | W14: 6 | X14: 9 | Y14: 20 | Z14: 1 | AA14: 6 | AB14: 11 | AC14: 0 | AD14: 0 | AE14: 0 | AF14: 0 | AG14: 0 | AH14: 0 | AI14: 0 | AJ14: 0 | AK14: 0 | AL14: 0 | AM14: 0 | AN14: 0 | AO14: 0 | AP14: 0 | AQ14: 0 | AR14: 1 | AS14: 0 | AT14: 0 | AU14: 0 | AV14: 0 | AW14: 0 | AX14: 0 | AY14: 0 | AZ14: 0 | BA14: 0 | BB14: 0 | BC14: 0 | BD14: 0 | BE14: 0 | BF14: 0 | BG14: 0 | BH14: 1 | BI14: 0 | BJ14: 0 | BK14: 0 | BL14: 23 | BM14: 0 | BN14: 0 | BO14: 0 | BP14: 411 | BQ14: 310 | BR14: 272 | BS14: 14 | BT14: 46 | BU14: 67 | BV14: 8 | BW14: 20 | BX14: 42 | BY14: 6 | BZ14: 13 | CA14: 30 | CB14: 5 | CC14: 12 | CD14: 15 | CE14: 0 | CF14: 5 | CG14: 13 | CH14: 2 | CI14: 0 | CJ14: 0 | CK14: 2 | CL14: 5 | CM14: 0 | CN14: 0 | CO14: 17 | CP14: 0 | CQ14: 0 | CR14: 28 | CS14: 0 | CT14: 0 | CU14: 19 | CV14: 0 | CW14: 0 | CX14: 249 | CY14: 140 | CZ14: 110 | DA14: 69 | DB14: 56 | DC14: 0 | DD14: 0 | DE14: 584 | DF14: 411 | DG14: 308 | DH14: 272 | DI14: 16 | DJ14: 0 | DK14: 0 | DL14: 0 | DM14: 0 | DN14: 0 | DO14: 0 | DP14: 0 | DQ14: 0 | DR14: 0 | DS14: 0 | DT14: 0 | DU14: 0 | DV14: 0 | DW14: 0 | DX14: 2 | DY14: 44 | DZ14: 68 | EA14: 9 | EB14: 19 | EC14: 40 | ED14: 6 | EE14: 15 | EF14: 31 | EG14: 6 | EH14: 10 | EI14: 19 | EJ14: 0 | EK14: 6 | EL14: 13 | EM14: 248 | EN14: 138 | EO14: 109 | EP14: 72 | EQ14: 54 | ER14: 0 | ES14: 0 | ET14: 578 | EU14: 0 | EV14: 0 | EW14: 0 | EX14: 0 | EY14: 0 | EZ14: 0 | FA14: 0 | FB14: 0 | FC14: 0 | FD14: 0 | FE14: 0 | FF14: 0 | FG14: 0 | FH14: 0 | FI14: 0 | FJ14: 0 | FK14: 0 | FL14: 0 | FM14: 1 | FN14: 1 | FO14: 0 | FP14: 0 | FQ14: 1 | FR14: 0 | FS14: 0 | FT14: 1 | FU14: 0 | FV14: 0 | FW14: 0 | FX14: 0 | FY14: 4 | FZ14: 0 | GA14: 0 | GB14: 0 | GC14: 0 | GD14: 0 | GE14: 0 | GF14: 0 | GG14: 0 | GH14: 0 | GI14: 0 | GJ14: 0 | GK14: 0 | GL14: 0 | GM14: 0 | GN14: 0 | GO14: 0 | GP14: 0 | GQ14: 0 | GR14: 0 | GS14: 0 | GT14: 0 | GU14: 0 | GV14: 0 | GW14: 0 | GX14: 0 | GY14: 0 | GZ14: 0 | HA14: 0 | HB14: 0 | HC14: 0 | HD14: 0 | HE14: 356 | HF14: 254 | HG14: 473 | HH14: 307 | HI14: 269 | HJ14: 160 | HK14: 93 | HL14: 632 | HM14: 0 | HN14: 0 | HO14: 0 | HP14: 0 | HQ14: 0 | HR14: 0 | HS14: 402 | HT14: 74 | HU14: 58 | HV14: 35 | HW14: 30 | HX14: 9 | HY14: 12 | HZ14: 1 | IA14: 2 | IB14: 1 | IC14: 0 | ID14: 606 | IE14: 104 | IF14: 60 | IG14: 27 | IH14: 34 | II14: 12 | IJ14: 0 | IK14: 5 | IL14: 254 | IM14: 192 | IN14: 224 | IO14: 236 | IP14: 162 | IQ14: 157 | IR14: 162 | IS14: 130 | IT14: 106 | IU14: 120 | IV14: 23 | IW14: 96 | IX14: 39 | IY14: 91 | IZ14: 38 | JA14: 14 | JB14: 247 | JC14: 121 | JD14: 91 | JE14: 63 | JF14: 55 | JG14: 20 | JH14: 10 | JI14: 2 | JJ14: 3 | JK14: 3 | JL14: 5 | JM14: 2 | JN14: 7 | JO14: 7 | JP14: 377 | JQ14: 174 | JR14: 82 | JS14: 33 | JT14: 0 | JU14: 456 | JV14: 175 | JW14: 163 | JX14: 153 | JY14: 199 | JZ14: 112 | KA14: 83 | KB14: 39 | KC14: 35 | KD14: 0 | KE14: 453 | KF14: 171 | KG14: 157 | KH14: 150 | KI14: 198 | KJ14: 112 | KK14: 53 | KL14: 0 | KM14: 478 | KN14: 64 | KO14: 22 | KP14: 0 | KQ14: 5 | KR14: 1 | KS14: 1 | KT14: 10 | KU14: 75 | KV14: 26 | KW14: 6 | KX14: 0 | KY14: 0 | KZ14: 0 | LA14: 144 | LB14: 54 | LC14: 13 | LD14: 5 | LE14: 1 | LF14: 0 | LG14: 0 | LH14: 0 | LI14: 0 | LJ14: 50 | LK14: 6 | LL14: 2 | LM14: 0 | LN14: 3 | LO14: 173 | LP14: 76 | LQ14: 108 | LR14: 45 | LS14: 24 | LT14: 3 | LU14: 0 | LV14: 0 | LW14: 0 | LX14: 4 | LY14: 0 | LZ14: 0 | MA14: 1 | MB14: 2 | MC14: 36 | MD14: 3 | ME14: 2 | MF14: 0 | MG14: 0 | MH14: 0 | MI14: 0 | MJ14: 0 | MK14: 0 | ML14: 0 | MM14: 1 | MN14: 0 | MO14: 0 | MP14: 0 | MQ14: 1 | MR14: 0 | MS14: 0 | MT14: 0 | MU14: 0 | MV14: 3 | MW14: 24 | MX14: 6 | MY14: 0 | MZ14: 0 | NA14: 0 | NB14: 49 | NC14: 179 | ND14: 73 | NE14: 18 | NF14: 5 | NG14: 4 | NH14: 0 | NI14: 0 | NJ14: 0 | NK14: 0 | NL14: 0 | NM14: 0 | NN14: 0 | NO14: 0 | NP14: 0 | NQ14: 0 | NR14: 0 | NS14: 0 | NT14: 0 | NU14: 0 | NV14: 0 | NW14: 0 | NX14: 0 | NY14: 0 | NZ14: 0 | OA14: 0 | OB14: 0 | OC14: 75 | OD14: 8 | OE14: 0 | OF14: 55 | OG14: 14 | OH14: 0 | OI14: 37 | OJ14: 18 | OK14: 0 | OL14: 32 | OM14: 7 | ON14: 1 | OO14: 24 | OP14: 6 | OQ14: 0 | OR14: 17 | OS14: 2 | OT14: 0 | OU14: 17 | OV14: 3 | OW14: 0 | OX14: 19 | OY14: 5 | OZ14: 0 | PA14: 11 | PB14: 1 | PC14: 0 | PD14: 1 | PE14: 0 | PF14: 0 | PG14: 0 | PH14: 0 | PI14: 0 | PJ14: 0 | PK14: 0 | PL14: 0 | PM14: 0 | PN14: 22 | PO14: 3 | PP14: 1 | PQ14: 1 | PR14: 36 | PS14: 6 | PT14: 0 | PU14: 0 | PV14: 0 | PW14: 5 | PX14: 4 | PY14: 0 | PZ14: 0 | QA14: 0 | QB14: 0 | QC14: =SUM(E14:QB14)-SUM(PQ14:PT14)-SUM(PW14:PZ14) -> 18,601 | QE14: 487 | QF14: 786 | QG14: 1,362 | QH14: 1,208 | QI14: 1,007 | QJ14: 1,487 | QK14: 8 | QL14: 0 | QM14: 610 | QN14: 1,934 | QO14: 0 | QP14: 1,467 | QQ14: 2,049 | QR14: 1,302 | QS14: 1,415 | QT14: 1,858 | QU14: 881 | QV14: 361 | QW14: 0 | QX14: 0 | QY14: 0 | QZ14: 0 | RA14: 0 | RB14: 0 | RC14: 0 | RD14: 0 | RE14: 0 | RF14: 353 | RG14: 0 | RH14: 0 | RI14: 0 | RJ14: 26 | RK14: 1 | RL14: 36 | RM14: 6 | RN14: 0 | RO14: 0 | RP14: 0 | RQ14: 5 | RR14: 4 | RS14: 0 | RT14: 0 | RU14: 0 | RV14: 0 | RW14: 18,575
D15: REGIMEN ESPECIAL | E15: 108 | F15: 1 | G15: 0 | H15: 0 | I15: 113 | J15: 4 | K15: 0 | L15: 0 | M15: 0 | N15: 0 | O15: 0 | P15: 1 | Q15: 0 | R15: 0 | S15: 0 | T15: 0 | U15: 0 | V15: 0 | W15: 0 | X15: 0 | Y15: 0 | Z15: 0 | AA15: 0 | AB15: 0 | AC15: 0 | AD15: 0 | AE15: 0 | AF15: 0 | AG15: 0 | AH15: 0 | AI15: 0 | AJ15: 0 | AK15: 0 | AL15: 0 | AM15: 0 | AN15: 0 | AO15: 0 | AP15: 0 | AQ15: 0 | AR15: 0 | AS15: 0 | AT15: 0 | AU15: 0 | AV15: 0 | AW15: 0 | AX15: 0 | AY15: 0 | AZ15: 0 | BA15: 0 | BB15: 0 | BC15: 0 | BD15: 1 | BE15: 0 | BF15: 0 | BG15: 0 | BH15: 0 | BI15: 0 | BJ15: 0 | BK15: 0 | BL15: 1 | BM15: 0 | BN15: 0 | BO15: 0 | BP15: 101 | BQ15: 159 | BR15: 122 | BS15: 0 | BT15: 0 | BU15: 1 | BV15: 0 | BW15: 0 | BX15: 0 | BY15: 0 | BZ15: 0 | CA15: 0 | CB15: 0 | CC15: 0 | CD15: 0 | CE15: 0 | CF15: 0 | CG15: 0 | CH15: 2 | CI15: 0 | CJ15: 0 | CK15: 0 | CL15: 0 | CM15: 0 | CN15: 0 | CO15: 1 | CP15: 0 | CQ15: 0 | CR15: 3 | CS15: 0 | CT15: 0 | CU15: 0 | CV15: 0 | CW15: 0 | CX15: 132 | CY15: 10 | CZ15: 2 | DA15: 3 | DB15: 2 | DC15: 0 | DD15: 0 | DE15: 198 | DF15: 101 | DG15: 159 | DH15: 122 | DI15: 0 | DJ15: 0 | DK15: 0 | DL15: 0 | DM15: 0 | DN15: 0 | DO15: 0 | DP15: 0 | DQ15: 0 | DR15: 0 | DS15: 0 | DT15: 0 | DU15: 0 | DV15: 0 | DW15: 0 | DX15: 0 | DY15: 0 | DZ15: 1 | EA15: 0 | EB15: 0 | EC15: 0 | ED15: 0 | EE15: 0 | EF15: 0 | EG15: 0 | EH15: 0 | EI15: 0 | EJ15: 0 | EK15: 0 | EL15: 0 | EM15: 133 | EN15: 10 | EO15: 2 | EP15: 3 | EQ15: 1 | ER15: 0 | ES15: 0 | ET15: 202 | EU15: 0 | EV15: 0 | EW15: 0 | EX15: 0 | EY15: 0 | EZ15: 0 | FA15: 0 | FB15: 0 | FC15: 0 | FD15: 0 | FE15: 0 | FF15: 0 | FG15: 0 | FH15: 0 | FI15: 0 | FJ15: 0 | FK15: 0 | FL15: 0 | FM15: 1 | FN15: 0 | FO15: 0 | FP15: 0 | FQ15: 0 | FR15: 0 | FS15: 0 | FT15: 0 | FU15: 0 | FV15: 0 | FW15: 0 | FX15: 0 | FY15: 0 | FZ15: 0 | GA15: 0 | GB15: 0 | GC15: 0 | GD15: 0 | GE15: 0 | GF15: 0 | GG15: 0 | GH15: 0 | GI15: 0 | GJ15: 0 | GK15: 0 | GL15: 0 | GM15: 0 | GN15: 0 | GO15: 0 | GP15: 0 | GQ15: 0 | GR15: 0 | GS15: 0 | GT15: 0 | GU15: 0 | GV15: 0 | GW15: 0 | GX15: 0 | GY15: 0 | GZ15: 0 | HA15: 0 | HB15: 0 | HC15: 0 | HD15: 0 | HE15: 124 | HF15: 166 | HG15: 121 | HH15: 169 | HI15: 143 | HJ15: 0 | HK15: 0 | HL15: 1 | HM15: 0 | HN15: 0 | HO15: 0 | HP15: 0 | HQ15: 0 | HR15: 0 | HS15: 142 | HT15: 0 | HU15: 0 | HV15: 0 | HW15: 1 | HX15: 0 | HY15: 1 | HZ15: 0 | IA15: 0 | IB15: 0 | IC15: 0 | ID15: 201 | IE15: 4 | IF15: 3 | IG15: 0 | IH15: 0 | II15: 0 | IJ15: 0 | IK15: 0 | IL15: 88 | IM15: 46 | IN15: 53 | IO15: 41 | IP15: 39 | IQ15: 46 | IR15: 31 | IS15: 38 | IT15: 43 | IU15: 48 | IV15: 30 | IW15: 40 | IX15: 9 | IY15: 28 | IZ15: 15 | JA15: 5 | JB15: 134 | JC15: 10 | JD15: 3 | JE15: 3 | JF15: 1 | JG15: 1 | JH15: 0 | JI15: 0 | JJ15: 0 | JK15: 1 | JL15: 0 | JM15: 0 | JN15: 1 | JO15: 3 | JP15: 70 | JQ15: 41 | JR15: 44 | JS15: 21 | JT15: 0 | JU15: 146 | JV15: 0 | JW15: 0 | JX15: 0 | JY15: 2 | JZ15: 0 | KA15: 0 | KB15: 0 | KC15: 0 | KD15: 0 | KE15: 143 | KF15: 0 | KG15: 0 | KH15: 0 | KI15: 4 | KJ15: 1 | KK15: 0 | KL15: 0 | KM15: 197 | KN15: 2 | KO15: 1 | KP15: 0 | KQ15: 1 | KR15: 1 | KS15: 0 | KT15: 0 | KU15: 2 | KV15: 0 | KW15: 0 | KX15: 0 | KY15: 0 | KZ15: 0 | LA15: 28 | LB15: 9 | LC15: 9 | LD15: 10 | LE15: 3 | LF15: 0 | LG15: 0 | LH15: 0 | LI15: 0 | LJ15: 26 | LK15: 15 | LL15: 8 | LM15: 0 | LN15: 0 | LO15: 103 | LP15: 58 | LQ15: 41 | LR15: 30 | LS15: 35 | LT15: 15 | LU15: 0 | LV15: 0 | LW15: 0 | LX15: 1 | LY15: 0 | LZ15: 0 | MA15: 0 | MB15: 0 | MC15: 14 | MD15: 16 | ME15: 7 | MF15: 1 | MG15: 0 | MH15: 1 | MI15: 0 | MJ15: 0 | MK15: 0 | ML15: 0 | MM15: 0 | MN15: 0 | MO15: 0 | MP15: 0 | MQ15: 0 | MR15: 1 | MS15: 0 | MT15: 0 | MU15: 0 | MV15: 1 | MW15: 3 | MX15: 0 | MY15: 0 | MZ15: 0 | NA15: 0 | NB15: 27 | NC15: 27 | ND15: 29 | NE15: 18 | NF15: 8 | NG15: 8 | NH15: 0 | NI15: 0 | NJ15: 0 | NK15: 0 | NL15: 0 | NM15: 0 | NN15: 0 | NO15: 0 | NP15: 0 | NQ15: 0 | NR15: 0 | NS15: 0 | NT15: 0 | NU15: 0 | NV15: 0 | NW15: 0 | NX15: 0 | NY15: 0 | NZ15: 0 | OA15: 0 | OB15: 3 | OC15: 36 | OD15: 19 | OE15: 0 | OF15: 28 | OG15: 28 | OH15: 0 | OI15: 28 | OJ15: 24 | OK15: 0 | OL15: 11 | OM15: 13 | ON15: 0 | OO15: 12 | OP15: 11 | OQ15: 0 | OR15: 15 | OS15: 13 | OT15: 0 | OU15: 12 | OV15: 8 | OW15: 0 | OX15: 10 | OY15: 14 | OZ15: 0 | PA15: 4 | PB15: 5 | PC15: 0 | PD15: 0 | PE15: 0 | PF15: 0 | PG15: 0 | PH15: 0 | PI15: 0 | PJ15: 0 | PK15: 0 | PL15: 0 | PM15: 0 | PN15: 54 | PO15: 16 | PP15: 15 | PQ15: 15 | PR15: 30 | PS15: 12 | PT15: 0 | PU15: 0 | PV15: 0 | PW15: 6 | PX15: 1 | PY15: 0 | PZ15: 0 | QA15: 0 | QB15: 0 | QC15: =SUM(E15:QB15)-SUM(PQ15:PT15)-SUM(PW15:PZ15) -> 5,140 | QE15: 109 | QF15: 120 | QG15: 389 | QH15: 347 | QI15: 382 | QJ15: 352 | QK15: 1 | QL15: 0 | QM15: 290 | QN15: 434 | QO15: 0 | QP15: 352 | QQ15: 600 | QR15: 333 | QS15: 148 | QT15: 348 | QU15: 435 | QV15: 121 | QW15: 0 | QX15: 0 | QY15: 0 | QZ15: 0 | RA15: 0 | RB15: 0 | RC15: 0 | RD15: 0 | RE15: 3 | RF15: 291 | RG15: 0 | RH15: 0 | RI15: 0 | RJ15: 85 | RK15: 15 | RL15: 30 | RM15: 12 | RN15: 0 | RO15: 0 | RP15: 0 | RQ15: 6 | RR15: 1 | RS15: 0 | RT15: 0 | RU15: 0 | RV15: 0 | RW15: 5,055
D16: TOTAL REGIMEN | E16: 5,509 | F16: 137 | G16: 10 | H16: 2 | I16: 5,497 | J16: 147 | K16: 0 | L16: 0 | M16: 2 | N16: 2 | O16: 65 | P16: 133 | Q16: 11 | R16: 25 | S16: 50 | T16: 8 | U16: 17 | V16: 38 | W16: 8 | X16: 10 | Y16: 23 | Z16: 1 | AA16: 8 | AB16: 13 | AC16: 0 | AD16: 0 | AE16: 0 | AF16: 0 | AG16: 0 | AH16: 0 | AI16: 0 | AJ16: 0 | AK16: 0 | AL16: 0 | AM16: 0 | AN16: 0 | AO16: 0 | AP16: 0 | AQ16: 0 | AR16: 1 | AS16: 0 | AT16: 0 | AU16: 0 | AV16: 0 | AW16: 0 | AX16: 0 | AY16: 0 | AZ16: 9 | BA16: 0 | BB16: 2 | BC16: 0 | BD16: 2 | BE16: 0 | BF16: 0 | BG16: 0 | BH16: 23 | BI16: 1 | BJ16: 2 | BK16: 1 | BL16: 72 | BM16: 5 | BN16: 5 | BO16: 0 | BP16: 4,686 | BQ16: 4,578 | BR16: 4,961 | BS16: 19 | BT16: 66 | BU16: 133 | BV16: 9 | BW16: 26 | BX16: 53 | BY16: 7 | BZ16: 14 | CA16: 38 | CB16: 7 | CC16: 13 | CD16: 18 | CE16: 0 | CF16: 7 | CG16: 16 | CH16: 40 | CI16: 1 | CJ16: 1 | CK16: 3 | CL16: 12 | CM16: 0 | CN16: 0 | CO16: 91 | CP16: 0 | CQ16: 1 | CR16: 63 | CS16: 0 | CT16: 1 | CU16: 32 | CV16: 0 | CW16: 0 | CX16: 5,249 | CY16: 471 | CZ16: 208 | DA16: 96 | DB16: 85 | DC16: 0 | DD16: 1 | DE16: 5,644 | DF16: 4,684 | DG16: 4,572 | DH16: 4,966 | DI16: 20 | DJ16: 0 | DK16: 0 | DL16: 0 | DM16: 0 | DN16: 0 | DO16: 0 | DP16: 0 | DQ16: 0 | DR16: 0 | DS16: 0 | DT16: 0 | DU16: 0 | DV16: 0 | DW16: 0 | DX16: 4 | DY16: 66 | DZ16: 132 | EA16: 10 | EB16: 25 | EC16: 50 | ED16: 7 | EE16: 16 | EF16: 39 | EG16: 8 | EH16: 11 | EI16: 22 | EJ16: 0 | EK16: 8 | EL16: 16 | EM16: 5,286 | EN16: 471 | EO16: 206 | EP16: 99 | EQ16: 86 | ER16: 0 | ES16: 1 | ET16: 5,701 | EU16: 0 | EV16: 0 | EW16: 2 | EX16: 0 | EY16: 0 | EZ16: 0 | FA16: 0 | FB16: 0 | FC16: 0 | FD16: 0 | FE16: 0 | FF16: 0 | FG16: 0 | FH16: 0 | FI16: 0 | FJ16: 0 | FK16: 0 | FL16: 0 | FM16: 6 | FN16: 2 | FO16: 1 | FP16: 1 | FQ16: 1 | FR16: 0 | FS16: 0 | FT16: 10 | FU16: 0 | FV16: 0 | FW16: 0 | FX16: 0 | FY16: 19 | FZ16: 0 | GA16: 0 | GB16: 0 | GC16: 0 | GD16: 0 | GE16: 0 | GF16: 0 | GG16: 0 | GH16: 0 | GI16: 0 | GJ16: 0 | GK16: 0 | GL16: 0 | GM16: 0 | GN16: 0 | GO16: 0 | GP16: 0 | GQ16: 0 | GR16: 0 | GS16: 0 | GT16: 0 | GU16: 0 | GV16: 0 | GW16: 0 | GX16: 0 | GY16: 0 | GZ16: 0 | HA16: 0 | HB16: 0 | HC16: 0 | HD16: 0 | HE16: 5,060 | HF16: 5,026 | HG16: 5,211 | HH16: 5,071 | HI16: 5,250 | HJ16: 167 | HK16: 121 | HL16: 686 | HM16: 0 | HN16: 0 | HO16: 0 | HP16: 0 | HQ16: 0 | HR16: 0 | HS16: 5,376 | HT16: 109 | HU16: 74 | HV16: 38 | HW16: 41 | HX16: 10 | HY16: 14 | HZ16: 1 | IA16: 3 | IB16: 1 | IC16: 0 | ID16: 5,870 | IE16: 221 | IF16: 103 | IG16: 46 | IH16: 57 | II16: 28 | IJ16: 0 | IK16: 28 | IL16: 4,462 | IM16: 1,271 | IN16: 1,495 | IO16: 1,345 | IP16: 1,208 | IQ16: 1,263 | IR16: 1,166 | IS16: 1,114 | IT16: 1,124 | IU16: 1,065 | IV16: 369 | IW16: 954 | IX16: 403 | IY16: 812 | IZ16: 445 | JA16: 197 | JB16: 5,600 | JC16: 463 | JD16: 188 | JE16: 90 | JF16: 91 | JG16: 28 | JH16: 13 | JI16: 8 | JJ16: 5 | JK16: 9 | JL16: 8 | JM16: 6 | JN16: 32 | JO16: 96 | JP16: 2,734 | JQ16: 1,327 | JR16: 686 | JS16: 448 | JT16: 0 | JU16: 5,528 | JV16: 219 | JW16: 177 | JX16: 162 | JY16: 218 | JZ16: 121 | KA16: 90 | KB16: 40 | KC16: 37 | KD16: 0 | KE16: 5,442 | KF16: 214 | KG16: 176 | KH16: 161 | KI16: 245 | KJ16: 123 | KK16: 59 | KL16: 0 | KM16: 5,704 | KN16: 179 | KO16: 45 | KP16: 0 | KQ16: 11 | KR16: 2 | KS16: 2 | KT16: 13 | KU16: 119 | KV16: 115 | KW16: 39 | KX16: 3 | KY16: 0 | KZ16: 1 | LA16: 1,635 | LB16: 721 | LC16: 352 | LD16: 215 | LE16: 114 | LF16: 19 | LG16: 2 | LH16: 0 | LI16: 0 | LJ16: 569 | LK16: 253 | LL16: 110 | LM16: 25 | LN16: 24 | LO16: 2,004 | LP16: 1,329 | LQ16: 1,631 | LR16: 1,103 | LS16: 786 | LT16: 186 | LU16: 0 | LV16: 0 | LW16: 0 | LX16: 29 | LY16: 1 | LZ16: 1 | MA16: 1 | MB16: 11 | MC16: 232 | MD16: 57 | ME16: 22 | MF16: 4 | MG16: 3 | MH16: 2 | MI16: 0 | MJ16: 0 | MK16: 0 | ML16: 10 | MM16: 5 | MN16: 0 | MO16: 2 | MP16: 3 | MQ16: 10 | MR16: 2 | MS16: 0 | MT16: 0 | MU16: 2 | MV16: 28 | MW16: 84 | MX16: 65 | MY16: 4 | MZ16: 1 | NA16: 0 | NB16: 1,138 | NC16: 1,065 | ND16: 1,350 | NE16: 499 | NF16: 368 | NG16: 237 | NH16: 0 | NI16: 0 | NJ16: 0 | NK16: 0 | NL16: 0 | NM16: 0 | NN16: 0 | NO16: 0 | NP16: 0 | NQ16: 0 | NR16: 0 | NS16: 0 | NT16: 0 | NU16: 0 | NV16: 0 | NW16: 0 | NX16: 0 | NY16: 0 | NZ16: 0 | OA16: 0 | OB16: 7 | OC16: 917 | OD16: 250 | OE16: 1 | OF16: 505 | OG16: 502 | OH16: 2 | OI16: 520 | OJ16: 366 | OK16: 0 | OL16: 332 | OM16: 251 | ON16: 1 | OO16: 279 | OP16: 210 | OQ16: 1 | OR16: 248 | OS16: 185 | OT16: 0 | OU16: 230 | OV16: 172 | OW16: 0 | OX16: 177 | OY16: 143 | OZ16: 2 | PA16: 85 | PB16: 85 | PC16: 2 | PD16: 23 | PE16: 10 | PF16: 0 | PG16: 0 | PH16: 0 | PI16: 0 | PJ16: 0 | PK16: 0 | PL16: 0 | PM16: 0 | PN16: 874 | PO16: 347 | PP16: 252 | PQ16: 252 | PR16: 593 | PS16: 142 | PT16: 1 | PU16: 1 | PV16: 0 | PW16: 76 | PX16: 30 | PY16: 0 | PZ16: 0 | QA16: 0 | QB16: 0 | QC16: =SUM(QC12:QC15) -> 176,713 | QE16: =SUM(QE12:QE15) -> 5,658 | QF16: =SUM(QF12:QF15) -> 6,181 | QG16: 14,896 | QH16: 11,754 | QI16: 14,242 | QJ16: 12,264 | QK16: 42 | QL16: 0 | QM16: 10,086 | QN16: 16,506 | QO16: =SUM(QO12:QO15) -> 0 | QP16: 11,992 | QQ16: 18,721 | QR16: 11,832 | QS16: 6,592 | QT16: 12,348 | QU16: 11,780 | QV16: 4,839 | QW16: 0 | QX16: 0 | QY16: 0 | QZ16: 0 | RA16: 0 | RB16: =SUM(RB12:RB15) -> 0 | RC16: 0 | RD16: 0 | RE16: 7 | RF16: 5,499 | RG16: 0 | RH16: 0 | RI16: 0 | RJ16: 1,473 | RK16: =SUM(RK12:RK15) -> 252 | RL16: 593 | RM16: 142 | RN16: 2 | RO16: 0 | RP16: 0 | RQ16: 76 | RR16: 30 | RS16: 0 | RT16: 0 | RU16: 0 | RV16: 0 | RW16: =SUM(RW12:RW15) -> 175,241
D17: INDIGENA | E17: 2 | F17: 1 | G17: 0 | H17: 0 | I17: 2 | J17: 2 | K17: 0 | L17: 0 | M17: 0 | N17: 0 | O17: 2 | P17: 4 | Q17: 0 | R17: 0 | S17: 0 | T17: 0 | U17: 0 | V17: 0 | W17: 0 | X17: 0 | Y17: 0 | Z17: 0 | AA17: 0 | AB17: 0 | AC17: 0 | AD17: 0 | AE17: 0 | AF17: 0 | AG17: 0 | AH17: 0 | AI17: 0 | AJ17: 0 | AK17: 0 | AL17: 0 | AM17: 0 | AN17: 0 | AO17: 0 | AP17: 0 | AQ17: 0 | AR17: 0 | AS17: 0 | AT17: 0 | AU17: 0 | AV17: 0 | AW17: 0 | AX17: 0 | AY17: 0 | AZ17: 0 | BA17: 0 | BB17: 0 | BC17: 0 | BD17: 0 | BE17: 0 | BF17: 0 | BG17: 0 | BH17: 0 | BI17: 0 | BJ17: 0 | BK17: 0 | BL17: 0 | BM17: 0 | BN17: 0 | BO17: 0 | BP17: 14 | BQ17: 7 | BR17: 6 | BS17: 2 | BT17: 2 | BU17: 4 | BV17: 0 | BW17: 0 | BX17: 0 | BY17: 0 | BZ17: 0 | CA17: 0 | CB17: 0 | CC17: 0 | CD17: 0 | CE17: 0 | CF17: 0 | CG17: 0 | CH17: 0 | CI17: 0 | CJ17: 0 | CK17: 0 | CL17: 0 | CM17: 0 | CN17: 0 | CO17: 2 | CP17: 0 | CQ17: 0 | CR17: 0 | CS17: 0 | CT17: 0 | CU17: 0 | CV17: 0 | CW17: 0 | CX17: 3 | CY17: 2 | CZ17: 0 | DA17: 0 | DB17: 0 | DC17: 0 | DD17: 0 | DE17: 9 | DF17: 14 | DG17: 7 | DH17: 6 | DI17: 2 | DJ17: 0 | DK17: 0 | DL17: 0 | DM17: 0 | DN17: 0 | DO17: 0 | DP17: 0 | DQ17: 0 | DR17: 0 | DS17: 0 | DT17: 0 | DU17: 0 | DV17: 0 | DW17: 0 | DX17: 0 | DY17: 2 | DZ17: 4 | EA17: 0 | EB17: 0 | EC17: 0 | ED17: 0 | EE17: 0 | EF17: 0 | EG17: 0 | EH17: 0 | EI17: 0 | EJ17: 0 | EK17: 0 | EL17: 0 | EM17: 3 | EN17: 2 | EO17: 0 | EP17: 0 | EQ17: 0 | ER17: 0 | ES17: 0 | ET17: 9 | EU17: 0 | EV17: 0 | EW17: 0 | EX17: 0 | EY17: 0 | EZ17: 0 | FA17: 0 | FB17: 0 | FC17: 0 | FD17: 0 | FE17: 0 | FF17: 0 | FG17: 0 | FH17: 0 | FI17: 0 | FJ17: 0 | FK17: 0 | FL17: 0 | FM17: 0 | FN17: 0 | FO17: 0 | FP17: 0 | FQ17: 0 | FR17: 0 | FS17: 0 | FT17: 1 | FU17: 0 | FV17: 0 | FW17: 0 | FX17: 0 | FY17: 0 | FZ17: 0 | GA17: 0 | GB17: 0 | GC17: 0 | GD17: 0 | GE17: 0 | GF17: 0 | GG17: 0 | GH17: 0 | GI17: 0 | GJ17: 0 | GK17: 0 | GL17: 0 | GM17: 0 | GN17: 0 | GO17: 0 | GP17: 0 | GQ17: 0 | GR17: 0 | GS17: 0 | GT17: 0 | GU17: 0 | GV17: 0 | GW17: 0 | GX17: 0 | GY17: 0 | GZ17: 0 | HA17: 0 | HB17: 0 | HC17: 0 | HD17: 0 | HE17: 9 | HF17: 4 | HG17: 14 | HH17: 7 | HI17: 15 | HJ17: 2 | HK17: 3 | HL17: 0 | HM17: 0 | HN17: 0 | HO17: 0 | HP17: 0 | HQ17: 0 | HR17: 0 | HS17: 20 | HT17: 0 | HU17: 0 | HV17: 0 | HW17: 0 | HX17: 0 | HY17: 0 | HZ17: 0 | IA17: 0 | IB17: 0 | IC17: 0 | ID17: 10 | IE17: 0 | IF17: 1 | IG17: 1 | IH17: 1 | II17: 0 | IJ17: 0 | IK17: 0 | IL17: 8 | IM17: 1 | IN17: 2 | IO17: 2 | IP17: 4 | IQ17: 1 | IR17: 3 | IS17: 0 | IT17: 2 | IU17: 0 | IV17: 0 | IW17: 1 | IX17: 1 | IY17: 0 | IZ17: 0 | JA17: 0 | JB17: 5 | JC17: 0 | JD17: 0 | JE17: 0 | JF17: 0 | JG17: 0 | JH17: 0 | JI17: 0 | JJ17: 0 | JK17: 0 | JL17: 0 | JM17: 0 | JN17: 0 | JO17: 0 | JP17: 1 | JQ17: 2 | JR17: 1 | JS17: 0 | JT17: 0 | JU17: 18 | JV17: 0 | JW17: 0 | JX17: 0 | JY17: 1 | JZ17: 0 | KA17: 0 | KB17: 0 | KC17: 0 | KD17: 0 | KE17: 20 | KF17: 0 | KG17: 0 | KH17: 0 | KI17: 0 | KJ17: 0 | KK17: 0 | KL17: 0 | KM17: 10 | KN17: 0 | KO17: 1 | KP17: 0 | KQ17: 0 | KR17: 0 | KS17: 0 | KT17: 0 | KU17: 3 | KV17: 1 | KW17: 0 | KX17: 0 | KY17: 0 | KZ17: 0 | LA17: 3 | LB17: 0 | LC17: 0 | LD17: 0 | LE17: 0 | LF17: 0 | LG17: 0 | LH17: 0 | LI17: 0 | LJ17: 1 | LK17: 0 | LL17: 0 | LM17: 0 | LN17: 0 | LO17: 2 | LP17: 1 | LQ17: 1 | LR17: 1 | LS17: 1 | LT17: 0 | LU17: 0 | LV17: 0 | LW17: 0 | LX17: 0 | LY17: 0 | LZ17: 0 | MA17: 0 | MB17: 0 | MC17: 0 | MD17: 0 | ME17: 0 | MF17: 0 | MG17: 0 | MH17: 0 | MI17: 0 | MJ17: 0 | MK17: 0 | ML17: 0 | MM17: 0 | MN17: 0 | MO17: 0 | MP17: 0 | MQ17: 0 | MR17: 0 | MS17: 0 | MT17: 0 | MU17: 0 | MV17: 0 | MW17: 2 | MX17: 0 | MY17: 0 | MZ17: 0 | NA17: 0 | NB17: 1 | NC17: 2 | ND17: 4 | NE17: 1 | NF17: 1 | NG17: 1 | NH17: 0 | NI17: 0 | NJ17: 0 | NK17: 0 | NL17: 0 | NM17: 0 | NN17: 0 | NO17: 0 | NP17: 0 | NQ17: 0 | NR17: 0 | NS17: 0 | NT17: 0 | NU17: 0 | NV17: 0 | NW17: 0 | NX17: 0 | NY17: 0 | NZ17: 0 | OA17: 0 | OB17: 0 | OC17: 3 | OD17: 0 | OE17: 0 | OF17: 0 | OG17: 0 | OH17: 0 | OI17: 0 | OJ17: 0 | OK17: 0 | OL17: 1 | OM17: 0 | ON17: 0 | OO17: 0 | OP17: 0 | OQ17: 0 | OR17: 0 | OS17: 0 | OT17: 0 | OU17: 2 | OV17: 0 | OW17: 0 | OX17: 0 | OY17: 0 | OZ17: 0 | PA17: 0 | PB17: 0 | PC17: 0 | PD17: 0 | PE17: 0 | PF17: 0 | PG17: 0 | PH17: 0 | PI17: 0 | PJ17: 0 | PK17: 0 | PL17: 0 | PM17: 0 | PN17: 0 | PO17: 0 | PP17: 0 | PQ17: 0 | PR17: 0 | PS17: 0 | PT17: 0 | PU17: 0 | PV17: 0 | PW17: 1 | PX17: 0 | PY17: 0 | PZ17: 0 | QA17: 0 | QB17: 0 | QC17: =SUM(E17:QB17)-SUM(PQ17:PT17)-SUM(PW17:PZ17) -> 317 | QE17: =SUM(E17:H17) -> 3 | QF17: =SUM(I17:BO17) -> 10 | QG17: =SUM(BP17:CW17) -> 37 | QH17: =SUM(CX17:DE17) -> 14 | QI17: =SUM(DF17:DT17) -> 29 | QJ17: =SUM(DU17:ET17) -> 20 | QK17: =SUM(EU17:FY17) -> 1 | QL17: =SUM(FZ17:HD17) -> 0 | QM17: =SUM(HE17:HF17) -> 13 | QN17: =SUM(HG17:HL17) -> 41 | QO17: =SUM(HM17:HR17) -> 0 | QP17: =SUM(HS17:IJ17) -> 33 | QQ17: =SUM(IK17:JA17) -> 25 | QR17: =SUM(JB17:JT17) -> 9 | QS17: =SUM(JU17:KD17) -> 19 | QT17: =SUM(KE17:KP17) -> 31 | QU17: =SUM(KQ17:MU17) -> 14 | QV17: =SUM(MV17:NG17) -> 12 | QW17: =SUM(NH17:NI17) -> 0 | QX17: =SUM(NJ17:NL17) -> 0 | QY17: =SUM(NM17:NO17) -> 0 | QZ17: =SUM(NP17) -> 0 | RA17: =SUM(NQ17) -> 0 | RB17: =SUM(NR17:NT17) -> 0 | RC17: =SUM(NU17) -> 0 | RD17: =SUM(NV17) -> 0 | RE17: =SUM(NW17:OB17) -> 0 | RF17: =SUM(OC17:PE17) -> 6 | RG17: =SUM(PF17:PG17) -> 0 | RH17: =SUM(PH17:PI17) -> 0 | RI17: =SUM(PJ17:PM17) -> 0 | RJ17: =SUM(PN17:PP17) -> 0 | RK17: =SUM(PQ17) -> 0 | RL17: =SUM(PR17) -> 0 | RM17: =SUM(PS17) -> 0 | RN17: =SUM(PT17:PV17) -> 0 | RO17: =SUM(PV17) -> 0 | RP17: =SUM(PV17) -> 0 | RQ17: =SUM(PW17) -> 1 | RR17: =SUM(PX17) -> 0 | RS17: =SUM(PY17) -> 0 | RT17: =SUM(PZ17) -> 0 | RU17: =SUM(QA17) -> 0 | RV17: =SUM(QB17) -> 0 | RW17: =SUM(QE17:RU17)-SUM(RI17:RM17)-SUM(RQ17:RT17) -> 317
D18: ROM (GITANO) | E18: 0 | F18: 0 | G18: 0 | H18: 0 | I18: 0 | J18: 0 | K18: 0 | L18: 0 | M18: 0 | N18: 0 | O18: 0 | P18: 0 | Q18: 0 | R18: 0 | S18: 0 | T18: 0 | U18: 0 | V18: 0 | W18: 0 | X18: 0 | Y18: 0 | Z18: 0 | AA18: 0 | AB18: 0 | AC18: 0 | AD18: 0 | AE18: 0 | AF18: 0 | AG18: 0 | AH18: 0 | AI18: 0 | AJ18: 0 | AK18: 0 | AL18: 0 | AM18: 0 | AN18: 0 | AO18: 0 | AP18: 0 | AQ18: 0 | AR18: 0 | AS18: 0 | AT18: 0 | AU18: 0 | AV18: 0 | AW18: 0 | AX18: 0 | AY18: 0 | AZ18: 0 | BA18: 0 | BB18: 0 | BC18: 0 | BD18: 0 | BE18: 0 | BF18: 0 | BG18: 0 | BH18: 0 | BI18: 0 | BJ18: 0 | BK18: 0 | BL18: 0 | BM18: 0 | BN18: 0 | BO18: 0 | BP18: 0 | BQ18: 0 | BR18: 0 | BS18: 0 | BT18: 0 | BU18: 0 | BV18: 0 | BW18: 0 | BX18: 0 | BY18: 0 | BZ18: 0 | CA18: 0 | CB18: 0 | CC18: 0 | CD18: 0 | CE18: 0 | CF18: 0 | CG18: 0 | CH18: 0 | CI18: 0 | CJ18: 0 | CK18: 0 | CL18: 0 | CM18: 0 | CN18: 0 | CO18: 0 | CP18: 0 | CQ18: 0 | CR18: 0 | CS18: 0 | CT18: 0 | CU18: 0 | CV18: 0 | CW18: 0 | CX18: 0 | CY18: 0 | CZ18: 0 | DA18: 0 | DB18: 0 | DC18: 0 | DD18: 0 | DE18: 0 | DF18: 0 | DG18: 0 | DH18: 0 | DI18: 0 | DJ18: 0 | DK18: 0 | DL18: 0 | DM18: 0 | DN18: 0 | DO18: 0 | DP18: 0 | DQ18: 0 | DR18: 0 | DS18: 0 | DT18: 0 | DU18: 0 | DV18: 0 | DW18: 0 | DX18: 0 | DY18: 0 | DZ18: 0 | EA18: 0 | EB18: 0 | EC18: 0 | ED18: 0 | EE18: 0 | EF18: 0 | EG18: 0 | EH18: 0 | EI18: 0 | EJ18: 0 | EK18: 0 | EL18: 0 | EM18: 0 | EN18: 0 | EO18: 0 | EP18: 0 | EQ18: 0 | ER18: 0 | ES18: 0 | ET18: 0 | EU18: 0 | EV18: 0 | EW18: 0 | EX18: 0 | EY18: 0 | EZ18: 0 | FA18: 0 | FB18: 0 | FC18: 0 | FD18: 0 | FE18: 0 | FF18: 0 | FG18: 0 | FH18: 0 | FI18: 0 | FJ18: 0 | FK18: 0 | FL18: 0 | FM18: 0 | FN18: 0 | FO18: 0 | FP18: 0 | FQ18: 0 | FR18: 0 | FS18: 0 | FT18: 0 | FU18: 0 | FV18: 0 | FW18: 0 | FX18: 0 | FY18: 0 | FZ18: 0 | GA18: 0 | GB18: 0 | GC18: 0 | GD18: 0 | GE18: 0 | GF18: 0 | GG18: 0 | GH18: 0 | GI18: 0 | GJ18: 0 | GK18: 0 | GL18: 0 | GM18: 0 | GN18: 0 | GO18: 0 | GP18: 0 | GQ18: 0 | GR18: 0 | GS18: 0 | GT18: 0 | GU18: 0 | GV18: 0 | GW18: 0 | GX18: 0 | GY18: 0 | GZ18: 0 | HA18: 0 | HB18: 0 | HC18: 0 | HD18: 0 | HE18: 0 | HF18: 0 | HG18: 0 | HH18: 0 | HI18: 0 | HJ18: 0 | HK18: 0 | HL18: 0 | HM18: 0 | HN18: 0 | HO18: 0 | HP18: 0 | HQ18: 0 | HR18: 0 | HS18: 0 | HT18: 0 | HU18: 0 | HV18: 0 | HW18: 0 | HX18: 0 | HY18: 0 | HZ18: 0 | IA18: 0 | IB18: 0 | IC18: 0 | ID18: 0 | IE18: 0 | IF18: 0 | IG18: 0 | IH18: 0 | II18: 0 | IJ18: 0 | IK18: 0 | IL18: 0 | IM18: 0 | IN18: 0 | IO18: 0 | IP18: 0 | IQ18: 0 | IR18: 0 | IS18: 0 | IT18: 0 | IU18: 0 | IV18: 0 | IW18: 0 | IX18: 0 | IY18: 0 | IZ18: 0 | JA18: 0 | JB18: 0 | JC18: 0 | JD18: 0 | JE18: 0 | JF18: 0 | JG18: 0 | JH18: 0 | JI18: 0 | JJ18: 0 | JK18: 0 | JL18: 0 | JM18: 0 | JN18: 0 | JO18: 0 | JP18: 0 | JQ18: 0 | JR18: 0 | JS18: 0 | JT18: 0 | JU18: 0 | JV18: 0 | JW18: 0 | JX18: 0 | JY18: 0 | JZ18: 0 | KA18: 0 | KB18: 0 | KC18: 0 | KD18: 0 | KE18: 0 | KF18: 0 | KG18: 0 | KH18: 0 | KI18: 0 | KJ18: 0 | KK18: 0 | KL18: 0 | KM18: 0 | KN18: 0 | KO18: 0 | KP18: 0 | KQ18: 0 | KR18: 0 | KS18: 0 | KT18: 0 | KU18: 0 | KV18: 0 | KW18: 0 | KX18: 0 | KY18: 0 | KZ18: 0 | LA18: 1 | LB18: 0 | LC18: 0 | LD18: 0 | LE18: 0 | LF18: 0 | LG18: 0 | LH18: 0 | LI18: 0 | LJ18: 0 | LK18: 0 | LL18: 0 | LM18: 0 | LN18: 0 | LO18: 0 | LP18: 0 | LQ18: 0 | LR18: 0 | LS18: 0 | LT18: 0 | LU18: 0 | LV18: 0 | LW18: 0 | LX18: 0 | LY18: 0 | LZ18: 0 | MA18: 0 | MB18: 0 | MC18: 0 | MD18: 0 | ME18: 0 | MF18: 0 | MG18: 0 | MH18: 0 | MI18: 0 | MJ18: 0 | MK18: 0 | ML18: 0 | MM18: 0 | MN18: 0 | MO18: 0 | MP18: 0 | MQ18: 0 | MR18: 0 | MS18: 0 | MT18: 0 | MU18: 0 | MV18: 0 | MW18: 0 | MX18: 0 | MY18: 0 | MZ18: 0 | NA18: 0 | NB18: 0 | NC18: 0 | ND18: 0 | NE18: 0 | NF18: 0 | NG18: 0 | NH18: 0 | NI18: 0 | NJ18: 0 | NK18: 0 | NL18: 0 | NM18: 0 | NN18: 0 | NO18: 0 | NP18: 0 | NQ18: 0 | NR18: 0 | NS18: 0 | NT18: 0 | NU18: 0 | NV18: 0 | NW18: 0 | NX18: 0 | NY18: 0 | NZ18: 0 | OA18: 0 | OB18: 0 | OC18: 0 | OD18: 0 | OE18: 0 | OF18: 0 | OG18: 0 | OH18: 0 | OI18: 0 | OJ18: 0 | OK18: 0 | OL18: 0 | OM18: 0 | ON18: 0 | OO18: 0 | OP18: 0 | OQ18: 0 | OR18: 0 | OS18: 0 | OT18: 0 | OU18: 0 | OV18: 0 | OW18: 0 | OX18: 0 | OY18: 0 | OZ18: 0 | PA18: 0 | PB18: 0 | PC18: 0 | PD18: 0 | PE18: 0 | PF18: 0 | PG18: 0 | PH18: 0 | PI18: 0 | PJ18: 0 | PK18: 0 | PL18: 0 | PM18: 0 | PN18: 0 | PO18: 0 | PP18: 0 | PQ18: 0 | PR18: 0 | PS18: 0 | PT18: 0 | PU18: 0 | PV18: 0 | PW18: 0 | PX18: 0 | PY18: 0 | PZ18: 0 | QA18: 0 | QB18: 0 | QC18: 1 | QE18: 0 | QF18: 0 | QG18: 0 | QH18: 0 | QI18: 0 | QJ18: 0 | QK18: 0 | QL18: 0 | QM18: 0 | QN18: 0 | QO18: 0 | QP18: 0 | QQ18: 0 | QR18: 0 | QS18: 0 | QT18: 0 | QU18: 1 | QV18: 0 | QW18: 0 | QX18: 0 | QY18: 0 | QZ18: 0 | RA18: 0 | RB18: 0 | RC18: 0 | RD18: 0 | RE18: 0 | RF18: 0 | RG18: 0 | RH18: 0 | RI18: 0 | RJ18: 0 | RK18: 0 | RL18: 0 | RM18: 0 | RN18: 0 | RO18: 0 | RP18: 0 | RQ18: 0 | RR18: 0 | RS18: 0 | RT18: 0 | RU18: 0 | RV18: 0 | RW18: 1
D19: RAIZAL | E19: 0 | F19: 0 | G19: 0 | H19: 0 | I19: 0 | J19: 0 | K19: 0 | L19: 0 | M19: 0 | N19: 0 | O19: 0 | P19: 0 | Q19: 0 | R19: 0 | S19: 0 | T19: 0 | U19: 0 | V19: 0 | W19: 0 | X19: 0 | Y19: 0 | Z19: 0 | AA19: 0 | AB19: 0 | AC19: 0 | AD19: 0 | AE19: 0 | AF19: 0 | AG19: 0 | AH19: 0 | AI19: 0 | AJ19: 0 | AK19: 0 | AL19: 0 | AM19: 0 | AN19: 0 | AO19: 0 | AP19: 0 | AQ19: 0 | AR19: 0 | AS19: 0 | AT19: 0 | AU19: 0 | AV19: 0 | AW19: 0 | AX19: 0 | AY19: 0 | AZ19: 0 | BA19: 0 | BB19: 0 | BC19: 0 | BD19: 0 | BE19: 0 | BF19: 0 | BG19: 0 | BH19: 0 | BI19: 0 | BJ19: 0 | BK19: 0 | BL19: 0 | BM19: 0 | BN19: 0 | BO19: 0 | BP19: 0 | BQ19: 0 | BR19: 0 | BS19: 0 | BT19: 0 | BU19: 0 | BV19: 0 | BW19: 0 | BX19: 0 | BY19: 0 | BZ19: 0 | CA19: 0 | CB19: 0 | CC19: 0 | CD19: 0 | CE19: 0 | CF19: 0 | CG19: 0 | CH19: 0 | CI19: 0 | CJ19: 0 | CK19: 0 | CL19: 0 | CM19: 0 | CN19: 0 | CO19: 0 | CP19: 0 | CQ19: 0 | CR19: 0 | CS19: 0 | CT19: 0 | CU19: 0 | CV19: 0 | CW19: 0 | CX19: 0 | CY19: 0 | CZ19: 0 | DA19: 0 | DB19: 0 | DC19: 0 | DD19: 0 | DE19: 0 | DF19: 0 | DG19: 0 | DH19: 0 | DI19: 0 | DJ19: 0 | DK19: 0 | DL19: 0 | DM19: 0 | DN19: 0 | DO19: 0 | DP19: 0 | DQ19: 0 | DR19: 0 | DS19: 0 | DT19: 0 | DU19: 0 | DV19: 0 | DW19: 0 | DX19: 0 | DY19: 0 | DZ19: 0 | EA19: 0 | EB19: 0 | EC19: 0 | ED19: 0 | EE19: 0 | EF19: 0 | EG19: 0 | EH19: 0 | EI19: 0 | EJ19: 0 | EK19: 0 | EL19: 0 | EM19: 0 | EN19: 0 | EO19: 0 | EP19: 0 | EQ19: 0 | ER19: 0 | ES19: 0 | ET19: 0 | EU19: 0 | EV19: 0 | EW19: 0 | EX19: 0 | EY19: 0 | EZ19: 0 | FA19: 0 | FB19: 0 | FC19: 0 | FD19: 0 | FE19: 0 | FF19: 0 | FG19: 0 | FH19: 0 | FI19: 0 | FJ19: 0 | FK19: 0 | FL19: 0 | FM19: 0 | FN19: 0 | FO19: 0 | FP19: 0 | FQ19: 0 | FR19: 0 | FS19: 0 | FT19: 0 | FU19: 0 | FV19: 0 | FW19: 0 | FX19: 0 | FY19: 0 | FZ19: 0 | GA19: 0 | GB19: 0 | GC19: 0 | GD19: 0 | GE19: 0 | GF19: 0 | GG19: 0 | GH19: 0 | GI19: 0 | GJ19: 0 | GK19: 0 | GL19: 0 | GM19: 0 | GN19: 0 | GO19: 0 | GP19: 0 | GQ19: 0 | GR19: 0 | GS19: 0 | GT19: 0 | GU19: 0 | GV19: 0 | GW19: 0 | GX19: 0 | GY19: 0 | GZ19: 0 | HA19: 0 | HB19: 0 | HC19: 0 | HD19: 0 | HE19: 0 | HF19: 0 | HG19: 0 | HH19: 0 | HI19: 0 | HJ19: 0 | HK19: 0 | HL19: 0 | HM19: 0 | HN19: 0 | HO19: 0 | HP19: 0 | HQ19: 0 | HR19: 0 | HS19: 0 | HT19: 0 | HU19: 0 | HV19: 0 | HW19: 0 | HX19: 0 | HY19: 0 | HZ19: 0 | IA19: 0 | IB19: 0 | IC19: 0 | ID19: 0 | IE19: 0 | IF19: 0 | IG19: 0 | IH19: 0 | II19: 0 | IJ19: 0 | IK19: 0 | IL19: 0 | IM19: 0 | IN19: 0 | IO19: 0 | IP19: 0 | IQ19: 0 | IR19: 0 | IS19: 0 | IT19: 0 | IU19: 0 | IV19: 0 | IW19: 0 | IX19: 0 | IY19: 0 | IZ19: 0 | JA19: 0 | JB19: 0 | JC19: 0 | JD19: 0 | JE19: 0 | JF19: 0 | JG19: 0 | JH19: 0 | JI19: 0 | JJ19: 0 | JK19: 0 | JL19: 0 | JM19: 0 | JN19: 0 | JO19: 0 | JP19: 1 | JQ19: 0 | JR19: 0 | JS19: 0 | JT19: 0 | JU19: 0 | JV19: 0 | JW19: 0 | JX19: 0 | JY19: 0 | JZ19: 0 | KA19: 0 | KB19: 0 | KC19: 0 | KD19: 0 | KE19: 0 | KF19: 0 | KG19: 0 | KH19: 0 | KI19: 0 | KJ19: 0 | KK19: 0 | KL19: 0 | KM19: 0 | KN19: 0 | KO19: 0 | KP19: 0 | KQ19: 0 | KR19: 0 | KS19: 0 | KT19: 0 | KU19: 0 | KV19: 0 | KW19: 0 | KX19: 0 | KY19: 0 | KZ19: 0 | LA19: 0 | LB19: 0 | LC19: 0 | LD19: 0 | LE19: 0 | LF19: 0 | LG19: 0 | LH19: 0 | LI19: 0 | LJ19: 0 | LK19: 0 | LL19: 0 | LM19: 0 | LN19: 0 | LO19: 0 | LP19: 0 | LQ19: 0 | LR19: 0 | LS19: 0 | LT19: 0 | LU19: 0 | LV19: 0 | LW19: 0 | LX19: 0 | LY19: 0 | LZ19: 0 | MA19: 0 | MB19: 0 | MC19: 0 | MD19: 0 | ME19: 0 | MF19: 0 | MG19: 0 | MH19: 0 | MI19: 0 | MJ19: 0 | MK19: 0 | ML19: 0 | MM19: 0 | MN19: 0 | MO19: 0 | MP19: 0 | MQ19: 0 | MR19: 0 | MS19: 0 | MT19: 0 | MU19: 0 | MV19: 0 | MW19: 0 | MX19: 0 | MY19: 0 | MZ19: 0 | NA19: 0 | NB19: 0 | NC19: 0 | ND19: 0 | NE19: 0 | NF19: 0 | NG19: 0 | NH19: 0 | NI19: 0 | NJ19: 0 | NK19: 0 | NL19: 0 | NM19: 0 | NN19: 0 | NO19: 0 | NP19: 0 | NQ19: 0 | NR19: 0 | NS19: 0 | NT19: 0 | NU19: 0 | NV19: 0 | NW19: 0 | NX19: 0 | NY19: 0 | NZ19: 0 | OA19: 0 | OB19: 0 | OC19: 0 | OD19: 0 | OE19: 0 | OF19: 0 | OG19: 0 | OH19: 0 | OI19: 0 | OJ19: 0 | OK19: 0 | OL19: 0 | OM19: 0 | ON19: 0 | OO19: 0 | OP19: 0 | OQ19: 0 | OR19: 0 | OS19: 0 | OT19: 0 | OU19: 0 | OV19: 0 | OW19: 0 | OX19: 0 | OY19: 0 | OZ19: 0 | PA19: 0 | PB19: 0 | PC19: 0 | PD19: 0 | PE19: 0 | PF19: 0 | PG19: 0 | PH19: 0 | PI19: 0 | PJ19: 0 | PK19: 0 | PL19: 0 | PM19: 0 | PN19: 0 | PO19: 0 | PP19: 0 | PQ19: 0 | PR19: 0 | PS19: 0 | PT19: 0 | PU19: 0 | PV19: 0 | PW19: 0 | PX19: 0 | PY19: 0 | PZ19: 0 | QA19: 0 | QB19: 0 | QC19: 1 | QE19: 0 | QF19: 0 | QG19: 0 | QH19: 0 | QI19: 0 | QJ19: 0 | QK19: 0 | QL19: 0 | QM19: 0 | QN19: 0 | QO19: 0 | QP19: 0 | QQ19: 0 | QR19: 1 | QS19: 0 | QT19: 0 | QU19: 0 | QV19: 0 | QW19: 0 | QX19: 0 | QY19: 0 | QZ19: 0 | RA19: 0 | RB19: 0 | RC19: 0 | RD19: 0 | RE19: 0 | RF19: 0 | RG19: 0 | RH19: 0 | RI19: 0 | RJ19: 0 | RK19: 0 | RL19: 0 | RM19: 0 | RN19: 0 | RO19: 0 | RP19: 0 | RQ19: 0 | RR19: 0 | RS19: 0 | RT19: 0 | RU19: 0 | RV19: 0 | RW19: 1
D20: PALENQUERO | E20: 0 | F20: 0 | G20: 0 | H20: 0 | I20: 0 | J20: 0 | K20: 0 | L20: 0 | M20: 0 | N20: 0 | O20: 0 | P20: 0 | Q20: 0 | R20: 0 | S20: 0 | T20: 0 | U20: 0 | V20: 0 | W20: 0 | X20: 0 | Y20: 0 | Z20: 0 | AA20: 0 | AB20: 0 | AC20: 0 | AD20: 0 | AE20: 0 | AF20: 0 | AG20: 0 | AH20: 0 | AI20: 0 | AJ20: 0 | AK20: 0 | AL20: 0 | AM20: 0 | AN20: 0 | AO20: 0 | AP20: 0 | AQ20: 0 | AR20: 0 | AS20: 0 | AT20: 0 | AU20: 0 | AV20: 0 | AW20: 0 | AX20: 0 | AY20: 0 | AZ20: 0 | BA20: 0 | BB20: 0 | BC20: 0 | BD20: 0 | BE20: 0 | BF20: 0 | BG20: 0 | BH20: 0 | BI20: 0 | BJ20: 0 | BK20: 0 | BL20: 0 | BM20: 0 | BN20: 0 | BO20: 0 | BP20: 0 | BQ20: 1 | BR20: 0 | BS20: 0 | BT20: 0 | BU20: 0 | BV20: 0 | BW20: 0 | BX20: 0 | BY20: 0 | BZ20: 0 | CA20: 0 | CB20: 0 | CC20: 0 | CD20: 0 | CE20: 0 | CF20: 0 | CG20: 0 | CH20: 0 | CI20: 0 | CJ20: 0 | CK20: 0 | CL20: 0 | CM20: 0 | CN20: 0 | CO20: 0 | CP20: 0 | CQ20: 0 | CR20: 0 | CS20: 0 | CT20: 0 | CU20: 0 | CV20: 0 | CW20: 0 | CX20: 0 | CY20: 0 | CZ20: 0 | DA20: 0 | DB20: 0 | DC20: 0 | DD20: 0 | DE20: 2 | DF20: 0 | DG20: 1 | DH20: 0 | DI20: 0 | DJ20: 0 | DK20: 0 | DL20: 0 | DM20: 0 | DN20: 0 | DO20: 0 | DP20: 0 | DQ20: 0 | DR20: 0 | DS20: 0 | DT20: 0 | DU20: 0 | DV20: 0 | DW20: 0 | DX20: 0 | DY20: 0 | DZ20: 0 | EA20: 0 | EB20: 0 | EC20: 0 | ED20: 0 | EE20: 0 | EF20: 0 | EG20: 0 | EH20: 0 | EI20: 0 | EJ20: 0 | EK20: 0 | EL20: 0 | EM20: 0 | EN20: 0 | EO20: 0 | EP20: 0 | EQ20: 0 | ER20: 0 | ES20: 0 | ET20: 2 | EU20: 0 | EV20: 0 | EW20: 0 | EX20: 0 | EY20: 0 | EZ20: 0 | FA20: 0 | FB20: 0 | FC20: 0 | FD20: 0 | FE20: 0 | FF20: 0 | FG20: 0 | FH20: 0 | FI20: 0 | FJ20: 0 | FK20: 0 | FL20: 0 | FM20: 0 | FN20: 0 | FO20: 0 | FP20: 0 | FQ20: 0 | FR20: 0 | FS20: 0 | FT20: 0 | FU20: 0 | FV20: 0 | FW20: 0 | FX20: 0 | FY20: 0 | FZ20: 0 | GA20: 0 | GB20: 0 | GC20: 0 | GD20: 0 | GE20: 0 | GF20: 0 | GG20: 0 | GH20: 0 | GI20: 0 | GJ20: 0 | GK20: 0 | GL20: 0 | GM20: 0 | GN20: 0 | GO20: 0 | GP20: 0 | GQ20: 0 | GR20: 0 | GS20: 0 | GT20: 0 | GU20: 0 | GV20: 0 | GW20: 0 | GX20: 0 | GY20: 0 | GZ20: 0 | HA20: 0 | HB20: 0 | HC20: 0 | HD20: 0 | HE20: 0 | HF20: 1 | HG20: 0 | HH20: 1 | HI20: 0 | HJ20: 0 | HK20: 0 | HL20: 0 | HM20: 0 | HN20: 0 | HO20: 0 | HP20: 0 | HQ20: 0 | HR20: 0 | HS20: 0 | HT20: 0 | HU20: 0 | HV20: 0 | HW20: 0 | HX20: 0 | HY20: 0 | HZ20: 0 | IA20: 0 | IB20: 0 | IC20: 0 | ID20: 2 | IE20: 0 | IF20: 0 | IG20: 0 | IH20: 0 | II20: 0 | IJ20: 0 | IK20: 0 | IL20: 0 | IM20: 0 | IN20: 1 | IO20: 0 | IP20: 0 | IQ20: 0 | IR20: 0 | IS20: 1 | IT20: 1 | IU20: 1 | IV20: 1 | IW20: 1 | IX20: 0 | IY20: 0 | IZ20: 0 | JA20: 0 | JB20: 0 | JC20: 0 | JD20: 0 | JE20: 0 | JF20: 0 | JG20: 0 | JH20: 0 | JI20: 0 | JJ20: 0 | JK20: 0 | JL20: 0 | JM20: 0 | JN20: 0 | JO20: 0 | JP20: 0 | JQ20: 0 | JR20: 0 | JS20: 0 | JT20: 0 | JU20: 0 | JV20: 0 | JW20: 0 | JX20: 0 | JY20: 0 | JZ20: 0 | KA20: 0 | KB20: 0 | KC20: 0 | KD20: 0 | KE20: 0 | KF20: 0 | KG20: 0 | KH20: 0 | KI20: 0 | KJ20: 0 | KK20: 0 | KL20: 0 | KM20: 2 | KN20: 0 | KO20: 0 | KP20: 0 | KQ20: 0 | KR20: 0 | KS20: 0 | KT20: 0 | KU20: 0 | KV20: 0 | KW20: 0 | KX20: 0 | KY20: 0 | KZ20: 0 | LA20: 0 | LB20: 0 | LC20: 0 | LD20: 0 | LE20: 0 | LF20: 0 | LG20: 0 | LH20: 0 | LI20: 0 | LJ20: 1 | LK20: 0 | LL20: 0 | LM20: 0 | LN20: 0 | LO20: 0 | LP20: 0 | LQ20: 0 | LR20: 0 | LS20: 0 | LT20: 0 | LU20: 0 | LV20: 0 | LW20: 0 | LX20: 0 | LY20: 0 | LZ20: 0 | MA20: 0 | MB20: 0 | MC20: 0 | MD20: 0 | ME20: 0 | MF20: 0 | MG20: 0 | MH20: 0 | MI20: 0 | MJ20: 0 | MK20: 0 | ML20: 0 | MM20: 0 | MN20: 0 | MO20: 0 | MP20: 0 | MQ20: 0 | MR20: 0 | MS20: 0 | MT20: 0 | MU20: 0 | MV20: 0 | MW20: 0 | MX20: 0 | MY20: 0 | MZ20: 0 | NA20: 0 | NB20: 1 | NC20: 0 | ND20: 0 | NE20: 0 | NF20: 0 | NG20: 0 | NH20: 0 | NI20: 0 | NJ20: 0 | NK20: 0 | NL20: 0 | NM20: 0 | NN20: 0 | NO20: 0 | NP20: 0 | NQ20: 0 | NR20: 0 | NS20: 0 | NT20: 0 | NU20: 0 | NV20: 0 | NW20: 0 | NX20: 0 | NY20: 0 | NZ20: 0 | OA20: 0 | OB20: 0 | OC20: 0 | OD20: 0 | OE20: 0 | OF20: 0 | OG20: 1 | OH20: 0 | OI20: 0 | OJ20: 2 | OK20: 0 | OL20: 0 | OM20: 0 | ON20: 0 | OO20: 0 | OP20: 0 | OQ20: 0 | OR20: 0 | OS20: 0 | OT20: 0 | OU20: 0 | OV20: 0 | OW20: 0 | OX20: 0 | OY20: 0 | OZ20: 0 | PA20: 0 | PB20: 0 | PC20: 0 | PD20: 0 | PE20: 0 | PF20: 0 | PG20: 0 | PH20: 0 | PI20: 0 | PJ20: 0 | PK20: 0 | PL20: 0 | PM20: 0 | PN20: 0 | PO20: 0 | PP20: 0 | PQ20: 0 | PR20: 0 | PS20: 0 | PT20: 0 | PU20: 0 | PV20: 0 | PW20: 0 | PX20: 0 | PY20: 0 | PZ20: 0 | QA20: 0 | QB20: 0 | QC20: 23 | QE20: 0 | QF20: 0 | QG20: 1 | QH20: 2 | QI20: 1 | QJ20: 2 | QK20: 0 | QL20: 0 | QM20: 1 | QN20: 1 | QO20: 0 | QP20: 2 | QQ20: 6 | QR20: 0 | QS20: 0 | QT20: 2 | QU20: 1 | QV20: 1 | QW20: 0 | QX20: 0 | QY20: 0 | QZ20: 0 | RA20: 0 | RB20: 0 | RC20: 0 | RD20: 0 | RE20: 0 | RF20: 3 | RG20: 0 | RH20: 0 | RI20: 0 | RJ20: 0 | RK20: 0 | RL20: 0 | RM20: 0 | RN20: 0 | RO20: 0 | RP20: 0 | RQ20: 0 | RR20: 0 | RS20: 0 | RT20: 0 | RU20: 0 | RV20: 0 | RW20: 23
D21: NEGRO(A), MULATO (A), AFROCOLOMBIANO (A) | E21: 11 | F21: 0 | G21: 0 | H21: 0 | I21: 10 | J21: 0 | K21: 0 | L21: 0 | M21: 0 | N21: 0 | O21: 0 | P21: 1 | Q21: 0 | R21: 0 | S21: 0 | T21: 0 | U21: 0 | V21: 1 | W21: 0 | X21: 0 | Y21: 0 | Z21: 0 | AA21: 0 | AB21: 0 | AC21: 0 | AD21: 0 | AE21: 0 | AF21: 0 | AG21: 0 | AH21: 0 | AI21: 0 | AJ21: 0 | AK21: 0 | AL21: 0 | AM21: 0 | AN21: 0 | AO21: 0 | AP21: 0 | AQ21: 0 | AR21: 0 | AS21: 0 | AT21: 0 | AU21: 0 | AV21: 0 | AW21: 0 | AX21: 0 | AY21: 0 | AZ21: 0 | BA21: 0 | BB21: 0 | BC21: 0 | BD21: 0 | BE21: 0 | BF21: 0 | BG21: 0 | BH21: 0 | BI21: 0 | BJ21: 0 | BK21: 0 | BL21: 0 | BM21: 0 | BN21: 0 | BO21: 0 | BP21: 16 | BQ21: 8 | BR21: 16 | BS21: 0 | BT21: 0 | BU21: 1 | BV21: 0 | BW21: 0 | BX21: 0 | BY21: 0 | BZ21: 0 | CA21: 1 | CB21: 0 | CC21: 0 | CD21: 0 | CE21: 0 | CF21: 0 | CG21: 0 | CH21: 0 | CI21: 0 | CJ21: 0 | CK21: 0 | CL21: 0 | CM21: 0 | CN21: 0 | CO21: 0 | CP21: 0 | CQ21: 0 | CR21: 0 | CS21: 0 | CT21: 0 | CU21: 0 | CV21: 0 | CW21: 0 | CX21: 19 | CY21: 2 | CZ21: 1 | DA21: 2 | DB21: 1 | DC21: 0 | DD21: 0 | DE21: 22 | DF21: 16 | DG21: 8 | DH21: 16 | DI21: 0 | DJ21: 0 | DK21: 0 | DL21: 0 | DM21: 0 | DN21: 0 | DO21: 0 | DP21: 0 | DQ21: 0 | DR21: 0 | DS21: 0 | DT21: 0 | DU21: 0 | DV21: 0 | DW21: 0 | DX21: 0 | DY21: 0 | DZ21: 1 | EA21: 0 | EB21: 0 | EC21: 0 | ED21: 0 | EE21: 0 | EF21: 1 | EG21: 0 | EH21: 0 | EI21: 0 | EJ21: 0 | EK21: 0 | EL21: 0 | EM21: 19 | EN21: 2 | EO21: 1 | EP21: 2 | EQ21: 1 | ER21: 0 | ES21: 0 | ET21: 22 | EU21: 0 | EV21: 0 | EW21: 0 | EX21: 0 | EY21: 0 | EZ21: 0 | FA21: 0 | FB21: 0 | FC21: 0 | FD21: 0 | FE21: 0 | FF21: 0 | FG21: 0 | FH21: 0 | FI21: 0 | FJ21: 0 | FK21: 0 | FL21: 0 | FM21: 0 | FN21: 0 | FO21: 0 | FP21: 0 | FQ21: 0 | FR21: 0 | FS21: 0 | FT21: 0 | FU21: 0 | FV21: 0 | FW21: 0 | FX21: 0 | FY21: 0 | FZ21: 0 | GA21: 0 | GB21: 0 | GC21: 0 | GD21: 0 | GE21: 0 | GF21: 0 | GG21: 0 | GH21: 0 | GI21: 0 | GJ21: 0 | GK21: 0 | GL21: 0 | GM21: 0 | GN21: 0 | GO21: 0 | GP21: 0 | GQ21: 0 | GR21: 0 | GS21: 0 | GT21: 0 | GU21: 0 | GV21: 0 | GW21: 0 | GX21: 0 | GY21: 0 | GZ21: 0 | HA21: 0 | HB21: 0 | HC21: 0 | HD21: 0 | HE21: 14 | HF21: 7 | HG21: 16 | HH21: 7 | HI21: 10 | HJ21: 4 | HK21: 0 | HL21: 2 | HM21: 0 | HN21: 0 | HO21: 0 | HP21: 0 | HQ21: 0 | HR21: 0 | HS21: 13 | HT21: 0 | HU21: 0 | HV21: 0 | HW21: 2 | HX21: 0 | HY21: 0 | HZ21: 0 | IA21: 0 | IB21: 0 | IC21: 0 | ID21: 21 | IE21: 0 | IF21: 0 | IG21: 0 | IH21: 0 | II21: 0 | IJ21: 0 | IK21: 0 | IL21: 13 | IM21: 6 | IN21: 5 | IO21: 8 | IP21: 1 | IQ21: 6 | IR21: 2 | IS21: 2 | IT21: 5 | IU21: 2 | IV21: 0 | IW21: 2 | IX21: 0 | IY21: 0 | IZ21: 1 | JA21: 0 | JB21: 17 | JC21: 1 | JD21: 0 | JE21: 2 | JF21: 1 | JG21: 0 | JH21: 0 | JI21: 0 | JJ21: 0 | JK21: 0 | JL21: 0 | JM21: 0 | JN21: 0 | JO21: 0 | JP21: 1 | JQ21: 0 | JR21: 1 | JS21: 0 | JT21: 0 | JU21: 14 | JV21: 1 | JW21: 0 | JX21: 1 | JY21: 1 | JZ21: 0 | KA21: 0 | KB21: 0 | KC21: 0 | KD21: 0 | KE21: 14 | KF21: 1 | KG21: 0 | KH21: 1 | KI21: 2 | KJ21: 0 | KK21: 0 | KL21: 0 | KM21: 21 | KN21: 0 | KO21: 1 | KP21: 0 | KQ21: 0 | KR21: 0 | KS21: 0 | KT21: 0 | KU21: 0 | KV21: 0 | KW21: 0 | KX21: 0 | KY21: 0 | KZ21: 0 | LA21: 3 | LB21: 5 | LC21: 3 | LD21: 0 | LE21: 0 | LF21: 0 | LG21: 0 | LH21: 0 | LI21: 0 | LJ21: 1 | LK21: 0 | LL21: 1 | LM21: 0 | LN21: 0 | LO21: 4 | LP21: 6 | LQ21: 5 | LR21: 3 | LS21: 0 | LT21: 0 | LU21: 0 | LV21: 0 | LW21: 0 | LX21: 0 | LY21: 0 | LZ21: 0 | MA21: 0 | MB21: 0 | MC21: 0 | MD21: 0 | ME21: 0 | MF21: 0 | MG21: 0 | MH21: 0 | MI21: 0 | MJ21: 0 | MK21: 0 | ML21: 0 | MM21: 0 | MN21: 0 | MO21: 0 | MP21: 0 | MQ21: 0 | MR21: 0 | MS21: 0 | MT21: 0 | MU21: 0 | MV21: 0 | MW21: 0 | MX21: 1 | MY21: 0 | MZ21: 0 | NA21: 0 | NB21: 5 | NC21: 4 | ND21: 3 | NE21: 2 | NF21: 1 | NG21: 1 | NH21: 0 | NI21: 0 | NJ21: 0 | NK21: 0 | NL21: 0 | NM21: 0 | NN21: 0 | NO21: 0 | NP21: 0 | NQ21: 0 | NR21: 0 | NS21: 0 | NT21: 0 | NU21: 0 | NV21: 0 | NW21: 0 | NX21: 0 | NY21: 0 | NZ21: 0 | OA21: 0 | OB21: 0 | OC21: 4 | OD21: 0 | OE21: 0 | OF21: 0 | OG21: 0 | OH21: 0 | OI21: 2 | OJ21: 2 | OK21: 0 | OL21: 0 | OM21: 1 | ON21: 0 | OO21: 0 | OP21: 0 | OQ21: 0 | OR21: 1 | OS21: 2 | OT21: 0 | OU21: 0 | OV21: 0 | OW21: 0 | OX21: 0 | OY21: 0 | OZ21: 0 | PA21: 0 | PB21: 0 | PC21: 0 | PD21: 0 | PE21: 0 | PF21: 0 | PG21: 0 | PH21: 0 | PI21: 0 | PJ21: 0 | PK21: 0 | PL21: 0 | PM21: 0 | PN21: 2 | PO21: 0 | PP21: 0 | PQ21: 0 | PR21: 0 | PS21: 0 | PT21: 0 | PU21: 0 | PV21: 0 | PW21: 0 | PX21: 0 | PY21: 0 | PZ21: 0 | QA21: 0 | QB21: 0 | QC21: 492 | QE21: 11 | QF21: 12 | QG21: 42 | QH21: 47 | QI21: 40 | QJ21: 49 | QK21: 0 | QL21: 0 | QM21: 21 | QN21: 39 | QO21: 0 | QP21: 36 | QQ21: 53 | QR21: 23 | QS21: 17 | QT21: 40 | QU21: 31 | QV21: 17 | QW21: 0 | QX21: 0 | QY21: 0 | QZ21: 0 | RA21: 0 | RB21: 0 | RC21: 0 | RD21: 0 | RE21: 0 | RF21: 12 | RG21: 0 | RH21: 0 | RI21: 0 | RJ21: 2 | RK21: 0 | RL21: 0 | RM21: 0 | RN21: 0 | RO21: 0 | RP21: 0 | RQ21: 0 | RR21: 0 | RS21: 0 | RT21: 0 | RU21: 0 | RV21: 0 | RW21: 490
D22: SIN PERTENENCIA ETNICA | E22: 5,496 | F22: 136 | G22: 10 | H22: 2 | I22: 5,485 | J22: 145 | K22: 0 | L22: 0 | M22: 2 | N22: 2 | O22: 63 | P22: 128 | Q22: 11 | R22: 25 | S22: 50 | T22: 8 | U22: 17 | V22: 37 | W22: 8 | X22: 10 | Y22: 23 | Z22: 1 | AA22: 8 | AB22: 13 | AC22: 0 | AD22: 0 | AE22: 0 | AF22: 0 | AG22: 0 | AH22: 0 | AI22: 0 | AJ22: 0 | AK22: 0 | AL22: 0 | AM22: 0 | AN22: 0 | AO22: 0 | AP22: 0 | AQ22: 0 | AR22: 1 | AS22: 0 | AT22: 0 | AU22: 0 | AV22: 0 | AW22: 0 | AX22: 0 | AY22: 0 | AZ22: 9 | BA22: 0 | BB22: 2 | BC22: 0 | BD22: 2 | BE22: 0 | BF22: 0 | BG22: 0 | BH22: 23 | BI22: 1 | BJ22: 2 | BK22: 1 | BL22: 72 | BM22: 5 | BN22: 5 | BO22: 0 | BP22: 4,656 | BQ22: 4,562 | BR22: 4,939 | BS22: 17 | BT22: 64 | BU22: 128 | BV22: 9 | BW22: 26 | BX22: 53 | BY22: 7 | BZ22: 14 | CA22: 37 | CB22: 7 | CC22: 13 | CD22: 18 | CE22: 0 | CF22: 7 | CG22: 16 | CH22: 40 | CI22: 1 | CJ22: 1 | CK22: 3 | CL22: 12 | CM22: 0 | CN22: 0 | CO22: 89 | CP22: 0 | CQ22: 1 | CR22: 63 | CS22: 0 | CT22: 1 | CU22: 32 | CV22: 0 | CW22: 0 | CX22: 5,227 | CY22: 467 | CZ22: 207 | DA22: 94 | DB22: 84 | DC22: 0 | DD22: 1 | DE22: 5,611 | DF22: 4,654 | DG22: 4,556 | DH22: 4,944 | DI22: 18 | DJ22: 0 | DK22: 0 | DL22: 0 | DM22: 0 | DN22: 0 | DO22: 0 | DP22: 0 | DQ22: 0 | DR22: 0 | DS22: 0 | DT22: 0 | DU22: 0 | DV22: 0 | DW22: 0 | DX22: 4 | DY22: 64 | DZ22: 127 | EA22: 10 | EB22: 25 | EC22: 50 | ED22: 7 | EE22: 16 | EF22: 38 | EG22: 8 | EH22: 11 | EI22: 22 | EJ22: 0 | EK22: 8 | EL22: 16 | EM22: 5,264 | EN22: 467 | EO22: 205 | EP22: 97 | EQ22: 85 | ER22: 0 | ES22: 1 | ET22: 5,668 | EU22: 0 | EV22: 0 | EW22: 2 | EX22: 0 | EY22: 0 | EZ22: 0 | FA22: 0 | FB22: 0 | FC22: 0 | FD22: 0 | FE22: 0 | FF22: 0 | FG22: 0 | FH22: 0 | FI22: 0 | FJ22: 0 | FK22: 0 | FL22: 0 | FM22: 6 | FN22: 2 | FO22: 1 | FP22: 1 | FQ22: 1 | FR22: 0 | FS22: 0 | FT22: 9 | FU22: 0 | FV22: 0 | FW22: 0 | FX22: 0 | FY22: 19 | FZ22: 0 | GA22: 0 | GB22: 0 | GC22: 0 | GD22: 0 | GE22: 0 | GF22: 0 | GG22: 0 | GH22: 0 | GI22: 0 | GJ22: 0 | GK22: 0 | GL22: 0 | GM22: 0 | GN22: 0 | GO22: 0 | GP22: 0 | GQ22: 0 | GR22: 0 | GS22: 0 | GT22: 0 | GU22: 0 | GV22: 0 | GW22: 0 | GX22: 0 | GY22: 0 | GZ22: 0 | HA22: 0 | HB22: 0 | HC22: 0 | HD22: 0 | HE22: 5,037 | HF22: 5,014 | HG22: 5,181 | HH22: 5,056 | HI22: 5,225 | HJ22: 161 | HK22: 118 | HL22: 684 | HM22: 0 | HN22: 0 | HO22: 0 | HP22: 0 | HQ22: 0 | HR22: 0 | HS22: 5,343 | HT22: 109 | HU22: 74 | HV22: 38 | HW22: 39 | HX22: 10 | HY22: 14 | HZ22: 1 | IA22: 3 | IB22: 1 | IC22: 0 | ID22: 5,837 | IE22: 221 | IF22: 102 | IG22: 45 | IH22: 56 | II22: 28 | IJ22: 0 | IK22: 28 | IL22: 4,441 | IM22: 1,264 | IN22: 1,487 | IO22: 1,335 | IP22: 1,203 | IQ22: 1,256 | IR22: 1,161 | IS22: 1,111 | IT22: 1,116 | IU22: 1,062 | IV22: 368 | IW22: 950 | IX22: 402 | IY22: 812 | IZ22: 444 | JA22: 197 | JB22: 5,578 | JC22: 462 | JD22: 188 | JE22: 88 | JF22: 90 | JG22: 28 | JH22: 13 | JI22: 8 | JJ22: 5 | JK22: 9 | JL22: 8 | JM22: 6 | JN22: 32 | JO22: 96 | JP22: 2,731 | JQ22: 1,325 | JR22: 684 | JS22: 448 | JT22: 0 | JU22: 5,496 | JV22: 218 | JW22: 177 | JX22: 161 | JY22: 216 | JZ22: 121 | KA22: 90 | KB22: 40 | KC22: 37 | KD22: 0 | KE22: 5,408 | KF22: 213 | KG22: 176 | KH22: 160 | KI22: 243 | KJ22: 123 | KK22: 59 | KL22: 0 | KM22: 5,671 | KN22: 179 | KO22: 43 | KP22: 0 | KQ22: 11 | KR22: 2 | KS22: 2 | KT22: 13 | KU22: 116 | KV22: 114 | KW22: 39 | KX22: 3 | KY22: 0 | KZ22: 1 | LA22: 1,628 | LB22: 716 | LC22: 349 | LD22: 215 | LE22: 114 | LF22: 19 | LG22: 2 | LH22: 0 | LI22: 0 | LJ22: 566 | LK22: 253 | LL22: 109 | LM22: 25 | LN22: 24 | LO22: 1,998 | LP22: 1,322 | LQ22: 1,625 | LR22: 1,099 | LS22: 785 | LT22: 186 | LU22: 0 | LV22: 0 | LW22: 0 | LX22: 29 | LY22: 1 | LZ22: 1 | MA22: 1 | MB22: 11 | MC22: 232 | MD22: 57 | ME22: 22 | MF22: 4 | MG22: 3 | MH22: 2 | MI22: 0 | MJ22: 0 | MK22: 0 | ML22: 10 | MM22: 5 | MN22: 0 | MO22: 2 | MP22: 3 | MQ22: 10 | MR22: 2 | MS22: 0 | MT22: 0 | MU22: 2 | MV22: 28 | MW22: 82 | MX22: 64 | MY22: 4 | MZ22: 1 | NA22: 0 | NB22: 1,131 | NC22: 1,059 | ND22: 1,343 | NE22: 496 | NF22: 366 | NG22: 235 | NH22: 0 | NI22: 0 | NJ22: 0 | NK22: 0 | NL22: 0 | NM22: 0 | NN22: 0 | NO22: 0 | NP22: 0 | NQ22: 0 | NR22: 0 | NS22: 0 | NT22: 0 | NU22: 0 | NV22: 0 | NW22: 0 | NX22: 0 | NY22: 0 | NZ22: 0 | OA22: 0 | OB22: 7 | OC22: 910 | OD22: 250 | OE22: 1 | OF22: 505 | OG22: 501 | OH22: 2 | OI22: 518 | OJ22: 362 | OK22: 0 | OL22: 331 | OM22: 250 | ON22: 1 | OO22: 279 | OP22: 210 | OQ22: 1 | OR22: 247 | OS22: 183 | OT22: 0 | OU22: 228 | OV22: 172 | OW22: 0 | OX22: 177 | OY22: 143 | OZ22: 2 | PA22: 85 | PB22: 85 | PC22: 2 | PD22: 23 | PE22: 10 | PF22: 0 | PG22: 0 | PH22: 0 | PI22: 0 | PJ22: 0 | PK22: 0 | PL22: 0 | PM22: 0 | PN22: 872 | PO22: 347 | PP22: 252 | PQ22: 252 | PR22: 593 | PS22: 142 | PT22: 1 | PU22: 1 | PV22: 0 | PW22: 75 | PX22: 30 | PY22: 0 | PZ22: 0 | QA22: 0 | QB22: 0 | QC22: 175,879 | QE22: 5,644 | QF22: 6,159 | QG22: 14,816 | QH22: 11,691 | QI22: 14,172 | QJ22: 12,193 | QK22: 41 | QL22: 0 | QM22: 10,051 | QN22: 16,425 | QO22: 0 | QP22: 11,921 | QQ22: 18,637 | QR22: 11,799 | QS22: 6,556 | QT22: 12,275 | QU22: 11,733 | QV22: 4,809 | QW22: 0 | QX22: 0 | QY22: 0 | QZ22: 0 | RA22: 0 | RB22: 0 | RC22: 0 | RD22: 0 | RE22: 7 | RF22: 5,478 | RG22: 0 | RH22: 0 | RI22: 0 | RJ22: 1,471 | RK22: 252 | RL22: 593 | RM22: 142 | RN22: 2 | RO22: 0 | RP22: 0 | RQ22: 75 | RR22: 30 | RS22: 0 | RT22: 0 | RU22: 0 | RV22: 0 | RW22: 174,409
D23: TOTAL ETNICOS | E23: 5,509 | F23: 137 | G23: 10 | H23: 2 | I23: 5,497 | J23: 147 | K23: 0 | L23: 0 | M23: 2 | N23: 2 | O23: 65 | P23: 133 | Q23: 11 | R23: 25 | S23: 50 | T23: 8 | U23: 17 | V23: 38 | W23: 8 | X23: 10 | Y23: 23 | Z23: 1 | AA23: 8 | AB23: 13 | AC23: 0 | AD23: 0 | AE23: 0 | AF23: 0 | AG23: 0 | AH23: 0 | AI23: 0 | AJ23: 0 | AK23: 0 | AL23: 0 | AM23: 0 | AN23: 0 | AO23: 0 | AP23: 0 | AQ23: 0 | AR23: 1 | AS23: 0 | AT23: 0 | AU23: 0 | AV23: 0 | AW23: 0 | AX23: 0 | AY23: 0 | AZ23: 9 | BA23: 0 | BB23: 2 | BC23: 0 | BD23: 2 | BE23: 0 | BF23: 0 | BG23: 0 | BH23: 23 | BI23: 1 | BJ23: 2 | BK23: 1 | BL23: 72 | BM23: 5 | BN23: 5 | BO23: 0 | BP23: 4,686 | BQ23: 4,578 | BR23: 4,961 | BS23: 19 | BT23: 66 | BU23: 133 | BV23: 9 | BW23: 26 | BX23: 53 | BY23: 7 | BZ23: 14 | CA23: 38 | CB23: 7 | CC23: 13 | CD23: 18 | CE23: 0 | CF23: 7 | CG23: 16 | CH23: 40 | CI23: 1 | CJ23: 1 | CK23: 3 | CL23: 12 | CM23: 0 | CN23: 0 | CO23: 91 | CP23: 0 | CQ23: 1 | CR23: 63 | CS23: 0 | CT23: 1 | CU23: 32 | CV23: 0 | CW23: 0 | CX23: 5,249 | CY23: 471 | CZ23: 208 | DA23: 96 | DB23: 85 | DC23: 0 | DD23: 1 | DE23: 5,644 | DF23: 4,684 | DG23: 4,572 | DH23: 4,966 | DI23: 20 | DJ23: 0 | DK23: 0 | DL23: 0 | DM23: 0 | DN23: 0 | DO23: 0 | DP23: 0 | DQ23: 0 | DR23: 0 | DS23: 0 | DT23: 0 | DU23: 0 | DV23: 0 | DW23: 0 | DX23: 4 | DY23: 66 | DZ23: 132 | EA23: 10 | EB23: 25 | EC23: 50 | ED23: 7 | EE23: 16 | EF23: 39 | EG23: 8 | EH23: 11 | EI23: 22 | EJ23: 0 | EK23: 8 | EL23: 16 | EM23: 5,286 | EN23: 471 | EO23: 206 | EP23: 99 | EQ23: 86 | ER23: 0 | ES23: 1 | ET23: 5,701 | EU23: 0 | EV23: 0 | EW23: 2 | EX23: 0 | EY23: 0 | EZ23: 0 | FA23: 0 | FB23: 0 | FC23: 0 | FD23: 0 | FE23: 0 | FF23: 0 | FG23: 0 | FH23: 0 | FI23: 0 | FJ23: 0 | FK23: 0 | FL23: 0 | FM23: 6 | FN23: 2 | FO23: 1 | FP23: 1 | FQ23: 1 | FR23: 0 | FS23: 0 | FT23: 10 | FU23: 0 | FV23: 0 | FW23: 0 | FX23: 0 | FY23: 19 | FZ23: 0 | GA23: 0 | GB23: 0 | GC23: 0 | GD23: 0 | GE23: 0 | GF23: 0 | GG23: 0 | GH23: 0 | GI23: 0 | GJ23: 0 | GK23: 0 | GL23: 0 | GM23: 0 | GN23: 0 | GO23: 0 | GP23: 0 | GQ23: 0 | GR23: 0 | GS23: 0 | GT23: 0 | GU23: 0 | GV23: 0 | GW23: 0 | GX23: 0 | GY23: 0 | GZ23: 0 | HA23: 0 | HB23: 0 | HC23: 0 | HD23: 0 | HE23: 5,060 | HF23: 5,026 | HG23: 5,211 | HH23: 5,071 | HI23: 5,250 | HJ23: 167 | HK23: 121 | HL23: 686 | HM23: 0 | HN23: 0 | HO23: 0 | HP23: 0 | HQ23: 0 | HR23: 0 | HS23: 5,376 | HT23: 109 | HU23: 74 | HV23: 38 | HW23: 41 | HX23: 10 | HY23: 14 | HZ23: 1 | IA23: 3 | IB23: 1 | IC23: 0 | ID23: 5,870 | IE23: 221 | IF23: 103 | IG23: 46 | IH23: 57 | II23: 28 | IJ23: 0 | IK23: 28 | IL23: 4,462 | IM23: 1,271 | IN23: 1,495 | IO23: 1,345 | IP23: 1,208 | IQ23: 1,263 | IR23: 1,166 | IS23: 1,114 | IT23: 1,124 | IU23: 1,065 | IV23: 369 | IW23: 954 | IX23: 403 | IY23: 812 | IZ23: 445 | JA23: 197 | JB23: 5,600 | JC23: 463 | JD23: 188 | JE23: 90 | JF23: 91 | JG23: 28 | JH23: 13 | JI23: 8 | JJ23: 5 | JK23: 9 | JL23: 8 | JM23: 6 | JN23: 32 | JO23: 96 | JP23: 2,734 | JQ23: 1,327 | JR23: 686 | JS23: 448 | JT23: 0 | JU23: 5,528 | JV23: 219 | JW23: 177 | JX23: 162 | JY23: 218 | JZ23: 121 | KA23: 90 | KB23: 40 | KC23: 37 | KD23: 0 | KE23: 5,442 | KF23: 214 | KG23: 176 | KH23: 161 | KI23: 245 | KJ23: 123 | KK23: 59 | KL23: 0 | KM23: 5,704 | KN23: 179 | KO23: 45 | KP23: 0 | KQ23: 11 | KR23: 2 | KS23: 2 | KT23: 13 | KU23: 119 | KV23: 115 | KW23: 39 | KX23: 3 | KY23: 0 | KZ23: 1 | LA23: 1,635 | LB23: 721 | LC23: 352 | LD23: 215 | LE23: 114 | LF23: 19 | LG23: 2 | LH23: 0 | LI23: 0 | LJ23: 569 | LK23: 253 | LL23: 110 | LM23: 25 | LN23: 24 | LO23: 2,004 | LP23: 1,329 | LQ23: 1,631 | LR23: 1,103 | LS23: 786 | LT23: 186 | LU23: 0 | LV23: 0 | LW23: 0 | LX23: 29 | LY23: 1 | LZ23: 1 | MA23: 1 | MB23: 11 | MC23: 232 | MD23: 57 | ME23: 22 | MF23: 4 | MG23: 3 | MH23: 2 | MI23: 0 | MJ23: 0 | MK23: 0 | ML23: 10 | MM23: 5 | MN23: 0 | MO23: 2 | MP23: 3 | MQ23: 10 | MR23: 2 | MS23: 0 | MT23: 0 | MU23: 2 | MV23: 28 | MW23: 84 | MX23: 65 | MY23: 4 | MZ23: 1 | NA23: 0 | NB23: 1,138 | NC23: 1,065 | ND23: 1,350 | NE23: 499 | NF23: 368 | NG23: 237 | NH23: 0 | NI23: 0 | NJ23: 0 | NK23: 0 | NL23: 0 | NM23: 0 | NN23: 0 | NO23: 0 | NP23: 0 | NQ23: 0 | NR23: 0 | NS23: 0 | NT23: 0 | NU23: 0 | NV23: 0 | NW23: 0 | NX23: 0 | NY23: 0 | NZ23: 0 | OA23: 0 | OB23: 7 | OC23: 917 | OD23: 250 | OE23: 1 | OF23: 505 | OG23: 502 | OH23: 2 | OI23: 520 | OJ23: 366 | OK23: 0 | OL23: 332 | OM23: 251 | ON23: 1 | OO23: 279 | OP23: 210 | OQ23: 1 | OR23: 248 | OS23: 185 | OT23: 0 | OU23: 230 | OV23: 172 | OW23: 0 | OX23: 177 | OY23: 143 | OZ23: 2 | PA23: 85 | PB23: 85 | PC23: 2 | PD23: 23 | PE23: 10 | PF23: 0 | PG23: 0 | PH23: 0 | PI23: 0 | PJ23: 0 | PK23: 0 | PL23: 0 | PM23: 0 | PN23: 874 | PO23: 347 | PP23: 252 | PQ23: 252 | PR23: 593 | PS23: 142 | PT23: 1 | PU23: 1 | PV23: 0 | PW23: 76 | PX23: 30 | PY23: 0 | PZ23: 0 | QA23: 0 | QB23: 0 | QC23: =SUM(QC17:QC22) -> 176,713 | QE23: =SUM(QE17:QE22) -> 5,658 | QF23: =SUM(QF17:QF22) -> 6,181 | QG23: 14,896 | QH23: 11,754 | QI23: 14,242 | QJ23: 12,264 | QK23: 42 | QL23: 0 | QM23: 10,086 | QN23: 16,506 | QO23: =SUM(QO17:QO22) -> 0 | QP23: 11,992 | QQ23: 18,721 | QR23: 11,832 | QS23: 6,592 | QT23: 12,348 | QU23: 11,780 | QV23: 4,839 | QW23: 0 | QX23: 0 | QY23: 0 | QZ23: 0 | RA23: 0 | RB23: =SUM(RB17:RB22) -> 0 | RC23: 0 | RD23: 0 | RE23: 7 | RF23: 5,499 | RG23: 0 | RH23: 0 | RI23: 0 | RJ23: 1,473 | RK23: =SUM(RK17:RK22) -> 252 | RL23: 593 | RM23: 142 | RN23: 2 | RO23: 0 | RP23: 0 | RQ23: 76 | RR23: 30 | RS23: 0 | RT23: 0 | RU23: 0 | RV23: 0 | RW23: =SUM(RW17:RW22) -> 175,241
D24: EN SITUACION DE DESPLAZADO | E24: 1 | F24: 0 | G24: 0 | H24: 0 | I24: 1 | J24: 0 | K24: 0 | L24: 0 | M24: 0 | N24: 0 | O24: 0 | P24: 0 | Q24: 0 | R24: 0 | S24: 0 | T24: 0 | U24: 0 | V24: 0 | W24: 0 | X24: 0 | Y24: 0 | Z24: 0 | AA24: 0 | AB24: 0 | AC24: 0 | AD24: 0 | AE24: 0 | AF24: 0 | AG24: 0 | AH24: 0 | AI24: 0 | AJ24: 0 | AK24: 0 | AL24: 0 | AM24: 0 | AN24: 0 | AO24: 0 | AP24: 0 | AQ24: 0 | AR24: 0 | AS24: 0 | AT24: 0 | AU24: 0 | AV24: 0 | AW24: 0 | AX24: 0 | AY24: 0 | AZ24: 0 | BA24: 0 | BB24: 0 | BC24: 0 | BD24: 0 | BE24: 0 | BF24: 0 | BG24: 0 | BH24: 0 | BI24: 0 | BJ24: 0 | BK24: 0 | BL24: 0 | BM24: 0 | BN24: 0 | BO24: 0 | BP24: 0 | BQ24: 0 | BR24: 1 | BS24: 1 | BT24: 0 | BU24: 0 | BV24: 0 | BW24: 0 | BX24: 0 | BY24: 0 | BZ24: 0 | CA24: 0 | CB24: 0 | CC24: 0 | CD24: 0 | CE24: 0 | CF24: 0 | CG24: 0 | CH24: 0 | CI24: 0 | CJ24: 0 | CK24: 0 | CL24: 0 | CM24: 0 | CN24: 0 | CO24: 0 | CP24: 0 | CQ24: 0 | CR24: 0 | CS24: 0 | CT24: 0 | CU24: 0 | CV24: 0 | CW24: 0 | CX24: 2 | CY24: 0 | CZ24: 0 | DA24: 0 | DB24: 0 | DC24: 0 | DD24: 0 | DE24: 0 | DF24: 0 | DG24: 0 | DH24: 1 | DI24: 1 | DJ24: 0 | DK24: 0 | DL24: 0 | DM24: 0 | DN24: 0 | DO24: 0 | DP24: 0 | DQ24: 0 | DR24: 0 | DS24: 0 | DT24: 0 | DU24: 0 | DV24: 0 | DW24: 0 | DX24: 0 | DY24: 0 | DZ24: 0 | EA24: 0 | EB24: 0 | EC24: 0 | ED24: 0 | EE24: 0 | EF24: 0 | EG24: 0 | EH24: 0 | EI24: 0 | EJ24: 0 | EK24: 0 | EL24: 0 | EM24: 2 | EN24: 0 | EO24: 0 | EP24: 0 | EQ24: 0 | ER24: 0 | ES24: 0 | ET24: 0 | EU24: 0 | EV24: 0 | EW24: 0 | EX24: 0 | EY24: 0 | EZ24: 0 | FA24: 0 | FB24: 0 | FC24: 0 | FD24: 0 | FE24: 0 | FF24: 0 | FG24: 0 | FH24: 0 | FI24: 0 | FJ24: 0 | FK24: 0 | FL24: 0 | FM24: 0 | FN24: 0 | FO24: 0 | FP24: 0 | FQ24: 0 | FR24: 0 | FS24: 0 | FT24: 0 | FU24: 0 | FV24: 0 | FW24: 0 | FX24: 0 | FY24: 0 | FZ24: 0 | GA24: 0 | GB24: 0 | GC24: 0 | GD24: 0 | GE24: 0 | GF24: 0 | GG24: 0 | GH24: 0 | GI24: 0 | GJ24: 0 | GK24: 0 | GL24: 0 | GM24: 0 | GN24: 0 | GO24: 0 | GP24: 0 | GQ24: 0 | GR24: 0 | GS24: 0 | GT24: 0 | GU24: 0 | GV24: 0 | GW24: 0 | GX24: 0 | GY24: 0 | GZ24: 0 | HA24: 0 | HB24: 0 | HC24: 0 | HD24: 0 | HE24: 0 | HF24: 0 | HG24: 0 | HH24: 0 | HI24: 0 | HJ24: 1 | HK24: 0 | HL24: 0 | HM24: 0 | HN24: 0 | HO24: 0 | HP24: 0 | HQ24: 0 | HR24: 0 | HS24: 1 | HT24: 0 | HU24: 0 | HV24: 0 | HW24: 0 | HX24: 0 | HY24: 0 | HZ24: 0 | IA24: 0 | IB24: 0 | IC24: 0 | ID24: 0 | IE24: 0 | IF24: 0 | IG24: 0 | IH24: 0 | II24: 0 | IJ24: 0 | IK24: 0 | IL24: 1 | IM24: 0 | IN24: 0 | IO24: 0 | IP24: 0 | IQ24: 0 | IR24: 0 | IS24: 0 | IT24: 1 | IU24: 1 | IV24: 0 | IW24: 0 | IX24: 0 | IY24: 0 | IZ24: 0 | JA24: 0 | JB24: 3 | JC24: 0 | JD24: 0 | JE24: 0 | JF24: 0 | JG24: 0 | JH24: 0 | JI24: 0 | JJ24: 0 | JK24: 0 | JL24: 0 | JM24: 0 | JN24: 0 | JO24: 0 | JP24: 0 | JQ24: 0 | JR24: 0 | JS24: 0 | JT24: 0 | JU24: 1 | JV24: 0 | JW24: 0 | JX24: 0 | JY24: 0 | JZ24: 0 | KA24: 0 | KB24: 0 | KC24: 0 | KD24: 0 | KE24: 1 | KF24: 0 | KG24: 0 | KH24: 0 | KI24: 0 | KJ24: 0 | KK24: 0 | KL24: 0 | KM24: 0 | KN24: 0 | KO24: 0 | KP24: 0 | KQ24: 0 | KR24: 0 | KS24: 0 | KT24: 0 | KU24: 0 | KV24: 0 | KW24: 0 | KX24: 0 | KY24: 0 | KZ24: 0 | LA24: 2 | LB24: 0 | LC24: 0 | LD24: 0 | LE24: 0 | LF24: 0 | LG24: 0 | LH24: 0 | LI24: 0 | LJ24: 0 | LK24: 0 | LL24: 0 | LM24: 0 | LN24: 0 | LO24: 1 | LP24: 1 | LQ24: 0 | LR24: 0 | LS24: 0 | LT24: 0 | LU24: 0 | LV24: 0 | LW24: 0 | LX24: 0 | LY24: 0 | LZ24: 0 | MA24: 0 | MB24: 0 | MC24: 0 | MD24: 0 | ME24: 0 | MF24: 0 | MG24: 0 | MH24: 0 | MI24: 0 | MJ24: 0 | MK24: 0 | ML24: 0 | MM24: 0 | MN24: 0 | MO24: 0 | MP24: 0 | MQ24: 0 | MR24: 0 | MS24: 0 | MT24: 0 | MU24: 0 | MV24: 0 | MW24: 0 | MX24: 0 | MY24: 0 | MZ24: 0 | NA24: 0 | NB24: 1 | NC24: 0 | ND24: 0 | NE24: 0 | NF24: 0 | NG24: 0 | NH24: 0 | NI24: 0 | NJ24: 0 | NK24: 0 | NL24: 0 | NM24: 0 | NN24: 0 | NO24: 0 | NP24: 0 | NQ24: 0 | NR24: 0 | NS24: 0 | NT24: 0 | NU24: 0 | NV24: 0 | NW24: 0 | NX24: 0 | NY24: 0 | NZ24: 0 | OA24: 0 | OB24: 0 | OC24: 2 | OD24: 0 | OE24: 0 | OF24: 1 | OG24: 0 | OH24: 0 | OI24: 1 | OJ24: 0 | OK24: 0 | OL24: 0 | OM24: 0 | ON24: 0 | OO24: 0 | OP24: 0 | OQ24: 0 | OR24: 0 | OS24: 0 | OT24: 0 | OU24: 0 | OV24: 0 | OW24: 0 | OX24: 0 | OY24: 0 | OZ24: 0 | PA24: 0 | PB24: 0 | PC24: 0 | PD24: 0 | PE24: 0 | PF24: 0 | PG24: 0 | PH24: 0 | PI24: 0 | PJ24: 0 | PK24: 0 | PL24: 0 | PM24: 0 | PN24: 0 | PO24: 0 | PP24: 0 | PQ24: 0 | PR24: 0 | PS24: 0 | PT24: 0 | PU24: 0 | PV24: 0 | PW24: 0 | PX24: 0 | PY24: 0 | PZ24: 0 | QA24: 0 | QB24: 0 | QC24: =SUM(E24:QB24)-SUM(PQ24:PT24)-SUM(PW24:PZ24) -> 29 | QE24: =SUM(E24:H24) -> 1 | QF24: =SUM(I24:BO24) -> 1 | QG24: =SUM(BP24:CW24) -> 2 | QH24: =SUM(CX24:DE24) -> 2 | QI24: =SUM(DF24:DT24) -> 2 | QJ24: =SUM(DU24:ET24) -> 2 | QK24: =SUM(EU24:FY24) -> 0 | QL24: =SUM(FZ24:HD24) -> 0 | QM24: =SUM(HE24:HF24) -> 0 | QN24: =SUM(HG24:HL24) -> 1 | QO24: =SUM(HM24:HR24) -> 0 | QP24: =SUM(HS24:IJ24) -> 1 | QQ24: =SUM(IK24:JA24) -> 3 | QR24: =SUM(JB24:JT24) -> 3 | QS24: =SUM(JU24:KD24) -> 1 | QT24: =SUM(KE24:KP24) -> 1 | QU24: =SUM(KQ24:MU24) -> 4 | QV24: =SUM(MV24:NG24) -> 1 | QW24: =SUM(NH24:NI24) -> 0 | QX24: =SUM(NJ24:NL24) -> 0 | QY24: =SUM(NM24:NO24) -> 0 | QZ24: =SUM(NP24) -> 0 | RA24: =SUM(NQ24) -> 0 | RB24: =SUM(NR24:NT24) -> 0 | RC24: =SUM(NU24) -> 0 | RD24: =SUM(NV24) -> 0 | RE24: =SUM(NW24:OB24) -> 0 | RF24: =SUM(OC24:PE24) -> 4 | RG24: =SUM(PF24:PG24) -> 0 | RH24: =SUM(PH24:PI24) -> 0 | RI24: =SUM(PJ24:PM24) -> 0 | RJ24: =SUM(PN24:PP24) -> 0 | RK24: =SUM(PQ24) -> 0 | RL24: =SUM(PR24) -> 0 | RM24: =SUM(PS24) -> 0 | RN24: =SUM(PT24:PV24) -> 0 | RO24: =SUM(PV24) -> 0 | RP24: =SUM(PV24) -> 0 | RQ24: =SUM(PW24) -> 0 | RR24: =SUM(PX24) -> 0 | RS24: =SUM(PY24) -> 0 | RT24: =SUM(PZ24) -> 0 | RU24: =SUM(QA24) -> 0 | RV24: =SUM(QB24) -> 0 | RW24: =SUM(QE24:RU24)-SUM(RI24:RM24)-SUM(RQ24:RT24) -> 29
D25: EN CONDICION DE DISCAPACIDAD | E25: 0 | F25: 0 | G25: 0 | H25: 0 | I25: 0 | J25: 0 | K25: 0 | L25: 0 | M25: 0 | N25: 0 | O25: 0 | P25: 0 | Q25: 0 | R25: 0 | S25: 0 | T25: 0 | U25: 0 | V25: 0 | W25: 0 | X25: 0 | Y25: 0 | Z25: 0 | AA25: 0 | AB25: 0 | AC25: 0 | AD25: 0 | AE25: 0 | AF25: 0 | AG25: 0 | AH25: 0 | AI25: 0 | AJ25: 0 | AK25: 0 | AL25: 0 | AM25: 0 | AN25: 0 | AO25: 0 | AP25: 0 | AQ25: 0 | AR25: 0 | AS25: 0 | AT25: 0 | AU25: 0 | AV25: 0 | AW25: 0 | AX25: 0 | AY25: 0 | AZ25: 0 | BA25: 0 | BB25: 0 | BC25: 0 | BD25: 0 | BE25: 0 | BF25: 0 | BG25: 0 | BH25: 0 | BI25: 0 | BJ25: 0 | BK25: 0 | BL25: 0 | BM25: 0 | BN25: 0 | BO25: 0 | BP25: 1 | BQ25: 1 | BR25: 1 | BS25: 0 | BT25: 0 | BU25: 0 | BV25: 0 | BW25: 0 | BX25: 0 | BY25: 0 | BZ25: 0 | CA25: 0 | CB25: 0 | CC25: 0 | CD25: 0 | CE25: 0 | CF25: 0 | CG25: 0 | CH25: 0 | CI25: 0 | CJ25: 0 | CK25: 0 | CL25: 0 | CM25: 0 | CN25: 0 | CO25: 0 | CP25: 0 | CQ25: 0 | CR25: 0 | CS25: 0 | CT25: 0 | CU25: 0 | CV25: 0 | CW25: 0 | CX25: 0 | CY25: 0 | CZ25: 0 | DA25: 0 | DB25: 0 | DC25: 0 | DD25: 0 | DE25: 2 | DF25: 1 | DG25: 1 | DH25: 1 | DI25: 0 | DJ25: 0 | DK25: 0 | DL25: 0 | DM25: 0 | DN25: 0 | DO25: 0 | DP25: 0 | DQ25: 0 | DR25: 0 | DS25: 0 | DT25: 0 | DU25: 0 | DV25: 0 | DW25: 0 | DX25: 0 | DY25: 0 | DZ25: 0 | EA25: 0 | EB25: 0 | EC25: 0 | ED25: 0 | EE25: 0 | EF25: 0 | EG25: 0 | EH25: 0 | EI25: 0 | EJ25: 0 | EK25: 0 | EL25: 0 | EM25: 0 | EN25: 0 | EO25: 0 | EP25: 0 | EQ25: 0 | ER25: 0 | ES25: 0 | ET25: 2 | EU25: 0 | EV25: 0 | EW25: 0 | EX25: 0 | EY25: 0 | EZ25: 0 | FA25: 0 | FB25: 0 | FC25: 0 | FD25: 0 | FE25: 0 | FF25: 0 | FG25: 0 | FH25: 0 | FI25: 0 | FJ25: 0 | FK25: 0 | FL25: 0 | FM25: 0 | FN25: 0 | FO25: 0 | FP25: 0 | FQ25: 0 | FR25: 0 | FS25: 0 | FT25: 0 | FU25: 0 | FV25: 0 | FW25: 0 | FX25: 0 | FY25: 0 | FZ25: 0 | GA25: 0 | GB25: 0 | GC25: 0 | GD25: 0 | GE25: 0 | GF25: 0 | GG25: 0 | GH25: 0 | GI25: 0 | GJ25: 0 | GK25: 0 | GL25: 0 | GM25: 0 | GN25: 0 | GO25: 0 | GP25: 0 | GQ25: 0 | GR25: 0 | GS25: 0 | GT25: 0 | GU25: 0 | GV25: 0 | GW25: 0 | GX25: 0 | GY25: 0 | GZ25: 0 | HA25: 0 | HB25: 0 | HC25: 0 | HD25: 0 | HE25: 0 | HF25: 1 | HG25: 1 | HH25: 1 | HI25: 1 | HJ25: 0 | HK25: 0 | HL25: 0 | HM25: 0 | HN25: 0 | HO25: 0 | HP25: 0 | HQ25: 0 | HR25: 0 | HS25: 1 | HT25: 0 | HU25: 0 | HV25: 0 | HW25: 0 | HX25: 0 | HY25: 0 | HZ25: 0 | IA25: 0 | IB25: 0 | IC25: 0 | ID25: 2 | IE25: 0 | IF25: 0 | IG25: 0 | IH25: 0 | II25: 0 | IJ25: 0 | IK25: 0 | IL25: 2 | IM25: 0 | IN25: 0 | IO25: 1 | IP25: 1 | IQ25: 0 | IR25: 1 | IS25: 1 | IT25: 0 | IU25: 1 | IV25: 1 | IW25: 0 | IX25: 1 | IY25: 0 | IZ25: 1 | JA25: 0 | JB25: 0 | JC25: 0 | JD25: 0 | JE25: 0 | JF25: 0 | JG25: 0 | JH25: 0 | JI25: 0 | JJ25: 0 | JK25: 0 | JL25: 0 | JM25: 0 | JN25: 0 | JO25: 0 | JP25: 1 | JQ25: 0 | JR25: 1 | JS25: 0 | JT25: 0 | JU25: 1 | JV25: 0 | JW25: 0 | JX25: 0 | JY25: 0 | JZ25: 0 | KA25: 0 | KB25: 0 | KC25: 0 | KD25: 0 | KE25: 1 | KF25: 0 | KG25: 0 | KH25: 0 | KI25: 0 | KJ25: 0 | KK25: 0 | KL25: 0 | KM25: 2 | KN25: 0 | KO25: 0 | KP25: 0 | KQ25: 0 | KR25: 0 | KS25: 0 | KT25: 0 | KU25: 0 | KV25: 0 | KW25: 0 | KX25: 0 | KY25: 0 | KZ25: 0 | LA25: 2 | LB25: 0 | LC25: 0 | LD25: 0 | LE25: 0 | LF25: 0 | LG25: 0 | LH25: 0 | LI25: 0 | LJ25: 0 | LK25: 0 | LL25: 0 | LM25: 0 | LN25: 0 | LO25: 2 | LP25: 0 | LQ25: 3 | LR25: 1 | LS25: 0 | LT25: 0 | LU25: 0 | LV25: 0 | LW25: 0 | LX25: 1 | LY25: 0 | LZ25: 0 | MA25: 0 | MB25: 0 | MC25: 0 | MD25: 0 | ME25: 0 | MF25: 0 | MG25: 0 | MH25: 0 | MI25: 0 | MJ25: 0 | MK25: 0 | ML25: 0 | MM25: 0 | MN25: 0 | MO25: 0 | MP25: 0 | MQ25: 0 | MR25: 0 | MS25: 0 | MT25: 0 | MU25: 0 | MV25: 0 | MW25: 0 | MX25: 0 | MY25: 0 | MZ25: 0 | NA25: 0 | NB25: 1 | NC25: 0 | ND25: 1 | NE25: 0 | NF25: 0 | NG25: 0 | NH25: 1 | NI25: 0 | NJ25: 0 | NK25: 0 | NL25: 0 | NM25: 0 | NN25: 0 | NO25: 0 | NP25: 1 | NQ25: 0 | NR25: 0 | NS25: 0 | NT25: 0 | NU25: 0 | NV25: 0 | NW25: 0 | NX25: 0 | NY25: 0 | NZ25: 0 | OA25: 0 | OB25: 0 | OC25: 0 | OD25: 0 | OE25: 0 | OF25: 0 | OG25: 1 | OH25: 0 | OI25: 0 | OJ25: 0 | OK25: 0 | OL25: 2 | OM25: 0 | ON25: 0 | OO25: 0 | OP25: 0 | OQ25: 0 | OR25: 0 | OS25: 0 | OT25: 0 | OU25: 0 | OV25: 0 | OW25: 0 | OX25: 1 | OY25: 0 | OZ25: 0 | PA25: 0 | PB25: 0 | PC25: 0 | PD25: 0 | PE25: 0 | PF25: 0 | PG25: 0 | PH25: 0 | PI25: 0 | PJ25: 0 | PK25: 0 | PL25: 0 | PM25: 0 | PN25: 4 | PO25: 2 | PP25: 0 | PQ25: 0 | PR25: 0 | PS25: 0 | PT25: 0 | PU25: 0 | PV25: 0 | PW25: 0 | PX25: 0 | PY25: 0 | PZ25: 0 | QA25: 0 | QB25: 0 | QC25: 56 | QE25: 0 | QF25: 0 | QG25: 3 | QH25: 2 | QI25: 3 | QJ25: 2 | QK25: 0 | QL25: 0 | QM25: 1 | QN25: 3 | QO25: 0 | QP25: 3 | QQ25: 10 | QR25: 2 | QS25: 1 | QT25: 3 | QU25: 9 | QV25: 2 | QW25: 1 | QX25: 0 | QY25: 0 | QZ25: 1 | RA25: 0 | RB25: 0 | RC25: 0 | RD25: 0 | RE25: 0 | RF25: 4 | RG25: 0 | RH25: 0 | RI25: 0 | RJ25: 6 | RK25: 0 | RL25: 0 | RM25: 0 | RN25: 0 | RO25: 0 | RP25: 0 | RQ25: 0 | RR25: 0 | RS25: 0 | RT25: 0 | RU25: 0 | RV25: 0 | RW25: 50
D26: VICTIMAS DEL CONFLICTO ARMADO | E26: 0 | F26: 0 | G26: 0 | H26: 0 | I26: 0 | J26: 0 | K26: 0 | L26: 0 | M26: 0 | N26: 0 | O26: 0 | P26: 0 | Q26: 0 | R26: 0 | S26: 0 | T26: 0 | U26: 0 | V26: 0 | W26: 0 | X26: 0 | Y26: 0 | Z26: 0 | AA26: 0 | AB26: 0 | AC26: 0 | AD26: 0 | AE26: 0 | AF26: 0 | AG26: 0 | AH26: 0 | AI26: 0 | AJ26: 0 | AK26: 0 | AL26: 0 | AM26: 0 | AN26: 0 | AO26: 0 | AP26: 0 | AQ26: 0 | AR26: 0 | AS26: 0 | AT26: 0 | AU26: 0 | AV26: 0 | AW26: 0 | AX26: 0 | AY26: 0 | AZ26: 0 | BA26: 0 | BB26: 0 | BC26: 0 | BD26: 0 | BE26: 0 | BF26: 0 | BG26: 0 | BH26: 0 | BI26: 0 | BJ26: 0 | BK26: 0 | BL26: 0 | BM26: 0 | BN26: 0 | BO26: 0 | BP26: 0 | BQ26: 0 | BR26: 0 | BS26: 0 | BT26: 0 | BU26: 0 | BV26: 0 | BW26: 0 | BX26: 0 | BY26: 0 | BZ26: 0 | CA26: 0 | CB26: 0 | CC26: 0 | CD26: 0 | CE26: 0 | CF26: 0 | CG26: 0 | CH26: 0 | CI26: 0 | CJ26: 0 | CK26: 0 | CL26: 0 | CM26: 0 | CN26: 0 | CO26: 0 | CP26: 0 | CQ26: 0 | CR26: 0 | CS26: 0 | CT26: 0 | CU26: 0 | CV26: 0 | CW26: 0 | CX26: 0 | CY26: 0 | CZ26: 0 | DA26: 0 | DB26: 0 | DC26: 0 | DD26: 0 | DE26: 0 | DF26: 0 | DG26: 0 | DH26: 0 | DI26: 0 | DJ26: 0 | DK26: 0 | DL26: 0 | DM26: 0 | DN26: 0 | DO26: 0 | DP26: 0 | DQ26: 0 | DR26: 0 | DS26: 0 | DT26: 0 | DU26: 0 | DV26: 0 | DW26: 0 | DX26: 0 | DY26: 0 | DZ26: 0 | EA26: 0 | EB26: 0 | EC26: 0 | ED26: 0 | EE26: 0 | EF26: 0 | EG26: 0 | EH26: 0 | EI26: 0 | EJ26: 0 | EK26: 0 | EL26: 0 | EM26: 0 | EN26: 0 | EO26: 0 | EP26: 0 | EQ26: 0 | ER26: 0 | ES26: 0 | ET26: 0 | EU26: 0 | EV26: 0 | EW26: 0 | EX26: 0 | EY26: 0 | EZ26: 0 | FA26: 0 | FB26: 0 | FC26: 0 | FD26: 0 | FE26: 0 | FF26: 0 | FG26: 0 | FH26: 0 | FI26: 0 | FJ26: 0 | FK26: 0 | FL26: 0 | FM26: 0 | FN26: 0 | FO26: 0 | FP26: 0 | FQ26: 0 | FR26: 0 | FS26: 0 | FT26: 0 | FU26: 0 | FV26: 0 | FW26: 0 | FX26: 0 | FY26: 0 | FZ26: 0 | GA26: 0 | GB26: 0 | GC26: 0 | GD26: 0 | GE26: 0 | GF26: 0 | GG26: 0 | GH26: 0 | GI26: 0 | GJ26: 0 | GK26: 0 | GL26: 0 | GM26: 0 | GN26: 0 | GO26: 0 | GP26: 0 | GQ26: 0 | GR26: 0 | GS26: 0 | GT26: 0 | GU26: 0 | GV26: 0 | GW26: 0 | GX26: 0 | GY26: 0 | GZ26: 0 | HA26: 0 | HB26: 0 | HC26: 0 | HD26: 0 | HE26: 0 | HF26: 0 | HG26: 0 | HH26: 0 | HI26: 0 | HJ26: 0 | HK26: 0 | HL26: 0 | HM26: 0 | HN26: 0 | HO26: 0 | HP26: 0 | HQ26: 0 | HR26: 0 | HS26: 0 | HT26: 0 | HU26: 0 | HV26: 0 | HW26: 0 | HX26: 0 | HY26: 0 | HZ26: 0 | IA26: 0 | IB26: 0 | IC26: 0 | ID26: 0 | IE26: 0 | IF26: 0 | IG26: 0 | IH26: 0 | II26: 0 | IJ26: 0 | IK26: 0 | IL26: 0 | IM26: 0 | IN26: 0 | IO26: 0 | IP26: 0 | IQ26: 0 | IR26: 0 | IS26: 0 | IT26: 0 | IU26: 0 | IV26: 0 | IW26: 0 | IX26: 0 | IY26: 0 | IZ26: 0 | JA26: 0 | JB26: 0 | JC26: 0 | JD26: 0 | JE26: 0 | JF26: 0 | JG26: 0 | JH26: 0 | JI26: 0 | JJ26: 0 | JK26: 0 | JL26: 0 | JM26: 0 | JN26: 0 | JO26: 0 | JP26: 0 | JQ26: 0 | JR26: 0 | JS26: 0 | JT26: 0 | JU26: 0 | JV26: 0 | JW26: 0 | JX26: 0 | JY26: 0 | JZ26: 0 | KA26: 0 | KB26: 0 | KC26: 0 | KD26: 0 | KE26: 0 | KF26: 0 | KG26: 0 | KH26: 0 | KI26: 0 | KJ26: 0 | KK26: 0 | KL26: 0 | KM26: 0 | KN26: 0 | KO26: 0 | KP26: 0 | KQ26: 0 | KR26: 0 | KS26: 0 | KT26: 0 | KU26: 0 | KV26: 0 | KW26: 0 | KX26: 0 | KY26: 0 | KZ26: 0 | LA26: 0 | LB26: 0 | LC26: 0 | LD26: 0 | LE26: 0 | LF26: 0 | LG26: 0 | LH26: 0 | LI26: 0 | LJ26: 0 | LK26: 0 | LL26: 0 | LM26: 0 | LN26: 0 | LO26: 0 | LP26: 0 | LQ26: 0 | LR26: 0 | LS26: 0 | LT26: 0 | LU26: 0 | LV26: 0 | LW26: 0 | LX26: 0 | LY26: 0 | LZ26: 0 | MA26: 0 | MB26: 0 | MC26: 0 | MD26: 0 | ME26: 0 | MF26: 0 | MG26: 0 | MH26: 0 | MI26: 0 | MJ26: 0 | MK26: 0 | ML26: 0 | MM26: 0 | MN26: 0 | MO26: 0 | MP26: 0 | MQ26: 0 | MR26: 0 | MS26: 0 | MT26: 0 | MU26: 0 | MV26: 0 | MW26: 0 | MX26: 0 | MY26: 0 | MZ26: 0 | NA26: 0 | NB26: 0 | NC26: 0 | ND26: 0 | NE26: 0 | NF26: 0 | NG26: 0 | NH26: 0 | NI26: 0 | NJ26: 0 | NK26: 0 | NL26: 0 | NM26: 0 | NN26: 0 | NO26: 0 | NP26: 0 | NQ26: 0 | NR26: 0 | NS26: 0 | NT26: 0 | NU26: 0 | NV26: 0 | NW26: 0 | NX26: 0 | NY26: 0 | NZ26: 0 | OA26: 0 | OB26: 0 | OC26: 0 | OD26: 0 | OE26: 0 | OF26: 0 | OG26: 0 | OH26: 0 | OI26: 0 | OJ26: 0 | OK26: 0 | OL26: 0 | OM26: 0 | ON26: 0 | OO26: 0 | OP26: 0 | OQ26: 0 | OR26: 0 | OS26: 0 | OT26: 0 | OU26: 0 | OV26: 0 | OW26: 0 | OX26: 0 | OY26: 0 | OZ26: 0 | PA26: 0 | PB26: 0 | PC26: 0 | PD26: 0 | PE26: 0 | PF26: 0 | PG26: 0 | PH26: 0 | PI26: 0 | PJ26: 0 | PK26: 0 | PL26: 0 | PM26: 0 | PN26: 0 | PO26: 0 | PP26: 0 | PQ26: 0 | PR26: 0 | PS26: 0 | PT26: 0 | PU26: 0 | PV26: 0 | PW26: 0 | PX26: 0 | PY26: 0 | PZ26: 0 | QA26: 0 | QB26: 0 | QC26: 0 | QE26: 0 | QF26: 0 | QG26: 0 | QH26: 0 | QI26: 0 | QJ26: 0 | QK26: 0 | QL26: 0 | QM26: 0 | QN26: 0 | QO26: 0 | QP26: 0 | QQ26: 0 | QR26: 0 | QS26: 0 | QT26: 0 | QU26: 0 | QV26: 0 | QW26: 0 | QX26: 0 | QY26: 0 | QZ26: 0 | RA26: 0 | RB26: 0 | RC26: 0 | RD26: 0 | RE26: 0 | RF26: 0 | RG26: 0 | RH26: 0 | RI26: 0 | RJ26: 0 | RK26: 0 | RL26: 0 | RM26: 0 | RN26: 0 | RO26: 0 | RP26: 0 | RQ26: 0 | RR26: 0 | RS26: 0 | RT26: 0 | RU26: 0 | RV26: 0 | RW26: 0
D27: ZONAS VEREDALES | E27: 18 | F27: 1 | G27: 0 | H27: 0 | I27: 19 | J27: 1 | K27: 0 | L27: 0 | M27: 0 | N27: 0 | O27: 0 | P27: 0 | Q27: 0 | R27: 0 | S27: 0 | T27: 0 | U27: 0 | V27: 0 | W27: 0 | X27: 0 | Y27: 0 | Z27: 0 | AA27: 0 | AB27: 0 | AC27: 0 | AD27: 0 | AE27: 0 | AF27: 0 | AG27: 0 | AH27: 0 | AI27: 0 | AJ27: 0 | AK27: 0 | AL27: 0 | AM27: 0 | AN27: 0 | AO27: 0 | AP27: 0 | AQ27: 0 | AR27: 0 | AS27: 0 | AT27: 0 | AU27: 0 | AV27: 0 | AW27: 0 | AX27: 0 | AY27: 0 | AZ27: 0 | BA27: 0 | BB27: 0 | BC27: 0 | BD27: 0 | BE27: 0 | BF27: 0 | BG27: 0 | BH27: 0 | BI27: 0 | BJ27: 0 | BK27: 0 | BL27: 0 | BM27: 0 | BN27: 0 | BO27: 0 | BP27: 6 | BQ27: 6 | BR27: 11 | BS27: 0 | BT27: 0 | BU27: 0 | BV27: 0 | BW27: 0 | BX27: 0 | BY27: 0 | BZ27: 0 | CA27: 0 | CB27: 0 | CC27: 0 | CD27: 0 | CE27: 0 | CF27: 0 | CG27: 0 | CH27: 0 | CI27: 0 | CJ27: 0 | CK27: 0 | CL27: 0 | CM27: 0 | CN27: 0 | CO27: 0 | CP27: 0 | CQ27: 0 | CR27: 0 | CS27: 0 | CT27: 0 | CU27: 0 | CV27: 0 | CW27: 0 | CX27: 13 | CY27: 0 | CZ27: 0 | DA27: 0 | DB27: 0 | DC27: 0 | DD27: 0 | DE27: 16 | DF27: 6 | DG27: 6 | DH27: 11 | DI27: 0 | DJ27: 0 | DK27: 0 | DL27: 0 | DM27: 0 | DN27: 0 | DO27: 0 | DP27: 0 | DQ27: 0 | DR27: 0 | DS27: 0 | DT27: 0 | DU27: 0 | DV27: 0 | DW27: 0 | DX27: 0 | DY27: 0 | DZ27: 0 | EA27: 0 | EB27: 0 | EC27: 0 | ED27: 0 | EE27: 0 | EF27: 0 | EG27: 0 | EH27: 0 | EI27: 0 | EJ27: 0 | EK27: 0 | EL27: 0 | EM27: 13 | EN27: 0 | EO27: 0 | EP27: 0 | EQ27: 0 | ER27: 0 | ES27: 0 | ET27: 16 | EU27: 0 | EV27: 0 | EW27: 0 | EX27: 0 | EY27: 0 | EZ27: 0 | FA27: 0 | FB27: 0 | FC27: 0 | FD27: 0 | FE27: 0 | FF27: 0 | FG27: 0 | FH27: 0 | FI27: 0 | FJ27: 0 | FK27: 0 | FL27: 0 | FM27: 0 | FN27: 0 | FO27: 0 | FP27: 0 | FQ27: 0 | FR27: 0 | FS27: 0 | FT27: 0 | FU27: 0 | FV27: 0 | FW27: 0 | FX27: 0 | FY27: 0 | FZ27: 0 | GA27: 0 | GB27: 0 | GC27: 0 | GD27: 0 | GE27: 0 | GF27: 0 | GG27: 0 | GH27: 0 | GI27: 0 | GJ27: 0 | GK27: 0 | GL27: 0 | GM27: 0 | GN27: 0 | GO27: 0 | GP27: 0 | GQ27: 0 | GR27: 0 | GS27: 0 | GT27: 0 | GU27: 0 | GV27: 0 | GW27: 0 | GX27: 0 | GY27: 0 | GZ27: 0 | HA27: 0 | HB27: 0 | HC27: 0 | HD27: 0 | HE27: 6 | HF27: 6 | HG27: 6 | HH27: 6 | HI27: 9 | HJ27: 0 | HK27: 1 | HL27: 0 | HM27: 0 | HN27: 0 | HO27: 0 | HP27: 0 | HQ27: 0 | HR27: 0 | HS27: 9 | HT27: 0 | HU27: 0 | HV27: 0 | HW27: 0 | HX27: 0 | HY27: 0 | HZ27: 0 | IA27: 0 | IB27: 0 | IC27: 0 | ID27: 16 | IE27: 0 | IF27: 1 | IG27: 0 | IH27: 0 | II27: 0 | IJ27: 0 | IK27: 0 | IL27: 14 | IM27: 0 | IN27: 1 | IO27: 1 | IP27: 2 | IQ27: 2 | IR27: 1 | IS27: 0 | IT27: 0 | IU27: 1 | IV27: 0 | IW27: 1 | IX27: 2 | IY27: 0 | IZ27: 0 | JA27: 0 | JB27: 12 | JC27: 0 | JD27: 0 | JE27: 0 | JF27: 0 | JG27: 0 | JH27: 0 | JI27: 0 | JJ27: 0 | JK27: 0 | JL27: 0 | JM27: 0 | JN27: 0 | JO27: 0 | JP27: 0 | JQ27: 1 | JR27: 0 | JS27: 0 | JT27: 0 | JU27: 9 | JV27: 0 | JW27: 0 | JX27: 0 | JY27: 0 | JZ27: 0 | KA27: 0 | KB27: 0 | KC27: 0 | KD27: 0 | KE27: 9 | KF27: 0 | KG27: 0 | KH27: 0 | KI27: 0 | KJ27: 0 | KK27: 0 | KL27: 0 | KM27: 16 | KN27: 0 | KO27: 1 | KP27: 0 | KQ27: 0 | KR27: 0 | KS27: 0 | KT27: 0 | KU27: 1 | KV27: 1 | KW27: 0 | KX27: 0 | KY27: 0 | KZ27: 0 | LA27: 5 | LB27: 0 | LC27: 0 | LD27: 0 | LE27: 0 | LF27: 0 | LG27: 0 | LH27: 0 | LI27: 0 | LJ27: 2 | LK27: 0 | LL27: 0 | LM27: 0 | LN27: 0 | LO27: 1 | LP27: 0 | LQ27: 2 | LR27: 0 | LS27: 1 | LT27: 0 | LU27: 0 | LV27: 0 | LW27: 0 | LX27: 0 | LY27: 0 | LZ27: 0 | MA27: 0 | MB27: 0 | MC27: 0 | MD27: 0 | ME27: 0 | MF27: 0 | MG27: 0 | MH27: 0 | MI27: 0 | MJ27: 0 | MK27: 0 | ML27: 0 | MM27: 0 | MN27: 0 | MO27: 0 | MP27: 0 | MQ27: 0 | MR27: 0 | MS27: 0 | MT27: 0 | MU27: 0 | MV27: 0 | MW27: 2 | MX27: 0 | MY27: 0 | MZ27: 0 | NA27: 0 | NB27: 0 | NC27: 4 | ND27: 4 | NE27: 0 | NF27: 0 | NG27: 0 | NH27: 0 | NI27: 0 | NJ27: 0 | NK27: 0 | NL27: 0 | NM27: 0 | NN27: 0 | NO27: 0 | NP27: 0 | NQ27: 0 | NR27: 0 | NS27: 0 | NT27: 0 | NU27: 0 | NV27: 0 | NW27: 0 | NX27: 0 | NY27: 0 | NZ27: 0 | OA27: 0 | OB27: 0 | OC27: 2 | OD27: 0 | OE27: 0 | OF27: 1 | OG27: 0 | OH27: 0 | OI27: 1 | OJ27: 1 | OK27: 0 | OL27: 0 | OM27: 0 | ON27: 0 | OO27: 0 | OP27: 0 | OQ27: 0 | OR27: 0 | OS27: 0 | OT27: 0 | OU27: 0 | OV27: 0 | OW27: 0 | OX27: 1 | OY27: 1 | OZ27: 0 | PA27: 0 | PB27: 0 | PC27: 0 | PD27: 0 | PE27: 0 | PF27: 0 | PG27: 0 | PH27: 0 | PI27: 0 | PJ27: 0 | PK27: 0 | PL27: 0 | PM27: 0 | PN27: 2 | PO27: 1 | PP27: 0 | PQ27: 0 | PR27: 0 | PS27: 1 | PT27: 0 | PU27: 0 | PV27: 0 | PW27: 0 | PX27: 0 | PY27: 0 | PZ27: 0 | QA27: 0 | QB27: 0 | QC27: 309 | QD27: =CONCATENATE($G$2,$B$8) -> 1111 | QE27: =SUM(E27:H27) -> 19 | QF27: =SUM(I27:BN27) -> 20 | QG27: =SUM(BP27:CW27) -> 23 | QH27: =SUM(CX27:DE27) -> 29 | QI27: =SUM(DF27:DT27) -> 23 | QJ27: =SUM(DU27:ET27) -> 29 | QK27: =SUM(EU27:FY27) -> 0 | QL27: =SUM(FZ27:HD27) -> 0 | QM27: =SUM(HE27:HF27) -> 12 | QN27: =SUM(HG27:HL27) -> 22 | QO27: =SUM(HR27:II27) -> 26 | QP27: 26 | QQ27: =SUM(IK27:JA27) -> 25 | QR27: =SUM(JB27:JT27) -> 13 | QS27: =SUM(JU27:KD27) -> 9 | QT27: =SUM(KE27:KP27) -> 26 | QU27: =SUM(KQ27:MU27) -> 13 | QV27: =SUM(MV27:NG27) -> 10 | QW27: =SUM(NH27:NL27) -> 0 | QX27: =SUM(NM27:NO27) -> 0 | QY27: 0 | QZ27: =SUM(NP27) -> 0 | RA27: 0 | RB27: =SUM(NS27:NT27) -> 0 | RC27: 0 | RD27: 0 | RE27: =SUM(NZ27:OB27) -> 0 | RF27: =SUM(OC27:PE27) -> 7 | RG27: =SUM(PF27:PI27) -> 0 | RH27: =SUM(PJ27:PP27) -> 3 | RI27: =PQ27 -> 0 | RJ27: =PR27 -> 0 | RK27: =SUM(PQ27) -> 0 | RL27: 0 | RM27: 1 | RN27: 0 | RO27: 0 | RP27: 0 | RQ27: 0 | RR27: 0 | RS27: 0 | RT27: 0 | RU27: 0 | RV27: 0 | RW27: 335
D28: FEMENINO | QC28: 0 | QE28: 0 | QF28: =SUM(I28:BO28) -> 0 | QG28: 0 | QH28: 0 | QI28: 0 | QJ28: 0 | QK28: 0 | QL28: 0 | QM28: 0 | QN28: 0 | QO28: =SUM(HM28:HR28) -> 0 | QP28: 0 | QQ28: 0 | QR28: 0 | QS28: 0 | QT28: 0 | QU28: 0 | QV28: 0 | QW28: =SUM(NH28:NI28) -> 0 | QX28: =SUM(NJ28:NL28) -> 0 | QY28: =SUM(NM28:NO28) -> 0 | QZ28: 0 | RA28: 0 | RB28: =SUM(NR28:NT28) -> 0 | RC28: =SUM(NU28) -> 0 | RD28: =SUM(NV28) -> 0 | RE28: =SUM(NW28:OB28) -> 0 | RF28: =SUM(OC28:PE28) -> 0 | RG28: =SUM(PF28:PG28) -> 0 | RH28: =SUM(PH28:PI28) -> 0 | RI28: =SUM(PJ28:PM28) -> 0 | RJ28: =SUM(PN28:PP28) -> 0 | RK28: =SUM(PQ28) -> 0 | RL28: =SUM(PR28) -> 0 | RM28: =SUM(PS28) -> 0 | RN28: =SUM(PT28:PV28) -> 0 | RO28: =SUM(PV28) -> 0 | RP28: =SUM(PV28) -> 0 | RQ28: =SUM(PW28) -> 0 | RR28: =SUM(PX28) -> 0 | RS28: =SUM(PY28) -> 0 | RT28: =SUM(PZ28) -> 0 | RU28: =SUM(QA28) -> 0 | RV28: =SUM(QB28) -> 0 | RW28: =SUM(QE28:RU28)-SUM(RI28:RM28)-SUM(RQ28:RT28) -> 0
D29: MASCULINO | QC29: 0 | QE29: 0 | QF29: 0 | QG29: 0 | QH29: 0 | QI29: 0 | QJ29: 0 | QK29: 0 | QL29: 0 | QM29: 0 | QN29: 0 | QO29: 0 | QP29: 0 | QQ29: 0 | QR29: 0 | QS29: 0 | QT29: 0 | QU29: 0 | QV29: 0 | QW29: 0 | QX29: 0 | QY29: 0 | QZ29: 0 | RA29: 0 | RB29: 0 | RC29: 0 | RD29: 0 | RE29: 0 | RF29: 0 | RG29: 0 | RH29: 0 | RI29: 0 | RJ29: 0 | RK29: 0 | RL29: 0 | RM29: 0 | RN29: 0 | RO29: 0 | RP29: 0 | RQ29: 0 | RR29: 0 | RS29: 0 | RT29: 0 | RU29: 0 | RV29: 0 | RW29: 0
D30: OTRO | QC30: 0 | QE30: 0 | QF30: 0 | QG30: 0 | QH30: 0 | QI30: 0 | QJ30: 0 | QK30: 0 | QL30: 0 | QM30: 0 | QN30: 0 | QO30: 0 | QP30: 0 | QQ30: 0 | QR30: 0 | QS30: 0 | QT30: 0 | QU30: 0 | QV30: 0 | QW30: 0 | QX30: 0 | QY30: 0 | QZ30: 0 | RA30: 0 | RB30: 0 | RC30: 0 | RD30: 0 | RE30: 0 | RF30: 0 | RG30: 0 | RH30: 0 | RI30: 0 | RJ30: 0 | RK30: 0 | RL30: 0 | RM30: 0 | RN30: 0 | RO30: 0 | RP30: 0 | RQ30: 0 | RR30: 0 | RS30: 0 | RT30: 0 | RU30: 0 | RV30: 0 | RW30: 0
D31: TOTAL GENERO | E31: =SUM(E28:E30) -> 0 | F31: =SUM(F28:F30) -> 0 | G31: 0 | H31: 0 | I31: 0 | J31: 0 | K31: 0 | L31: 0 | M31: 0 | N31: 0 | O31: 0 | P31: 0 | Q31: 0 | R31: 0 | S31: 0 | T31: 0 | U31: 0 | V31: 0 | W31: 0 | X31: 0 | Y31: 0 | Z31: 0 | AA31: 0 | AB31: 0 | AC31: 0 | AD31: 0 | AE31: 0 | AF31: 0 | AG31: 0 | AH31: 0 | AI31: 0 | AJ31: 0 | AK31: 0 | AL31: 0 | AM31: 0 | AN31: 0 | AO31: 0 | AP31: 0 | AQ31: 0 | AR31: 0 | AS31: 0 | AT31: 0 | AU31: 0 | AV31: 0 | AW31: 0 | AX31: 0 | AY31: 0 | AZ31: 0 | BA31: 0 | BB31: 0 | BC31: 0 | BD31: 0 | BE31: 0 | BF31: 0 | BG31: 0 | BH31: 0 | BI31: 0 | BJ31: 0 | BK31: 0 | BL31: 0 | BM31: 0 | BN31: 0 | BO31: 0 | BP31: 0 | BQ31: 0 | BR31: =SUM(BR28:BR30) -> 0 | BS31: 0 | BT31: 0 | BU31: 0 | BV31: 0 | BW31: 0 | BX31: 0 | BY31: 0 | BZ31: 0 | CA31: 0 | CB31: 0 | CC31: 0 | CD31: 0 | CE31: 0 | CF31: 0 | CG31: 0 | CH31: 0 | CI31: 0 | CJ31: 0 | CK31: 0 | CL31: 0 | CM31: 0 | CN31: 0 | CO31: 0 | CP31: 0 | CQ31: 0 | CR31: 0 | CS31: 0 | CT31: 0 | CU31: 0 | CV31: 0 | CW31: 0 | CX31: 0 | CY31: 0 | CZ31: 0 | DA31: 0 | DB31: 0 | DC31: 0 | DD31: 0 | DE31: 0 | DF31: 0 | DG31: 0 | DH31: 0 | DI31: 0 | DJ31: 0 | DK31: 0 | DL31: 0 | DM31: 0 | DN31: 0 | DO31: 0 | DP31: 0 | DQ31: 0 | DR31: 0 | DS31: 0 | DT31: 0 | DU31: 0 | DV31: 0 | DW31: 0 | DX31: 0 | DY31: 0 | DZ31: 0 | EA31: 0 | EB31: 0 | EC31: 0 | ED31: =SUM(ED28:ED30) -> 0 | EE31: 0 | EF31: 0 | EG31: 0 | EH31: 0 | EI31: 0 | EJ31: 0 | EK31: 0 | EL31: 0 | EM31: 0 | EN31: 0 | EO31: 0 | EP31: 0 | EQ31: 0 | ER31: 0 | ES31: 0 | ET31: 0 | EU31: 0 | EV31: 0 | EW31: 0 | EX31: 0 | EY31: 0 | EZ31: 0 | FA31: 0 | FB31: 0 | FC31: 0 | FD31: 0 | FE31: 0 | FF31: 0 | FG31: 0 | FH31: 0 | FI31: 0 | FJ31: 0 | FK31: 0 | FL31: 0 | FM31: 0 | FN31: 0 | FO31: 0 | FP31: 0 | FQ31: 0 | FR31: 0 | FS31: 0 | FT31: 0 | FU31: 0 | FV31: 0 | FW31: 0 | FX31: 0 | FY31: 0 | FZ31: 0 | GA31: 0 | GB31: 0 | GC31: 0 | GD31: 0 | GE31: 0 | GF31: 0 | GG31: 0 | GH31: 0 | GI31: 0 | GJ31: 0 | GK31: 0 | GL31: 0 | GM31: 0 | GN31: 0 | GO31: 0 | GP31: =SUM(GP28:GP30) -> 0 | GQ31: 0 | GR31: 0 | GS31: 0 | GT31: 0 | GU31: 0 | GV31: 0 | GW31: 0 | GX31: 0 | GY31: 0 | GZ31: 0 | HA31: 0 | HB31: 0 | HC31: 0 | HD31: 0 | HE31: 0 | HF31: 0 | HG31: 0 | HH31: 0 | HI31: 0 | HJ31: 0 | HK31: 0 | HL31: 0 | HM31: 0 | HN31: 0 | HO31: 0 | HP31: 0 | HQ31: 0 | HR31: 0 | HS31: 0 | HT31: 0 | HU31: 0 | HV31: 0 | HW31: 0 | HX31: 0 | HY31: 0 | HZ31: 0 | IA31: 0 | IB31: 0 | IC31: 0 | ID31: 0 | IE31: 0 | IF31: 0 | IG31: 0 | IH31: 0 | II31: 0 | IJ31: 0 | IK31: 0 | IL31: 0 | IM31: 0 | IN31: 0 | IO31: 0 | IP31: 0 | IQ31: 0 | IR31: 0 | IS31: 0 | IT31: 0 | IU31: 0 | IV31: 0 | IW31: 0 | IX31: 0 | IY31: 0 | IZ31: 0 | JA31: 0 | JB31: =SUM(JB28:JB30) -> 0 | JC31: 0 | JD31: 0 | JE31: 0 | JF31: 0 | JG31: 0 | JH31: 0 | JI31: 0 | JJ31: 0 | JK31: 0 | JL31: 0 | JM31: 0 | JN31: 0 | JO31: 0 | JP31: 0 | JQ31: 0 | JR31: 0 | JS31: 0 | JT31: 0 | JU31: 0 | JV31: 0 | JW31: 0 | JX31: 0 | JY31: 0 | JZ31: 0 | KA31: 0 | KB31: 0 | KC31: 0 | KD31: 0 | KE31: 0 | KF31: 0 | KG31: 0 | KH31: 0 | KI31: 0 | KJ31: 0 | KK31: 0 | KL31: 0 | KM31: 0 | KN31: 0 | KO31: 0 | KP31: 0 | KQ31: 0 | KR31: 0 | KS31: 0 | KT31: 0 | KU31: 0 | KV31: 0 | KW31: 0 | KX31: 0 | KY31: 0 | KZ31: 0 | LA31: 0 | LB31: 0 | LC31: 0 | LD31: 0 | LE31: 0 | LF31: 0 | LG31: 0 | LH31: 0 | LI31: 0 | LJ31: 0 | LK31: 0 | LL31: 0 | LM31: 0 | LN31: =SUM(LN28:LN30) -> 0 | LO31: 0 | LP31: 0 | LQ31: 0 | LR31: 0 | LS31: 0 | LT31: 0 | LU31: 0 | LV31: 0 | LW31: 0 | LX31: 0 | LY31: 0 | LZ31: 0 | MA31: 0 | MB31: 0 | MC31: 0 | MD31: 0 | ME31: 0 | MF31: 0 | MG31: 0 | MH31: 0 | MI31: 0 | MJ31: 0 | MK31: 0 | ML31: 0 | MM31: 0 | MN31: 0 | MO31: 0 | MP31: 0 | MQ31: 0 | MR31: 0 | MS31: 0 | MT31: 0 | MU31: 0 | MV31: 0 | MW31: 0 | MX31: 0 | MY31: 0 | MZ31: 0 | NA31: 0 | NB31: 0 | NC31: 0 | ND31: 0 | NE31: 0 | NF31: 0 | NG31: 0 | NH31: 0 | NI31: 0 | NJ31: 0 | NK31: 0 | NL31: 0 | NM31: 0 | NN31: 0 | NO31: 0 | NP31: 0 | NQ31: 0 | NR31: 0 | NS31: 0 | NT31: 0 | NU31: 0 | NV31: 0 | NW31: 0 | NX31: 0 | NY31: 0 | NZ31: =SUM(NZ28:NZ30) -> 0 | OA31: 0 | OB31: 0 | OC31: 0 | OD31: 0 | OE31: 0 | OF31: 0 | OG31: 0 | OH31: 0 | OI31: 0 | OJ31: 0 | OK31: 0 | OL31: 0 | OM31: 0 | ON31: 0 | OO31: 0 | OP31: 0 | OQ31: 0 | OR31: 0 | OS31: 0 | OT31: 0 | OU31: 0 | OV31: 0 | OW31: 0 | OX31: 0 | OY31: 0 | OZ31: 0 | PA31: 0 | PB31: 0 | PC31: 0 | PD31: 0 | PE31: 0 | PF31: 0 | PG31: 0 | PH31: 0 | PI31: 0 | PJ31: 0 | PK31: 0 | PL31: 0 | PM31: 0 | PN31: 0 | PO31: 0 | PP31: 0 | PQ31: 0 | PR31: 0 | PS31: 0 | PT31: 0 | PU31: 0 | PV31: 0 | PW31: 0 | PX31: 0 | PY31: 0 | PZ31: 0 | QA31: 0 | QB31: 0 | QC31: =SUM(QC28:QC30) -> 0 | QE31: =SUM(QE28:QE30) -> 0 | QF31: =SUM(QF28:QF30) -> 0 | QG31: =SUM(QG28:QG30) -> 0 | QH31: =SUM(QH28:QH30) -> 0 | QI31: =SUM(QI28:QI30) -> 0 | QJ31: =SUM(QJ28:QJ30) -> 0 | QK31: =SUM(QK28:QK30) -> 0 | QL31: =SUM(QL28:QL30) -> 0 | QM31: =SUM(QM28:QM30) -> 0 | QN31: =SUM(QN28:QN30) -> 0 | QO31: =SUM(QO28:QO30) -> 0 | QP31: 0 | QQ31: =SUM(QQ28:QQ30) -> 0 | QR31: =SUM(QR28:QR30) -> 0 | QS31: =SUM(QS28:QS30) -> 0 | QT31: =SUM(QT28:QT30) -> 0 | QU31: =SUM(QU28:QU30) -> 0 | QV31: =SUM(QV28:QV30) -> 0 | QW31: =SUM(QW28:QW30) -> 0 | QX31: =SUM(QX28:QX30) -> 0 | QY31: =SUM(QY28:QY30) -> 0 | QZ31: =SUM(QZ28:QZ30) -> 0 | RA31: =SUM(RA28:RA30) -> 0 | RB31: 0 | RC31: =SUM(RC28:RC30) -> 0 | RD31: 0 | RE31: =SUM(RE28:RE30) -> 0 | RF31: =SUM(RF28:RF30) -> 0 | RG31: =SUM(RG28:RG30) -> 0 | RH31: =SUM(RH28:RH30) -> 0 | RI31: =SUM(RI28:RI30) -> 0 | RJ31: =SUM(RJ28:RJ30) -> 0 | RK31: 0 | RL31: =SUM(RL28:RL30) -> 0 | RM31: 0 | RN31: =SUM(RN28:RN30) -> 0 | RO31: =SUM(RO28:RO30) -> 0 | RP31: =SUM(RP28:RP30) -> 0 | RQ31: =SUM(RQ28:RQ30) -> 0 | RR31: =SUM(RR28:RR30) -> 0 | RS31: =SUM(RS28:RS30) -> 0 | RT31: =SUM(RT28:RT30) -> 0 | RU31: =SUM(RU28:RU30) -> 0 | RV31: =SUM(RV28:RV30) -> 0 | RW31: 0
D32: CONTRIBUTIVO | QC32: =SUM(E32:QB32)-SUM(PQ32:PT32)-SUM(PW32:PZ32) -> 0 | QE32: =SUM(E32:H32) -> 0 | QF32: =SUM(I32:BO32) -> 0 | QG32: =SUM(BP32:CW32) -> 0 | QH32: =SUM(CX32:DE32) -> 0 | QI32: =SUM(DF32:DT32) -> 0 | QJ32: =SUM(DU32:ET32) -> 0 | QK32: =SUM(EU32:FY32) -> 0 | QL32: =SUM(FZ32:HD32) -> 0 | QM32: =SUM(HE32:HF32) -> 0 | QN32: =SUM(HG32:HL32) -> 0 | QO32: =SUM(HM32:HR32) -> 0 | QP32: =SUM(HS32:IJ32) -> 0 | QQ32: =SUM(IK32:JA32) -> 0 | QR32: =SUM(JB32:JT32) -> 0 | QS32: =SUM(JU32:KD32) -> 0 | QT32: =SUM(KE32:KP32) -> 0 | QU32: =SUM(KQ32:MU32) -> 0 | QV32: =SUM(MV32:NG32) -> 0 | QW32: =SUM(NH32:NI32) -> 0 | QX32: =SUM(NJ32:NL32) -> 0 | QY32: =SUM(NM32:NO32) -> 0 | QZ32: =SUM(NP32) -> 0 | RA32: =SUM(NQ32) -> 0 | RB32: =SUM(NR32:NT32) -> 0 | RC32: =SUM(NU32) -> 0 | RD32: =SUM(NV32) -> 0 | RE32: =SUM(NW32:OB32) -> 0 | RF32: =SUM(OC32:PE32) -> 0 | RG32: =SUM(PF32:PG32) -> 0 | RH32: =SUM(PH32:PI32) -> 0 | RI32: =SUM(PJ32:PM32) -> 0 | RJ32: =SUM(PN32:PP32) -> 0 | RK32: =SUM(PQ32) -> 0 | RL32: =SUM(PR32) -> 0 | RM32: =SUM(PS32) -> 0 | RN32: =SUM(PT32:PV32) -> 0 | RO32: =SUM(PV32) -> 0 | RP32: =SUM(PV32) -> 0 | RQ32: =SUM(PW32) -> 0 | RR32: =SUM(PX32) -> 0 | RS32: =SUM(PY32) -> 0 | RT32: =SUM(PZ32) -> 0 | RU32: =SUM(QA32) -> 0 | RV32: =SUM(QB32) -> 0 | RW32: =SUM(QE32:RU32)-SUM(RI32:RM32)-SUM(RQ32:RT32) -> 0
D33: SUBSIDIADO | QC33: =SUM(E33:QB33)-SUM(PQ33:PT33)-SUM(PW33:PZ33) -> 0 | QE33: 0 | QF33: 0 | QG33: 0 | QH33: 0 | QI33: 0 | QJ33: 0 | QK33: 0 | QL33: 0 | QM33: 0 | QN33: 0 | QO33: 0 | QP33: 0 | QQ33: 0 | QR33: 0 | QS33: 0 | QT33: 0 | QU33: 0 | QV33: 0 | QW33: 0 | QX33: 0 | QY33: 0 | QZ33: 0 | RA33: 0 | RB33: 0 | RC33: 0 | RD33: 0 | RE33: 0 | RF33: 0 | RG33: 0 | RH33: 0 | RI33: 0 | RJ33: 0 | RK33: 0 | RL33: 0 | RM33: 0 | RN33: 0 | RO33: 0 | RP33: 0 | RQ33: 0 | RR33: 0 | RS33: 0 | RT33: 0 | RU33: 0 | RV33: 0 | RW33: 0
D34: POBRE NO ASEGURADO | QC34: =SUM(E34:QB34)-SUM(PQ34:PT34)-SUM(PW34:PZ34) -> 0 | QE34: 0 | QF34: 0 | QG34: 0 | QH34: 0 | QI34: 0 | QJ34: 0 | QK34: 0 | QL34: 0 | QM34: 0 | QN34: 0 | QO34: 0 | QP34: 0 | QQ34: 0 | QR34: 0 | QS34: 0 | QT34: 0 | QU34: 0 | QV34: 0 | QW34: 0 | QX34: 0 | QY34: 0 | QZ34: 0 | RA34: 0 | RB34: 0 | RC34: 0 | RD34: 0 | RE34: 0 | RF34: 0 | RG34: 0 | RH34: 0 | RI34: 0 | RJ34: 0 | RK34: 0 | RL34: 0 | RM34: 0 | RN34: 0 | RO34: 0 | RP34: 0 | RQ34: 0 | RR34: 0 | RS34: 0 | RT34: 0 | RU34: 0 | RV34: 0 | RW34: 0
D35: REGIMEN ESPECIAL | QC35: =SUM(E35:QB35)-SUM(PQ35:PT35)-SUM(PW35:PZ35) -> 0 | QE35: 0 | QF35: 0 | QG35: 0 | QH35: 0 | QI35: 0 | QJ35: 0 | QK35: 0 | QL35: 0 | QM35: 0 | QN35: 0 | QO35: 0 | QP35: 0 | QQ35: 0 | QR35: 0 | QS35: 0 | QT35: 0 | QU35: 0 | QV35: 0 | QW35: 0 | QX35: 0 | QY35: 0 | QZ35: 0 | RA35: 0 | RB35: 0 | RC35: 0 | RD35: 0 | RE35: 0 | RF35: 0 | RG35: 0 | RH35: 0 | RI35: 0 | RJ35: 0 | RK35: 0 | RL35: 0 | RM35: 0 | RN35: 0 | RO35: 0 | RP35: 0 | RQ35: 0 | RR35: 0 | RS35: 0 | RT35: 0 | RU35: 0 | RV35: 0 | RW35: 0
D36: TOTAL REGIMEN | E36: =SUM(E32:E35) -> 0 | F36: 0 | G36: 0 | H36: 0 | I36: 0 | J36: 0 | K36: 0 | L36: 0 | M36: 0 | N36: 0 | O36: 0 | P36: 0 | Q36: 0 | R36: 0 | S36: 0 | T36: 0 | U36: 0 | V36: 0 | W36: 0 | X36: 0 | Y36: 0 | Z36: 0 | AA36: 0 | AB36: 0 | AC36: 0 | AD36: 0 | AE36: 0 | AF36: 0 | AG36: 0 | AH36: 0 | AI36: 0 | AJ36: 0 | AK36: 0 | AL36: 0 | AM36: 0 | AN36: 0 | AO36: 0 | AP36: 0 | AQ36: 0 | AR36: 0 | AS36: 0 | AT36: 0 | AU36: 0 | AV36: 0 | AW36: 0 | AX36: 0 | AY36: 0 | AZ36: 0 | BA36: 0 | BB36: 0 | BC36: 0 | BD36: 0 | BE36: 0 | BF36: 0 | BG36: 0 | BH36: 0 | BI36: 0 | BJ36: 0 | BK36: 0 | BL36: 0 | BM36: 0 | BN36: 0 | BO36: 0 | BP36: 0 | BQ36: =SUM(BQ32:BQ35) -> 0 | BR36: 0 | BS36: 0 | BT36: 0 | BU36: 0 | BV36: 0 | BW36: 0 | BX36: 0 | BY36: 0 | BZ36: 0 | CA36: 0 | CB36: 0 | CC36: 0 | CD36: 0 | CE36: 0 | CF36: 0 | CG36: 0 | CH36: 0 | CI36: 0 | CJ36: 0 | CK36: 0 | CL36: 0 | CM36: 0 | CN36: 0 | CO36: 0 | CP36: 0 | CQ36: 0 | CR36: 0 | CS36: 0 | CT36: 0 | CU36: 0 | CV36: 0 | CW36: 0 | CX36: 0 | CY36: 0 | CZ36: 0 | DA36: 0 | DB36: 0 | DC36: 0 | DD36: 0 | DE36: 0 | DF36: 0 | DG36: 0 | DH36: 0 | DI36: 0 | DJ36: 0 | DK36: 0 | DL36: 0 | DM36: 0 | DN36: 0 | DO36: 0 | DP36: 0 | DQ36: 0 | DR36: 0 | DS36: 0 | DT36: 0 | DU36: 0 | DV36: 0 | DW36: 0 | DX36: 0 | DY36: 0 | DZ36: 0 | EA36: 0 | EB36: 0 | EC36: =SUM(EC32:EC35) -> 0 | ED36: 0 | EE36: 0 | EF36: 0 | EG36: 0 | EH36: 0 | EI36: 0 | EJ36: 0 | EK36: 0 | EL36: 0 | EM36: 0 | EN36: 0 | EO36: 0 | EP36: 0 | EQ36: 0 | ER36: 0 | ES36: 0 | ET36: 0 | EU36: 0 | EV36: 0 | EW36: 0 | EX36: 0 | EY36: 0 | EZ36: 0 | FA36: 0 | FB36: 0 | FC36: 0 | FD36: 0 | FE36: 0 | FF36: 0 | FG36: 0 | FH36: 0 | FI36: 0 | FJ36: 0 | FK36: 0 | FL36: 0 | FM36: 0 | FN36: 0 | FO36: 0 | FP36: 0 | FQ36: 0 | FR36: 0 | FS36: 0 | FT36: 0 | FU36: 0 | FV36: 0 | FW36: 0 | FX36: 0 | FY36: 0 | FZ36: 0 | GA36: 0 | GB36: 0 | GC36: 0 | GD36: 0 | GE36: 0 | GF36: 0 | GG36: 0 | GH36: 0 | GI36: 0 | GJ36: 0 | GK36: 0 | GL36: 0 | GM36: 0 | GN36: 0 | GO36: =SUM(GO32:GO35) -> 0 | GP36: 0 | GQ36: 0 | GR36: 0 | GS36: 0 | GT36: 0 | GU36: 0 | GV36: 0 | GW36: 0 | GX36: 0 | GY36: 0 | GZ36: 0 | HA36: 0 | HB36: 0 | HC36: 0 | HD36: 0 | HE36: 0 | HF36: 0 | HG36: 0 | HH36: 0 | HI36: 0 | HJ36: 0 | HK36: 0 | HL36: 0 | HM36: 0 | HN36: 0 | HO36: 0 | HP36: 0 | HQ36: 0 | HR36: 0 | HS36: 0 | HT36: 0 | HU36: 0 | HV36: 0 | HW36: 0 | HX36: 0 | HY36: 0 | HZ36: 0 | IA36: 0 | IB36: 0 | IC36: 0 | ID36: 0 | IE36: 0 | IF36: 0 | IG36: 0 | IH36: 0 | II36: 0 | IJ36: 0 | IK36: 0 | IL36: 0 | IM36: 0 | IN36: 0 | IO36: 0 | IP36: 0 | IQ36: 0 | IR36: 0 | IS36: 0 | IT36: 0 | IU36: 0 | IV36: 0 | IW36: 0 | IX36: 0 | IY36: 0 | IZ36: 0 | JA36: =SUM(JA32:JA35) -> 0 | JB36: 0 | JC36: 0 | JD36: 0 | JE36: 0 | JF36: 0 | JG36: 0 | JH36: 0 | JI36: 0 | JJ36: 0 | JK36: 0 | JL36: 0 | JM36: 0 | JN36: 0 | JO36: 0 | JP36: 0 | JQ36: 0 | JR36: 0 | JS36: 0 | JT36: 0 | JU36: 0 | JV36: 0 | JW36: 0 | JX36: 0 | JY36: 0 | JZ36: 0 | KA36: 0 | KB36: 0 | KC36: 0 | KD36: 0 | KE36: 0 | KF36: 0 | KG36: 0 | KH36: 0 | KI36: 0 | KJ36: 0 | KK36: 0 | KL36: 0 | KM36: 0 | KN36: 0 | KO36: 0 | KP36: 0 | KQ36: 0 | KR36: 0 | KS36: 0 | KT36: 0 | KU36: 0 | KV36: 0 | KW36: 0 | KX36: 0 | KY36: 0 | KZ36: 0 | LA36: 0 | LB36: 0 | LC36: 0 | LD36: 0 | LE36: 0 | LF36: 0 | LG36: 0 | LH36: 0 | LI36: 0 | LJ36: 0 | LK36: 0 | LL36: 0 | LM36: =SUM(LM32:LM35) -> 0 | LN36: 0 | LO36: 0 | LP36: 0 | LQ36: 0 | LR36: 0 | LS36: 0 | LT36: 0 | LU36: 0 | LV36: 0 | LW36: 0 | LX36: 0 | LY36: 0 | LZ36: 0 | MA36: 0 | MB36: 0 | MC36: 0 | MD36: 0 | ME36: 0 | MF36: 0 | MG36: 0 | MH36: 0 | MI36: 0 | MJ36: 0 | MK36: 0 | ML36: 0 | MM36: 0 | MN36: 0 | MO36: 0 | MP36: 0 | MQ36: 0 | MR36: 0 | MS36: 0 | MT36: 0 | MU36: 0 | MV36: 0 | MW36: 0 | MX36: 0 | MY36: 0 | MZ36: 0 | NA36: 0 | NB36: 0 | NC36: 0 | ND36: 0 | NE36: 0 | NF36: 0 | NG36: 0 | NH36: 0 | NI36: 0 | NJ36: 0 | NK36: 0 | NL36: 0 | NM36: 0 | NN36: 0 | NO36: 0 | NP36: 0 | NQ36: 0 | NR36: 0 | NS36: 0 | NT36: 0 | NU36: 0 | NV36: 0 | NW36: 0 | NX36: 0 | NY36: =SUM(NY32:NY35) -> 0 | NZ36: 0 | OA36: 0 | OB36: 0 | OC36: 0 | OD36: 0 | OE36: 0 | OF36: 0 | OG36: 0 | OH36: 0 | OI36: 0 | OJ36: 0 | OK36: 0 | OL36: 0 | OM36: 0 | ON36: 0 | OO36: 0 | OP36: 0 | OQ36: 0 | OR36: 0 | OS36: 0 | OT36: 0 | OU36: 0 | OV36: 0 | OW36: 0 | OX36: 0 | OY36: 0 | OZ36: 0 | PA36: 0 | PB36: 0 | PC36: 0 | PD36: 0 | PE36: 0 | PF36: 0 | PG36: 0 | PH36: 0 | PI36: 0 | PJ36: 0 | PK36: 0 | PL36: 0 | PM36: 0 | PN36: 0 | PO36: 0 | PP36: 0 | PQ36: 0 | PR36: 0 | PS36: 0 | PT36: 0 | PU36: 0 | PV36: 0 | PW36: 0 | PX36: 0 | PY36: 0 | PZ36: 0 | QA36: 0 | QB36: 0 | QC36: =SUM(QC32:QC35) -> 0 | QE36: =SUM(QE32:QE35) -> 0 | QF36: =SUM(QF32:QF35) -> 0 | QG36: =SUM(QG32:QG35) -> 0 | QH36: =SUM(QH32:QH35) -> 0 | QI36: =SUM(QI32:QI35) -> 0 | QJ36: =SUM(QJ32:QJ35) -> 0 | QK36: =SUM(QK32:QK35) -> 0 | QL36: =SUM(QL32:QL35) -> 0 | QM36: =SUM(QM32:QM35) -> 0 | QN36: =SUM(QN32:QN35) -> 0 | QO36: =SUM(QO32:QO35) -> 0 | QP36: 0 | QQ36: =SUM(QQ32:QQ35) -> 0 | QR36: =SUM(QR32:QR35) -> 0 | QS36: =SUM(QS32:QS35) -> 0 | QT36: =SUM(QT32:QT35) -> 0 | QU36: =SUM(QU32:QU35) -> 0 | QV36: =SUM(QV32:QV35) -> 0 | QW36: =SUM(QW32:QW35) -> 0 | QX36: =SUM(QX32:QX35) -> 0 | QY36: =SUM(QY32:QY35) -> 0 | QZ36: =SUM(QZ32:QZ35) -> 0 | RA36: =SUM(RA32:RA35) -> 0 | RB36: 0 | RC36: =SUM(RC32:RC35) -> 0 | RD36: 0 | RE36: =SUM(RE32:RE35) -> 0 | RF36: =SUM(RF32:RF35) -> 0 | RG36: =SUM(RG32:RG35) -> 0 | RH36: =SUM(RH32:RH35) -> 0 | RI36: =SUM(RI32:RI35) -> 0 | RJ36: =SUM(RJ32:RJ35) -> 0 | RK36: 0 | RL36: =SUM(RL32:RL35) -> 0 | RM36: 0 | RN36: =SUM(RN32:RN35) -> 0 | RO36: =SUM(RO32:RO35) -> 0 | RP36: =SUM(RP32:RP35) -> 0 | RQ36: =SUM(RQ32:RQ35) -> 0 | RR36: =SUM(RR32:RR35) -> 0 | RS36: =SUM(RS32:RS35) -> 0 | RT36: =SUM(RT32:RT35) -> 0 | RU36: =SUM(RU32:RU35) -> 0 | RV36: =SUM(RV32:RV35) -> 0 | RW36: 0
D37: INDIGENA | QC37: =SUM(E37:QB37)-SUM(PQ37:PT37)-SUM(PW37:PZ37) -> 0 | QE37: =SUM(E37:H37) -> 0 | QF37: =SUM(I37:BO37) -> 0 | QG37: =SUM(BP37:CW37) -> 0 | QH37: =SUM(CX37:DE37) -> 0 | QI37: =SUM(DF37:DT37) -> 0 | QJ37: =SUM(DU37:ET37) -> 0 | QK37: =SUM(EU37:FY37) -> 0 | QL37: =SUM(FZ37:HD37) -> 0 | QM37: =SUM(HE37:HF37) -> 0 | QN37: =SUM(HG37:HL37) -> 0 | QO37: =SUM(HM37:HR37) -> 0 | QP37: =SUM(HS37:IJ37) -> 0 | QQ37: =SUM(IK37:JA37) -> 0 | QR37: =SUM(JB37:JT37) -> 0 | QS37: =SUM(JU37:KD37) -> 0 | QT37: =SUM(KE37:KP37) -> 0 | QU37: =SUM(KQ37:MU37) -> 0 | QV37: =SUM(MV37:NG37) -> 0 | QW37: =SUM(NH37:NI37) -> 0 | QX37: =SUM(NJ37:NL37) -> 0 | QY37: =SUM(NM37:NO37) -> 0 | QZ37: =SUM(NP37) -> 0 | RA37: =SUM(NQ37) -> 0 | RB37: =SUM(NR37:NT37) -> 0 | RC37: =SUM(NU37) -> 0 | RD37: =SUM(NV37) -> 0 | RE37: =SUM(NW37:OB37) -> 0 | RF37: =SUM(OC37:PE37) -> 0 | RG37: =SUM(PF37:PG37) -> 0 | RH37: =SUM(PH37:PI37) -> 0 | RI37: =SUM(PJ37:PM37) -> 0 | RJ37: =SUM(PN37:PP37) -> 0 | RK37: =SUM(PQ37) -> 0 | RL37: =SUM(PR37) -> 0 | RM37: =SUM(PS37) -> 0 | RN37: =SUM(PT37:PV37) -> 0 | RO37: =SUM(PV37) -> 0 | RP37: =SUM(PV37) -> 0 | RQ37: =SUM(PW37) -> 0 | RR37: =SUM(PX37) -> 0 | RS37: =SUM(PY37) -> 0 | RT37: =SUM(PZ37) -> 0 | RU37: =SUM(QA37) -> 0 | RV37: =SUM(QB37) -> 0 | RW37: =SUM(QE37:RU37)-SUM(RI37:RM37)-SUM(RQ37:RT37) -> 0
D38: ROM (GITANO) | QC38: 0 | QE38: 0 | QF38: 0 | QG38: 0 | QH38: 0 | QI38: 0 | QJ38: 0 | QK38: 0 | QL38: 0 | QM38: 0 | QN38: 0 | QO38: 0 | QP38: 0 | QQ38: 0 | QR38: 0 | QS38: 0 | QT38: 0 | QU38: 0 | QV38: 0 | QW38: 0 | QX38: 0 | QY38: 0 | QZ38: 0 | RA38: 0 | RB38: 0 | RC38: 0 | RD38: 0 | RE38: 0 | RF38: 0 | RG38: 0 | RH38: 0 | RI38: 0 | RJ38: 0 | RK38: 0 | RL38: 0 | RM38: 0 | RN38: 0 | RO38: 0 | RP38: 0 | RQ38: 0 | RR38: 0 | RS38: 0 | RT38: 0 | RU38: 0 | RV38: 0 | RW38: 0
D39: RAIZAL | QC39: 0 | QE39: 0 | QF39: 0 | QG39: 0 | QH39: 0 | QI39: 0 | QJ39: 0 | QK39: 0 | QL39: 0 | QM39: 0 | QN39: 0 | QO39: 0 | QP39: 0 | QQ39: 0 | QR39: 0 | QS39: 0 | QT39: 0 | QU39: 0 | QV39: 0 | QW39: 0 | QX39: 0 | QY39: 0 | QZ39: 0 | RA39: 0 | RB39: 0 | RC39: 0 | RD39: 0 | RE39: 0 | RF39: 0 | RG39: 0 | RH39: 0 | RI39: 0 | RJ39: 0 | RK39: 0 | RL39: 0 | RM39: 0 | RN39: 0 | RO39: 0 | RP39: 0 | RQ39: 0 | RR39: 0 | RS39: 0 | RT39: 0 | RU39: 0 | RV39: 0 | RW39: 0
D40: PALENQUERO | QC40: 0 | QE40: 0 | QF40: 0 | QG40: 0 | QH40: 0 | QI40: 0 | QJ40: 0 | QK40: 0 | QL40: 0 | QM40: 0 | QN40: 0 | QO40: 0 | QP40: 0 | QQ40: 0 | QR40: 0 | QS40: 0 | QT40: 0 | QU40: 0 | QV40: 0 | QW40: 0 | QX40: 0 | QY40: 0 | QZ40: 0 | RA40: 0 | RB40: 0 | RC40: 0 | RD40: 0 | RE40: 0 | RF40: 0 | RG40: 0 | RH40: 0 | RI40: 0 | RJ40: 0 | RK40: 0 | RL40: 0 | RM40: 0 | RN40: 0 | RO40: 0 | RP40: 0 | RQ40: 0 | RR40: 0 | RS40: 0 | RT40: 0 | RU40: 0 | RV40: 0 | RW40: 0
D41: NEGRO(A), MULATO (A), AFROCOLOMBIANO (A) | QC41: 0 | QE41: 0 | QF41: 0 | QG41: 0 | QH41: 0 | QI41: 0 | QJ41: 0 | QK41: 0 | QL41: 0 | QM41: 0 | QN41: 0 | QO41: 0 | QP41: 0 | QQ41: 0 | QR41: 0 | QS41: 0 | QT41: 0 | QU41: 0 | QV41: 0 | QW41: 0 | QX41: 0 | QY41: 0 | QZ41: 0 | RA41: 0 | RB41: 0 | RC41: 0 | RD41: 0 | RE41: 0 | RF41: 0 | RG41: 0 | RH41: 0 | RI41: 0 | RJ41: 0 | RK41: 0 | RL41: 0 | RM41: 0 | RN41: 0 | RO41: 0 | RP41: 0 | RQ41: 0 | RR41: 0 | RS41: 0 | RT41: 0 | RU41: 0 | RV41: 0 | RW41: 0
D42: SIN PERTENENCIA ETNICA | QC42: 0 | QE42: 0 | QF42: 0 | QG42: 0 | QH42: 0 | QI42: 0 | QJ42: 0 | QK42: 0 | QL42: 0 | QM42: 0 | QN42: 0 | QO42: 0 | QP42: 0 | QQ42: 0 | QR42: 0 | QS42: 0 | QT42: 0 | QU42: 0 | QV42: 0 | QW42: 0 | QX42: 0 | QY42: 0 | QZ42: 0 | RA42: 0 | RB42: 0 | RC42: 0 | RD42: 0 | RE42: 0 | RF42: 0 | RG42: 0 | RH42: 0 | RI42: 0 | RJ42: 0 | RK42: 0 | RL42: 0 | RM42: 0 | RN42: 0 | RO42: 0 | RP42: 0 | RQ42: 0 | RR42: 0 | RS42: 0 | RT42: 0 | RU42: 0 | RV42: 0 | RW42: 0
D43: TOTAL ETNICOS | E43: =SUM(E37:E42) -> 0 | F43: 0 | G43: 0 | H43: 0 | I43: 0 | J43: 0 | K43: 0 | L43: 0 | M43: 0 | N43: 0 | O43: 0 | P43: 0 | Q43: 0 | R43: 0 | S43: 0 | T43: 0 | U43: 0 | V43: 0 | W43: 0 | X43: 0 | Y43: 0 | Z43: 0 | AA43: 0 | AB43: 0 | AC43: 0 | AD43: 0 | AE43: 0 | AF43: 0 | AG43: 0 | AH43: 0 | AI43: 0 | AJ43: 0 | AK43: 0 | AL43: 0 | AM43: 0 | AN43: 0 | AO43: 0 | AP43: 0 | AQ43: 0 | AR43: 0 | AS43: 0 | AT43: 0 | AU43: 0 | AV43: 0 | AW43: 0 | AX43: 0 | AY43: 0 | AZ43: 0 | BA43: 0 | BB43: 0 | BC43: 0 | BD43: 0 | BE43: 0 | BF43: 0 | BG43: 0 | BH43: 0 | BI43: 0 | BJ43: 0 | BK43: 0 | BL43: 0 | BM43: 0 | BN43: 0 | BO43: 0 | BP43: 0 | BQ43: =SUM(BQ37:BQ42) -> 0 | BR43: 0 | BS43: 0 | BT43: 0 | BU43: 0 | BV43: 0 | BW43: 0 | BX43: 0 | BY43: 0 | BZ43: 0 | CA43: 0 | CB43: 0 | CC43: 0 | CD43: 0 | CE43: 0 | CF43: 0 | CG43: 0 | CH43: 0 | CI43: 0 | CJ43: 0 | CK43: 0 | CL43: 0 | CM43: 0 | CN43: 0 | CO43: 0 | CP43: 0 | CQ43: 0 | CR43: 0 | CS43: 0 | CT43: 0 | CU43: 0 | CV43: 0 | CW43: 0 | CX43: 0 | CY43: 0 | CZ43: 0 | DA43: 0 | DB43: 0 | DC43: 0 | DD43: 0 | DE43: 0 | DF43: 0 | DG43: 0 | DH43: 0 | DI43: 0 | DJ43: 0 | DK43: 0 | DL43: 0 | DM43: 0 | DN43: 0 | DO43: 0 | DP43: 0 | DQ43: 0 | DR43: 0 | DS43: 0 | DT43: 0 | DU43: 0 | DV43: 0 | DW43: 0 | DX43: 0 | DY43: 0 | DZ43: 0 | EA43: 0 | EB43: 0 | EC43: =SUM(EC37:EC42) -> 0 | ED43: 0 | EE43: 0 | EF43: 0 | EG43: 0 | EH43: 0 | EI43: 0 | EJ43: 0 | EK43: 0 | EL43: 0 | EM43: 0 | EN43: 0 | EO43: 0 | EP43: 0 | EQ43: 0 | ER43: 0 | ES43: 0 | ET43: 0 | EU43: 0 | EV43: 0 | EW43: 0 | EX43: 0 | EY43: 0 | EZ43: 0 | FA43: 0 | FB43: 0 | FC43: 0 | FD43: 0 | FE43: 0 | FF43: 0 | FG43: 0 | FH43: 0 | FI43: 0 | FJ43: 0 | FK43: 0 | FL43: 0 | FM43: 0 | FN43: 0 | FO43: 0 | FP43: 0 | FQ43: 0 | FR43: 0 | FS43: 0 | FT43: 0 | FU43: 0 | FV43: 0 | FW43: 0 | FX43: 0 | FY43: 0 | FZ43: 0 | GA43: 0 | GB43: 0 | GC43: 0 | GD43: 0 | GE43: 0 | GF43: 0 | GG43: 0 | GH43: 0 | GI43: 0 | GJ43: 0 | GK43: 0 | GL43: 0 | GM43: 0 | GN43: 0 | GO43: =SUM(GO37:GO42) -> 0 | GP43: 0 | GQ43: 0 | GR43: 0 | GS43: 0 | GT43: 0 | GU43: 0 | GV43: 0 | GW43: 0 | GX43: 0 | GY43: 0 | GZ43: 0 | HA43: 0 | HB43: 0 | HC43: 0 | HD43: 0 | HE43: 0 | HF43: 0 | HG43: 0 | HH43: 0 | HI43: 0 | HJ43: 0 | HK43: 0 | HL43: 0 | HM43: 0 | HN43: 0 | HO43: 0 | HP43: 0 | HQ43: 0 | HR43: 0 | HS43: 0 | HT43: 0 | HU43: 0 | HV43: 0 | HW43: 0 | HX43: 0 | HY43: 0 | HZ43: 0 | IA43: 0 | IB43: 0 | IC43: 0 | ID43: 0 | IE43: 0 | IF43: 0 | IG43: 0 | IH43: 0 | II43: 0 | IJ43: 0 | IK43: 0 | IL43: 0 | IM43: 0 | IN43: 0 | IO43: 0 | IP43: 0 | IQ43: 0 | IR43: 0 | IS43: 0 | IT43: 0 | IU43: 0 | IV43: 0 | IW43: 0 | IX43: 0 | IY43: 0 | IZ43: 0 | JA43: =SUM(JA37:JA42) -> 0 | JB43: 0 | JC43: 0 | JD43: 0 | JE43: 0 | JF43: 0 | JG43: 0 | JH43: 0 | JI43: 0 | JJ43: 0 | JK43: 0 | JL43: 0 | JM43: 0 | JN43: 0 | JO43: 0 | JP43: 0 | JQ43: 0 | JR43: 0 | JS43: 0 | JT43: 0 | JU43: 0 | JV43: 0 | JW43: 0 | JX43: 0 | JY43: 0 | JZ43: 0 | KA43: 0 | KB43: 0 | KC43: 0 | KD43: 0 | KE43: 0 | KF43: 0 | KG43: 0 | KH43: 0 | KI43: 0 | KJ43: 0 | KK43: 0 | KL43: 0 | KM43: 0 | KN43: 0 | KO43: 0 | KP43: 0 | KQ43: 0 | KR43: 0 | KS43: 0 | KT43: 0 | KU43: 0 | KV43: 0 | KW43: 0 | KX43: 0 | KY43: 0 | KZ43: 0 | LA43: 0 | LB43: 0 | LC43: 0 | LD43: 0 | LE43: 0 | LF43: 0 | LG43: 0 | LH43: 0 | LI43: 0 | LJ43: 0 | LK43: 0 | LL43: 0 | LM43: =SUM(LM37:LM42) -> 0 | LN43: 0 | LO43: 0 | LP43: 0 | LQ43: 0 | LR43: 0 | LS43: 0 | LT43: 0 | LU43: 0 | LV43: 0 | LW43: 0 | LX43: 0 | LY43: 0 | LZ43: 0 | MA43: 0 | MB43: 0 | MC43: 0 | MD43: 0 | ME43: 0 | MF43: 0 | MG43: 0 | MH43: 0 | MI43: 0 | MJ43: 0 | MK43: 0 | ML43: 0 | MM43: 0 | MN43: 0 | MO43: 0 | MP43: 0 | MQ43: 0 | MR43: 0 | MS43: 0 | MT43: 0 | MU43: 0 | MV43: 0 | MW43: 0 | MX43: 0 | MY43: 0 | MZ43: 0 | NA43: 0 | NB43: 0 | NC43: 0 | ND43: 0 | NE43: 0 | NF43: 0 | NG43: 0 | NH43: 0 | NI43: 0 | NJ43: 0 | NK43: 0 | NL43: 0 | NM43: 0 | NN43: 0 | NO43: 0 | NP43: 0 | NQ43: 0 | NR43: 0 | NS43: 0 | NT43: 0 | NU43: 0 | NV43: 0 | NW43: 0 | NX43: 0 | NY43: =SUM(NY37:NY42) -> 0 | NZ43: 0 | OA43: 0 | OB43: 0 | OC43: 0 | OD43: 0 | OE43: 0 | OF43: 0 | OG43: 0 | OH43: 0 | OI43: 0 | OJ43: 0 | OK43: 0 | OL43: 0 | OM43: 0 | ON43: 0 | OO43: 0 | OP43: 0 | OQ43: 0 | OR43: 0 | OS43: 0 | OT43: 0 | OU43: 0 | OV43: 0 | OW43: 0 | OX43: 0 | OY43: 0 | OZ43: 0 | PA43: 0 | PB43: 0 | PC43: 0 | PD43: 0 | PE43: 0 | PF43: 0 | PG43: 0 | PH43: 0 | PI43: 0 | PJ43: 0 | PK43: 0 | PL43: 0 | PM43: 0 | PN43: 0 | PO43: 0 | PP43: 0 | PQ43: 0 | PR43: 0 | PS43: 0 | PT43: 0 | PU43: 0 | PV43: 0 | PW43: 0 | PX43: 0 | PY43: 0 | PZ43: 0 | QA43: 0 | QB43: 0 | QC43: =SUM(QC37:QC42) -> 0 | QE43: =SUM(QE37:QE42) -> 0 | QF43: =SUM(QF37:QF42) -> 0 | QG43: =SUM(QG37:QG42) -> 0 | QH43: =SUM(QH37:QH42) -> 0 | QI43: =SUM(QI37:QI42) -> 0 | QJ43: =SUM(QJ37:QJ42) -> 0 | QK43: =SUM(QK37:QK42) -> 0 | QL43: =SUM(QL37:QL42) -> 0 | QM43: =SUM(QM37:QM42) -> 0 | QN43: =SUM(QN37:QN42) -> 0 | QO43: =SUM(QO37:QO42) -> 0 | QP43: 0 | QQ43: =SUM(QQ37:QQ42) -> 0 | QR43: =SUM(QR37:QR42) -> 0 | QS43: =SUM(QS37:QS42) -> 0 | QT43: =SUM(QT37:QT42) -> 0 | QU43: =SUM(QU37:QU42) -> 0 | QV43: =SUM(QV37:QV42) -> 0 | QW43: =SUM(QW37:QW42) -> 0 | QX43: =SUM(QX37:QX42) -> 0 | QY43: =SUM(QY37:QY42) -> 0 | QZ43: =SUM(QZ37:QZ42) -> 0 | RA43: =SUM(RA37:RA42) -> 0 | RB43: 0 | RC43: =SUM(RC37:RC42) -> 0 | RD43: 0 | RE43: =SUM(RE37:RE42) -> 0 | RF43: =SUM(RF37:RF42) -> 0 | RG43: =SUM(RG37:RG42) -> 0 | RH43: =SUM(RH37:RH42) -> 0 | RI43: =SUM(RI37:RI42) -> 0 | RJ43: =SUM(RJ37:RJ42) -> 0 | RK43: 0 | RL43: =SUM(RL37:RL42) -> 0 | RM43: 0 | RN43: =SUM(RN37:RN42) -> 0 | RO43: =SUM(RO37:RO42) -> 0 | RP43: =SUM(RP37:RP42) -> 0 | RQ43: =SUM(RQ37:RQ42) -> 0 | RR43: =SUM(RR37:RR42) -> 0 | RS43: =SUM(RS37:RS42) -> 0 | RT43: =SUM(RT37:RT42) -> 0 | RU43: =SUM(RU37:RU42) -> 0 | RV43: =SUM(RV37:RV42) -> 0 | RW43: 0
D44: EN SITUACION DE DESPLAZAMIENTO | QC44: =SUM(E44:QB44)-SUM(PQ44:PT44)-SUM(PW44:PZ44) -> 0 | QE44: =SUM(E44:H44) -> 0 | QF44: =SUM(I44:BO44) -> 0 | QG44: =SUM(BP44:CW44) -> 0 | QH44: =SUM(CX44:DE44) -> 0 | QI44: =SUM(DF44:DT44) -> 0 | QJ44: =SUM(DU44:ET44) -> 0 | QK44: =SUM(EU44:FY44) -> 0 | QL44: =SUM(FZ44:HD44) -> 0 | QM44: =SUM(HE44:HF44) -> 0 | QN44: =SUM(HG44:HL44) -> 0 | QO44: =SUM(HM44:HR44) -> 0 | QP44: =SUM(HS44:IJ44) -> 0 | QQ44: =SUM(IK44:JA44) -> 0 | QR44: =SUM(JB44:JT44) -> 0 | QS44: =SUM(JU44:KD44) -> 0 | QT44: =SUM(KE44:KP44) -> 0 | QU44: =SUM(KQ44:MU44) -> 0 | QV44: =SUM(MV44:NG44) -> 0 | QW44: =SUM(NH44:NI44) -> 0 | QX44: =SUM(NJ44:NL44) -> 0 | QY44: =SUM(NM44:NO44) -> 0 | QZ44: =SUM(NP44) -> 0 | RA44: =SUM(NQ44) -> 0 | RB44: =SUM(NR44:NT44) -> 0 | RC44: =SUM(NU44) -> 0 | RD44: =SUM(NV44) -> 0 | RE44: =SUM(NW44:OB44) -> 0 | RF44: =SUM(OC44:PE44) -> 0 | RG44: =SUM(PF44:PG44) -> 0 | RH44: =SUM(PH44:PI44) -> 0 | RI44: =SUM(PJ44:PM44) -> 0 | RJ44: =SUM(PN44:PP44) -> 0 | RK44: =SUM(PQ44) -> 0 | RL44: =SUM(PR44) -> 0 | RM44: =SUM(PS44) -> 0 | RN44: =SUM(PT44:PV44) -> 0 | RO44: =SUM(PV44) -> 0 | RP44: =SUM(PV44) -> 0 | RQ44: =SUM(PW44) -> 0 | RR44: =SUM(PX44) -> 0 | RS44: =SUM(PY44) -> 0 | RT44: =SUM(PZ44) -> 0 | RU44: =SUM(QA44) -> 0 | RV44: =SUM(QB44) -> 0 | RW44: =SUM(QE44:RU44)-SUM(RI44:RM44)-SUM(RQ44:RT44) -> 0
D45: EN CONDICION DE DISCAPACIDAD | QC45: 0 | QE45: 0 | QF45: 0 | QG45: 0 | QH45: 0 | QI45: 0 | QJ45: 0 | QK45: 0 | QL45: 0 | QM45: 0 | QN45: 0 | QO45: 0 | QP45: 0 | QQ45: 0 | QR45: 0 | QS45: 0 | QT45: 0 | QU45: 0 | QV45: 0 | QW45: 0 | QX45: 0 | QY45: 0 | QZ45: 0 | RA45: 0 | RB45: 0 | RC45: 0 | RD45: 0 | RE45: 0 | RF45: 0 | RG45: 0 | RH45: 0 | RI45: 0 | RJ45: 0 | RK45: 0 | RL45: 0 | RM45: 0 | RN45: 0 | RO45: 0 | RP45: 0 | RQ45: 0 | RR45: 0 | RS45: 0 | RT45: 0 | RU45: 0 | RV45: 0 | RW45: 0
D46: VICTIMAS DEL CONFLICTO ARMADO | QC46: 0 | QE46: 0 | QF46: 0 | QG46: 0 | QH46: 0 | QI46: 0 | QJ46: 0 | QK46: 0 | QL46: 0 | QM46: 0 | QN46: 0 | QO46: 0 | QP46: 0 | QQ46: 0 | QR46: 0 | QS46: 0 | QT46: 0 | QU46: 0 | QV46: 0 | QW46: 0 | QX46: 0 | QY46: 0 | QZ46: 0 | RA46: 0 | RB46: 0 | RC46: 0 | RD46: 0 | RE46: 0 | RF46: 0 | RG46: 0 | RH46: 0 | RI46: 0 | RJ46: 0 | RK46: 0 | RL46: 0 | RM46: 0 | RN46: 0 | RO46: 0 | RP46: 0 | RQ46: 0 | RR46: 0 | RS46: 0 | RT46: 0 | RU46: 0 | RV46: 0 | RW46: 0
D47: ZONAS VEREDALES | QC47: 0 | QD47: =CONCATENATE($G$2,$B$28) -> 11 | QE47: =SUM(E47:H47) -> 0 | QF47: =SUM(I47:BN47) -> 0 | QG47: =SUM(BP47:CW47) -> 0 | QH47: =SUM(CX47:DE47) -> 0 | QI47: =SUM(DF47:DT47) -> 0 | QJ47: =SUM(DU47:ET47) -> 0 | QK47: =SUM(EU47:FY47) -> 0 | QL47: =SUM(FZ47:HD47) -> 0 | QM47: =SUM(HE47:HF47) -> 0 | QN47: =SUM(HG47:HL47) -> 0 | QO47: =SUM(HR47:II47) -> 0 | QP47: 0 | QQ47: =SUM(IK47:JA47) -> 0 | QR47: =SUM(JB47:JT47) -> 0 | QS47: =SUM(JU47:KD47) -> 0 | QT47: =SUM(KE47:KP47) -> 0 | QU47: =SUM(KQ47:MU47) -> 0 | QV47: =SUM(MV47:NG47) -> 0 | QW47: =SUM(NH47:NL47) -> 0 | QX47: =SUM(NM47:NO47) -> 0 | QY47: 0 | QZ47: =SUM(NP47) -> 0 | RA47: 0 | RB47: =SUM(NS47:NT47) -> 0 | RC47: 0 | RD47: 0 | RE47: =SUM(NZ47:OB47) -> 0 | RF47: =SUM(OC47:PE47) -> 0 | RG47: =SUM(PF47:PI47) -> 0 | RH47: =SUM(PJ47:PP47) -> 0 | RI47: =PQ47 -> 0 | RJ47: =PR47 -> 0 | RK47: =SUM(PQ47) -> 0 | RL47: 0 | RM47: 0 | RN47: 0 | RO47: 0 | RP47: 0 | RQ47: 0 | RR47: 0 | RS47: 0 | RT47: 0 | RU47: 0 | RV47: 0 | RW47: =SUM(QE47:RU47)-SUM(RI47:RM47)-SUM(RQ47:RT47) -> 0
D48: FEMENINO | QC48: 0 | QE48: 0 | QF48: =SUM(I48:BO48) -> 0 | QG48: 0 | QH48: 0 | QI48: 0 | QJ48: 0 | QK48: 0 | QL48: 0 | QM48: 0 | QN48: 0 | QO48: =SUM(HM48:HR48) -> 0 | QP48: 0 | QQ48: 0 | QR48: 0 | QS48: 0 | QT48: 0 | QU48: 0 | QV48: 0 | QW48: =SUM(NH48:NI48) -> 0 | QX48: =SUM(NJ48:NL48) -> 0 | QY48: =SUM(NM48:NO48) -> 0 | QZ48: 0 | RA48: 0 | RB48: =SUM(NR48:NT48) -> 0 | RC48: =SUM(NU48) -> 0 | RD48: =SUM(NV48) -> 0 | RE48: =SUM(NW48:OB48) -> 0 | RF48: =SUM(OC48:PE48) -> 0 | RG48: =SUM(PF48:PG48) -> 0 | RH48: =SUM(PH48:PI48) -> 0 | RI48: =SUM(PJ48:PM48) -> 0 | RJ48: =SUM(PN48:PP48) -> 0 | RK48: =SUM(PQ48) -> 0 | RL48: =SUM(PR48) -> 0 | RM48: =SUM(PS48) -> 0 | RN48: =SUM(PT48:PV48) -> 0 | RO48: =SUM(PV48) -> 0 | RP48: =SUM(PV48) -> 0 | RQ48: =SUM(PW48) -> 0 | RR48: =SUM(PX48) -> 0 | RS48: =SUM(PY48) -> 0 | RT48: =SUM(PZ48) -> 0 | RU48: =SUM(QA48) -> 0 | RV48: =SUM(QB48) -> 0 | RW48: =SUM(QE48:RU48)-SUM(RI48:RM48)-SUM(RQ48:RT48) -> 0
D49: MASCULINO | QC49: 0 | QE49: 0 | QF49: 0 | QG49: 0 | QH49: 0 | QI49: 0 | QJ49: 0 | QK49: 0 | QL49: 0 | QM49: 0 | QN49: 0 | QO49: 0 | QP49: 0 | QQ49: 0 | QR49: 0 | QS49: 0 | QT49: 0 | QU49: 0 | QV49: 0 | QW49: 0 | QX49: 0 | QY49: 0 | QZ49: 0 | RA49: 0 | RB49: 0 | RC49: 0 | RD49: 0 | RE49: 0 | RF49: 0 | RG49: 0 | RH49: 0 | RI49: 0 | RJ49: 0 | RK49: 0 | RL49: 0 | RM49: 0 | RN49: 0 | RO49: 0 | RP49: 0 | RQ49: 0 | RR49: 0 | RS49: 0 | RT49: 0 | RU49: 0 | RV49: 0 | RW49: 0
D50: OTRO | QC50: 0 | QE50: 0 | QF50: 0 | QG50: 0 | QH50: 0 | QI50: 0 | QJ50: 0 | QK50: 0 | QL50: 0 | QM50: 0 | QN50: 0 | QO50: 0 | QP50: 0 | QQ50: 0 | QR50: 0 | QS50: 0 | QT50: 0 | QU50: 0 | QV50: 0 | QW50: 0 | QX50: 0 | QY50: 0 | QZ50: 0 | RA50: 0 | RB50: 0 | RC50: 0 | RD50: 0 | RE50: 0 | RF50: 0 | RG50: 0 | RH50: 0 | RI50: 0 | RJ50: 0 | RK50: 0 | RL50: 0 | RM50: 0 | RN50: 0 | RO50: 0 | RP50: 0 | RQ50: 0 | RR50: 0 | RS50: 0 | RT50: 0 | RU50: 0 | RV50: 0 | RW50: 0
D51: TOTAL GENERO | E51: =SUM(E48:E50) -> 0 | F51: 0 | G51: 0 | H51: 0 | I51: 0 | J51: 0 | K51: 0 | L51: 0 | M51: 0 | N51: 0 | O51: 0 | P51: 0 | Q51: 0 | R51: 0 | S51: 0 | T51: 0 | U51: 0 | V51: 0 | W51: 0 | X51: 0 | Y51: 0 | Z51: 0 | AA51: 0 | AB51: 0 | AC51: 0 | AD51: 0 | AE51: 0 | AF51: 0 | AG51: 0 | AH51: 0 | AI51: 0 | AJ51: 0 | AK51: 0 | AL51: 0 | AM51: 0 | AN51: 0 | AO51: 0 | AP51: 0 | AQ51: 0 | AR51: 0 | AS51: 0 | AT51: 0 | AU51: 0 | AV51: 0 | AW51: 0 | AX51: 0 | AY51: 0 | AZ51: 0 | BA51: 0 | BB51: 0 | BC51: 0 | BD51: 0 | BE51: 0 | BF51: 0 | BG51: 0 | BH51: 0 | BI51: 0 | BJ51: 0 | BK51: 0 | BL51: 0 | BM51: 0 | BN51: 0 | BO51: 0 | BP51: 0 | BQ51: =SUM(BQ48:BQ50) -> 0 | BR51: 0 | BS51: 0 | BT51: 0 | BU51: 0 | BV51: 0 | BW51: 0 | BX51: 0 | BY51: 0 | BZ51: 0 | CA51: 0 | CB51: 0 | CC51: 0 | CD51: 0 | CE51: 0 | CF51: 0 | CG51: 0 | CH51: 0 | CI51: 0 | CJ51: 0 | CK51: 0 | CL51: 0 | CM51: 0 | CN51: 0 | CO51: 0 | CP51: 0 | CQ51: 0 | CR51: 0 | CS51: 0 | CT51: 0 | CU51: 0 | CV51: 0 | CW51: 0 | CX51: 0 | CY51: 0 | CZ51: 0 | DA51: 0 | DB51: 0 | DC51: 0 | DD51: 0 | DE51: 0 | DF51: 0 | DG51: 0 | DH51: 0 | DI51: 0 | DJ51: 0 | DK51: 0 | DL51: 0 | DM51: 0 | DN51: 0 | DO51: 0 | DP51: 0 | DQ51: 0 | DR51: 0 | DS51: 0 | DT51: 0 | DU51: 0 | DV51: 0 | DW51: 0 | DX51: 0 | DY51: 0 | DZ51: 0 | EA51: 0 | EB51: 0 | EC51: =SUM(EC48:EC50) -> 0 | ED51: 0 | EE51: 0 | EF51: 0 | EG51: 0 | EH51: 0 | EI51: 0 | EJ51: 0 | EK51: 0 | EL51: 0 | EM51: 0 | EN51: 0 | EO51: 0 | EP51: 0 | EQ51: 0 | ER51: 0 | ES51: 0 | ET51: 0 | EU51: 0 | EV51: 0 | EW51: 0 | EX51: 0 | EY51: 0 | EZ51: 0 | FA51: 0 | FB51: 0 | FC51: 0 | FD51: 0 | FE51: 0 | FF51: 0 | FG51: 0 | FH51: 0 | FI51: 0 | FJ51: 0 | FK51: 0 | FL51: 0 | FM51: 0 | FN51: 0 | FO51: 0 | FP51: 0 | FQ51: 0 | FR51: 0 | FS51: 0 | FT51: 0 | FU51: 0 | FV51: 0 | FW51: 0 | FX51: 0 | FY51: 0 | FZ51: 0 | GA51: 0 | GB51: 0 | GC51: 0 | GD51: 0 | GE51: 0 | GF51: 0 | GG51: 0 | GH51: 0 | GI51: 0 | GJ51: 0 | GK51: 0 | GL51: 0 | GM51: 0 | GN51: 0 | GO51: =SUM(GO48:GO50) -> 0 | GP51: 0 | GQ51: 0 | GR51: 0 | GS51: 0 | GT51: 0 | GU51: 0 | GV51: 0 | GW51: 0 | GX51: 0 | GY51: 0 | GZ51: 0 | HA51: 0 | HB51: 0 | HC51: 0 | HD51: 0 | HE51: 0 | HF51: 0 | HG51: 0 | HH51: 0 | HI51: 0 | HJ51: 0 | HK51: 0 | HL51: 0 | HM51: 0 | HN51: 0 | HO51: 0 | HP51: 0 | HQ51: 0 | HR51: 0 | HS51: 0 | HT51: 0 | HU51: 0 | HV51: 0 | HW51: 0 | HX51: 0 | HY51: 0 | HZ51: 0 | IA51: 0 | IB51: 0 | IC51: 0 | ID51: 0 | IE51: 0 | IF51: 0 | IG51: 0 | IH51: 0 | II51: 0 | IJ51: 0 | IK51: 0 | IL51: 0 | IM51: 0 | IN51: 0 | IO51: 0 | IP51: 0 | IQ51: 0 | IR51: 0 | IS51: 0 | IT51: 0 | IU51: 0 | IV51: 0 | IW51: 0 | IX51: 0 | IY51: 0 | IZ51: 0 | JA51: =SUM(JA48:JA50) -> 0 | JB51: 0 | JC51: 0 | JD51: 0 | JE51: 0 | JF51: 0 | JG51: 0 | JH51: 0 | JI51: 0 | JJ51: 0 | JK51: 0 | JL51: 0 | JM51: 0 | JN51: 0 | JO51: 0 | JP51: 0 | JQ51: 0 | JR51: 0 | JS51: 0 | JT51: 0 | JU51: 0 | JV51: 0 | JW51: 0 | JX51: 0 | JY51: 0 | JZ51: 0 | KA51: 0 | KB51: 0 | KC51: 0 | KD51: 0 | KE51: 0 | KF51: 0 | KG51: 0 | KH51: 0 | KI51: 0 | KJ51: 0 | KK51: 0 | KL51: 0 | KM51: 0 | KN51: 0 | KO51: 0 | KP51: 0 | KQ51: 0 | KR51: 0 | KS51: 0 | KT51: 0 | KU51: 0 | KV51: 0 | KW51: 0 | KX51: 0 | KY51: 0 | KZ51: 0 | LA51: 0 | LB51: 0 | LC51: 0 | LD51: 0 | LE51: 0 | LF51: 0 | LG51: 0 | LH51: 0 | LI51: 0 | LJ51: 0 | LK51: 0 | LL51: 0 | LM51: =SUM(LM48:LM50) -> 0 | LN51: 0 | LO51: 0 | LP51: 0 | LQ51: 0 | LR51: 0 | LS51: 0 | LT51: 0 | LU51: 0 | LV51: 0 | LW51: 0 | LX51: 0 | LY51: 0 | LZ51: 0 | MA51: 0 | MB51: 0 | MC51: 0 | MD51: 0 | ME51: 0 | MF51: 0 | MG51: 0 | MH51: 0 | MI51: 0 | MJ51: 0 | MK51: 0 | ML51: 0 | MM51: 0 | MN51: 0 | MO51: 0 | MP51: 0 | MQ51: 0 | MR51: 0 | MS51: 0 | MT51: 0 | MU51: 0 | MV51: 0 | MW51: 0 | MX51: 0 | MY51: 0 | MZ51: 0 | NA51: 0 | NB51: 0 | NC51: 0 | ND51: 0 | NE51: 0 | NF51: 0 | NG51: 0 | NH51: 0 | NI51: 0 | NJ51: 0 | NK51: 0 | NL51: 0 | NM51: 0 | NN51: 0 | NO51: 0 | NP51: 0 | NQ51: 0 | NR51: 0 | NS51: 0 | NT51: 0 | NU51: 0 | NV51: 0 | NW51: 0 | NX51: 0 | NY51: =SUM(NY48:NY50) -> 0 | NZ51: 0 | OA51: 0 | OB51: 0 | OC51: 0 | OD51: 0 | OE51: 0 | OF51: 0 | OG51: 0 | OH51: 0 | OI51: 0 | OJ51: 0 | OK51: 0 | OL51: 0 | OM51: 0 | ON51: 0 | OO51: 0 | OP51: 0 | OQ51: 0 | OR51: 0 | OS51: 0 | OT51: 0 | OU51: 0 | OV51: 0 | OW51: 0 | OX51: 0 | OY51: 0 | OZ51: 0 | PA51: 0 | PB51: 0 | PC51: 0 | PD51: 0 | PE51: 0 | PF51: 0 | PG51: 0 | PH51: 0 | PI51: 0 | PJ51: 0 | PK51: 0 | PL51: 0 | PM51: 0 | PN51: 0 | PO51: 0 | PP51: 0 | PQ51: 0 | PR51: 0 | PS51: 0 | PT51: 0 | PU51: 0 | PV51: 0 | PW51: 0 | PX51: 0 | PY51: 0 | PZ51: 0 | QA51: 0 | QB51: 0 | QC51: =SUM(QC48:QC50) -> 0 | QE51: =SUM(QE48:QE50) -> 0 | QF51: =SUM(QF48:QF50) -> 0 | QG51: =SUM(QG48:QG50) -> 0 | QH51: =SUM(QH48:QH50) -> 0 | QI51: =SUM(QI48:QI50) -> 0 | QJ51: =SUM(QJ48:QJ50) -> 0 | QK51: =SUM(QK48:QK50) -> 0 | QL51: =SUM(QL48:QL50) -> 0 | QM51: =SUM(QM48:QM50) -> 0 | QN51: =SUM(QN48:QN50) -> 0 | QO51: =SUM(QO48:QO50) -> 0 | QP51: 0 | QQ51: =SUM(QQ48:QQ50) -> 0 | QR51: =SUM(QR48:QR50) -> 0 | QS51: =SUM(QS48:QS50) -> 0 | QT51: =SUM(QT48:QT50) -> 0 | QU51: =SUM(QU48:QU50) -> 0 | QV51: =SUM(QV48:QV50) -> 0 | QW51: =SUM(QW48:QW50) -> 0 | QX51: =SUM(QX48:QX50) -> 0 | QY51: =SUM(QY48:QY50) -> 0 | QZ51: =SUM(QZ48:QZ50) -> 0 | RA51: =SUM(RA48:RA50) -> 0 | RB51: 0 | RC51: =SUM(RC48:RC50) -> 0 | RD51: 0 | RE51: =SUM(RE48:RE50) -> 0 | RF51: =SUM(RF48:RF50) -> 0 | RG51: =SUM(RG48:RG50) -> 0 | RH51: =SUM(RH48:RH50) -> 0 | RI51: =SUM(RI48:RI50) -> 0 | RJ51: =SUM(RJ48:RJ50) -> 0 | RK51: 0 | RL51: =SUM(RL48:RL50) -> 0 | RM51: 0 | RN51: =SUM(RN48:RN50) -> 0 | RO51: =SUM(RO48:RO50) -> 0 | RP51: =SUM(RP48:RP50) -> 0 | RQ51: =SUM(RQ48:RQ50) -> 0 | RR51: =SUM(RR48:RR50) -> 0 | RS51: =SUM(RS48:RS50) -> 0 | RT51: =SUM(RT48:RT50) -> 0 | RU51: =SUM(RU48:RU50) -> 0 | RV51: =SUM(RV48:RV50) -> 0 | RW51: 0
D52: CONTRIBUTIVO | QC52: =SUM(E52:QB52)-SUM(PQ52:PT52)-SUM(PW52:PZ52) -> 0 | QE52: =SUM(E52:H52) -> 0 | QF52: =SUM(I52:BO52) -> 0 | QG52: =SUM(BP52:CW52) -> 0 | QH52: =SUM(CX52:DE52) -> 0 | QI52: =SUM(DF52:DT52) -> 0 | QJ52: =SUM(DU52:ET52) -> 0 | QK52: =SUM(EU52:FY52) -> 0 | QL52: =SUM(FZ52:HD52) -> 0 | QM52: =SUM(HE52:HF52) -> 0 | QN52: =SUM(HG52:HL52) -> 0 | QO52: =SUM(HM52:HR52) -> 0 | QP52: =SUM(HS52:IJ52) -> 0 | QQ52: =SUM(IK52:JA52) -> 0 | QR52: =SUM(JB52:JT52) -> 0 | QS52: =SUM(JU52:KD52) -> 0 | QT52: =SUM(KE52:KP52) -> 0 | QU52: =SUM(KQ52:MU52) -> 0 | QV52: =SUM(MV52:NG52) -> 0 | QW52: =SUM(NH52:NI52) -> 0 | QX52: =SUM(NJ52:NL52) -> 0 | QY52: =SUM(NM52:NO52) -> 0 | QZ52: =SUM(NP52) -> 0 | RA52: =SUM(NQ52) -> 0 | RB52: =SUM(NR52:NT52) -> 0 | RC52: =SUM(NU52) -> 0 | RD52: =SUM(NV52) -> 0 | RE52: =SUM(NW52:OB52) -> 0 | RF52: =SUM(OC52:PE52) -> 0 | RG52: =SUM(PF52:PG52) -> 0 | RH52: =SUM(PH52:PI52) -> 0 | RI52: =SUM(PJ52:PM52) -> 0 | RJ52: =SUM(PN52:PP52) -> 0 | RK52: =SUM(PQ52) -> 0 | RL52: =SUM(PR52) -> 0 | RM52: =SUM(PS52) -> 0 | RN52: =SUM(PT52:PV52) -> 0 | RO52: =SUM(PV52) -> 0 | RP52: =SUM(PV52) -> 0 | RQ52: =SUM(PW52) -> 0 | RR52: =SUM(PX52) -> 0 | RS52: =SUM(PY52) -> 0 | RT52: =SUM(PZ52) -> 0 | RU52: =SUM(QA52) -> 0 | RV52: =SUM(QB52) -> 0 | RW52: =SUM(QE52:RU52)-SUM(RI52:RM52)-SUM(RQ52:RT52) -> 0
D53: SUBSIDIADO | QC53: =SUM(E53:QB53)-SUM(PQ53:PT53)-SUM(PW53:PZ53) -> 0 | QE53: 0 | QF53: 0 | QG53: 0 | QH53: 0 | QI53: 0 | QJ53: 0 | QK53: 0 | QL53: 0 | QM53: 0 | QN53: 0 | QO53: 0 | QP53: 0 | QQ53: 0 | QR53: 0 | QS53: 0 | QT53: 0 | QU53: 0 | QV53: 0 | QW53: 0 | QX53: 0 | QY53: 0 | QZ53: 0 | RA53: 0 | RB53: 0 | RC53: 0 | RD53: 0 | RE53: 0 | RF53: 0 | RG53: 0 | RH53: 0 | RI53: 0 | RJ53: 0 | RK53: 0 | RL53: 0 | RM53: 0 | RN53: 0 | RO53: 0 | RP53: 0 | RQ53: 0 | RR53: 0 | RS53: 0 | RT53: 0 | RU53: 0 | RV53: 0 | RW53: 0
D54: POBRE NO ASEGURADO | QC54: =SUM(E54:QB54)-SUM(PQ54:PT54)-SUM(PW54:PZ54) -> 0 | QE54: 0 | QF54: 0 | QG54: 0 | QH54: 0 | QI54: 0 | QJ54: 0 | QK54: 0 | QL54: 0 | QM54: 0 | QN54: 0 | QO54: 0 | QP54: 0 | QQ54: 0 | QR54: 0 | QS54: 0 | QT54: 0 | QU54: 0 | QV54: 0 | QW54: 0 | QX54: 0 | QY54: 0 | QZ54: 0 | RA54: 0 | RB54: 0 | RC54: 0 | RD54: 0 | RE54: 0 | RF54: 0 | RG54: 0 | RH54: 0 | RI54: 0 | RJ54: 0 | RK54: 0 | RL54: 0 | RM54: 0 | RN54: 0 | RO54: 0 | RP54: 0 | RQ54: 0 | RR54: 0 | RS54: 0 | RT54: 0 | RU54: 0 | RV54: 0 | RW54: 0
D55: REGIMEN ESPECIAL | QC55: =SUM(E55:QB55)-SUM(PQ55:PT55)-SUM(PW55:PZ55) -> 0 | QE55: 0 | QF55: 0 | QG55: 0 | QH55: 0 | QI55: 0 | QJ55: 0 | QK55: 0 | QL55: 0 | QM55: 0 | QN55: 0 | QO55: 0 | QP55: 0 | QQ55: 0 | QR55: 0 | QS55: 0 | QT55: 0 | QU55: 0 | QV55: 0 | QW55: 0 | QX55: 0 | QY55: 0 | QZ55: 0 | RA55: 0 | RB55: 0 | RC55: 0 | RD55: 0 | RE55: 0 | RF55: 0 | RG55: 0 | RH55: 0 | RI55: 0 | RJ55: 0 | RK55: 0 | RL55: 0 | RM55: 0 | RN55: 0 | RO55: 0 | RP55: 0 | RQ55: 0 | RR55: 0 | RS55: 0 | RT55: 0 | RU55: 0 | RV55: 0 | RW55: 0
D56: TOTAL REGIMEN | E56: =SUM(E52:E55) -> 0 | F56: 0 | G56: 0 | H56: 0 | I56: 0 | J56: 0 | K56: 0 | L56: 0 | M56: 0 | N56: 0 | O56: 0 | P56: 0 | Q56: 0 | R56: 0 | S56: 0 | T56: 0 | U56: 0 | V56: 0 | W56: 0 | X56: 0 | Y56: 0 | Z56: 0 | AA56: 0 | AB56: 0 | AC56: 0 | AD56: 0 | AE56: 0 | AF56: 0 | AG56: 0 | AH56: 0 | AI56: 0 | AJ56: 0 | AK56: 0 | AL56: 0 | AM56: 0 | AN56: 0 | AO56: 0 | AP56: 0 | AQ56: 0 | AR56: 0 | AS56: 0 | AT56: 0 | AU56: 0 | AV56: 0 | AW56: 0 | AX56: 0 | AY56: 0 | AZ56: 0 | BA56: 0 | BB56: 0 | BC56: 0 | BD56: 0 | BE56: 0 | BF56: 0 | BG56: 0 | BH56: 0 | BI56: 0 | BJ56: 0 | BK56: 0 | BL56: 0 | BM56: 0 | BN56: 0 | BO56: 0 | BP56: 0 | BQ56: =SUM(BQ52:BQ55) -> 0 | BR56: 0 | BS56: 0 | BT56: 0 | BU56: 0 | BV56: 0 | BW56: 0 | BX56: 0 | BY56: 0 | BZ56: 0 | CA56: 0 | CB56: 0 | CC56: 0 | CD56: 0 | CE56: 0 | CF56: 0 | CG56: 0 | CH56: 0 | CI56: 0 | CJ56: 0 | CK56: 0 | CL56: 0 | CM56: 0 | CN56: 0 | CO56: 0 | CP56: 0 | CQ56: 0 | CR56: 0 | CS56: 0 | CT56: 0 | CU56: 0 | CV56: 0 | CW56: 0 | CX56: 0 | CY56: 0 | CZ56: 0 | DA56: 0 | DB56: 0 | DC56: 0 | DD56: 0 | DE56: 0 | DF56: 0 | DG56: 0 | DH56: 0 | DI56: 0 | DJ56: 0 | DK56: 0 | DL56: 0 | DM56: 0 | DN56: 0 | DO56: 0 | DP56: 0 | DQ56: 0 | DR56: 0 | DS56: 0 | DT56: 0 | DU56: 0 | DV56: 0 | DW56: 0 | DX56: 0 | DY56: 0 | DZ56: 0 | EA56: 0 | EB56: 0 | EC56: =SUM(EC52:EC55) -> 0 | ED56: 0 | EE56: 0 | EF56: 0 | EG56: 0 | EH56: 0 | EI56: 0 | EJ56: 0 | EK56: 0 | EL56: 0 | EM56: 0 | EN56: 0 | EO56: 0 | EP56: 0 | EQ56: 0 | ER56: 0 | ES56: 0 | ET56: 0 | EU56: 0 | EV56: 0 | EW56: 0 | EX56: 0 | EY56: 0 | EZ56: 0 | FA56: 0 | FB56: 0 | FC56: 0 | FD56: 0 | FE56: 0 | FF56: 0 | FG56: 0 | FH56: 0 | FI56: 0 | FJ56: 0 | FK56: 0 | FL56: 0 | FM56: 0 | FN56: 0 | FO56: 0 | FP56: 0 | FQ56: 0 | FR56: 0 | FS56: 0 | FT56: 0 | FU56: 0 | FV56: 0 | FW56: 0 | FX56: 0 | FY56: 0 | FZ56: 0 | GA56: 0 | GB56: 0 | GC56: 0 | GD56: 0 | GE56: 0 | GF56: 0 | GG56: 0 | GH56: 0 | GI56: 0 | GJ56: 0 | GK56: 0 | GL56: 0 | GM56: 0 | GN56: 0 | GO56: =SUM(GO52:GO55) -> 0 | GP56: 0 | GQ56: 0 | GR56: 0 | GS56: 0 | GT56: 0 | GU56: 0 | GV56: 0 | GW56: 0 | GX56: 0 | GY56: 0 | GZ56: 0 | HA56: 0 | HB56: 0 | HC56: 0 | HD56: 0 | HE56: 0 | HF56: 0 | HG56: 0 | HH56: 0 | HI56: 0 | HJ56: 0 | HK56: 0 | HL56: 0 | HM56: 0 | HN56: 0 | HO56: 0 | HP56: 0 | HQ56: 0 | HR56: 0 | HS56: 0 | HT56: 0 | HU56: 0 | HV56: 0 | HW56: 0 | HX56: 0 | HY56: 0 | HZ56: 0 | IA56: 0 | IB56: 0 | IC56: 0 | ID56: 0 | IE56: 0 | IF56: 0 | IG56: 0 | IH56: 0 | II56: 0 | IJ56: 0 | IK56: 0 | IL56: 0 | IM56: 0 | IN56: 0 | IO56: 0 | IP56: 0 | IQ56: 0 | IR56: 0 | IS56: 0 | IT56: 0 | IU56: 0 | IV56: 0 | IW56: 0 | IX56: 0 | IY56: 0 | IZ56: 0 | JA56: =SUM(JA52:JA55) -> 0 | JB56: 0 | JC56: 0 | JD56: 0 | JE56: 0 | JF56: 0 | JG56: 0 | JH56: 0 | JI56: 0 | JJ56: 0 | JK56: 0 | JL56: 0 | JM56: 0 | JN56: 0 | JO56: 0 | JP56: 0 | JQ56: 0 | JR56: 0 | JS56: 0 | JT56: 0 | JU56: 0 | JV56: 0 | JW56: 0 | JX56: 0 | JY56: 0 | JZ56: 0 | KA56: 0 | KB56: 0 | KC56: 0 | KD56: 0 | KE56: 0 | KF56: 0 | KG56: 0 | KH56: 0 | KI56: 0 | KJ56: 0 | KK56: 0 | KL56: 0 | KM56: 0 | KN56: 0 | KO56: 0 | KP56: 0 | KQ56: 0 | KR56: 0 | KS56: 0 | KT56: 0 | KU56: 0 | KV56: 0 | KW56: 0 | KX56: 0 | KY56: 0 | KZ56: 0 | LA56: 0 | LB56: 0 | LC56: 0 | LD56: 0 | LE56: 0 | LF56: 0 | LG56: 0 | LH56: 0 | LI56: 0 | LJ56: 0 | LK56: 0 | LL56: 0 | LM56: =SUM(LM52:LM55) -> 0 | LN56: 0 | LO56: 0 | LP56: 0 | LQ56: 0 | LR56: 0 | LS56: 0 | LT56: 0 | LU56: 0 | LV56: 0 | LW56: 0 | LX56: 0 | LY56: 0 | LZ56: 0 | MA56: 0 | MB56: 0 | MC56: 0 | MD56: 0 | ME56: 0 | MF56: 0 | MG56: 0 | MH56: 0 | MI56: 0 | MJ56: 0 | MK56: 0 | ML56: 0 | MM56: 0 | MN56: 0 | MO56: 0 | MP56: 0 | MQ56: 0 | MR56: 0 | MS56: 0 | MT56: 0 | MU56: 0 | MV56: 0 | MW56: 0 | MX56: 0 | MY56: 0 | MZ56: 0 | NA56: 0 | NB56: 0 | NC56: 0 | ND56: 0 | NE56: 0 | NF56: 0 | NG56: 0 | NH56: 0 | NI56: 0 | NJ56: 0 | NK56: 0 | NL56: 0 | NM56: 0 | NN56: 0 | NO56: 0 | NP56: 0 | NQ56: 0 | NR56: 0 | NS56: 0 | NT56: 0 | NU56: 0 | NV56: 0 | NW56: 0 | NX56: 0 | NY56: =SUM(NY52:NY55) -> 0 | NZ56: 0 | OA56: 0 | OB56: 0 | OC56: 0 | OD56: 0 | OE56: 0 | OF56: 0 | OG56: 0 | OH56: 0 | OI56: 0 | OJ56: 0 | OK56: 0 | OL56: 0 | OM56: 0 | ON56: 0 | OO56: 0 | OP56: 0 | OQ56: 0 | OR56: 0 | OS56: 0 | OT56: 0 | OU56: 0 | OV56: 0 | OW56: 0 | OX56: 0 | OY56: 0 | OZ56: 0 | PA56: 0 | PB56: 0 | PC56: 0 | PD56: 0 | PE56: 0 | PF56: 0 | PG56: 0 | PH56: 0 | PI56: 0 | PJ56: 0 | PK56: 0 | PL56: 0 | PM56: 0 | PN56: 0 | PO56: 0 | PP56: 0 | PQ56: 0 | PR56: 0 | PS56: 0 | PT56: 0 | PU56: 0 | PV56: 0 | PW56: 0 | PX56: 0 | PY56: 0 | PZ56: 0 | QA56: 0 | QB56: 0 | QC56: =SUM(QC52:QC55) -> 0 | QE56: =SUM(QE52:QE55) -> 0 | QF56: =SUM(QF52:QF55) -> 0 | QG56: =SUM(QG52:QG55) -> 0 | QH56: =SUM(QH52:QH55) -> 0 | QI56: =SUM(QI52:QI55) -> 0 | QJ56: =SUM(QJ52:QJ55) -> 0 | QK56: =SUM(QK52:QK55) -> 0 | QL56: =SUM(QL52:QL55) -> 0 | QM56: =SUM(QM52:QM55) -> 0 | QN56: =SUM(QN52:QN55) -> 0 | QO56: =SUM(QO52:QO55) -> 0 | QP56: 0 | QQ56: =SUM(QQ52:QQ55) -> 0 | QR56: =SUM(QR52:QR55) -> 0 | QS56: =SUM(QS52:QS55) -> 0 | QT56: =SUM(QT52:QT55) -> 0 | QU56: =SUM(QU52:QU55) -> 0 | QV56: =SUM(QV52:QV55) -> 0 | QW56: =SUM(QW52:QW55) -> 0 | QX56: =SUM(QX52:QX55) -> 0 | QY56: =SUM(QY52:QY55) -> 0 | QZ56: =SUM(QZ52:QZ55) -> 0 | RA56: =SUM(RA52:RA55) -> 0 | RB56: 0 | RC56: =SUM(RC52:RC55) -> 0 | RD56: 0 | RE56: =SUM(RE52:RE55) -> 0 | RF56: =SUM(RF52:RF55) -> 0 | RG56: =SUM(RG52:RG55) -> 0 | RH56: =SUM(RH52:RH55) -> 0 | RI56: =SUM(RI52:RI55) -> 0 | RJ56: =SUM(RJ52:RJ55) -> 0 | RK56: 0 | RL56: =SUM(RL52:RL55) -> 0 | RM56: 0 | RN56: =SUM(RN52:RN55) -> 0 | RO56: =SUM(RO52:RO55) -> 0 | RP56: =SUM(RP52:RP55) -> 0 | RQ56: =SUM(RQ52:RQ55) -> 0 | RR56: =SUM(RR52:RR55) -> 0 | RS56: =SUM(RS52:RS55) -> 0 | RT56: =SUM(RT52:RT55) -> 0 | RU56: =SUM(RU52:RU55) -> 0 | RV56: =SUM(RV52:RV55) -> 0 | RW56: 0
D57: INDIGENA | QC57: =SUM(E57:QB57)-SUM(PQ57:PT57)-SUM(PW57:PZ57) -> 0 | QE57: =SUM(E57:H57) -> 0 | QF57: =SUM(I57:BO57) -> 0 | QG57: =SUM(BP57:CW57) -> 0 | QH57: =SUM(CX57:DE57) -> 0 | QI57: =SUM(DF57:DT57) -> 0 | QJ57: =SUM(DU57:ET57) -> 0 | QK57: =SUM(EU57:FY57) -> 0 | QL57: =SUM(FZ57:HD57) -> 0 | QM57: =SUM(HE57:HF57) -> 0 | QN57: =SUM(HG57:HL57) -> 0 | QO57: =SUM(HM57:HR57) -> 0 | QP57: =SUM(HS57:IJ57) -> 0 | QQ57: =SUM(IK57:JA57) -> 0 | QR57: =SUM(JB57:JT57) -> 0 | QS57: =SUM(JU57:KD57) -> 0 | QT57: =SUM(KE57:KP57) -> 0 | QU57: =SUM(KQ57:MU57) -> 0 | QV57: =SUM(MV57:NG57) -> 0 | QW57: =SUM(NH57:NI57) -> 0 | QX57: =SUM(NJ57:NL57) -> 0 | QY57: =SUM(NM57:NO57) -> 0 | QZ57: =SUM(NP57) -> 0 | RA57: =SUM(NQ57) -> 0 | RB57: =SUM(NR57:NT57) -> 0 | RC57: =SUM(NU57) -> 0 | RD57: =SUM(NV57) -> 0 | RE57: =SUM(NW57:OB57) -> 0 | RF57: =SUM(OC57:PE57) -> 0 | RG57: =SUM(PF57:PG57) -> 0 | RH57: =SUM(PH57:PI57) -> 0 | RI57: =SUM(PJ57:PM57) -> 0 | RJ57: =SUM(PN57:PP57) -> 0 | RK57: =SUM(PQ57) -> 0 | RL57: =SUM(PR57) -> 0 | RM57: =SUM(PS57) -> 0 | RN57: =SUM(PT57:PV57) -> 0 | RO57: =SUM(PV57) -> 0 | RP57: =SUM(PV57) -> 0 | RQ57: =SUM(PW57) -> 0 | RR57: =SUM(PX57) -> 0 | RS57: =SUM(PY57) -> 0 | RT57: =SUM(PZ57) -> 0 | RU57: =SUM(QA57) -> 0 | RV57: =SUM(QB57) -> 0 | RW57: =SUM(QE57:RU57)-SUM(RI57:RM57)-SUM(RQ57:RT57) -> 0
D58: ROM (GITANO) | QC58: 0 | QE58: 0 | QF58: 0 | QG58: 0 | QH58: 0 | QI58: 0 | QJ58: 0 | QK58: 0 | QL58: 0 | QM58: 0 | QN58: 0 | QO58: 0 | QP58: 0 | QQ58: 0 | QR58: 0 | QS58: 0 | QT58: 0 | QU58: 0 | QV58: 0 | QW58: 0 | QX58: 0 | QY58: 0 | QZ58: 0 | RA58: 0 | RB58: 0 | RC58: 0 | RD58: 0 | RE58: 0 | RF58: 0 | RG58: 0 | RH58: 0 | RI58: 0 | RJ58: 0 | RK58: 0 | RL58: 0 | RM58: 0 | RN58: 0 | RO58: 0 | RP58: 0 | RQ58: 0 | RR58: 0 | RS58: 0 | RT58: 0 | RU58: 0 | RV58: 0 | RW58: 0
D59: RAIZAL | QC59: 0 | QE59: 0 | QF59: 0 | QG59: 0 | QH59: 0 | QI59: 0 | QJ59: 0 | QK59: 0 | QL59: 0 | QM59: 0 | QN59: 0 | QO59: 0 | QP59: 0 | QQ59: 0 | QR59: 0 | QS59: 0 | QT59: 0 | QU59: 0 | QV59: 0 | QW59: 0 | QX59: 0 | QY59: 0 | QZ59: 0 | RA59: 0 | RB59: 0 | RC59: 0 | RD59: 0 | RE59: 0 | RF59: 0 | RG59: 0 | RH59: 0 | RI59: 0 | RJ59: 0 | RK59: 0 | RL59: 0 | RM59: 0 | RN59: 0 | RO59: 0 | RP59: 0 | RQ59: 0 | RR59: 0 | RS59: 0 | RT59: 0 | RU59: 0 | RV59: 0 | RW59: 0
D60: PALENQUERO | QC60: 0 | QE60: 0 | QF60: 0 | QG60: 0 | QH60: 0 | QI60: 0 | QJ60: 0 | QK60: 0 | QL60: 0 | QM60: 0 | QN60: 0 | QO60: 0 | QP60: 0 | QQ60: 0 | QR60: 0 | QS60: 0 | QT60: 0 | QU60: 0 | QV60: 0 | QW60: 0 | QX60: 0 | QY60: 0 | QZ60: 0 | RA60: 0 | RB60: 0 | RC60: 0 | RD60: 0 | RE60: 0 | RF60: 0 | RG60: 0 | RH60: 0 | RI60: 0 | RJ60: 0 | RK60: 0 | RL60: 0 | RM60: 0 | RN60: 0 | RO60: 0 | RP60: 0 | RQ60: 0 | RR60: 0 | RS60: 0 | RT60: 0 | RU60: 0 | RV60: 0 | RW60: 0
D61: NEGRO(A), MULATO (A), AFROCOLOMBIANO (A) | QC61: 0 | QE61: 0 | QF61: 0 | QG61: 0 | QH61: 0 | QI61: 0 | QJ61: 0 | QK61: 0 | QL61: 0 | QM61: 0 | QN61: 0 | QO61: 0 | QP61: 0 | QQ61: 0 | QR61: 0 | QS61: 0 | QT61: 0 | QU61: 0 | QV61: 0 | QW61: 0 | QX61: 0 | QY61: 0 | QZ61: 0 | RA61: 0 | RB61: 0 | RC61: 0 | RD61: 0 | RE61: 0 | RF61: 0 | RG61: 0 | RH61: 0 | RI61: 0 | RJ61: 0 | RK61: 0 | RL61: 0 | RM61: 0 | RN61: 0 | RO61: 0 | RP61: 0 | RQ61: 0 | RR61: 0 | RS61: 0 | RT61: 0 | RU61: 0 | RV61: 0 | RW61: 0
D62: SIN PERTENENCIA ETNICA | QC62: 0 | QE62: 0 | QF62: 0 | QG62: 0 | QH62: 0 | QI62: 0 | QJ62: 0 | QK62: 0 | QL62: 0 | QM62: 0 | QN62: 0 | QO62: 0 | QP62: 0 | QQ62: 0 | QR62: 0 | QS62: 0 | QT62: 0 | QU62: 0 | QV62: 0 | QW62: 0 | QX62: 0 | QY62: 0 | QZ62: 0 | RA62: 0 | RB62: 0 | RC62: 0 | RD62: 0 | RE62: 0 | RF62: 0 | RG62: 0 | RH62: 0 | RI62: 0 | RJ62: 0 | RK62: 0 | RL62: 0 | RM62: 0 | RN62: 0 | RO62: 0 | RP62: 0 | RQ62: 0 | RR62: 0 | RS62: 0 | RT62: 0 | RU62: 0 | RV62: 0 | RW62: 0
D63: TOTAL ETNICOS | E63: =SUM(E57:E62) -> 0 | F63: 0 | G63: 0 | H63: 0 | I63: 0 | J63: 0 | K63: 0 | L63: 0 | M63: 0 | N63: 0 | O63: 0 | P63: 0 | Q63: 0 | R63: 0 | S63: 0 | T63: 0 | U63: 0 | V63: 0 | W63: 0 | X63: 0 | Y63: 0 | Z63: 0 | AA63: 0 | AB63: 0 | AC63: 0 | AD63: 0 | AE63: 0 | AF63: 0 | AG63: 0 | AH63: 0 | AI63: 0 | AJ63: 0 | AK63: 0 | AL63: 0 | AM63: 0 | AN63: 0 | AO63: 0 | AP63: 0 | AQ63: 0 | AR63: 0 | AS63: 0 | AT63: 0 | AU63: 0 | AV63: 0 | AW63: 0 | AX63: 0 | AY63: 0 | AZ63: 0 | BA63: 0 | BB63: 0 | BC63: 0 | BD63: 0 | BE63: 0 | BF63: 0 | BG63: 0 | BH63: 0 | BI63: 0 | BJ63: 0 | BK63: 0 | BL63: 0 | BM63: 0 | BN63: 0 | BO63: 0 | BP63: 0 | BQ63: =SUM(BQ57:BQ62) -> 0 | BR63: 0 | BS63: 0 | BT63: 0 | BU63: 0 | BV63: 0 | BW63: 0 | BX63: 0 | BY63: 0 | BZ63: 0 | CA63: 0 | CB63: 0 | CC63: 0 | CD63: 0 | CE63: 0 | CF63: 0 | CG63: 0 | CH63: 0 | CI63: 0 | CJ63: 0 | CK63: 0 | CL63: 0 | CM63: 0 | CN63: 0 | CO63: 0 | CP63: 0 | CQ63: 0 | CR63: 0 | CS63: 0 | CT63: 0 | CU63: 0 | CV63: 0 | CW63: 0 | CX63: 0 | CY63: 0 | CZ63: 0 | DA63: 0 | DB63: 0 | DC63: 0 | DD63: 0 | DE63: 0 | DF63: 0 | DG63: 0 | DH63: 0 | DI63: 0 | DJ63: 0 | DK63: 0 | DL63: 0 | DM63: 0 | DN63: 0 | DO63: 0 | DP63: 0 | DQ63: 0 | DR63: 0 | DS63: 0 | DT63: 0 | DU63: 0 | DV63: 0 | DW63: 0 | DX63: 0 | DY63: 0 | DZ63: 0 | EA63: 0 | EB63: 0 | EC63: =SUM(EC57:EC62) -> 0 | ED63: 0 | EE63: 0 | EF63: 0 | EG63: 0 | EH63: 0 | EI63: 0 | EJ63: 0 | EK63: 0 | EL63: 0 | EM63: 0 | EN63: 0 | EO63: 0 | EP63: 0 | EQ63: 0 | ER63: 0 | ES63: 0 | ET63: 0 | EU63: 0 | EV63: 0 | EW63: 0 | EX63: 0 | EY63: 0 | EZ63: 0 | FA63: 0 | FB63: 0 | FC63: 0 | FD63: 0 | FE63: 0 | FF63: 0 | FG63: 0 | FH63: 0 | FI63: 0 | FJ63: 0 | FK63: 0 | FL63: 0 | FM63: 0 | FN63: 0 | FO63: 0 | FP63: 0 | FQ63: 0 | FR63: 0 | FS63: 0 | FT63: 0 | FU63: 0 | FV63: 0 | FW63: 0 | FX63: 0 | FY63: 0 | FZ63: 0 | GA63: 0 | GB63: 0 | GC63: 0 | GD63: 0 | GE63: 0 | GF63: 0 | GG63: 0 | GH63: 0 | GI63: 0 | GJ63: 0 | GK63: 0 | GL63: 0 | GM63: 0 | GN63: 0 | GO63: =SUM(GO57:GO62) -> 0 | GP63: 0 | GQ63: 0 | GR63: 0 | GS63: 0 | GT63: 0 | GU63: 0 | GV63: 0 | GW63: 0 | GX63: 0 | GY63: 0 | GZ63: 0 | HA63: 0 | HB63: 0 | HC63: 0 | HD63: 0 | HE63: 0 | HF63: 0 | HG63: 0 | HH63: 0 | HI63: 0 | HJ63: 0 | HK63: 0 | HL63: 0 | HM63: 0 | HN63: 0 | HO63: 0 | HP63: 0 | HQ63: 0 | HR63: 0 | HS63: 0 | HT63: 0 | HU63: 0 | HV63: 0 | HW63: 0 | HX63: 0 | HY63: 0 | HZ63: 0 | IA63: 0 | IB63: 0 | IC63: 0 | ID63: 0 | IE63: 0 | IF63: 0 | IG63: 0 | IH63: 0 | II63: 0 | IJ63: 0 | IK63: 0 | IL63: 0 | IM63: 0 | IN63: 0 | IO63: 0 | IP63: 0 | IQ63: 0 | IR63: 0 | IS63: 0 | IT63: 0 | IU63: 0 | IV63: 0 | IW63: 0 | IX63: 0 | IY63: 0 | IZ63: 0 | JA63: =SUM(JA57:JA62) -> 0 | JB63: 0 | JC63: 0 | JD63: 0 | JE63: 0 | JF63: 0 | JG63: 0 | JH63: 0 | JI63: 0 | JJ63: 0 | JK63: 0 | JL63: 0 | JM63: 0 | JN63: 0 | JO63: 0 | JP63: 0 | JQ63: 0 | JR63: 0 | JS63: 0 | JT63: 0 | JU63: 0 | JV63: 0 | JW63: 0 | JX63: 0 | JY63: 0 | JZ63: 0 | KA63: 0 | KB63: 0 | KC63: 0 | KD63: 0 | KE63: 0 | KF63: 0 | KG63: 0 | KH63: 0 | KI63: 0 | KJ63: 0 | KK63: 0 | KL63: 0 | KM63: 0 | KN63: 0 | KO63: 0 | KP63: 0 | KQ63: 0 | KR63: 0 | KS63: 0 | KT63: 0 | KU63: 0 | KV63: 0 | KW63: 0 | KX63: 0 | KY63: 0 | KZ63: 0 | LA63: 0 | LB63: 0 | LC63: 0 | LD63: 0 | LE63: 0 | LF63: 0 | LG63: 0 | LH63: 0 | LI63: 0 | LJ63: 0 | LK63: 0 | LL63: 0 | LM63: =SUM(LM57:LM62) -> 0 | LN63: 0 | LO63: 0 | LP63: 0 | LQ63: 0 | LR63: 0 | LS63: 0 | LT63: 0 | LU63: 0 | LV63: 0 | LW63: 0 | LX63: 0 | LY63: 0 | LZ63: 0 | MA63: 0 | MB63: 0 | MC63: 0 | MD63: 0 | ME63: 0 | MF63: 0 | MG63: 0 | MH63: 0 | MI63: 0 | MJ63: 0 | MK63: 0 | ML63: 0 | MM63: 0 | MN63: 0 | MO63: 0 | MP63: 0 | MQ63: 0 | MR63: 0 | MS63: 0 | MT63: 0 | MU63: 0 | MV63: 0 | MW63: 0 | MX63: 0 | MY63: 0 | MZ63: 0 | NA63: 0 | NB63: 0 | NC63: 0 | ND63: 0 | NE63: 0 | NF63: 0 | NG63: 0 | NH63: 0 | NI63: 0 | NJ63: 0 | NK63: 0 | NL63: 0 | NM63: 0 | NN63: 0 | NO63: 0 | NP63: 0 | NQ63: 0 | NR63: 0 | NS63: 0 | NT63: 0 | NU63: 0 | NV63: 0 | NW63: 0 | NX63: 0 | NY63: =SUM(NY57:NY62) -> 0 | NZ63: 0 | OA63: 0 | OB63: 0 | OC63: 0 | OD63: 0 | OE63: 0 | OF63: 0 | OG63: 0 | OH63: 0 | OI63: 0 | OJ63: 0 | OK63: 0 | OL63: 0 | OM63: 0 | ON63: 0 | OO63: 0 | OP63: 0 | OQ63: 0 | OR63: 0 | OS63: 0 | OT63: 0 | OU63: 0 | OV63: 0 | OW63: 0 | OX63: 0 | OY63: 0 | OZ63: 0 | PA63: 0 | PB63: 0 | PC63: 0 | PD63: 0 | PE63: 0 | PF63: 0 | PG63: 0 | PH63: 0 | PI63: 0 | PJ63: 0 | PK63: 0 | PL63: 0 | PM63: 0 | PN63: 0 | PO63: 0 | PP63: 0 | PQ63: 0 | PR63: 0 | PS63: 0 | PT63: 0 | PU63: 0 | PV63: 0 | PW63: 0 | PX63: 0 | PY63: 0 | PZ63: 0 | QA63: 0 | QB63: 0 | QC63: =SUM(QC57:QC62) -> 0 | QE63: =SUM(QE57:QE62) -> 0 | QF63: =SUM(QF57:QF62) -> 0 | QG63: =SUM(QG57:QG62) -> 0 | QH63: =SUM(QH57:QH62) -> 0 | QI63: =SUM(QI57:QI62) -> 0 | QJ63: =SUM(QJ57:QJ62) -> 0 | QK63: =SUM(QK57:QK62) -> 0 | QL63: =SUM(QL57:QL62) -> 0 | QM63: =SUM(QM57:QM62) -> 0 | QN63: =SUM(QN57:QN62) -> 0 | QO63: =SUM(QO57:QO62) -> 0 | QP63: 0 | QQ63: =SUM(QQ57:QQ62) -> 0 | QR63: =SUM(QR57:QR62) -> 0 | QS63: =SUM(QS57:QS62) -> 0 | QT63: =SUM(QT57:QT62) -> 0 | QU63: =SUM(QU57:QU62) -> 0 | QV63: =SUM(QV57:QV62) -> 0 | QW63: =SUM(QW57:QW62) -> 0 | QX63: =SUM(QX57:QX62) -> 0 | QY63: =SUM(QY57:QY62) -> 0 | QZ63: =SUM(QZ57:QZ62) -> 0 | RA63: =SUM(RA57:RA62) -> 0 | RB63: 0 | RC63: =SUM(RC57:RC62) -> 0 | RD63: 0 | RE63: =SUM(RE57:RE62) -> 0 | RF63: =SUM(RF57:RF62) -> 0 | RG63: =SUM(RG57:RG62) -> 0 | RH63: =SUM(RH57:RH62) -> 0 | RI63: =SUM(RI57:RI62) -> 0 | RJ63: =SUM(RJ57:RJ62) -> 0 | RK63: 0 | RL63: =SUM(RL57:RL62) -> 0 | RM63: 0 | RN63: =SUM(RN57:RN62) -> 0 | RO63: =SUM(RO57:RO62) -> 0 | RP63: =SUM(RP57:RP62) -> 0 | RQ63: =SUM(RQ57:RQ62) -> 0 | RR63: =SUM(RR57:RR62) -> 0 | RS63: =SUM(RS57:RS62) -> 0 | RT63: =SUM(RT57:RT62) -> 0 | RU63: =SUM(RU57:RU62) -> 0 | RV63: =SUM(RV57:RV62) -> 0 | RW63: 0
D64: EN SITUACION DE DESPLAZAMIENTO | QC64: =SUM(E64:QB64)-SUM(PQ64:PT64)-SUM(PW64:PZ64) -> 0 | QE64: =SUM(E64:H64) -> 0 | QF64: =SUM(I64:BO64) -> 0 | QG64: =SUM(BP64:CW64) -> 0 | QH64: =SUM(CX64:DE64) -> 0 | QI64: =SUM(DF64:DT64) -> 0 | QJ64: =SUM(DU64:ET64) -> 0 | QK64: =SUM(EU64:FY64) -> 0 | QL64: =SUM(FZ64:HD64) -> 0 | QM64: =SUM(HE64:HF64) -> 0 | QN64: =SUM(HG64:HL64) -> 0 | QO64: =SUM(HM64:HR64) -> 0 | QP64: =SUM(HS64:IJ64) -> 0 | QQ64: =SUM(IK64:JA64) -> 0 | QR64: =SUM(JB64:JT64) -> 0 | QS64: =SUM(JU64:KD64) -> 0 | QT64: =SUM(KE64:KP64) -> 0 | QU64: =SUM(KQ64:MU64) -> 0 | QV64: =SUM(MV64:NG64) -> 0 | QW64: =SUM(NH64:NI64) -> 0 | QX64: =SUM(NJ64:NL64) -> 0 | QY64: =SUM(NM64:NO64) -> 0 | QZ64: =SUM(NP64) -> 0 | RA64: =SUM(NQ64) -> 0 | RB64: =SUM(NR64:NT64) -> 0 | RC64: =SUM(NU64) -> 0 | RD64: =SUM(NV64) -> 0 | RE64: =SUM(NW64:OB64) -> 0 | RF64: =SUM(OC64:PE64) -> 0 | RG64: =SUM(PF64:PG64) -> 0 | RH64: =SUM(PH64:PI64) -> 0 | RI64: =SUM(PJ64:PM64) -> 0 | RJ64: =SUM(PN64:PP64) -> 0 | RK64: =SUM(PQ64) -> 0 | RL64: =SUM(PR64) -> 0 | RM64: =SUM(PS64) -> 0 | RN64: =SUM(PT64:PV64) -> 0 | RO64: =SUM(PV64) -> 0 | RP64: =SUM(PV64) -> 0 | RQ64: =SUM(PW64) -> 0 | RR64: =SUM(PX64) -> 0 | RS64: =SUM(PY64) -> 0 | RT64: =SUM(PZ64) -> 0 | RU64: =SUM(QA64) -> 0 | RV64: =SUM(QB64) -> 0 | RW64: =SUM(QE64:RU64)-SUM(RI64:RM64)-SUM(RQ64:RT64) -> 0
D65: EN CONDICION DE DISCAPACIDAD | QC65: 0 | QE65: 0 | QF65: 0 | QG65: 0 | QH65: 0 | QI65: 0 | QJ65: 0 | QK65: 0 | QL65: 0 | QM65: 0 | QN65: 0 | QO65: 0 | QP65: 0 | QQ65: 0 | QR65: 0 | QS65: 0 | QT65: 0 | QU65: 0 | QV65: 0 | QW65: 0 | QX65: 0 | QY65: 0 | QZ65: 0 | RA65: 0 | RB65: 0 | RC65: 0 | RD65: 0 | RE65: 0 | RF65: 0 | RG65: 0 | RH65: 0 | RI65: 0 | RJ65: 0 | RK65: 0 | RL65: 0 | RM65: 0 | RN65: 0 | RO65: 0 | RP65: 0 | RQ65: 0 | RR65: 0 | RS65: 0 | RT65: 0 | RU65: 0 | RV65: 0 | RW65: 0
D66: VICTIMAS DEL CONFLICTO ARMADO | QC66: 0 | QE66: 0 | QF66: 0 | QG66: 0 | QH66: 0 | QI66: 0 | QJ66: 0 | QK66: 0 | QL66: 0 | QM66: 0 | QN66: 0 | QO66: 0 | QP66: 0 | QQ66: 0 | QR66: 0 | QS66: 0 | QT66: 0 | QU66: 0 | QV66: 0 | QW66: 0 | QX66: 0 | QY66: 0 | QZ66: 0 | RA66: 0 | RB66: 0 | RC66: 0 | RD66: 0 | RE66: 0 | RF66: 0 | RG66: 0 | RH66: 0 | RI66: 0 | RJ66: 0 | RK66: 0 | RL66: 0 | RM66: 0 | RN66: 0 | RO66: 0 | RP66: 0 | RQ66: 0 | RR66: 0 | RS66: 0 | RT66: 0 | RU66: 0 | RV66: 0 | RW66: 0
D67: ZONAS VEREDALES | QC67: 0 | QD67: =CONCATENATE($G$2,$B$48) -> 11 | QE67: =SUM(E67:H67) -> 0 | QF67: =SUM(I67:BN67) -> 0 | QG67: =SUM(BP67:CW67) -> 0 | QH67: =SUM(CX67:DE67) -> 0 | QI67: =SUM(DF67:DT67) -> 0 | QJ67: =SUM(DU67:ET67) -> 0 | QK67: =SUM(EU67:FY67) -> 0 | QL67: =SUM(FZ67:HD67) -> 0 | QM67: =SUM(HE67:HF67) -> 0 | QN67: =SUM(HG67:HL67) -> 0 | QO67: =SUM(HR67:II67) -> 0 | QP67: 0 | QQ67: =SUM(IK67:JA67) -> 0 | QR67: =SUM(JB67:JT67) -> 0 | QS67: =SUM(JU67:KD67) -> 0 | QT67: =SUM(KE67:KP67) -> 0 | QU67: =SUM(KQ67:MU67) -> 0 | QV67: =SUM(MV67:NG67) -> 0 | QW67: =SUM(NH67:NL67) -> 0 | QX67: =SUM(NM67:NO67) -> 0 | QY67: 0 | QZ67: =SUM(NP67) -> 0 | RA67: 0 | RB67: =SUM(NS67:NT67) -> 0 | RC67: 0 | RD67: 0 | RE67: =SUM(NZ67:OB67) -> 0 | RF67: =SUM(OC67:PE67) -> 0 | RG67: =SUM(PF67:PI67) -> 0 | RH67: =SUM(PJ67:PP67) -> 0 | RI67: =PQ67 -> 0 | RJ67: =PR67 -> 0 | RK67: =SUM(PQ67) -> 0 | RL67: 0 | RM67: 0 | RN67: 0 | RO67: 0 | RP67: 0 | RQ67: 0 | RR67: 0 | RS67: 0 | RT67: 0 | RU67: 0 | RV67: 0 | RW67: =SUM(QE67:RU67)-SUM(RI67:RM67)-SUM(RQ67:RT67) -> 0
D68: FEMENINO | QC68: 0 | QE68: 0 | QF68: =SUM(I68:BO68) -> 0 | QG68: 0 | QH68: 0 | QI68: 0 | QJ68: 0 | QK68: 0 | QL68: 0 | QM68: 0 | QN68: 0 | QO68: =SUM(HM68:HR68) -> 0 | QP68: 0 | QQ68: 0 | QR68: 0 | QS68: 0 | QT68: 0 | QU68: 0 | QV68: 0 | QW68: =SUM(NH68:NI68) -> 0 | QX68: =SUM(NJ68:NL68) -> 0 | QY68: =SUM(NM68:NO68) -> 0 | QZ68: 0 | RA68: 0 | RB68: =SUM(NR68:NT68) -> 0 | RC68: =SUM(NU68) -> 0 | RD68: =SUM(NV68) -> 0 | RE68: =SUM(NW68:OB68) -> 0 | RF68: =SUM(OC68:PE68) -> 0 | RG68: =SUM(PF68:PG68) -> 0 | RH68: =SUM(PH68:PI68) -> 0 | RI68: =SUM(PJ68:PM68) -> 0 | RJ68: =SUM(PN68:PP68) -> 0 | RK68: =SUM(PQ68) -> 0 | RL68: =SUM(PR68) -> 0 | RM68: =SUM(PS68) -> 0 | RN68: =SUM(PT68:PV68) -> 0 | RO68: =SUM(PV68) -> 0 | RP68: =SUM(PV68) -> 0 | RQ68: =SUM(PW68) -> 0 | RR68: =SUM(PX68) -> 0 | RS68: =SUM(PY68) -> 0 | RT68: =SUM(PZ68) -> 0 | RU68: =SUM(QA68) -> 0 | RV68: =SUM(QB68) -> 0 | RW68: =SUM(QE68:RU68)-SUM(RI68:RM68)-SUM(RQ68:RT68) -> 0
D69: MASCULINO | QC69: 0 | QE69: 0 | QF69: 0 | QG69: 0 | QH69: 0 | QI69: 0 | QJ69: 0 | QK69: 0 | QL69: 0 | QM69: 0 | QN69: 0 | QO69: 0 | QP69: 0 | QQ69: 0 | QR69: 0 | QS69: 0 | QT69: 0 | QU69: 0 | QV69: 0 | QW69: 0 | QX69: 0 | QY69: 0 | QZ69: 0 | RA69: 0 | RB69: 0 | RC69: 0 | RD69: 0 | RE69: 0 | RF69: 0 | RG69: 0 | RH69: 0 | RI69: 0 | RJ69: 0 | RK69: 0 | RL69: 0 | RM69: 0 | RN69: 0 | RO69: 0 | RP69: 0 | RQ69: 0 | RR69: 0 | RS69: 0 | RT69: 0 | RU69: 0 | RV69: 0 | RW69: 0
D70: OTRO | QC70: 0 | QE70: 0 | QF70: 0 | QG70: 0 | QH70: 0 | QI70: 0 | QJ70: 0 | QK70: 0 | QL70: 0 | QM70: 0 | QN70: 0 | QO70: 0 | QP70: 0 | QQ70: 0 | QR70: 0 | QS70: 0 | QT70: 0 | QU70: 0 | QV70: 0 | QW70: 0 | QX70: 0 | QY70: 0 | QZ70: 0 | RA70: 0 | RB70: 0 | RC70: 0 | RD70: 0 | RE70: 0 | RF70: 0 | RG70: 0 | RH70: 0 | RI70: 0 | RJ70: 0 | RK70: 0 | RL70: 0 | RM70: 0 | RN70: 0 | RO70: 0 | RP70: 0 | RQ70: 0 | RR70: 0 | RS70: 0 | RT70: 0 | RU70: 0 | RV70: 0 | RW70: 0
D71: TOTAL GENERO | E71: =SUM(E68:E70) -> 0 | F71: 0 | G71: 0 | H71: 0 | I71: 0 | J71: 0 | K71: 0 | L71: 0 | M71: 0 | N71: 0 | O71: 0 | P71: 0 | Q71: 0 | R71: 0 | S71: 0 | T71: 0 | U71: 0 | V71: 0 | W71: 0 | X71: 0 | Y71: 0 | Z71: 0 | AA71: 0 | AB71: 0 | AC71: 0 | AD71: 0 | AE71: 0 | AF71: 0 | AG71: 0 | AH71: 0 | AI71: 0 | AJ71: 0 | AK71: 0 | AL71: 0 | AM71: 0 | AN71: 0 | AO71: 0 | AP71: 0 | AQ71: 0 | AR71: 0 | AS71: 0 | AT71: 0 | AU71: 0 | AV71: 0 | AW71: 0 | AX71: 0 | AY71: 0 | AZ71: 0 | BA71: 0 | BB71: 0 | BC71: 0 | BD71: 0 | BE71: 0 | BF71: 0 | BG71: 0 | BH71: 0 | BI71: 0 | BJ71: 0 | BK71: 0 | BL71: 0 | BM71: 0 | BN71: 0 | BO71: 0 | BP71: 0 | BQ71: =SUM(BQ68:BQ70) -> 0 | BR71: 0 | BS71: 0 | BT71: 0 | BU71: 0 | BV71: 0 | BW71: 0 | BX71: 0 | BY71: 0 | BZ71: 0 | CA71: 0 | CB71: 0 | CC71: 0 | CD71: 0 | CE71: 0 | CF71: 0 | CG71: 0 | CH71: 0 | CI71: 0 | CJ71: 0 | CK71: 0 | CL71: 0 | CM71: 0 | CN71: 0 | CO71: 0 | CP71: 0 | CQ71: 0 | CR71: 0 | CS71: 0 | CT71: 0 | CU71: 0 | CV71: 0 | CW71: 0 | CX71: 0 | CY71: 0 | CZ71: 0 | DA71: 0 | DB71: 0 | DC71: 0 | DD71: 0 | DE71: 0 | DF71: 0 | DG71: 0 | DH71: 0 | DI71: 0 | DJ71: 0 | DK71: 0 | DL71: 0 | DM71: 0 | DN71: 0 | DO71: 0 | DP71: 0 | DQ71: 0 | DR71: 0 | DS71: 0 | DT71: 0 | DU71: 0 | DV71: 0 | DW71: 0 | DX71: 0 | DY71: 0 | DZ71: 0 | EA71: 0 | EB71: 0 | EC71: =SUM(EC68:EC70) -> 0 | ED71: 0 | EE71: 0 | EF71: 0 | EG71: 0 | EH71: 0 | EI71: 0 | EJ71: 0 | EK71: 0 | EL71: 0 | EM71: 0 | EN71: 0 | EO71: 0 | EP71: 0 | EQ71: 0 | ER71: 0 | ES71: 0 | ET71: 0 | EU71: 0 | EV71: 0 | EW71: 0 | EX71: 0 | EY71: 0 | EZ71: 0 | FA71: 0 | FB71: 0 | FC71: 0 | FD71: 0 | FE71: 0 | FF71: 0 | FG71: 0 | FH71: 0 | FI71: 0 | FJ71: 0 | FK71: 0 | FL71: 0 | FM71: 0 | FN71: 0 | FO71: 0 | FP71: 0 | FQ71: 0 | FR71: 0 | FS71: 0 | FT71: 0 | FU71: 0 | FV71: 0 | FW71: 0 | FX71: 0 | FY71: 0 | FZ71: 0 | GA71: 0 | GB71: 0 | GC71: 0 | GD71: 0 | GE71: 0 | GF71: 0 | GG71: 0 | GH71: 0 | GI71: 0 | GJ71: 0 | GK71: 0 | GL71: 0 | GM71: 0 | GN71: 0 | GO71: =SUM(GO68:GO70) -> 0 | GP71: 0 | GQ71: 0 | GR71: 0 | GS71: 0 | GT71: 0 | GU71: 0 | GV71: 0 | GW71: 0 | GX71: 0 | GY71: 0 | GZ71: 0 | HA71: 0 | HB71: 0 | HC71: 0 | HD71: 0 | HE71: 0 | HF71: 0 | HG71: 0 | HH71: 0 | HI71: 0 | HJ71: 0 | HK71: 0 | HL71: 0 | HM71: 0 | HN71: 0 | HO71: 0 | HP71: 0 | HQ71: 0 | HR71: 0 | HS71: 0 | HT71: 0 | HU71: 0 | HV71: 0 | HW71: 0 | HX71: 0 | HY71: 0 | HZ71: 0 | IA71: 0 | IB71: 0 | IC71: 0 | ID71: 0 | IE71: 0 | IF71: 0 | IG71: 0 | IH71: 0 | II71: 0 | IJ71: 0 | IK71: 0 | IL71: 0 | IM71: 0 | IN71: 0 | IO71: 0 | IP71: 0 | IQ71: 0 | IR71: 0 | IS71: 0 | IT71: 0 | IU71: 0 | IV71: 0 | IW71: 0 | IX71: 0 | IY71: 0 | IZ71: 0 | JA71: =SUM(JA68:JA70) -> 0 | JB71: 0 | JC71: 0 | JD71: 0 | JE71: 0 | JF71: 0 | JG71: 0 | JH71: 0 | JI71: 0 | JJ71: 0 | JK71: 0 | JL71: 0 | JM71: 0 | JN71: 0 | JO71: 0 | JP71: 0 | JQ71: 0 | JR71: 0 | JS71: 0 | JT71: 0 | JU71: 0 | JV71: 0 | JW71: 0 | JX71: 0 | JY71: 0 | JZ71: 0 | KA71: 0 | KB71: 0 | KC71: 0 | KD71: 0 | KE71: 0 | KF71: 0 | KG71: 0 | KH71: 0 | KI71: 0 | KJ71: 0 | KK71: 0 | KL71: 0 | KM71: 0 | KN71: 0 | KO71: 0 | KP71: 0 | KQ71: 0 | KR71: 0 | KS71: 0 | KT71: 0 | KU71: 0 | KV71: 0 | KW71: 0 | KX71: 0 | KY71: 0 | KZ71: 0 | LA71: 0 | LB71: 0 | LC71: 0 | LD71: 0 | LE71: 0 | LF71: 0 | LG71: 0 | LH71: 0 | LI71: 0 | LJ71: 0 | LK71: 0 | LL71: 0 | LM71: =SUM(LM68:LM70) -> 0 | LN71: 0 | LO71: 0 | LP71: 0 | LQ71: 0 | LR71: 0 | LS71: 0 | LT71: 0 | LU71: 0 | LV71: 0 | LW71: 0 | LX71: 0 | LY71: 0 | LZ71: 0 | MA71: 0 | MB71: 0 | MC71: 0 | MD71: 0 | ME71: 0 | MF71: 0 | MG71: 0 | MH71: 0 | MI71: 0 | MJ71: 0 | MK71: 0 | ML71: 0 | MM71: 0 | MN71: 0 | MO71: 0 | MP71: 0 | MQ71: 0 | MR71: 0 | MS71: 0 | MT71: 0 | MU71: 0 | MV71: 0 | MW71: 0 | MX71: 0 | MY71: 0 | MZ71: 0 | NA71: 0 | NB71: 0 | NC71: 0 | ND71: 0 | NE71: 0 | NF71: 0 | NG71: 0 | NH71: 0 | NI71: 0 | NJ71: 0 | NK71: 0 | NL71: 0 | NM71: 0 | NN71: 0 | NO71: 0 | NP71: 0 | NQ71: 0 | NR71: 0 | NS71: 0 | NT71: 0 | NU71: 0 | NV71: 0 | NW71: 0 | NX71: 0 | NY71: =SUM(NY68:NY70) -> 0 | NZ71: 0 | OA71: 0 | OB71: 0 | OC71: 0 | OD71: 0 | OE71: 0 | OF71: 0 | OG71: 0 | OH71: 0 | OI71: 0 | OJ71: 0 | OK71: 0 | OL71: 0 | OM71: 0 | ON71: 0 | OO71: 0 | OP71: 0 | OQ71: 0 | OR71: 0 | OS71: 0 | OT71: 0 | OU71: 0 | OV71: 0 | OW71: 0 | OX71: 0 | OY71: 0 | OZ71: 0 | PA71: 0 | PB71: 0 | PC71: 0 | PD71: 0 | PE71: 0 | PF71: 0 | PG71: 0 | PH71: 0 | PI71: 0 | PJ71: 0 | PK71: 0 | PL71: 0 | PM71: 0 | PN71: 0 | PO71: 0 | PP71: 0 | PQ71: 0 | PR71: 0 | PS71: 0 | PT71: 0 | PU71: 0 | PV71: 0 | PW71: 0 | PX71: 0 | PY71: 0 | PZ71: 0 | QA71: 0 | QB71: 0 | QC71: =SUM(QC68:QC70) -> 0 | QE71: =SUM(QE68:QE70) -> 0 | QF71: =SUM(QF68:QF70) -> 0 | QG71: =SUM(QG68:QG70) -> 0 | QH71: =SUM(QH68:QH70) -> 0 | QI71: =SUM(QI68:QI70) -> 0 | QJ71: =SUM(QJ68:QJ70) -> 0 | QK71: =SUM(QK68:QK70) -> 0 | QL71: =SUM(QL68:QL70) -> 0 | QM71: =SUM(QM68:QM70) -> 0 | QN71: =SUM(QN68:QN70) -> 0 | QO71: =SUM(QO68:QO70) -> 0 | QP71: 0 | QQ71: =SUM(QQ68:QQ70) -> 0 | QR71: =SUM(QR68:QR70) -> 0 | QS71: =SUM(QS68:QS70) -> 0 | QT71: =SUM(QT68:QT70) -> 0 | QU71: =SUM(QU68:QU70) -> 0 | QV71: =SUM(QV68:QV70) -> 0 | QW71: =SUM(QW68:QW70) -> 0 | QX71: =SUM(QX68:QX70) -> 0 | QY71: =SUM(QY68:QY70) -> 0 | QZ71: =SUM(QZ68:QZ70) -> 0 | RA71: =SUM(RA68:RA70) -> 0 | RB71: 0 | RC71: =SUM(RC68:RC70) -> 0 | RD71: 0 | RE71: =SUM(RE68:RE70) -> 0 | RF71: =SUM(RF68:RF70) -> 0 | RG71: =SUM(RG68:RG70) -> 0 | RH71: =SUM(RH68:RH70) -> 0 | RI71: =SUM(RI68:RI70) -> 0 | RJ71: =SUM(RJ68:RJ70) -> 0 | RK71: 0 | RL71: =SUM(RL68:RL70) -> 0 | RM71: 0 | RN71: =SUM(RN68:RN70) -> 0 | RO71: =SUM(RO68:RO70) -> 0 | RP71: =SUM(RP68:RP70) -> 0 | RQ71: =SUM(RQ68:RQ70) -> 0 | RR71: =SUM(RR68:RR70) -> 0 | RS71: =SUM(RS68:RS70) -> 0 | RT71: =SUM(RT68:RT70) -> 0 | RU71: =SUM(RU68:RU70) -> 0 | RV71: =SUM(RV68:RV70) -> 0 | RW71: 0
D72: CONTRIBUTIVO | QC72: =SUM(E72:QB72)-SUM(PQ72:PT72)-SUM(PW72:PZ72) -> 0 | QE72: =SUM(E72:H72) -> 0 | QF72: =SUM(I72:BO72) -> 0 | QG72: =SUM(BP72:CW72) -> 0 | QH72: =SUM(CX72:DE72) -> 0 | QI72: =SUM(DF72:DT72) -> 0 | QJ72: =SUM(DU72:ET72) -> 0 | QK72: =SUM(EU72:FY72) -> 0 | QL72: =SUM(FZ72:HD72) -> 0 | QM72: =SUM(HE72:HF72) -> 0 | QN72: =SUM(HG72:HL72) -> 0 | QO72: =SUM(HM72:HR72) -> 0 | QP72: =SUM(HS72:IJ72) -> 0 | QQ72: =SUM(IK72:JA72) -> 0 | QR72: =SUM(JB72:JT72) -> 0 | QS72: =SUM(JU72:KD72) -> 0 | QT72: =SUM(KE72:KP72) -> 0 | QU72: =SUM(KQ72:MU72) -> 0 | QV72: =SUM(MV72:NG72) -> 0 | QW72: =SUM(NH72:NI72) -> 0 | QX72: =SUM(NJ72:NL72) -> 0 | QY72: =SUM(NM72:NO72) -> 0 | QZ72: =SUM(NP72) -> 0 | RA72: =SUM(NQ72) -> 0 | RB72: =SUM(NR72:NT72) -> 0 | RC72: =SUM(NU72) -> 0 | RD72: =SUM(NV72) -> 0 | RE72: =SUM(NW72:OB72) -> 0 | RF72: =SUM(OC72:PE72) -> 0 | RG72: =SUM(PF72:PG72) -> 0 | RH72: =SUM(PH72:PI72) -> 0 | RI72: =SUM(PJ72:PM72) -> 0 | RJ72: =SUM(PN72:PP72) -> 0 | RK72: =SUM(PQ72) -> 0 | RL72: =SUM(PR72) -> 0 | RM72: =SUM(PS72) -> 0 | RN72: =SUM(PT72:PV72) -> 0 | RO72: =SUM(PV72) -> 0 | RP72: =SUM(PV72) -> 0 | RQ72: =SUM(PW72) -> 0 | RR72: =SUM(PX72) -> 0 | RS72: =SUM(PY72) -> 0 | RT72: =SUM(PZ72) -> 0 | RU72: =SUM(QA72) -> 0 | RV72: =SUM(QB72) -> 0 | RW72: =SUM(QE72:RU72)-SUM(RI72:RM72)-SUM(RQ72:RT72) -> 0
D73: SUBSIDIADO | QC73: =SUM(E73:QB73)-SUM(PQ73:PT73)-SUM(PW73:PZ73) -> 0 | QE73: 0 | QF73: 0 | QG73: 0 | QH73: 0 | QI73: 0 | QJ73: 0 | QK73: 0 | QL73: 0 | QM73: 0 | QN73: 0 | QO73: 0 | QP73: 0 | QQ73: 0 | QR73: 0 | QS73: 0 | QT73: 0 | QU73: 0 | QV73: 0 | QW73: 0 | QX73: 0 | QY73: 0 | QZ73: 0 | RA73: 0 | RB73: 0 | RC73: 0 | RD73: 0 | RE73: 0 | RF73: 0 | RG73: 0 | RH73: 0 | RI73: 0 | RJ73: 0 | RK73: 0 | RL73: 0 | RM73: 0 | RN73: 0 | RO73: 0 | RP73: 0 | RQ73: 0 | RR73: 0 | RS73: 0 | RT73: 0 | RU73: 0 | RV73: 0 | RW73: 0
D74: POBRE NO ASEGURADO | QC74: =SUM(E74:QB74)-SUM(PQ74:PT74)-SUM(PW74:PZ74) -> 0 | QE74: 0 | QF74: 0 | QG74: 0 | QH74: 0 | QI74: 0 | QJ74: 0 | QK74: 0 | QL74: 0 | QM74: 0 | QN74: 0 | QO74: 0 | QP74: 0 | QQ74: 0 | QR74: 0 | QS74: 0 | QT74: 0 | QU74: 0 | QV74: 0 | QW74: 0 | QX74: 0 | QY74: 0 | QZ74: 0 | RA74: 0 | RB74: 0 | RC74: 0 | RD74: 0 | RE74: 0 | RF74: 0 | RG74: 0 | RH74: 0 | RI74: 0 | RJ74: 0 | RK74: 0 | RL74: 0 | RM74: 0 | RN74: 0 | RO74: 0 | RP74: 0 | RQ74: 0 | RR74: 0 | RS74: 0 | RT74: 0 | RU74: 0 | RV74: 0 | RW74: 0
D75: REGIMEN ESPECIAL | QC75: =SUM(E75:QB75)-SUM(PQ75:PT75)-SUM(PW75:PZ75) -> 0 | QE75: 0 | QF75: 0 | QG75: 0 | QH75: 0 | QI75: 0 | QJ75: 0 | QK75: 0 | QL75: 0 | QM75: 0 | QN75: 0 | QO75: 0 | QP75: 0 | QQ75: 0 | QR75: 0 | QS75: 0 | QT75: 0 | QU75: 0 | QV75: 0 | QW75: 0 | QX75: 0 | QY75: 0 | QZ75: 0 | RA75: 0 | RB75: 0 | RC75: 0 | RD75: 0 | RE75: 0 | RF75: 0 | RG75: 0 | RH75: 0 | RI75: 0 | RJ75: 0 | RK75: 0 | RL75: 0 | RM75: 0 | RN75: 0 | RO75: 0 | RP75: 0 | RQ75: 0 | RR75: 0 | RS75: 0 | RT75: 0 | RU75: 0 | RV75: 0 | RW75: 0
D76: TOTAL REGIMEN | E76: =SUM(E72:E75) -> 0 | F76: 0 | G76: 0 | H76: 0 | I76: 0 | J76: 0 | K76: 0 | L76: 0 | M76: 0 | N76: 0 | O76: 0 | P76: 0 | Q76: 0 | R76: 0 | S76: 0 | T76: 0 | U76: 0 | V76: 0 | W76: 0 | X76: 0 | Y76: 0 | Z76: 0 | AA76: 0 | AB76: 0 | AC76: 0 | AD76: 0 | AE76: 0 | AF76: 0 | AG76: 0 | AH76: 0 | AI76: 0 | AJ76: 0 | AK76: 0 | AL76: 0 | AM76: 0 | AN76: 0 | AO76: 0 | AP76: 0 | AQ76: 0 | AR76: 0 | AS76: 0 | AT76: 0 | AU76: 0 | AV76: 0 | AW76: 0 | AX76: 0 | AY76: 0 | AZ76: 0 | BA76: 0 | BB76: 0 | BC76: 0 | BD76: 0 | BE76: 0 | BF76: 0 | BG76: 0 | BH76: 0 | BI76: 0 | BJ76: 0 | BK76: 0 | BL76: 0 | BM76: 0 | BN76: 0 | BO76: 0 | BP76: 0 | BQ76: =SUM(BQ72:BQ75) -> 0 | BR76: 0 | BS76: 0 | BT76: 0 | BU76: 0 | BV76: 0 | BW76: 0 | BX76: 0 | BY76: 0 | BZ76: 0 | CA76: 0 | CB76: 0 | CC76: 0 | CD76: 0 | CE76: 0 | CF76: 0 | CG76: 0 | CH76: 0 | CI76: 0 | CJ76: 0 | CK76: 0 | CL76: 0 | CM76: 0 | CN76: 0 | CO76: 0 | CP76: 0 | CQ76: 0 | CR76: 0 | CS76: 0 | CT76: 0 | CU76: 0 | CV76: 0 | CW76: 0 | CX76: 0 | CY76: 0 | CZ76: 0 | DA76: 0 | DB76: 0 | DC76: 0 | DD76: 0 | DE76: 0 | DF76: 0 | DG76: 0 | DH76: 0 | DI76: 0 | DJ76: 0 | DK76: 0 | DL76: 0 | DM76: 0 | DN76: 0 | DO76: 0 | DP76: 0 | DQ76: 0 | DR76: 0 | DS76: 0 | DT76: 0 | DU76: 0 | DV76: 0 | DW76: 0 | DX76: 0 | DY76: 0 | DZ76: 0 | EA76: 0 | EB76: 0 | EC76: =SUM(EC72:EC75) -> 0 | ED76: 0 | EE76: 0 | EF76: 0 | EG76: 0 | EH76: 0 | EI76: 0 | EJ76: 0 | EK76: 0 | EL76: 0 | EM76: 0 | EN76: 0 | EO76: 0 | EP76: 0 | EQ76: 0 | ER76: 0 | ES76: 0 | ET76: 0 | EU76: 0 | EV76: 0 | EW76: 0 | EX76: 0 | EY76: 0 | EZ76: 0 | FA76: 0 | FB76: 0 | FC76: 0 | FD76: 0 | FE76: 0 | FF76: 0 | FG76: 0 | FH76: 0 | FI76: 0 | FJ76: 0 | FK76: 0 | FL76: 0 | FM76: 0 | FN76: 0 | FO76: 0 | FP76: 0 | FQ76: 0 | FR76: 0 | FS76: 0 | FT76: 0 | FU76: 0 | FV76: 0 | FW76: 0 | FX76: 0 | FY76: 0 | FZ76: 0 | GA76: 0 | GB76: 0 | GC76: 0 | GD76: 0 | GE76: 0 | GF76: 0 | GG76: 0 | GH76: 0 | GI76: 0 | GJ76: 0 | GK76: 0 | GL76: 0 | GM76: 0 | GN76: 0 | GO76: =SUM(GO72:GO75) -> 0 | GP76: 0 | GQ76: 0 | GR76: 0 | GS76: 0 | GT76: 0 | GU76: 0 | GV76: 0 | GW76: 0 | GX76: 0 | GY76: 0 | GZ76: 0 | HA76: 0 | HB76: 0 | HC76: 0 | HD76: 0 | HE76: 0 | HF76: 0 | HG76: 0 | HH76: 0 | HI76: 0 | HJ76: 0 | HK76: 0 | HL76: 0 | HM76: 0 | HN76: 0 | HO76: 0 | HP76: 0 | HQ76: 0 | HR76: 0 | HS76: 0 | HT76: 0 | HU76: 0 | HV76: 0 | HW76: 0 | HX76: 0 | HY76: 0 | HZ76: 0 | IA76: 0 | IB76: 0 | IC76: 0 | ID76: 0 | IE76: 0 | IF76: 0 | IG76: 0 | IH76: 0 | II76: 0 | IJ76: 0 | IK76: 0 | IL76: 0 | IM76: 0 | IN76: 0 | IO76: 0 | IP76: 0 | IQ76: 0 | IR76: 0 | IS76: 0 | IT76: 0 | IU76: 0 | IV76: 0 | IW76: 0 | IX76: 0 | IY76: 0 | IZ76: 0 | JA76: =SUM(JA72:JA75) -> 0 | JB76: 0 | JC76: 0 | JD76: 0 | JE76: 0 | JF76: 0 | JG76: 0 | JH76: 0 | JI76: 0 | JJ76: 0 | JK76: 0 | JL76: 0 | JM76: 0 | JN76: 0 | JO76: 0 | JP76: 0 | JQ76: 0 | JR76: 0 | JS76: 0 | JT76: 0 | JU76: 0 | JV76: 0 | JW76: 0 | JX76: 0 | JY76: 0 | JZ76: 0 | KA76: 0 | KB76: 0 | KC76: 0 | KD76: 0 | KE76: 0 | KF76: 0 | KG76: 0 | KH76: 0 | KI76: 0 | KJ76: 0 | KK76: 0 | KL76: 0 | KM76: 0 | KN76: 0 | KO76: 0 | KP76: 0 | KQ76: 0 | KR76: 0 | KS76: 0 | KT76: 0 | KU76: 0 | KV76: 0 | KW76: 0 | KX76: 0 | KY76: 0 | KZ76: 0 | LA76: 0 | LB76: 0 | LC76: 0 | LD76: 0 | LE76: 0 | LF76: 0 | LG76: 0 | LH76: 0 | LI76: 0 | LJ76: 0 | LK76: 0 | LL76: 0 | LM76: =SUM(LM72:LM75) -> 0 | LN76: 0 | LO76: 0 | LP76: 0 | LQ76: 0 | LR76: 0 | LS76: 0 | LT76: 0 | LU76: 0 | LV76: 0 | LW76: 0 | LX76: 0 | LY76: 0 | LZ76: 0 | MA76: 0 | MB76: 0 | MC76: 0 | MD76: 0 | ME76: 0 | MF76: 0 | MG76: 0 | MH76: 0 | MI76: 0 | MJ76: 0 | MK76: 0 | ML76: 0 | MM76: 0 | MN76: 0 | MO76: 0 | MP76: 0 | MQ76: 0 | MR76: 0 | MS76: 0 | MT76: 0 | MU76: 0 | MV76: 0 | MW76: 0 | MX76: 0 | MY76: 0 | MZ76: 0 | NA76: 0 | NB76: 0 | NC76: 0 | ND76: 0 | NE76: 0 | NF76: 0 | NG76: 0 | NH76: 0 | NI76: 0 | NJ76: 0 | NK76: 0 | NL76: 0 | NM76: 0 | NN76: 0 | NO76: 0 | NP76: 0 | NQ76: 0 | NR76: 0 | NS76: 0 | NT76: 0 | NU76: 0 | NV76: 0 | NW76: 0 | NX76: 0 | NY76: =SUM(NY72:NY75) -> 0 | NZ76: 0 | OA76: 0 | OB76: 0 | OC76: 0 | OD76: 0 | OE76: 0 | OF76: 0 | OG76: 0 | OH76: 0 | OI76: 0 | OJ76: 0 | OK76: 0 | OL76: 0 | OM76: 0 | ON76: 0 | OO76: 0 | OP76: 0 | OQ76: 0 | OR76: 0 | OS76: 0 | OT76: 0 | OU76: 0 | OV76: 0 | OW76: 0 | OX76: 0 | OY76: 0 | OZ76: 0 | PA76: 0 | PB76: 0 | PC76: 0 | PD76: 0 | PE76: 0 | PF76: 0 | PG76: 0 | PH76: 0 | PI76: 0 | PJ76: 0 | PK76: 0 | PL76: 0 | PM76: 0 | PN76: 0 | PO76: 0 | PP76: 0 | PQ76: 0 | PR76: 0 | PS76: 0 | PT76: 0 | PU76: 0 | PV76: 0 | PW76: 0 | PX76: 0 | PY76: 0 | PZ76: 0 | QA76: 0 | QB76: 0 | QC76: =SUM(QC72:QC75) -> 0 | QE76: =SUM(QE72:QE75) -> 0 | QF76: =SUM(QF72:QF75) -> 0 | QG76: =SUM(QG72:QG75) -> 0 | QH76: =SUM(QH72:QH75) -> 0 | QI76: =SUM(QI72:QI75) -> 0 | QJ76: =SUM(QJ72:QJ75) -> 0 | QK76: =SUM(QK72:QK75) -> 0 | QL76: =SUM(QL72:QL75) -> 0 | QM76: =SUM(QM72:QM75) -> 0 | QN76: =SUM(QN72:QN75) -> 0 | QO76: =SUM(QO72:QO75) -> 0 | QP76: 0 | QQ76: =SUM(QQ72:QQ75) -> 0 | QR76: =SUM(QR72:QR75) -> 0 | QS76: =SUM(QS72:QS75) -> 0 | QT76: =SUM(QT72:QT75) -> 0 | QU76: =SUM(QU72:QU75) -> 0 | QV76: =SUM(QV72:QV75) -> 0 | QW76: =SUM(QW72:QW75) -> 0 | QX76: =SUM(QX72:QX75) -> 0 | QY76: =SUM(QY72:QY75) -> 0 | QZ76: =SUM(QZ72:QZ75) -> 0 | RA76: =SUM(RA72:RA75) -> 0 | RB76: 0 | RC76: =SUM(RC72:RC75) -> 0 | RD76: 0 | RE76: =SUM(RE72:RE75) -> 0 | RF76: =SUM(RF72:RF75) -> 0 | RG76: =SUM(RG72:RG75) -> 0 | RH76: =SUM(RH72:RH75) -> 0 | RI76: =SUM(RI72:RI75) -> 0 | RJ76: =SUM(RJ72:RJ75) -> 0 | RK76: 0 | RL76: =SUM(RL72:RL75) -> 0 | RM76: 0 | RN76: =SUM(RN72:RN75) -> 0 | RO76: =SUM(RO72:RO75) -> 0 | RP76: =SUM(RP72:RP75) -> 0 | RQ76: =SUM(RQ72:RQ75) -> 0 | RR76: =SUM(RR72:RR75) -> 0 | RS76: =SUM(RS72:RS75) -> 0 | RT76: =SUM(RT72:RT75) -> 0 | RU76: =SUM(RU72:RU75) -> 0 | RV76: =SUM(RV72:RV75) -> 0 | RW76: 0
D77: INDIGENA | QC77: =SUM(E77:QB77)-SUM(PQ77:PT77)-SUM(PW77:PZ77) -> 0 | QE77: =SUM(E77:H77) -> 0 | QF77: =SUM(I77:BO77) -> 0 | QG77: =SUM(BP77:CW77) -> 0 | QH77: =SUM(CX77:DE77) -> 0 | QI77: =SUM(DF77:DT77) -> 0 | QJ77: =SUM(DU77:ET77) -> 0 | QK77: =SUM(EU77:FY77) -> 0 | QL77: =SUM(FZ77:HD77) -> 0 | QM77: =SUM(HE77:HF77) -> 0 | QN77: =SUM(HG77:HL77) -> 0 | QO77: =SUM(HM77:HR77) -> 0 | QP77: =SUM(HS77:IJ77) -> 0 | QQ77: =SUM(IK77:JA77) -> 0 | QR77: =SUM(JB77:JT77) -> 0 | QS77: =SUM(JU77:KD77) -> 0 | QT77: =SUM(KE77:KP77) -> 0 | QU77: =SUM(KQ77:MU77) -> 0 | QV77: =SUM(MV77:NG77) -> 0 | QW77: =SUM(NH77:NI77) -> 0 | QX77: =SUM(NJ77:NL77) -> 0 | QY77: =SUM(NM77:NO77) -> 0 | QZ77: =SUM(NP77) -> 0 | RA77: =SUM(NQ77) -> 0 | RB77: =SUM(NR77:NT77) -> 0 | RC77: =SUM(NU77) -> 0 | RD77: =SUM(NV77) -> 0 | RE77: =SUM(NW77:OB77) -> 0 | RF77: =SUM(OC77:PE77) -> 0 | RG77: =SUM(PF77:PG77) -> 0 | RH77: =SUM(PH77:PI77) -> 0 | RI77: =SUM(PJ77:PM77) -> 0 | RJ77: =SUM(PN77:PP77) -> 0 | RK77: =SUM(PQ77) -> 0 | RL77: =SUM(PR77) -> 0 | RM77: =SUM(PS77) -> 0 | RN77: =SUM(PT77:PV77) -> 0 | RO77: =SUM(PV77) -> 0 | RP77: =SUM(PV77) -> 0 | RQ77: =SUM(PW77) -> 0 | RR77: =SUM(PX77) -> 0 | RS77: =SUM(PY77) -> 0 | RT77: =SUM(PZ77) -> 0 | RU77: =SUM(QA77) -> 0 | RV77: =SUM(QB77) -> 0 | RW77: =SUM(QE77:RU77)-SUM(RI77:RM77)-SUM(RQ77:RT77) -> 0
D78: ROM (GITANO) | QC78: 0 | QE78: 0 | QF78: 0 | QG78: 0 | QH78: 0 | QI78: 0 | QJ78: 0 | QK78: 0 | QL78: 0 | QM78: 0 | QN78: 0 | QO78: 0 | QP78: 0 | QQ78: 0 | QR78: 0 | QS78: 0 | QT78: 0 | QU78: 0 | QV78: 0 | QW78: 0 | QX78: 0 | QY78: 0 | QZ78: 0 | RA78: 0 | RB78: 0 | RC78: 0 | RD78: 0 | RE78: 0 | RF78: 0 | RG78: 0 | RH78: 0 | RI78: 0 | RJ78: 0 | RK78: 0 | RL78: 0 | RM78: 0 | RN78: 0 | RO78: 0 | RP78: 0 | RQ78: 0 | RR78: 0 | RS78: 0 | RT78: 0 | RU78: 0 | RV78: 0 | RW78: 0
D79: RAIZAL | QC79: 0 | QE79: 0 | QF79: 0 | QG79: 0 | QH79: 0 | QI79: 0 | QJ79: 0 | QK79: 0 | QL79: 0 | QM79: 0 | QN79: 0 | QO79: 0 | QP79: 0 | QQ79: 0 | QR79: 0 | QS79: 0 | QT79: 0 | QU79: 0 | QV79: 0 | QW79: 0 | QX79: 0 | QY79: 0 | QZ79: 0 | RA79: 0 | RB79: 0 | RC79: 0 | RD79: 0 | RE79: 0 | RF79: 0 | RG79: 0 | RH79: 0 | RI79: 0 | RJ79: 0 | RK79: 0 | RL79: 0 | RM79: 0 | RN79: 0 | RO79: 0 | RP79: 0 | RQ79: 0 | RR79: 0 | RS79: 0 | RT79: 0 | RU79: 0 | RV79: 0 | RW79: 0
D80: PALENQUERO | QC80: 0 | QE80: 0 | QF80: 0 | QG80: 0 | QH80: 0 | QI80: 0 | QJ80: 0 | QK80: 0 | QL80: 0 | QM80: 0 | QN80: 0 | QO80: 0 | QP80: 0 | QQ80: 0 | QR80: 0 | QS80: 0 | QT80: 0 | QU80: 0 | QV80: 0 | QW80: 0 | QX80: 0 | QY80: 0 | QZ80: 0 | RA80: 0 | RB80: 0 | RC80: 0 | RD80: 0 | RE80: 0 | RF80: 0 | RG80: 0 | RH80: 0 | RI80: 0 | RJ80: 0 | RK80: 0 | RL80: 0 | RM80: 0 | RN80: 0 | RO80: 0 | RP80: 0 | RQ80: 0 | RR80: 0 | RS80: 0 | RT80: 0 | RU80: 0 | RV80: 0 | RW80: 0
D81: NEGRO(A), MULATO (A), AFROCOLOMBIANO (A) | QC81: 0 | QE81: 0 | QF81: 0 | QG81: 0 | QH81: 0 | QI81: 0 | QJ81: 0 | QK81: 0 | QL81: 0 | QM81: 0 | QN81: 0 | QO81: 0 | QP81: 0 | QQ81: 0 | QR81: 0 | QS81: 0 | QT81: 0 | QU81: 0 | QV81: 0 | QW81: 0 | QX81: 0 | QY81: 0 | QZ81: 0 | RA81: 0 | RB81: 0 | RC81: 0 | RD81: 0 | RE81: 0 | RF81: 0 | RG81: 0 | RH81: 0 | RI81: 0 | RJ81: 0 | RK81: 0 | RL81: 0 | RM81: 0 | RN81: 0 | RO81: 0 | RP81: 0 | RQ81: 0 | RR81: 0 | RS81: 0 | RT81: 0 | RU81: 0 | RV81: 0 | RW81: 0
D82: SIN PERTENENCIA ETNICA | QC82: 0 | QE82: 0 | QF82: 0 | QG82: 0 | QH82: 0 | QI82: 0 | QJ82: 0 | QK82: 0 | QL82: 0 | QM82: 0 | QN82: 0 | QO82: 0 | QP82: 0 | QQ82: 0 | QR82: 0 | QS82: 0 | QT82: 0 | QU82: 0 | QV82: 0 | QW82: 0 | QX82: 0 | QY82: 0 | QZ82: 0 | RA82: 0 | RB82: 0 | RC82: 0 | RD82: 0 | RE82: 0 | RF82: 0 | RG82: 0 | RH82: 0 | RI82: 0 | RJ82: 0 | RK82: 0 | RL82: 0 | RM82: 0 | RN82: 0 | RO82: 0 | RP82: 0 | RQ82: 0 | RR82: 0 | RS82: 0 | RT82: 0 | RU82: 0 | RV82: 0 | RW82: 0
D83: TOTAL ETNICOS | E83: =SUM(E77:E82) -> 0 | F83: 0 | G83: 0 | H83: 0 | I83: 0 | J83: 0 | K83: 0 | L83: 0 | M83: 0 | N83: 0 | O83: 0 | P83: 0 | Q83: 0 | R83: 0 | S83: 0 | T83: 0 | U83: 0 | V83: 0 | W83: 0 | X83: 0 | Y83: 0 | Z83: 0 | AA83: 0 | AB83: 0 | AC83: 0 | AD83: 0 | AE83: 0 | AF83: 0 | AG83: 0 | AH83: 0 | AI83: 0 | AJ83: 0 | AK83: 0 | AL83: 0 | AM83: 0 | AN83: 0 | AO83: 0 | AP83: 0 | AQ83: 0 | AR83: 0 | AS83: 0 | AT83: 0 | AU83: 0 | AV83: 0 | AW83: 0 | AX83: 0 | AY83: 0 | AZ83: 0 | BA83: 0 | BB83: 0 | BC83: 0 | BD83: 0 | BE83: 0 | BF83: 0 | BG83: 0 | BH83: 0 | BI83: 0 | BJ83: 0 | BK83: 0 | BL83: 0 | BM83: 0 | BN83: 0 | BO83: 0 | BP83: 0 | BQ83: =SUM(BQ77:BQ82) -> 0 | BR83: 0 | BS83: 0 | BT83: 0 | BU83: 0 | BV83: 0 | BW83: 0 | BX83: 0 | BY83: 0 | BZ83: 0 | CA83: 0 | CB83: 0 | CC83: 0 | CD83: 0 | CE83: 0 | CF83: 0 | CG83: 0 | CH83: 0 | CI83: 0 | CJ83: 0 | CK83: 0 | CL83: 0 | CM83: 0 | CN83: 0 | CO83: 0 | CP83: 0 | CQ83: 0 | CR83: 0 | CS83: 0 | CT83: 0 | CU83: 0 | CV83: 0 | CW83: 0 | CX83: 0 | CY83: 0 | CZ83: 0 | DA83: 0 | DB83: 0 | DC83: 0 | DD83: 0 | DE83: 0 | DF83: 0 | DG83: 0 | DH83: 0 | DI83: 0 | DJ83: 0 | DK83: 0 | DL83: 0 | DM83: 0 | DN83: 0 | DO83: 0 | DP83: 0 | DQ83: 0 | DR83: 0 | DS83: 0 | DT83: 0 | DU83: 0 | DV83: 0 | DW83: 0 | DX83: 0 | DY83: 0 | DZ83: 0 | EA83: 0 | EB83: 0 | EC83: =SUM(EC77:EC82) -> 0 | ED83: 0 | EE83: 0 | EF83: 0 | EG83: 0 | EH83: 0 | EI83: 0 | EJ83: 0 | EK83: 0 | EL83: 0 | EM83: 0 | EN83: 0 | EO83: 0 | EP83: 0 | EQ83: 0 | ER83: 0 | ES83: 0 | ET83: 0 | EU83: 0 | EV83: 0 | EW83: 0 | EX83: 0 | EY83: 0 | EZ83: 0 | FA83: 0 | FB83: 0 | FC83: 0 | FD83: 0 | FE83: 0 | FF83: 0 | FG83: 0 | FH83: 0 | FI83: 0 | FJ83: 0 | FK83: 0 | FL83: 0 | FM83: 0 | FN83: 0 | FO83: 0 | FP83: 0 | FQ83: 0 | FR83: 0 | FS83: 0 | FT83: 0 | FU83: 0 | FV83: 0 | FW83: 0 | FX83: 0 | FY83: 0 | FZ83: 0 | GA83: 0 | GB83: 0 | GC83: 0 | GD83: 0 | GE83: 0 | GF83: 0 | GG83: 0 | GH83: 0 | GI83: 0 | GJ83: 0 | GK83: 0 | GL83: 0 | GM83: 0 | GN83: 0 | GO83: =SUM(GO77:GO82) -> 0 | GP83: 0 | GQ83: 0 | GR83: 0 | GS83: 0 | GT83: 0 | GU83: 0 | GV83: 0 | GW83: 0 | GX83: 0 | GY83: 0 | GZ83: 0 | HA83: 0 | HB83: 0 | HC83: 0 | HD83: 0 | HE83: 0 | HF83: 0 | HG83: 0 | HH83: 0 | HI83: 0 | HJ83: 0 | HK83: 0 | HL83: 0 | HM83: 0 | HN83: 0 | HO83: 0 | HP83: 0 | HQ83: 0 | HR83: 0 | HS83: 0 | HT83: 0 | HU83: 0 | HV83: 0 | HW83: 0 | HX83: 0 | HY83: 0 | HZ83: 0 | IA83: 0 | IB83: 0 | IC83: 0 | ID83: 0 | IE83: 0 | IF83: 0 | IG83: 0 | IH83: 0 | II83: 0 | IJ83: 0 | IK83: 0 | IL83: 0 | IM83: 0 | IN83: 0 | IO83: 0 | IP83: 0 | IQ83: 0 | IR83: 0 | IS83: 0 | IT83: 0 | IU83: 0 | IV83: 0 | IW83: 0 | IX83: 0 | IY83: 0 | IZ83: 0 | JA83: =SUM(JA77:JA82) -> 0 | JB83: 0 | JC83: 0 | JD83: 0 | JE83: 0 | JF83: 0 | JG83: 0 | JH83: 0 | JI83: 0 | JJ83: 0 | JK83: 0 | JL83: 0 | JM83: 0 | JN83: 0 | JO83: 0 | JP83: 0 | JQ83: 0 | JR83: 0 | JS83: 0 | JT83: 0 | JU83: 0 | JV83: 0 | JW83: 0 | JX83: 0 | JY83: 0 | JZ83: 0 | KA83: 0 | KB83: 0 | KC83: 0 | KD83: 0 | KE83: 0 | KF83: 0 | KG83: 0 | KH83: 0 | KI83: 0 | KJ83: 0 | KK83: 0 | KL83: 0 | KM83: 0 | KN83: 0 | KO83: 0 | KP83: 0 | KQ83: 0 | KR83: 0 | KS83: 0 | KT83: 0 | KU83: 0 | KV83: 0 | KW83: 0 | KX83: 0 | KY83: 0 | KZ83: 0 | LA83: 0 | LB83: 0 | LC83: 0 | LD83: 0 | LE83: 0 | LF83: 0 | LG83: 0 | LH83: 0 | LI83: 0 | LJ83: 0 | LK83: 0 | LL83: 0 | LM83: =SUM(LM77:LM82) -> 0 | LN83: 0 | LO83: 0 | LP83: 0 | LQ83: 0 | LR83: 0 | LS83: 0 | LT83: 0 | LU83: 0 | LV83: 0 | LW83: 0 | LX83: 0 | LY83: 0 | LZ83: 0 | MA83: 0 | MB83: 0 | MC83: 0 | MD83: 0 | ME83: 0 | MF83: 0 | MG83: 0 | MH83: 0 | MI83: 0 | MJ83: 0 | MK83: 0 | ML83: 0 | MM83: 0 | MN83: 0 | MO83: 0 | MP83: 0 | MQ83: 0 | MR83: 0 | MS83: 0 | MT83: 0 | MU83: 0 | MV83: 0 | MW83: 0 | MX83: 0 | MY83: 0 | MZ83: 0 | NA83: 0 | NB83: 0 | NC83: 0 | ND83: 0 | NE83: 0 | NF83: 0 | NG83: 0 | NH83: 0 | NI83: 0 | NJ83: 0 | NK83: 0 | NL83: 0 | NM83: 0 | NN83: 0 | NO83: 0 | NP83: 0 | NQ83: 0 | NR83: 0 | NS83: 0 | NT83: 0 | NU83: 0 | NV83: 0 | NW83: 0 | NX83: 0 | NY83: =SUM(NY77:NY82) -> 0 | NZ83: 0 | OA83: 0 | OB83: 0 | OC83: 0 | OD83: 0 | OE83: 0 | OF83: 0 | OG83: 0 | OH83: 0 | OI83: 0 | OJ83: 0 | OK83: 0 | OL83: 0 | OM83: 0 | ON83: 0 | OO83: 0 | OP83: 0 | OQ83: 0 | OR83: 0 | OS83: 0 | OT83: 0 | OU83: 0 | OV83: 0 | OW83: 0 | OX83: 0 | OY83: 0 | OZ83: 0 | PA83: 0 | PB83: 0 | PC83: 0 | PD83: 0 | PE83: 0 | PF83: 0 | PG83: 0 | PH83: 0 | PI83: 0 | PJ83: 0 | PK83: 0 | PL83: 0 | PM83: 0 | PN83: 0 | PO83: 0 | PP83: 0 | PQ83: 0 | PR83: 0 | PS83: 0 | PT83: 0 | PU83: 0 | PV83: 0 | PW83: 0 | PX83: 0 | PY83: 0 | PZ83: 0 | QA83: 0 | QB83: 0 | QC83: =SUM(QC77:QC82) -> 0 | QE83: =SUM(QE77:QE82) -> 0 | QF83: =SUM(QF77:QF82) -> 0 | QG83: =SUM(QG77:QG82) -> 0 | QH83: =SUM(QH77:QH82) -> 0 | QI83: =SUM(QI77:QI82) -> 0 | QJ83: =SUM(QJ77:QJ82) -> 0 | QK83: =SUM(QK77:QK82) -> 0 | QL83: =SUM(QL77:QL82) -> 0 | QM83: =SUM(QM77:QM82) -> 0 | QN83: =SUM(QN77:QN82) -> 0 | QO83: =SUM(QO77:QO82) -> 0 | QP83: 0 | QQ83: =SUM(QQ77:QQ82) -> 0 | QR83: =SUM(QR77:QR82) -> 0 | QS83: =SUM(QS77:QS82) -> 0 | QT83: =SUM(QT77:QT82) -> 0 | QU83: =SUM(QU77:QU82) -> 0 | QV83: =SUM(QV77:QV82) -> 0 | QW83: =SUM(QW77:QW82) -> 0 | QX83: =SUM(QX77:QX82) -> 0 | QY83: =SUM(QY77:QY82) -> 0 | QZ83: =SUM(QZ77:QZ82) -> 0 | RA83: =SUM(RA77:RA82) -> 0 | RB83: 0 | RC83: =SUM(RC77:RC82) -> 0 | RD83: 0 | RE83: =SUM(RE77:RE82) -> 0 | RF83: =SUM(RF77:RF82) -> 0 | RG83: =SUM(RG77:RG82) -> 0 | RH83: =SUM(RH77:RH82) -> 0 | RI83: =SUM(RI77:RI82) -> 0 | RJ83: =SUM(RJ77:RJ82) -> 0 | RK83: 0 | RL83: =SUM(RL77:RL82) -> 0 | RM83: 0 | RN83: =SUM(RN77:RN82) -> 0 | RO83: =SUM(RO77:RO82) -> 0 | RP83: =SUM(RP77:RP82) -> 0 | RQ83: =SUM(RQ77:RQ82) -> 0 | RR83: =SUM(RR77:RR82) -> 0 | RS83: =SUM(RS77:RS82) -> 0 | RT83: =SUM(RT77:RT82) -> 0 | RU83: =SUM(RU77:RU82) -> 0 | RV83: =SUM(RV77:RV82) -> 0 | RW83: 0
D84: EN SITUACION DE DESPLAZAMIENTO | QC84: =SUM(E84:QB84)-SUM(PQ84:PT84)-SUM(PW84:PZ84) -> 0 | QE84: =SUM(E84:H84) -> 0 | QF84: =SUM(I84:BO84) -> 0 | QG84: =SUM(BP84:CW84) -> 0 | QH84: =SUM(CX84:DE84) -> 0 | QI84: =SUM(DF84:DT84) -> 0 | QJ84: =SUM(DU84:ET84) -> 0 | QK84: =SUM(EU84:FY84) -> 0 | QL84: =SUM(FZ84:HD84) -> 0 | QM84: =SUM(HE84:HF84) -> 0 | QN84: =SUM(HG84:HL84) -> 0 | QO84: =SUM(HM84:HR84) -> 0 | QP84: =SUM(HS84:IJ84) -> 0 | QQ84: =SUM(IK84:JA84) -> 0 | QR84: =SUM(JB84:JT84) -> 0 | QS84: =SUM(JU84:KD84) -> 0 | QT84: =SUM(KE84:KP84) -> 0 | QU84: =SUM(KQ84:MU84) -> 0 | QV84: =SUM(MV84:NG84) -> 0 | QW84: =SUM(NH84:NI84) -> 0 | QX84: =SUM(NJ84:NL84) -> 0 | QY84: =SUM(NM84:NO84) -> 0 | QZ84: =SUM(NP84) -> 0 | RA84: =SUM(NQ84) -> 0 | RB84: =SUM(NR84:NT84) -> 0 | RC84: =SUM(NU84) -> 0 | RD84: =SUM(NV84) -> 0 | RE84: =SUM(NW84:OB84) -> 0 | RF84: =SUM(OC84:PE84) -> 0 | RG84: =SUM(PF84:PG84) -> 0 | RH84: =SUM(PH84:PI84) -> 0 | RI84: =SUM(PJ84:PM84) -> 0 | RJ84: =SUM(PN84:PP84) -> 0 | RK84: =SUM(PQ84) -> 0 | RL84: =SUM(PR84) -> 0 | RM84: =SUM(PS84) -> 0 | RN84: =SUM(PT84:PV84) -> 0 | RO84: =SUM(PV84) -> 0 | RP84: =SUM(PV84) -> 0 | RQ84: =SUM(PW84) -> 0 | RR84: =SUM(PX84) -> 0 | RS84: =SUM(PY84) -> 0 | RT84: =SUM(PZ84) -> 0 | RU84: =SUM(QA84) -> 0 | RV84: =SUM(QB84) -> 0 | RW84: =SUM(QE84:RU84)-SUM(RI84:RM84)-SUM(RQ84:RT84) -> 0
D85: EN CONDICION DE DISCAPACIDAD | QC85: 0 | QE85: 0 | QF85: 0 | QG85: 0 | QH85: 0 | QI85: 0 | QJ85: 0 | QK85: 0 | QL85: 0 | QM85: 0 | QN85: 0 | QO85: 0 | QP85: 0 | QQ85: 0 | QR85: 0 | QS85: 0 | QT85: 0 | QU85: 0 | QV85: 0 | QW85: 0 | QX85: 0 | QY85: 0 | QZ85: 0 | RA85: 0 | RB85: 0 | RC85: 0 | RD85: 0 | RE85: 0 | RF85: 0 | RG85: 0 | RH85: 0 | RI85: 0 | RJ85: 0 | RK85: 0 | RL85: 0 | RM85: 0 | RN85: 0 | RO85: 0 | RP85: 0 | RQ85: 0 | RR85: 0 | RS85: 0 | RT85: 0 | RU85: 0 | RV85: 0 | RW85: 0
D86: VICTIMAS DEL CONFLICTO ARMADO | QC86: 0 | QE86: 0 | QF86: 0 | QG86: 0 | QH86: 0 | QI86: 0 | QJ86: 0 | QK86: 0 | QL86: 0 | QM86: 0 | QN86: 0 | QO86: 0 | QP86: 0 | QQ86: 0 | QR86: 0 | QS86: 0 | QT86: 0 | QU86: 0 | QV86: 0 | QW86: 0 | QX86: 0 | QY86: 0 | QZ86: 0 | RA86: 0 | RB86: 0 | RC86: 0 | RD86: 0 | RE86: 0 | RF86: 0 | RG86: 0 | RH86: 0 | RI86: 0 | RJ86: 0 | RK86: 0 | RL86: 0 | RM86: 0 | RN86: 0 | RO86: 0 | RP86: 0 | RQ86: 0 | RR86: 0 | RS86: 0 | RT86: 0 | RU86: 0 | RV86: 0 | RW86: 0
D87: ZONAS VEREDALES | QC87: 0 | QD87: =CONCATENATE($G$2,$B$68) -> 11 | QE87: =SUM(E87:H87) -> 0 | QF87: =SUM(I87:BN87) -> 0 | QG87: =SUM(BP87:CW87) -> 0 | QH87: =SUM(CX87:DE87) -> 0 | QI87: =SUM(DF87:DT87) -> 0 | QJ87: =SUM(DU87:ET87) -> 0 | QK87: =SUM(EU87:FY87) -> 0 | QL87: =SUM(FZ87:HD87) -> 0 | QM87: =SUM(HE87:HF87) -> 0 | QN87: =SUM(HG87:HL87) -> 0 | QO87: =SUM(HR87:II87) -> 0 | QP87: 0 | QQ87: =SUM(IK87:JA87) -> 0 | QR87: =SUM(JB87:JT87) -> 0 | QS87: =SUM(JU87:KD87) -> 0 | QT87: =SUM(KE87:KP87) -> 0 | QU87: =SUM(KQ87:MU87) -> 0 | QV87: =SUM(MV87:NG87) -> 0 | QW87: =SUM(NH87:NL87) -> 0 | QX87: =SUM(NM87:NO87) -> 0 | QY87: 0 | QZ87: =SUM(NP87) -> 0 | RA87: 0 | RB87: =SUM(NS87:NT87) -> 0 | RC87: 0 | RD87: 0 | RE87: =SUM(NZ87:OB87) -> 0 | RF87: =SUM(OC87:PE87) -> 0 | RG87: =SUM(PF87:PI87) -> 0 | RH87: =SUM(PJ87:PP87) -> 0 | RI87: =PQ87 -> 0 | RJ87: =PR87 -> 0 | RK87: =SUM(PQ87) -> 0 | RL87: 0 | RM87: 0 | RN87: 0 | RO87: 0 | RP87: 0 | RQ87: 0 | RR87: 0 | RS87: 0 | RT87: 0 | RU87: 0 | RV87: 0 | RW87: =SUM(QE87:RU87)-SUM(RI87:RM87)-SUM(RQ87:RT87) -> 0
D88: FEMENINO | QC88: 0 | QE88: 0 | QF88: =SUM(I88:BO88) -> 0 | QG88: 0 | QH88: 0 | QI88: 0 | QJ88: 0 | QK88: 0 | QL88: 0 | QM88: 0 | QN88: 0 | QO88: =SUM(HM88:HR88) -> 0 | QP88: 0 | QQ88: 0 | QR88: 0 | QS88: 0 | QT88: 0 | QU88: 0 | QV88: 0 | QW88: =SUM(NH88:NI88) -> 0 | QX88: =SUM(NJ88:NL88) -> 0 | QY88: =SUM(NM88:NO88) -> 0 | QZ88: 0 | RA88: 0 | RB88: =SUM(NR88:NT88) -> 0 | RC88: =SUM(NU88) -> 0 | RD88: =SUM(NV88) -> 0 | RE88: =SUM(NW88:OB88) -> 0 | RF88: =SUM(OC88:PE88) -> 0 | RG88: =SUM(PF88:PG88) -> 0 | RH88: =SUM(PH88:PI88) -> 0 | RI88: =SUM(PJ88:PM88) -> 0 | RJ88: =SUM(PN88:PP88) -> 0 | RK88: =SUM(PQ88) -> 0 | RL88: =SUM(PR88) -> 0 | RM88: =SUM(PS88) -> 0 | RN88: =SUM(PT88:PV88) -> 0 | RO88: =SUM(PV88) -> 0 | RP88: =SUM(PV88) -> 0 | RQ88: =SUM(PW88) -> 0 | RR88: =SUM(PX88) -> 0 | RS88: =SUM(PY88) -> 0 | RT88: =SUM(PZ88) -> 0 | RU88: =SUM(QA88) -> 0 | RV88: =SUM(QB88) -> 0 | RW88: =SUM(QE88:RU88)-SUM(RI88:RM88)-SUM(RQ88:RT88) -> 0
D89: MASCULINO | QC89: 0 | QE89: 0 | QF89: 0 | QG89: 0 | QH89: 0 | QI89: 0 | QJ89: 0 | QK89: 0 | QL89: 0 | QM89: 0 | QN89: 0 | QO89: 0 | QP89: 0 | QQ89: 0 | QR89: 0 | QS89: 0 | QT89: 0 | QU89: 0 | QV89: 0 | QW89: 0 | QX89: 0 | QY89: 0 | QZ89: 0 | RA89: 0 | RB89: 0 | RC89: 0 | RD89: 0 | RE89: 0 | RF89: 0 | RG89: 0 | RH89: 0 | RI89: 0 | RJ89: 0 | RK89: 0 | RL89: 0 | RM89: 0 | RN89: 0 | RO89: 0 | RP89: 0 | RQ89: 0 | RR89: 0 | RS89: 0 | RT89: 0 | RU89: 0 | RV89: 0 | RW89: 0
D90: OTRO | QC90: 0 | QE90: 0 | QF90: 0 | QG90: 0 | QH90: 0 | QI90: 0 | QJ90: 0 | QK90: 0 | QL90: 0 | QM90: 0 | QN90: 0 | QO90: 0 | QP90: 0 | QQ90: 0 | QR90: 0 | QS90: 0 | QT90: 0 | QU90: 0 | QV90: 0 | QW90: 0 | QX90: 0 | QY90: 0 | QZ90: 0 | RA90: 0 | RB90: 0 | RC90: 0 | RD90: 0 | RE90: 0 | RF90: 0 | RG90: 0 | RH90: 0 | RI90: 0 | RJ90: 0 | RK90: 0 | RL90: 0 | RM90: 0 | RN90: 0 | RO90: 0 | RP90: 0 | RQ90: 0 | RR90: 0 | RS90: 0 | RT90: 0 | RU90: 0 | RV90: 0 | RW90: 0
D91: TOTAL GENERO | E91: =SUM(E88:E90) -> 0 | F91: 0 | G91: 0 | H91: 0 | I91: 0 | J91: 0 | K91: 0 | L91: 0 | M91: 0 | N91: 0 | O91: 0 | P91: 0 | Q91: 0 | R91: 0 | S91: 0 | T91: 0 | U91: 0 | V91: 0 | W91: 0 | X91: 0 | Y91: 0 | Z91: 0 | AA91: 0 | AB91: 0 | AC91: 0 | AD91: 0 | AE91: 0 | AF91: 0 | AG91: 0 | AH91: 0 | AI91: 0 | AJ91: 0 | AK91: 0 | AL91: 0 | AM91: 0 | AN91: 0 | AO91: 0 | AP91: 0 | AQ91: 0 | AR91: 0 | AS91: 0 | AT91: 0 | AU91: 0 | AV91: 0 | AW91: 0 | AX91: 0 | AY91: 0 | AZ91: 0 | BA91: 0 | BB91: 0 | BC91: 0 | BD91: 0 | BE91: 0 | BF91: 0 | BG91: 0 | BH91: 0 | BI91: 0 | BJ91: 0 | BK91: 0 | BL91: 0 | BM91: 0 | BN91: 0 | BO91: 0 | BP91: 0 | BQ91: =SUM(BQ88:BQ90) -> 0 | BR91: 0 | BS91: 0 | BT91: 0 | BU91: 0 | BV91: 0 | BW91: 0 | BX91: 0 | BY91: 0 | BZ91: 0 | CA91: 0 | CB91: 0 | CC91: 0 | CD91: 0 | CE91: 0 | CF91: 0 | CG91: 0 | CH91: 0 | CI91: 0 | CJ91: 0 | CK91: 0 | CL91: 0 | CM91: 0 | CN91: 0 | CO91: 0 | CP91: 0 | CQ91: 0 | CR91: 0 | CS91: 0 | CT91: 0 | CU91: 0 | CV91: 0 | CW91: 0 | CX91: 0 | CY91: 0 | CZ91: 0 | DA91: 0 | DB91: 0 | DC91: 0 | DD91: 0 | DE91: 0 | DF91: 0 | DG91: 0 | DH91: 0 | DI91: 0 | DJ91: 0 | DK91: 0 | DL91: 0 | DM91: 0 | DN91: 0 | DO91: 0 | DP91: 0 | DQ91: 0 | DR91: 0 | DS91: 0 | DT91: 0 | DU91: 0 | DV91: 0 | DW91: 0 | DX91: 0 | DY91: 0 | DZ91: 0 | EA91: 0 | EB91: 0 | EC91: =SUM(EC88:EC90) -> 0 | ED91: 0 | EE91: 0 | EF91: 0 | EG91: 0 | EH91: 0 | EI91: 0 | EJ91: 0 | EK91: 0 | EL91: 0 | EM91: 0 | EN91: 0 | EO91: 0 | EP91: 0 | EQ91: 0 | ER91: 0 | ES91: 0 | ET91: 0 | EU91: 0 | EV91: 0 | EW91: 0 | EX91: 0 | EY91: 0 | EZ91: 0 | FA91: 0 | FB91: 0 | FC91: 0 | FD91: 0 | FE91: 0 | FF91: 0 | FG91: 0 | FH91: 0 | FI91: 0 | FJ91: 0 | FK91: 0 | FL91: 0 | FM91: 0 | FN91: 0 | FO91: 0 | FP91: 0 | FQ91: 0 | FR91: 0 | FS91: 0 | FT91: 0 | FU91: 0 | FV91: 0 | FW91: 0 | FX91: 0 | FY91: 0 | FZ91: 0 | GA91: 0 | GB91: 0 | GC91: 0 | GD91: 0 | GE91: 0 | GF91: 0 | GG91: 0 | GH91: 0 | GI91: 0 | GJ91: 0 | GK91: 0 | GL91: 0 | GM91: 0 | GN91: 0 | GO91: =SUM(GO88:GO90) -> 0 | GP91: 0 | GQ91: 0 | GR91: 0 | GS91: 0 | GT91: 0 | GU91: 0 | GV91: 0 | GW91: 0 | GX91: 0 | GY91: 0 | GZ91: 0 | HA91: 0 | HB91: 0 | HC91: 0 | HD91: 0 | HE91: 0 | HF91: 0 | HG91: 0 | HH91: 0 | HI91: 0 | HJ91: 0 | HK91: 0 | HL91: 0 | HM91: 0 | HN91: 0 | HO91: 0 | HP91: 0 | HQ91: 0 | HR91: 0 | HS91: 0 | HT91: 0 | HU91: 0 | HV91: 0 | HW91: 0 | HX91: 0 | HY91: 0 | HZ91: 0 | IA91: 0 | IB91: 0 | IC91: 0 | ID91: 0 | IE91: 0 | IF91: 0 | IG91: 0 | IH91: 0 | II91: 0 | IJ91: 0 | IK91: 0 | IL91: 0 | IM91: 0 | IN91: 0 | IO91: 0 | IP91: 0 | IQ91: 0 | IR91: 0 | IS91: 0 | IT91: 0 | IU91: 0 | IV91: 0 | IW91: 0 | IX91: 0 | IY91: 0 | IZ91: 0 | JA91: =SUM(JA88:JA90) -> 0 | JB91: 0 | JC91: 0 | JD91: 0 | JE91: 0 | JF91: 0 | JG91: 0 | JH91: 0 | JI91: 0 | JJ91: 0 | JK91: 0 | JL91: 0 | JM91: 0 | JN91: 0 | JO91: 0 | JP91: 0 | JQ91: 0 | JR91: 0 | JS91: 0 | JT91: 0 | JU91: 0 | JV91: 0 | JW91: 0 | JX91: 0 | JY91: 0 | JZ91: 0 | KA91: 0 | KB91: 0 | KC91: 0 | KD91: 0 | KE91: 0 | KF91: 0 | KG91: 0 | KH91: 0 | KI91: 0 | KJ91: 0 | KK91: 0 | KL91: 0 | KM91: 0 | KN91: 0 | KO91: 0 | KP91: 0 | KQ91: 0 | KR91: 0 | KS91: 0 | KT91: 0 | KU91: 0 | KV91: 0 | KW91: 0 | KX91: 0 | KY91: 0 | KZ91: 0 | LA91: 0 | LB91: 0 | LC91: 0 | LD91: 0 | LE91: 0 | LF91: 0 | LG91: 0 | LH91: 0 | LI91: 0 | LJ91: 0 | LK91: 0 | LL91: 0 | LM91: =SUM(LM88:LM90) -> 0 | LN91: 0 | LO91: 0 | LP91: 0 | LQ91: 0 | LR91: 0 | LS91: 0 | LT91: 0 | LU91: 0 | LV91: 0 | LW91: 0 | LX91: 0 | LY91: 0 | LZ91: 0 | MA91: 0 | MB91: 0 | MC91: 0 | MD91: 0 | ME91: 0 | MF91: 0 | MG91: 0 | MH91: 0 | MI91: 0 | MJ91: 0 | MK91: 0 | ML91: 0 | MM91: 0 | MN91: 0 | MO91: 0 | MP91: 0 | MQ91: 0 | MR91: 0 | MS91: 0 | MT91: 0 | MU91: 0 | MV91: 0 | MW91: 0 | MX91: 0 | MY91: 0 | MZ91: 0 | NA91: 0 | NB91: 0 | NC91: 0 | ND91: 0 | NE91: 0 | NF91: 0 | NG91: 0 | NH91: 0 | NI91: 0 | NJ91: 0 | NK91: 0 | NL91: 0 | NM91: 0 | NN91: 0 | NO91: 0 | NP91: 0 | NQ91: 0 | NR91: 0 | NS91: 0 | NT91: 0 | NU91: 0 | NV91: 0 | NW91: 0 | NX91: 0 | NY91: =SUM(NY88:NY90) -> 0 | NZ91: 0 | OA91: 0 | OB91: 0 | OC91: 0 | OD91: 0 | OE91: 0 | OF91: 0 | OG91: 0 | OH91: 0 | OI91: 0 | OJ91: 0 | OK91: 0 | OL91: 0 | OM91: 0 | ON91: 0 | OO91: 0 | OP91: 0 | OQ91: 0 | OR91: 0 | OS91: 0 | OT91: 0 | OU91: 0 | OV91: 0 | OW91: 0 | OX91: 0 | OY91: 0 | OZ91: 0 | PA91: 0 | PB91: 0 | PC91: 0 | PD91: 0 | PE91: 0 | PF91: 0 | PG91: 0 | PH91: 0 | PI91: 0 | PJ91: 0 | PK91: 0 | PL91: 0 | PM91: 0 | PN91: 0 | PO91: 0 | PP91: 0 | PQ91: 0 | PR91: 0 | PS91: 0 | PT91: 0 | PU91: 0 | PV91: 0 | PW91: 0 | PX91: 0 | PY91: 0 | PZ91: 0 | QA91: 0 | QB91: 0 | QC91: =SUM(QC88:QC90) -> 0 | QE91: =SUM(QE88:QE90) -> 0 | QF91: =SUM(QF88:QF90) -> 0 | QG91: =SUM(QG88:QG90) -> 0 | QH91: =SUM(QH88:QH90) -> 0 | QI91: =SUM(QI88:QI90) -> 0 | QJ91: =SUM(QJ88:QJ90) -> 0 | QK91: =SUM(QK88:QK90) -> 0 | QL91: =SUM(QL88:QL90) -> 0 | QM91: =SUM(QM88:QM90) -> 0 | QN91: =SUM(QN88:QN90) -> 0 | QO91: =SUM(QO88:QO90) -> 0 | QP91: 0 | QQ91: =SUM(QQ88:QQ90) -> 0 | QR91: =SUM(QR88:QR90) -> 0 | QS91: =SUM(QS88:QS90) -> 0 | QT91: =SUM(QT88:QT90) -> 0 | QU91: =SUM(QU88:QU90) -> 0 | QV91: =SUM(QV88:QV90) -> 0 | QW91: =SUM(QW88:QW90) -> 0 | QX91: =SUM(QX88:QX90) -> 0 | QY91: =SUM(QY88:QY90) -> 0 | QZ91: =SUM(QZ88:QZ90) -> 0 | RA91: =SUM(RA88:RA90) -> 0 | RB91: 0 | RC91: =SUM(RC88:RC90) -> 0 | RD91: 0 | RE91: =SUM(RE88:RE90) -> 0 | RF91: =SUM(RF88:RF90) -> 0 | RG91: =SUM(RG88:RG90) -> 0 | RH91: =SUM(RH88:RH90) -> 0 | RI91: =SUM(RI88:RI90) -> 0 | RJ91: =SUM(RJ88:RJ90) -> 0 | RK91: 0 | RL91: =SUM(RL88:RL90) -> 0 | RM91: 0 | RN91: =SUM(RN88:RN90) -> 0 | RO91: =SUM(RO88:RO90) -> 0 | RP91: =SUM(RP88:RP90) -> 0 | RQ91: =SUM(RQ88:RQ90) -> 0 | RR91: =SUM(RR88:RR90) -> 0 | RS91: =SUM(RS88:RS90) -> 0 | RT91: =SUM(RT88:RT90) -> 0 | RU91: =SUM(RU88:RU90) -> 0 | RV91: =SUM(RV88:RV90) -> 0 | RW91: 0
D92: CONTRIBUTIVO | QC92: =SUM(E92:QB92)-SUM(PQ92:PT92)-SUM(PW92:PZ92) -> 0 | QE92: =SUM(E92:H92) -> 0 | QF92: =SUM(I92:BO92) -> 0 | QG92: =SUM(BP92:CW92) -> 0 | QH92: =SUM(CX92:DE92) -> 0 | QI92: =SUM(DF92:DT92) -> 0 | QJ92: =SUM(DU92:ET92) -> 0 | QK92: =SUM(EU92:FY92) -> 0 | QL92: =SUM(FZ92:HD92) -> 0 | QM92: =SUM(HE92:HF92) -> 0 | QN92: =SUM(HG92:HL92) -> 0 | QO92: =SUM(HM92:HR92) -> 0 | QP92: =SUM(HS92:IJ92) -> 0 | QQ92: =SUM(IK92:JA92) -> 0 | QR92: =SUM(JB92:JT92) -> 0 | QS92: =SUM(JU92:KD92) -> 0 | QT92: =SUM(KE92:KP92) -> 0 | QU92: =SUM(KQ92:MU92) -> 0 | QV92: =SUM(MV92:NG92) -> 0 | QW92: =SUM(NH92:NI92) -> 0 | QX92: =SUM(NJ92:NL92) -> 0 | QY92: =SUM(NM92:NO92) -> 0 | QZ92: =SUM(NP92) -> 0 | RA92: =SUM(NQ92) -> 0 | RB92: =SUM(NR92:NT92) -> 0 | RC92: =SUM(NU92) -> 0 | RD92: =SUM(NV92) -> 0 | RE92: =SUM(NW92:OB92) -> 0 | RF92: =SUM(OC92:PE92) -> 0 | RG92: =SUM(PF92:PG92) -> 0 | RH92: =SUM(PH92:PI92) -> 0 | RI92: =SUM(PJ92:PM92) -> 0 | RJ92: =SUM(PN92:PP92) -> 0 | RK92: =SUM(PQ92) -> 0 | RL92: =SUM(PR92) -> 0 | RM92: =SUM(PS92) -> 0 | RN92: =SUM(PT92:PV92) -> 0 | RO92: =SUM(PV92) -> 0 | RP92: =SUM(PV92) -> 0 | RQ92: =SUM(PW92) -> 0 | RR92: =SUM(PX92) -> 0 | RS92: =SUM(PY92) -> 0 | RT92: =SUM(PZ92) -> 0 | RU92: =SUM(QA92) -> 0 | RV92: =SUM(QB92) -> 0 | RW92: =SUM(QE92:RU92)-SUM(RI92:RM92)-SUM(RQ92:RT92) -> 0
D93: SUBSIDIADO | QC93: =SUM(E93:QB93)-SUM(PQ93:PT93)-SUM(PW93:PZ93) -> 0 | QE93: 0 | QF93: 0 | QG93: 0 | QH93: 0 | QI93: 0 | QJ93: 0 | QK93: 0 | QL93: 0 | QM93: 0 | QN93: 0 | QO93: 0 | QP93: 0 | QQ93: 0 | QR93: 0 | QS93: 0 | QT93: 0 | QU93: 0 | QV93: 0 | QW93: 0 | QX93: 0 | QY93: 0 | QZ93: 0 | RA93: 0 | RB93: 0 | RC93: 0 | RD93: 0 | RE93: 0 | RF93: 0 | RG93: 0 | RH93: 0 | RI93: 0 | RJ93: 0 | RK93: 0 | RL93: 0 | RM93: 0 | RN93: 0 | RO93: 0 | RP93: 0 | RQ93: 0 | RR93: 0 | RS93: 0 | RT93: 0 | RU93: 0 | RV93: 0 | RW93: 0
D94: POBRE NO ASEGURADO | QC94: =SUM(E94:QB94)-SUM(PQ94:PT94)-SUM(PW94:PZ94) -> 0 | QE94: 0 | QF94: 0 | QG94: 0 | QH94: 0 | QI94: 0 | QJ94: 0 | QK94: 0 | QL94: 0 | QM94: 0 | QN94: 0 | QO94: 0 | QP94: 0 | QQ94: 0 | QR94: 0 | QS94: 0 | QT94: 0 | QU94: 0 | QV94: 0 | QW94: 0 | QX94: 0 | QY94: 0 | QZ94: 0 | RA94: 0 | RB94: 0 | RC94: 0 | RD94: 0 | RE94: 0 | RF94: 0 | RG94: 0 | RH94: 0 | RI94: 0 | RJ94: 0 | RK94: 0 | RL94: 0 | RM94: 0 | RN94: 0 | RO94: 0 | RP94: 0 | RQ94: 0 | RR94: 0 | RS94: 0 | RT94: 0 | RU94: 0 | RV94: 0 | RW94: 0
D95: REGIMEN ESPECIAL | QC95: =SUM(E95:QB95)-SUM(PQ95:PT95)-SUM(PW95:PZ95) -> 0 | QE95: 0 | QF95: 0 | QG95: 0 | QH95: 0 | QI95: 0 | QJ95: 0 | QK95: 0 | QL95: 0 | QM95: 0 | QN95: 0 | QO95: 0 | QP95: 0 | QQ95: 0 | QR95: 0 | QS95: 0 | QT95: 0 | QU95: 0 | QV95: 0 | QW95: 0 | QX95: 0 | QY95: 0 | QZ95: 0 | RA95: 0 | RB95: 0 | RC95: 0 | RD95: 0 | RE95: 0 | RF95: 0 | RG95: 0 | RH95: 0 | RI95: 0 | RJ95: 0 | RK95: 0 | RL95: 0 | RM95: 0 | RN95: 0 | RO95: 0 | RP95: 0 | RQ95: 0 | RR95: 0 | RS95: 0 | RT95: 0 | RU95: 0 | RV95: 0 | RW95: 0
D96: TOTAL REGIMEN | E96: =SUM(E92:E95) -> 0 | F96: 0 | G96: 0 | H96: 0 | I96: 0 | J96: 0 | K96: 0 | L96: 0 | M96: 0 | N96: 0 | O96: 0 | P96: 0 | Q96: 0 | R96: 0 | S96: 0 | T96: 0 | U96: 0 | V96: 0 | W96: 0 | X96: 0 | Y96: 0 | Z96: 0 | AA96: 0 | AB96: 0 | AC96: 0 | AD96: 0 | AE96: 0 | AF96: 0 | AG96: 0 | AH96: 0 | AI96: 0 | AJ96: 0 | AK96: 0 | AL96: 0 | AM96: 0 | AN96: 0 | AO96: 0 | AP96: 0 | AQ96: 0 | AR96: 0 | AS96: 0 | AT96: 0 | AU96: 0 | AV96: 0 | AW96: 0 | AX96: 0 | AY96: 0 | AZ96: 0 | BA96: 0 | BB96: 0 | BC96: 0 | BD96: 0 | BE96: 0 | BF96: 0 | BG96: 0 | BH96: 0 | BI96: 0 | BJ96: 0 | BK96: 0 | BL96: 0 | BM96: 0 | BN96: 0 | BO96: 0 | BP96: 0 | BQ96: =SUM(BQ92:BQ95) -> 0 | BR96: 0 | BS96: 0 | BT96: 0 | BU96: 0 | BV96: 0 | BW96: 0 | BX96: 0 | BY96: 0 | BZ96: 0 | CA96: 0 | CB96: 0 | CC96: 0 | CD96: 0 | CE96: 0 | CF96: 0 | CG96: 0 | CH96: 0 | CI96: 0 | CJ96: 0 | CK96: 0 | CL96: 0 | CM96: 0 | CN96: 0 | CO96: 0 | CP96: 0 | CQ96: 0 | CR96: 0 | CS96: 0 | CT96: 0 | CU96: 0 | CV96: 0 | CW96: 0 | CX96: 0 | CY96: 0 | CZ96: 0 | DA96: 0 | DB96: 0 | DC96: 0 | DD96: 0 | DE96: 0 | DF96: 0 | DG96: 0 | DH96: 0 | DI96: 0 | DJ96: 0 | DK96: 0 | DL96: 0 | DM96: 0 | DN96: 0 | DO96: 0 | DP96: 0 | DQ96: 0 | DR96: 0 | DS96: 0 | DT96: 0 | DU96: 0 | DV96: 0 | DW96: 0 | DX96: 0 | DY96: 0 | DZ96: 0 | EA96: 0 | EB96: 0 | EC96: =SUM(EC92:EC95) -> 0 | ED96: 0 | EE96: 0 | EF96: 0 | EG96: 0 | EH96: 0 | EI96: 0 | EJ96: 0 | EK96: 0 | EL96: 0 | EM96: 0 | EN96: 0 | EO96: 0 | EP96: 0 | EQ96: 0 | ER96: 0 | ES96: 0 | ET96: 0 | EU96: 0 | EV96: 0 | EW96: 0 | EX96: 0 | EY96: 0 | EZ96: 0 | FA96: 0 | FB96: 0 | FC96: 0 | FD96: 0 | FE96: 0 | FF96: 0 | FG96: 0 | FH96: 0 | FI96: 0 | FJ96: 0 | FK96: 0 | FL96: 0 | FM96: 0 | FN96: 0 | FO96: 0 | FP96: 0 | FQ96: 0 | FR96: 0 | FS96: 0 | FT96: 0 | FU96: 0 | FV96: 0 | FW96: 0 | FX96: 0 | FY96: 0 | FZ96: 0 | GA96: 0 | GB96: 0 | GC96: 0 | GD96: 0 | GE96: 0 | GF96: 0 | GG96: 0 | GH96: 0 | GI96: 0 | GJ96: 0 | GK96: 0 | GL96: 0 | GM96: 0 | GN96: 0 | GO96: =SUM(GO92:GO95) -> 0 | GP96: 0 | GQ96: 0 | GR96: 0 | GS96: 0 | GT96: 0 | GU96: 0 | GV96: 0 | GW96: 0 | GX96: 0 | GY96: 0 | GZ96: 0 | HA96: 0 | HB96: 0 | HC96: 0 | HD96: 0 | HE96: 0 | HF96: 0 | HG96: 0 | HH96: 0 | HI96: 0 | HJ96: 0 | HK96: 0 | HL96: 0 | HM96: 0 | HN96: 0 | HO96: 0 | HP96: 0 | HQ96: 0 | HR96: 0 | HS96: 0 | HT96: 0 | HU96: 0 | HV96: 0 | HW96: 0 | HX96: 0 | HY96: 0 | HZ96: 0 | IA96: 0 | IB96: 0 | IC96: 0 | ID96: 0 | IE96: 0 | IF96: 0 | IG96: 0 | IH96: 0 | II96: 0 | IJ96: 0 | IK96: 0 | IL96: 0 | IM96: 0 | IN96: 0 | IO96: 0 | IP96: 0 | IQ96: 0 | IR96: 0 | IS96: 0 | IT96: 0 | IU96: 0 | IV96: 0 | IW96: 0 | IX96: 0 | IY96: 0 | IZ96: 0 | JA96: =SUM(JA92:JA95) -> 0 | JB96: 0 | JC96: 0 | JD96: 0 | JE96: 0 | JF96: 0 | JG96: 0 | JH96: 0 | JI96: 0 | JJ96: 0 | JK96: 0 | JL96: 0 | JM96: 0 | JN96: 0 | JO96: 0 | JP96: 0 | JQ96: 0 | JR96: 0 | JS96: 0 | JT96: 0 | JU96: 0 | JV96: 0 | JW96: 0 | JX96: 0 | JY96: 0 | JZ96: 0 | KA96: 0 | KB96: 0 | KC96: 0 | KD96: 0 | KE96: 0 | KF96: 0 | KG96: 0 | KH96: 0 | KI96: 0 | KJ96: 0 | KK96: 0 | KL96: 0 | KM96: 0 | KN96: 0 | KO96: 0 | KP96: 0 | KQ96: 0 | KR96: 0 | KS96: 0 | KT96: 0 | KU96: 0 | KV96: 0 | KW96: 0 | KX96: 0 | KY96: 0 | KZ96: 0 | LA96: 0 | LB96: 0 | LC96: 0 | LD96: 0 | LE96: 0 | LF96: 0 | LG96: 0 | LH96: 0 | LI96: 0 | LJ96: 0 | LK96: 0 | LL96: 0 | LM96: =SUM(LM92:LM95) -> 0 | LN96: 0 | LO96: 0 | LP96: 0 | LQ96: 0 | LR96: 0 | LS96: 0 | LT96: 0 | LU96: 0 | LV96: 0 | LW96: 0 | LX96: 0 | LY96: 0 | LZ96: 0 | MA96: 0 | MB96: 0 | MC96: 0 | MD96: 0 | ME96: 0 | MF96: 0 | MG96: 0 | MH96: 0 | MI96: 0 | MJ96: 0 | MK96: 0 | ML96: 0 | MM96: 0 | MN96: 0 | MO96: 0 | MP96: 0 | MQ96: 0 | MR96: 0 | MS96: 0 | MT96: 0 | MU96: 0 | MV96: 0 | MW96: 0 | MX96: 0 | MY96: 0 | MZ96: 0 | NA96: 0 | NB96: 0 | NC96: 0 | ND96: 0 | NE96: 0 | NF96: 0 | NG96: 0 | NH96: 0 | NI96: 0 | NJ96: 0 | NK96: 0 | NL96: 0 | NM96: 0 | NN96: 0 | NO96: 0 | NP96: 0 | NQ96: 0 | NR96: 0 | NS96: 0 | NT96: 0 | NU96: 0 | NV96: 0 | NW96: 0 | NX96: 0 | NY96: =SUM(NY92:NY95) -> 0 | NZ96: 0 | OA96: 0 | OB96: 0 | OC96: 0 | OD96: 0 | OE96: 0 | OF96: 0 | OG96: 0 | OH96: 0 | OI96: 0 | OJ96: 0 | OK96: 0 | OL96: 0 | OM96: 0 | ON96: 0 | OO96: 0 | OP96: 0 | OQ96: 0 | OR96: 0 | OS96: 0 | OT96: 0 | OU96: 0 | OV96: 0 | OW96: 0 | OX96: 0 | OY96: 0 | OZ96: 0 | PA96: 0 | PB96: 0 | PC96: 0 | PD96: 0 | PE96: 0 | PF96: 0 | PG96: 0 | PH96: 0 | PI96: 0 | PJ96: 0 | PK96: 0 | PL96: 0 | PM96: 0 | PN96: 0 | PO96: 0 | PP96: 0 | PQ96: 0 | PR96: 0 | PS96: 0 | PT96: 0 | PU96: 0 | PV96: 0 | PW96: 0 | PX96: 0 | PY96: 0 | PZ96: 0 | QA96: 0 | QB96: 0 | QC96: =SUM(QC92:QC95) -> 0 | QE96: =SUM(QE92:QE95) -> 0 | QF96: =SUM(QF92:QF95) -> 0 | QG96: =SUM(QG92:QG95) -> 0 | QH96: =SUM(QH92:QH95) -> 0 | QI96: =SUM(QI92:QI95) -> 0 | QJ96: =SUM(QJ92:QJ95) -> 0 | QK96: =SUM(QK92:QK95) -> 0 | QL96: =SUM(QL92:QL95) -> 0 | QM96: =SUM(QM92:QM95) -> 0 | QN96: =SUM(QN92:QN95) -> 0 | QO96: =SUM(QO92:QO95) -> 0 | QP96: 0 | QQ96: =SUM(QQ92:QQ95) -> 0 | QR96: =SUM(QR92:QR95) -> 0 | QS96: =SUM(QS92:QS95) -> 0 | QT96: =SUM(QT92:QT95) -> 0 | QU96: =SUM(QU92:QU95) -> 0 | QV96: =SUM(QV92:QV95) -> 0 | QW96: =SUM(QW92:QW95) -> 0 | QX96: =SUM(QX92:QX95) -> 0 | QY96: =SUM(QY92:QY95) -> 0 | QZ96: =SUM(QZ92:QZ95) -> 0 | RA96: =SUM(RA92:RA95) -> 0 | RB96: 0 | RC96: =SUM(RC92:RC95) -> 0 | RD96: 0 | RE96: =SUM(RE92:RE95) -> 0 | RF96: =SUM(RF92:RF95) -> 0 | RG96: =SUM(RG92:RG95) -> 0 | RH96: =SUM(RH92:RH95) -> 0 | RI96: =SUM(RI92:RI95) -> 0 | RJ96: =SUM(RJ92:RJ95) -> 0 | RK96: 0 | RL96: =SUM(RL92:RL95) -> 0 | RM96: 0 | RN96: =SUM(RN92:RN95) -> 0 | RO96: =SUM(RO92:RO95) -> 0 | RP96: =SUM(RP92:RP95) -> 0 | RQ96: =SUM(RQ92:RQ95) -> 0 | RR96: =SUM(RR92:RR95) -> 0 | RS96: =SUM(RS92:RS95) -> 0 | RT96: =SUM(RT92:RT95) -> 0 | RU96: =SUM(RU92:RU95) -> 0 | RV96: =SUM(RV92:RV95) -> 0 | RW96: 0
D97: INDIGENA | QC97: =SUM(E97:QB97)-SUM(PQ97:PT97)-SUM(PW97:PZ97) -> 0 | QE97: =SUM(E97:H97) -> 0 | QF97: =SUM(I97:BO97) -> 0 | QG97: =SUM(BP97:CW97) -> 0 | QH97: =SUM(CX97:DE97) -> 0 | QI97: =SUM(DF97:DT97) -> 0 | QJ97: =SUM(DU97:ET97) -> 0 | QK97: =SUM(EU97:FY97) -> 0 | QL97: =SUM(FZ97:HD97) -> 0 | QM97: =SUM(HE97:HF97) -> 0 | QN97: =SUM(HG97:HL97) -> 0 | QO97: =SUM(HM97:HR97) -> 0 | QP97: =SUM(HS97:IJ97) -> 0 | QQ97: =SUM(IK97:JA97) -> 0 | QR97: =SUM(JB97:JT97) -> 0 | QS97: =SUM(JU97:KD97) -> 0 | QT97: =SUM(KE97:KP97) -> 0 | QU97: =SUM(KQ97:MU97) -> 0 | QV97: =SUM(MV97:NG97) -> 0 | QW97: =SUM(NH97:NI97) -> 0 | QX97: =SUM(NJ97:NL97) -> 0 | QY97: =SUM(NM97:NO97) -> 0 | QZ97: =SUM(NP97) -> 0 | RA97: =SUM(NQ97) -> 0 | RB97: =SUM(NR97:NT97) -> 0 | RC97: =SUM(NU97) -> 0 | RD97: =SUM(NV97) -> 0 | RE97: =SUM(NW97:OB97) -> 0 | RF97: =SUM(OC97:PE97) -> 0 | RG97: =SUM(PF97:PG97) -> 0 | RH97: =SUM(PH97:PI97) -> 0 | RI97: =SUM(PJ97:PM97) -> 0 | RJ97: =SUM(PN97:PP97) -> 0 | RK97: =SUM(PQ97) -> 0 | RL97: =SUM(PR97) -> 0 | RM97: =SUM(PS97) -> 0 | RN97: =SUM(PT97:PV97) -> 0 | RO97: =SUM(PV97) -> 0 | RP97: =SUM(PV97) -> 0 | RQ97: =SUM(PW97) -> 0 | RR97: =SUM(PX97) -> 0 | RS97: =SUM(PY97) -> 0 | RT97: =SUM(PZ97) -> 0 | RU97: =SUM(QA97) -> 0 | RV97: =SUM(QB97) -> 0 | RW97: =SUM(QE97:RU97)-SUM(RI97:RM97)-SUM(RQ97:RT97) -> 0
D98: ROM (GITANO) | QC98: 0 | QE98: 0 | QF98: 0 | QG98: 0 | QH98: 0 | QI98: 0 | QJ98: 0 | QK98: 0 | QL98: 0 | QM98: 0 | QN98: 0 | QO98: 0 | QP98: 0 | QQ98: 0 | QR98: 0 | QS98: 0 | QT98: 0 | QU98: 0 | QV98: 0 | QW98: 0 | QX98: 0 | QY98: 0 | QZ98: 0 | RA98: 0 | RB98: 0 | RC98: 0 | RD98: 0 | RE98: 0 | RF98: 0 | RG98: 0 | RH98: 0 | RI98: 0 | RJ98: 0 | RK98: 0 | RL98: 0 | RM98: 0 | RN98: 0 | RO98: 0 | RP98: 0 | RQ98: 0 | RR98: 0 | RS98: 0 | RT98: 0 | RU98: 0 | RV98: 0 | RW98: 0
D99: RAIZAL | QC99: 0 | QE99: 0 | QF99: 0 | QG99: 0 | QH99: 0 | QI99: 0 | QJ99: 0 | QK99: 0 | QL99: 0 | QM99: 0 | QN99: 0 | QO99: 0 | QP99: 0 | QQ99: 0 | QR99: 0 | QS99: 0 | QT99: 0 | QU99: 0 | QV99: 0 | QW99: 0 | QX99: 0 | QY99: 0 | QZ99: 0 | RA99: 0 | RB99: 0 | RC99: 0 | RD99: 0 | RE99: 0 | RF99: 0 | RG99: 0 | RH99: 0 | RI99: 0 | RJ99: 0 | RK99: 0 | RL99: 0 | RM99: 0 | RN99: 0 | RO99: 0 | RP99: 0 | RQ99: 0 | RR99: 0 | RS99: 0 | RT99: 0 | RU99: 0 | RV99: 0 | RW99: 0
D100: PALENQUERO | QC100: 0 | QE100: 0 | QF100: 0 | QG100: 0 | QH100: 0 | QI100: 0 | QJ100: 0 | QK100: 0 | QL100: 0 | QM100: 0 | QN100: 0 | QO100: 0 | QP100: 0 | QQ100: 0 | QR100: 0 | QS100: 0 | QT100: 0 | QU100: 0 | QV100: 0 | QW100: 0 | QX100: 0 | QY100: 0 | QZ100: 0 | RA100: 0 | RB100: 0 | RC100: 0 | RD100: 0 | RE100: 0 | RF100: 0 | RG100: 0 | RH100: 0 | RI100: 0 | RJ100: 0 | RK100: 0 | RL100: 0 | RM100: 0 | RN100: 0 | RO100: 0 | RP100: 0 | RQ100: 0 | RR100: 0 | RS100: 0 | RT100: 0 | RU100: 0 | RV100: 0 | RW100: 0
D101: NEGRO(A), MULATO (A), AFROCOLOMBIANO (A) | QC101: 0 | QE101: 0 | QF101: 0 | QG101: 0 | QH101: 0 | QI101: 0 | QJ101: 0 | QK101: 0 | QL101: 0 | QM101: 0 | QN101: 0 | QO101: 0 | QP101: 0 | QQ101: 0 | QR101: 0 | QS101: 0 | QT101: 0 | QU101: 0 | QV101: 0 | QW101: 0 | QX101: 0 | QY101: 0 | QZ101: 0 | RA101: 0 | RB101: 0 | RC101: 0 | RD101: 0 | RE101: 0 | RF101: 0 | RG101: 0 | RH101: 0 | RI101: 0 | RJ101: 0 | RK101: 0 | RL101: 0 | RM101: 0 | RN101: 0 | RO101: 0 | RP101: 0 | RQ101: 0 | RR101: 0 | RS101: 0 | RT101: 0 | RU101: 0 | RV101: 0 | RW101: 0
D102: SIN PERTENENCIA ETNICA | QC102: 0 | QE102: 0 | QF102: 0 | QG102: 0 | QH102: 0 | QI102: 0 | QJ102: 0 | QK102: 0 | QL102: 0 | QM102: 0 | QN102: 0 | QO102: 0 | QP102: 0 | QQ102: 0 | QR102: 0 | QS102: 0 | QT102: 0 | QU102: 0 | QV102: 0 | QW102: 0 | QX102: 0 | QY102: 0 | QZ102: 0 | RA102: 0 | RB102: 0 | RC102: 0 | RD102: 0 | RE102: 0 | RF102: 0 | RG102: 0 | RH102: 0 | RI102: 0 | RJ102: 0 | RK102: 0 | RL102: 0 | RM102: 0 | RN102: 0 | RO102: 0 | RP102: 0 | RQ102: 0 | RR102: 0 | RS102: 0 | RT102: 0 | RU102: 0 | RV102: 0 | RW102: 0
D103: TOTAL ETNICOS | E103: =SUM(E97:E102) -> 0 | F103: 0 | G103: 0 | H103: 0 | I103: 0 | J103: 0 | K103: 0 | L103: 0 | M103: 0 | N103: 0 | O103: 0 | P103: 0 | Q103: 0 | R103: 0 | S103: 0 | T103: 0 | U103: 0 | V103: 0 | W103: 0 | X103: 0 | Y103: 0 | Z103: 0 | AA103: 0 | AB103: 0 | AC103: 0 | AD103: 0 | AE103: 0 | AF103: 0 | AG103: 0 | AH103: 0 | AI103: 0 | AJ103: 0 | AK103: 0 | AL103: 0 | AM103: 0 | AN103: 0 | AO103: 0 | AP103: 0 | AQ103: 0 | AR103: 0 | AS103: 0 | AT103: 0 | AU103: 0 | AV103: 0 | AW103: 0 | AX103: 0 | AY103: 0 | AZ103: 0 | BA103: 0 | BB103: 0 | BC103: 0 | BD103: 0 | BE103: 0 | BF103: 0 | BG103: 0 | BH103: 0 | BI103: 0 | BJ103: 0 | BK103: 0 | BL103: 0 | BM103: 0 | BN103: 0 | BO103: 0 | BP103: 0 | BQ103: =SUM(BQ97:BQ102) -> 0 | BR103: 0 | BS103: 0 | BT103: 0 | BU103: 0 | BV103: 0 | BW103: 0 | BX103: 0 | BY103: 0 | BZ103: 0 | CA103: 0 | CB103: 0 | CC103: 0 | CD103: 0 | CE103: 0 | CF103: 0 | CG103: 0 | CH103: 0 | CI103: 0 | CJ103: 0 | CK103: 0 | CL103: 0 | CM103: 0 | CN103: 0 | CO103: 0 | CP103: 0 | CQ103: 0 | CR103: 0 | CS103: 0 | CT103: 0 | CU103: 0 | CV103: 0 | CW103: 0 | CX103: 0 | CY103: 0 | CZ103: 0 | DA103: 0 | DB103: 0 | DC103: 0 | DD103: 0 | DE103: 0 | DF103: 0 | DG103: 0 | DH103: 0 | DI103: 0 | DJ103: 0 | DK103: 0 | DL103: 0 | DM103: 0 | DN103: 0 | DO103: 0 | DP103: 0 | DQ103: 0 | DR103: 0 | DS103: 0 | DT103: 0 | DU103: 0 | DV103: 0 | DW103: 0 | DX103: 0 | DY103: 0 | DZ103: 0 | EA103: 0 | EB103: 0 | EC103: =SUM(EC97:EC102) -> 0 | ED103: 0 | EE103: 0 | EF103: 0 | EG103: 0 | EH103: 0 | EI103: 0 | EJ103: 0 | EK103: 0 | EL103: 0 | EM103: 0 | EN103: 0 | EO103: 0 | EP103: 0 | EQ103: 0 | ER103: 0 | ES103: 0 | ET103: 0 | EU103: 0 | EV103: 0 | EW103: 0 | EX103: 0 | EY103: 0 | EZ103: 0 | FA103: 0 | FB103: 0 | FC103: 0 | FD103: 0 | FE103: 0 | FF103: 0 | FG103: 0 | FH103: 0 | FI103: 0 | FJ103: 0 | FK103: 0 | FL103: 0 | FM103: 0 | FN103: 0 | FO103: 0 | FP103: 0 | FQ103: 0 | FR103: 0 | FS103: 0 | FT103: 0 | FU103: 0 | FV103: 0 | FW103: 0 | FX103: 0 | FY103: 0 | FZ103: 0 | GA103: 0 | GB103: 0 | GC103: 0 | GD103: 0 | GE103: 0 | GF103: 0 | GG103: 0 | GH103: 0 | GI103: 0 | GJ103: 0 | GK103: 0 | GL103: 0 | GM103: 0 | GN103: 0 | GO103: =SUM(GO97:GO102) -> 0 | GP103: 0 | GQ103: 0 | GR103: 0 | GS103: 0 | GT103: 0 | GU103: 0 | GV103: 0 | GW103: 0 | GX103: 0 | GY103: 0 | GZ103: 0 | HA103: 0 | HB103: 0 | HC103: 0 | HD103: 0 | HE103: 0 | HF103: 0 | HG103: 0 | HH103: 0 | HI103: 0 | HJ103: 0 | HK103: 0 | HL103: 0 | HM103: 0 | HN103: 0 | HO103: 0 | HP103: 0 | HQ103: 0 | HR103: 0 | HS103: 0 | HT103: 0 | HU103: 0 | HV103: 0 | HW103: 0 | HX103: 0 | HY103: 0 | HZ103: 0 | IA103: 0 | IB103: 0 | IC103: 0 | ID103: 0 | IE103: 0 | IF103: 0 | IG103: 0 | IH103: 0 | II103: 0 | IJ103: 0 | IK103: 0 | IL103: 0 | IM103: 0 | IN103: 0 | IO103: 0 | IP103: 0 | IQ103: 0 | IR103: 0 | IS103: 0 | IT103: 0 | IU103: 0 | IV103: 0 | IW103: 0 | IX103: 0 | IY103: 0 | IZ103: 0 | JA103: =SUM(JA97:JA102) -> 0 | JB103: 0 | JC103: 0 | JD103: 0 | JE103: 0 | JF103: 0 | JG103: 0 | JH103: 0 | JI103: 0 | JJ103: 0 | JK103: 0 | JL103: 0 | JM103: 0 | JN103: 0 | JO103: 0 | JP103: 0 | JQ103: 0 | JR103: 0 | JS103: 0 | JT103: 0 | JU103: 0 | JV103: 0 | JW103: 0 | JX103: 0 | JY103: 0 | JZ103: 0 | KA103: 0 | KB103: 0 | KC103: 0 | KD103: 0 | KE103: 0 | KF103: 0 | KG103: 0 | KH103: 0 | KI103: 0 | KJ103: 0 | KK103: 0 | KL103: 0 | KM103: 0 | KN103: 0 | KO103: 0 | KP103: 0 | KQ103: 0 | KR103: 0 | KS103: 0 | KT103: 0 | KU103: 0 | KV103: 0 | KW103: 0 | KX103: 0 | KY103: 0 | KZ103: 0 | LA103: 0 | LB103: 0 | LC103: 0 | LD103: 0 | LE103: 0 | LF103: 0 | LG103: 0 | LH103: 0 | LI103: 0 | LJ103: 0 | LK103: 0 | LL103: 0 | LM103: =SUM(LM97:LM102) -> 0 | LN103: 0 | LO103: 0 | LP103: 0 | LQ103: 0 | LR103: 0 | LS103: 0 | LT103: 0 | LU103: 0 | LV103: 0 | LW103: 0 | LX103: 0 | LY103: 0 | LZ103: 0 | MA103: 0 | MB103: 0 | MC103: 0 | MD103: 0 | ME103: 0 | MF103: 0 | MG103: 0 | MH103: 0 | MI103: 0 | MJ103: 0 | MK103: 0 | ML103: 0 | MM103: 0 | MN103: 0 | MO103: 0 | MP103: 0 | MQ103: 0 | MR103: 0 | MS103: 0 | MT103: 0 | MU103: 0 | MV103: 0 | MW103: 0 | MX103: 0 | MY103: 0 | MZ103: 0 | NA103: 0 | NB103: 0 | NC103: 0 | ND103: 0 | NE103: 0 | NF103: 0 | NG103: 0 | NH103: 0 | NI103: 0 | NJ103: 0 | NK103: 0 | NL103: 0 | NM103: 0 | NN103: 0 | NO103: 0 | NP103: 0 | NQ103: 0 | NR103: 0 | NS103: 0 | NT103: 0 | NU103: 0 | NV103: 0 | NW103: 0 | NX103: 0 | NY103: =SUM(NY97:NY102) -> 0 | NZ103: 0 | OA103: 0 | OB103: 0 | OC103: 0 | OD103: 0 | OE103: 0 | OF103: 0 | OG103: 0 | OH103: 0 | OI103: 0 | OJ103: 0 | OK103: 0 | OL103: 0 | OM103: 0 | ON103: 0 | OO103: 0 | OP103: 0 | OQ103: 0 | OR103: 0 | OS103: 0 | OT103: 0 | OU103: 0 | OV103: 0 | OW103: 0 | OX103: 0 | OY103: 0 | OZ103: 0 | PA103: 0 | PB103: 0 | PC103: 0 | PD103: 0 | PE103: 0 | PF103: 0 | PG103: 0 | PH103: 0 | PI103: 0 | PJ103: 0 | PK103: 0 | PL103: 0 | PM103: 0 | PN103: 0 | PO103: 0 | PP103: 0 | PQ103: 0 | PR103: 0 | PS103: 0 | PT103: 0 | PU103: 0 | PV103: 0 | PW103: 0 | PX103: 0 | PY103: 0 | PZ103: 0 | QA103: 0 | QB103: 0 | QC103: =SUM(QC97:QC102) -> 0 | QE103: =SUM(QE97:QE102) -> 0 | QF103: =SUM(QF97:QF102) -> 0 | QG103: =SUM(QG97:QG102) -> 0 | QH103: =SUM(QH97:QH102) -> 0 | QI103: =SUM(QI97:QI102) -> 0 | QJ103: =SUM(QJ97:QJ102) -> 0 | QK103: =SUM(QK97:QK102) -> 0 | QL103: =SUM(QL97:QL102) -> 0 | QM103: =SUM(QM97:QM102) -> 0 | QN103: =SUM(QN97:QN102) -> 0 | QO103: =SUM(QO97:QO102) -> 0 | QP103: 0 | QQ103: =SUM(QQ97:QQ102) -> 0 | QR103: =SUM(QR97:QR102) -> 0 | QS103: =SUM(QS97:QS102) -> 0 | QT103: =SUM(QT97:QT102) -> 0 | QU103: =SUM(QU97:QU102) -> 0 | QV103: =SUM(QV97:QV102) -> 0 | QW103: =SUM(QW97:QW102) -> 0 | QX103: =SUM(QX97:QX102) -> 0 | QY103: =SUM(QY97:QY102) -> 0 | QZ103: =SUM(QZ97:QZ102) -> 0 | RA103: =SUM(RA97:RA102) -> 0 | RB103: 0 | RC103: =SUM(RC97:RC102) -> 0 | RD103: 0 | RE103: =SUM(RE97:RE102) -> 0 | RF103: =SUM(RF97:RF102) -> 0 | RG103: =SUM(RG97:RG102) -> 0 | RH103: =SUM(RH97:RH102) -> 0 | RI103: =SUM(RI97:RI102) -> 0 | RJ103: =SUM(RJ97:RJ102) -> 0 | RK103: 0 | RL103: =SUM(RL97:RL102) -> 0 | RM103: 0 | RN103: =SUM(RN97:RN102) -> 0 | RO103: =SUM(RO97:RO102) -> 0 | RP103: =SUM(RP97:RP102) -> 0 | RQ103: =SUM(RQ97:RQ102) -> 0 | RR103: =SUM(RR97:RR102) -> 0 | RS103: =SUM(RS97:RS102) -> 0 | RT103: =SUM(RT97:RT102) -> 0 | RU103: =SUM(RU97:RU102) -> 0 | RV103: =SUM(RV97:RV102) -> 0 | RW103: 0
D104: EN SITUACION DE DESPLAZAMIENTO | QC104: =SUM(E104:QB104)-SUM(PQ104:PT104)-SUM(PW104:PZ104) -> 0 | QE104: =SUM(E104:H104) -> 0 | QF104: =SUM(I104:BO104) -> 0 | QG104: =SUM(BP104:CW104) -> 0 | QH104: =SUM(CX104:DE104) -> 0 | QI104: =SUM(DF104:DT104) -> 0 | QJ104: =SUM(DU104:ET104) -> 0 | QK104: =SUM(EU104:FY104) -> 0 | QL104: =SUM(FZ104:HD104) -> 0 | QM104: =SUM(HE104:HF104) -> 0 | QN104: =SUM(HG104:HL104) -> 0 | QO104: =SUM(HM104:HR104) -> 0 | QP104: =SUM(HS104:IJ104) -> 0 | QQ104: =SUM(IK104:JA104) -> 0 | QR104: =SUM(JB104:JT104) -> 0 | QS104: =SUM(JU104:KD104) -> 0 | QT104: =SUM(KE104:KP104) -> 0 | QU104: =SUM(KQ104:MU104) -> 0 | QV104: =SUM(MV104:NG104) -> 0 | QW104: =SUM(NH104:NI104) -> 0 | QX104: =SUM(NJ104:NL104) -> 0 | QY104: =SUM(NM104:NO104) -> 0 | QZ104: =SUM(NP104) -> 0 | RA104: =SUM(NQ104) -> 0 | RB104: =SUM(NR104:NT104) -> 0 | RC104: =SUM(NU104) -> 0 | RD104: =SUM(NV104) -> 0 | RE104: =SUM(NW104:OB104) -> 0 | RF104: =SUM(OC104:PE104) -> 0 | RG104: =SUM(PF104:PG104) -> 0 | RH104: =SUM(PH104:PI104) -> 0 | RI104: =SUM(PJ104:PM104) -> 0 | RJ104: =SUM(PN104:PP104) -> 0 | RK104: =SUM(PQ104) -> 0 | RL104: =SUM(PR104) -> 0 | RM104: =SUM(PS104) -> 0 | RN104: =SUM(PT104:PV104) -> 0 | RO104: =SUM(PV104) -> 0 | RP104: =SUM(PV104) -> 0 | RQ104: =SUM(PW104) -> 0 | RR104: =SUM(PX104) -> 0 | RS104: =SUM(PY104) -> 0 | RT104: =SUM(PZ104) -> 0 | RU104: =SUM(QA104) -> 0 | RV104: =SUM(QB104) -> 0 | RW104: =SUM(QE104:RU104)-SUM(RI104:RM104)-SUM(RQ104:RT104) -> 0
D105: EN CONDICION DE DISCAPACIDAD | QC105: 0 | QE105: 0 | QF105: 0 | QG105: 0 | QH105: 0 | QI105: 0 | QJ105: 0 | QK105: 0 | QL105: 0 | QM105: 0 | QN105: 0 | QO105: 0 | QP105: 0 | QQ105: 0 | QR105: 0 | QS105: 0 | QT105: 0 | QU105: 0 | QV105: 0 | QW105: 0 | QX105: 0 | QY105: 0 | QZ105: 0 | RA105: 0 | RB105: 0 | RC105: 0 | RD105: 0 | RE105: 0 | RF105: 0 | RG105: 0 | RH105: 0 | RI105: 0 | RJ105: 0 | RK105: 0 | RL105: 0 | RM105: 0 | RN105: 0 | RO105: 0 | RP105: 0 | RQ105: 0 | RR105: 0 | RS105: 0 | RT105: 0 | RU105: 0 | RV105: 0 | RW105: 0
D106: VICTIMAS DEL CONFLICTO ARMADO | QC106: 0 | QE106: 0 | QF106: 0 | QG106: 0 | QH106: 0 | QI106: 0 | QJ106: 0 | QK106: 0 | QL106: 0 | QM106: 0 | QN106: 0 | QO106: 0 | QP106: 0 | QQ106: 0 | QR106: 0 | QS106: 0 | QT106: 0 | QU106: 0 | QV106: 0 | QW106: 0 | QX106: 0 | QY106: 0 | QZ106: 0 | RA106: 0 | RB106: 0 | RC106: 0 | RD106: 0 | RE106: 0 | RF106: 0 | RG106: 0 | RH106: 0 | RI106: 0 | RJ106: 0 | RK106: 0 | RL106: 0 | RM106: 0 | RN106: 0 | RO106: 0 | RP106: 0 | RQ106: 0 | RR106: 0 | RS106: 0 | RT106: 0 | RU106: 0 | RV106: 0 | RW106: 0
D107: ZONAS VEREDALES | QC107: 0 | QD107: =CONCATENATE($G$2,$B$88) -> 11 | QE107: =SUM(E107:H107) -> 0 | QF107: =SUM(I107:BN107) -> 0 | QG107: =SUM(BP107:CW107) -> 0 | QH107: =SUM(CX107:DE107) -> 0 | QI107: =SUM(DF107:DT107) -> 0 | QJ107: =SUM(DU107:ET107) -> 0 | QK107: =SUM(EU107:FY107) -> 0 | QL107: =SUM(FZ107:HD107) -> 0 | QM107: =SUM(HE107:HF107) -> 0 | QN107: =SUM(HG107:HL107) -> 0 | QO107: =SUM(HR107:II107) -> 0 | QP107: 0 | QQ107: =SUM(IK107:JA107) -> 0 | QR107: =SUM(JB107:JT107) -> 0 | QS107: =SUM(JU107:KD107) -> 0 | QT107: =SUM(KE107:KP107) -> 0 | QU107: =SUM(KQ107:MU107) -> 0 | QV107: =SUM(MV107:NG107) -> 0 | QW107: =SUM(NH107:NL107) -> 0 | QX107: =SUM(NM107:NO107) -> 0 | QY107: 0 | QZ107: =SUM(NP107) -> 0 | RA107: 0 | RB107: =SUM(NS107:NT107) -> 0 | RC107: 0 | RD107: 0 | RE107: =SUM(NZ107:OB107) -> 0 | RF107: =SUM(OC107:PE107) -> 0 | RG107: =SUM(PF107:PI107) -> 0 | RH107: =SUM(PJ107:PP107) -> 0 | RI107: =PQ107 -> 0 | RJ107: =PR107 -> 0 | RK107: =SUM(PQ107) -> 0 | RL107: 0 | RM107: 0 | RN107: 0 | RO107: 0 | RP107: 0 | RQ107: 0 | RR107: 0 | RS107: 0 | RT107: 0 | RU107: 0 | RV107: 0 | RW107: =SUM(QE107:RU107)-SUM(RI107:RM107)-SUM(RQ107:RT107) -> 0
D108: FEMENINO | QC108: 0 | QE108: 0 | QF108: =SUM(I108:BO108) -> 0 | QG108: 0 | QH108: 0 | QI108: 0 | QJ108: 0 | QK108: 0 | QL108: 0 | QM108: 0 | QN108: 0 | QO108: =SUM(HM108:HR108) -> 0 | QP108: 0 | QQ108: 0 | QR108: 0 | QS108: 0 | QT108: 0 | QU108: 0 | QV108: 0 | QW108: =SUM(NH108:NI108) -> 0 | QX108: =SUM(NJ108:NL108) -> 0 | QY108: =SUM(NM108:NO108) -> 0 | QZ108: 0 | RA108: 0 | RB108: =SUM(NR108:NT108) -> 0 | RC108: =SUM(NU108) -> 0 | RD108: =SUM(NV108) -> 0 | RE108: =SUM(NW108:OB108) -> 0 | RF108: =SUM(OC108:PE108) -> 0 | RG108: =SUM(PF108:PG108) -> 0 | RH108: =SUM(PH108:PI108) -> 0 | RI108: =SUM(PJ108:PM108) -> 0 | RJ108: =SUM(PN108:PP108) -> 0 | RK108: =SUM(PQ108) -> 0 | RL108: =SUM(PR108) -> 0 | RM108: =SUM(PS108) -> 0 | RN108: =SUM(PT108:PV108) -> 0 | RO108: =SUM(PV108) -> 0 | RP108: =SUM(PV108) -> 0 | RQ108: =SUM(PW108) -> 0 | RR108: =SUM(PX108) -> 0 | RS108: =SUM(PY108) -> 0 | RT108: =SUM(PZ108) -> 0 | RU108: =SUM(QA108) -> 0 | RV108: =SUM(QB108) -> 0 | RW108: =SUM(QE108:RU108)-SUM(RI108:RM108)-SUM(RQ108:RT108) -> 0
D109: MASCULINO | QC109: 0 | QE109: 0 | QF109: 0 | QG109: 0 | QH109: 0 | QI109: 0 | QJ109: 0 | QK109: 0 | QL109: 0 | QM109: 0 | QN109: 0 | QO109: 0 | QP109: 0 | QQ109: 0 | QR109: 0 | QS109: 0 | QT109: 0 | QU109: 0 | QV109: 0 | QW109: 0 | QX109: 0 | QY109: 0 | QZ109: 0 | RA109: 0 | RB109: 0 | RC109: 0 | RD109: 0 | RE109: 0 | RF109: 0 | RG109: 0 | RH109: 0 | RI109: 0 | RJ109: 0 | RK109: 0 | RL109: 0 | RM109: 0 | RN109: 0 | RO109: 0 | RP109: 0 | RQ109: 0 | RR109: 0 | RS109: 0 | RT109: 0 | RU109: 0 | RV109: 0 | RW109: 0
D110: OTRO | QC110: 0 | QE110: 0 | QF110: 0 | QG110: 0 | QH110: 0 | QI110: 0 | QJ110: 0 | QK110: 0 | QL110: 0 | QM110: 0 | QN110: 0 | QO110: 0 | QP110: 0 | QQ110: 0 | QR110: 0 | QS110: 0 | QT110: 0 | QU110: 0 | QV110: 0 | QW110: 0 | QX110: 0 | QY110: 0 | QZ110: 0 | RA110: 0 | RB110: 0 | RC110: 0 | RD110: 0 | RE110: 0 | RF110: 0 | RG110: 0 | RH110: 0 | RI110: 0 | RJ110: 0 | RK110: 0 | RL110: 0 | RM110: 0 | RN110: 0 | RO110: 0 | RP110: 0 | RQ110: 0 | RR110: 0 | RS110: 0 | RT110: 0 | RU110: 0 | RV110: 0 | RW110: 0
D111: TOTAL GENERO | E111: =SUM(E108:E110) -> 0 | F111: 0 | G111: 0 | H111: 0 | I111: 0 | J111: 0 | K111: 0 | L111: 0 | M111: 0 | N111: 0 | O111: 0 | P111: 0 | Q111: 0 | R111: 0 | S111: 0 | T111: 0 | U111: 0 | V111: 0 | W111: 0 | X111: 0 | Y111: 0 | Z111: 0 | AA111: 0 | AB111: 0 | AC111: 0 | AD111: 0 | AE111: 0 | AF111: 0 | AG111: 0 | AH111: 0 | AI111: 0 | AJ111: 0 | AK111: 0 | AL111: 0 | AM111: 0 | AN111: 0 | AO111: 0 | AP111: 0 | AQ111: 0 | AR111: 0 | AS111: 0 | AT111: 0 | AU111: 0 | AV111: 0 | AW111: 0 | AX111: 0 | AY111: 0 | AZ111: 0 | BA111: 0 | BB111: 0 | BC111: 0 | BD111: 0 | BE111: 0 | BF111: 0 | BG111: 0 | BH111: 0 | BI111: 0 | BJ111: 0 | BK111: 0 | BL111: 0 | BM111: 0 | BN111: 0 | BO111: 0 | BP111: 0 | BQ111: =SUM(BQ108:BQ110) -> 0 | BR111: 0 | BS111: 0 | BT111: 0 | BU111: 0 | BV111: 0 | BW111: 0 | BX111: 0 | BY111: 0 | BZ111: 0 | CA111: 0 | CB111: 0 | CC111: 0 | CD111: 0 | CE111: 0 | CF111: 0 | CG111: 0 | CH111: 0 | CI111: 0 | CJ111: 0 | CK111: 0 | CL111: 0 | CM111: 0 | CN111: 0 | CO111: 0 | CP111: 0 | CQ111: 0 | CR111: 0 | CS111: 0 | CT111: 0 | CU111: 0 | CV111: 0 | CW111: 0 | CX111: 0 | CY111: 0 | CZ111: 0 | DA111: 0 | DB111: 0 | DC111: 0 | DD111: 0 | DE111: 0 | DF111: 0 | DG111: 0 | DH111: 0 | DI111: 0 | DJ111: 0 | DK111: 0 | DL111: 0 | DM111: 0 | DN111: 0 | DO111: 0 | DP111: 0 | DQ111: 0 | DR111: 0 | DS111: 0 | DT111: 0 | DU111: 0 | DV111: 0 | DW111: 0 | DX111: 0 | DY111: 0 | DZ111: 0 | EA111: 0 | EB111: 0 | EC111: =SUM(EC108:EC110) -> 0 | ED111: 0 | EE111: 0 | EF111: 0 | EG111: 0 | EH111: 0 | EI111: 0 | EJ111: 0 | EK111: 0 | EL111: 0 | EM111: 0 | EN111: 0 | EO111: 0 | EP111: 0 | EQ111: 0 | ER111: 0 | ES111: 0 | ET111: 0 | EU111: 0 | EV111: 0 | EW111: 0 | EX111: 0 | EY111: 0 | EZ111: 0 | FA111: 0 | FB111: 0 | FC111: 0 | FD111: 0 | FE111: 0 | FF111: 0 | FG111: 0 | FH111: 0 | FI111: 0 | FJ111: 0 | FK111: 0 | FL111: 0 | FM111: 0 | FN111: 0 | FO111: 0 | FP111: 0 | FQ111: 0 | FR111: 0 | FS111: 0 | FT111: 0 | FU111: 0 | FV111: 0 | FW111: 0 | FX111: 0 | FY111: 0 | FZ111: 0 | GA111: 0 | GB111: 0 | GC111: 0 | GD111: 0 | GE111: 0 | GF111: 0 | GG111: 0 | GH111: 0 | GI111: 0 | GJ111: 0 | GK111: 0 | GL111: 0 | GM111: 0 | GN111: 0 | GO111: =SUM(GO108:GO110) -> 0 | GP111: 0 | GQ111: 0 | GR111: 0 | GS111: 0 | GT111: 0 | GU111: 0 | GV111: 0 | GW111: 0 | GX111: 0 | GY111: 0 | GZ111: 0 | HA111: 0 | HB111: 0 | HC111: 0 | HD111: 0 | HE111: 0 | HF111: 0 | HG111: 0 | HH111: 0 | HI111: 0 | HJ111: 0 | HK111: 0 | HL111: 0 | HM111: 0 | HN111: 0 | HO111: 0 | HP111: 0 | HQ111: 0 | HR111: 0 | HS111: 0 | HT111: 0 | HU111: 0 | HV111: 0 | HW111: 0 | HX111: 0 | HY111: 0 | HZ111: 0 | IA111: 0 | IB111: 0 | IC111: 0 | ID111: 0 | IE111: 0 | IF111: 0 | IG111: 0 | IH111: 0 | II111: 0 | IJ111: 0 | IK111: 0 | IL111: 0 | IM111: 0 | IN111: 0 | IO111: 0 | IP111: 0 | IQ111: 0 | IR111: 0 | IS111: 0 | IT111: 0 | IU111: 0 | IV111: 0 | IW111: 0 | IX111: 0 | IY111: 0 | IZ111: 0 | JA111: =SUM(JA108:JA110) -> 0 | JB111: 0 | JC111: 0 | JD111: 0 | JE111: 0 | JF111: 0 | JG111: 0 | JH111: 0 | JI111: 0 | JJ111: 0 | JK111: 0 | JL111: 0 | JM111: 0 | JN111: 0 | JO111: 0 | JP111: 0 | JQ111: 0 | JR111: 0 | JS111: 0 | JT111: 0 | JU111: 0 | JV111: 0 | JW111: 0 | JX111: 0 | JY111: 0 | JZ111: 0 | KA111: 0 | KB111: 0 | KC111: 0 | KD111: 0 | KE111: 0 | KF111: 0 | KG111: 0 | KH111: 0 | KI111: 0 | KJ111: 0 | KK111: 0 | KL111: 0 | KM111: 0 | KN111: 0 | KO111: 0 | KP111: 0 | KQ111: 0 | KR111: 0 | KS111: 0 | KT111: 0 | KU111: 0 | KV111: 0 | KW111: 0 | KX111: 0 | KY111: 0 | KZ111: 0 | LA111: 0 | LB111: 0 | LC111: 0 | LD111: 0 | LE111: 0 | LF111: 0 | LG111: 0 | LH111: 0 | LI111: 0 | LJ111: 0 | LK111: 0 | LL111: 0 | LM111: =SUM(LM108:LM110) -> 0 | LN111: 0 | LO111: 0 | LP111: 0 | LQ111: 0 | LR111: 0 | LS111: 0 | LT111: 0 | LU111: 0 | LV111: 0 | LW111: 0 | LX111: 0 | LY111: 0 | LZ111: 0 | MA111: 0 | MB111: 0 | MC111: 0 | MD111: 0 | ME111: 0 | MF111: 0 | MG111: 0 | MH111: 0 | MI111: 0 | MJ111: 0 | MK111: 0 | ML111: 0 | MM111: 0 | MN111: 0 | MO111: 0 | MP111: 0 | MQ111: 0 | MR111: 0 | MS111: 0 | MT111: 0 | MU111: 0 | MV111: 0 | MW111: 0 | MX111: 0 | MY111: 0 | MZ111: 0 | NA111: 0 | NB111: 0 | NC111: 0 | ND111: 0 | NE111: 0 | NF111: 0 | NG111: 0 | NH111: 0 | NI111: 0 | NJ111: 0 | NK111: 0 | NL111: 0 | NM111: 0 | NN111: 0 | NO111: 0 | NP111: 0 | NQ111: 0 | NR111: 0 | NS111: 0 | NT111: 0 | NU111: 0 | NV111: 0 | NW111: 0 | NX111: 0 | NY111: =SUM(NY108:NY110) -> 0 | NZ111: 0 | OA111: 0 | OB111: 0 | OC111: 0 | OD111: 0 | OE111: 0 | OF111: 0 | OG111: 0 | OH111: 0 | OI111: 0 | OJ111: 0 | OK111: 0 | OL111: 0 | OM111: 0 | ON111: 0 | OO111: 0 | OP111: 0 | OQ111: 0 | OR111: 0 | OS111: 0 | OT111: 0 | OU111: 0 | OV111: 0 | OW111: 0 | OX111: 0 | OY111: 0 | OZ111: 0 | PA111: 0 | PB111: 0 | PC111: 0 | PD111: 0 | PE111: 0 | PF111: 0 | PG111: 0 | PH111: 0 | PI111: 0 | PJ111: 0 | PK111: 0 | PL111: 0 | PM111: 0 | PN111: 0 | PO111: 0 | PP111: 0 | PQ111: 0 | PR111: 0 | PS111: 0 | PT111: 0 | PU111: 0 | PV111: 0 | PW111: 0 | PX111: 0 | PY111: 0 | PZ111: 0 | QA111: 0 | QB111: 0 | QC111: =SUM(QC108:QC110) -> 0 | QE111: =SUM(QE108:QE110) -> 0 | QF111: =SUM(QF108:QF110) -> 0 | QG111: =SUM(QG108:QG110) -> 0 | QH111: =SUM(QH108:QH110) -> 0 | QI111: =SUM(QI108:QI110) -> 0 | QJ111: =SUM(QJ108:QJ110) -> 0 | QK111: =SUM(QK108:QK110) -> 0 | QL111: =SUM(QL108:QL110) -> 0 | QM111: =SUM(QM108:QM110) -> 0 | QN111: =SUM(QN108:QN110) -> 0 | QO111: =SUM(QO108:QO110) -> 0 | QP111: 0 | QQ111: =SUM(QQ108:QQ110) -> 0 | QR111: =SUM(QR108:QR110) -> 0 | QS111: =SUM(QS108:QS110) -> 0 | QT111: =SUM(QT108:QT110) -> 0 | QU111: =SUM(QU108:QU110) -> 0 | QV111: =SUM(QV108:QV110) -> 0 | QW111: =SUM(QW108:QW110) -> 0 | QX111: =SUM(QX108:QX110) -> 0 | QY111: =SUM(QY108:QY110) -> 0 | QZ111: =SUM(QZ108:QZ110) -> 0 | RA111: =SUM(RA108:RA110) -> 0 | RB111: 0 | RC111: =SUM(RC108:RC110) -> 0 | RD111: 0 | RE111: =SUM(RE108:RE110) -> 0 | RF111: =SUM(RF108:RF110) -> 0 | RG111: =SUM(RG108:RG110) -> 0 | RH111: =SUM(RH108:RH110) -> 0 | RI111: =SUM(RI108:RI110) -> 0 | RJ111: =SUM(RJ108:RJ110) -> 0 | RK111: 0 | RL111: =SUM(RL108:RL110) -> 0 | RM111: 0 | RN111: =SUM(RN108:RN110) -> 0 | RO111: =SUM(RO108:RO110) -> 0 | RP111: =SUM(RP108:RP110) -> 0 | RQ111: =SUM(RQ108:RQ110) -> 0 | RR111: =SUM(RR108:RR110) -> 0 | RS111: =SUM(RS108:RS110) -> 0 | RT111: =SUM(RT108:RT110) -> 0 | RU111: =SUM(RU108:RU110) -> 0 | RV111: =SUM(RV108:RV110) -> 0 | RW111: 0
D112: CONTRIBUTIVO | QC112: =SUM(E112:QB112)-SUM(PQ112:PT112)-SUM(PW112:PZ112) -> 0 | QE112: =SUM(E112:H112) -> 0 | QF112: =SUM(I112:BO112) -> 0 | QG112: =SUM(BP112:CW112) -> 0 | QH112: =SUM(CX112:DE112) -> 0 | QI112: =SUM(DF112:DT112) -> 0 | QJ112: =SUM(DU112:ET112) -> 0 | QK112: =SUM(EU112:FY112) -> 0 | QL112: =SUM(FZ112:HD112) -> 0 | QM112: =SUM(HE112:HF112) -> 0 | QN112: =SUM(HG112:HL112) -> 0 | QO112: =SUM(HM112:HR112) -> 0 | QP112: =SUM(HS112:IJ112) -> 0 | QQ112: =SUM(IK112:JA112) -> 0 | QR112: =SUM(JB112:JT112) -> 0 | QS112: =SUM(JU112:KD112) -> 0 | QT112: =SUM(KE112:KP112) -> 0 | QU112: =SUM(KQ112:MU112) -> 0 | QV112: =SUM(MV112:NG112) -> 0 | QW112: =SUM(NH112:NI112) -> 0 | QX112: =SUM(NJ112:NL112) -> 0 | QY112: =SUM(NM112:NO112) -> 0 | QZ112: =SUM(NP112) -> 0 | RA112: =SUM(NQ112) -> 0 | RB112: =SUM(NR112:NT112) -> 0 | RC112: =SUM(NU112) -> 0 | RD112: =SUM(NV112) -> 0 | RE112: =SUM(NW112:OB112) -> 0 | RF112: =SUM(OC112:PE112) -> 0 | RG112: =SUM(PF112:PG112) -> 0 | RH112: =SUM(PH112:PI112) -> 0 | RI112: =SUM(PJ112:PM112) -> 0 | RJ112: =SUM(PN112:PP112) -> 0 | RK112: =SUM(PQ112) -> 0 | RL112: =SUM(PR112) -> 0 | RM112: =SUM(PS112) -> 0 | RN112: =SUM(PT112:PV112) -> 0 | RO112: =SUM(PV112) -> 0 | RP112: =SUM(PV112) -> 0 | RQ112: =SUM(PW112) -> 0 | RR112: =SUM(PX112) -> 0 | RS112: =SUM(PY112) -> 0 | RT112: =SUM(PZ112) -> 0 | RU112: =SUM(QA112) -> 0 | RV112: =SUM(QB112) -> 0 | RW112: =SUM(QE112:RU112)-SUM(RI112:RM112)-SUM(RQ112:RT112) -> 0
D113: SUBSIDIADO | QC113: =SUM(E113:QB113)-SUM(PQ113:PT113)-SUM(PW113:PZ113) -> 0 | QE113: 0 | QF113: 0 | QG113: 0 | QH113: 0 | QI113: 0 | QJ113: 0 | QK113: 0 | QL113: 0 | QM113: 0 | QN113: 0 | QO113: 0 | QP113: 0 | QQ113: 0 | QR113: 0 | QS113: 0 | QT113: 0 | QU113: 0 | QV113: 0 | QW113: 0 | QX113: 0 | QY113: 0 | QZ113: 0 | RA113: 0 | RB113: 0 | RC113: 0 | RD113: 0 | RE113: 0 | RF113: 0 | RG113: 0 | RH113: 0 | RI113: 0 | RJ113: 0 | RK113: 0 | RL113: 0 | RM113: 0 | RN113: 0 | RO113: 0 | RP113: 0 | RQ113: 0 | RR113: 0 | RS113: 0 | RT113: 0 | RU113: 0 | RV113: 0 | RW113: 0
D114: POBRE NO ASEGURADO | QC114: =SUM(E114:QB114)-SUM(PQ114:PT114)-SUM(PW114:PZ114) -> 0 | QE114: 0 | QF114: 0 | QG114: 0 | QH114: 0 | QI114: 0 | QJ114: 0 | QK114: 0 | QL114: 0 | QM114: 0 | QN114: 0 | QO114: 0 | QP114: 0 | QQ114: 0 | QR114: 0 | QS114: 0 | QT114: 0 | QU114: 0 | QV114: 0 | QW114: 0 | QX114: 0 | QY114: 0 | QZ114: 0 | RA114: 0 | RB114: 0 | RC114: 0 | RD114: 0 | RE114: 0 | RF114: 0 | RG114: 0 | RH114: 0 | RI114: 0 | RJ114: 0 | RK114: 0 | RL114: 0 | RM114: 0 | RN114: 0 | RO114: 0 | RP114: 0 | RQ114: 0 | RR114: 0 | RS114: 0 | RT114: 0 | RU114: 0 | RV114: 0 | RW114: 0
D115: REGIMEN ESPECIAL | QC115: =SUM(E115:QB115)-SUM(PQ115:PT115)-SUM(PW115:PZ115) -> 0 | QE115: 0 | QF115: 0 | QG115: 0 | QH115: 0 | QI115: 0 | QJ115: 0 | QK115: 0 | QL115: 0 | QM115: 0 | QN115: 0 | QO115: 0 | QP115: 0 | QQ115: 0 | QR115: 0 | QS115: 0 | QT115: 0 | QU115: 0 | QV115: 0 | QW115: 0 | QX115: 0 | QY115: 0 | QZ115: 0 | RA115: 0 | RB115: 0 | RC115: 0 | RD115: 0 | RE115: 0 | RF115: 0 | RG115: 0 | RH115: 0 | RI115: 0 | RJ115: 0 | RK115: 0 | RL115: 0 | RM115: 0 | RN115: 0 | RO115: 0 | RP115: 0 | RQ115: 0 | RR115: 0 | RS115: 0 | RT115: 0 | RU115: 0 | RV115: 0 | RW115: 0
